Workbook

Sheet New Feedstock (hidden)
U1: =title426 -> Method 1 | X1: =title428 -> Method 2
K2: Elemental Analysis | U2: B | X2: B | BK2: BIOGAS COMPOSITION METHOD 1
B3: Type | C3: Feedstock ID | D3: TS (%) | E3: VS (%) | F3: Biogas Potential (m3/t VS) | G3: Methane Content (%) | J3: C | K3: H | L3: O | M3: N | N3: S | O3: PROTEIN (%) | P3: CARBOHYDRATE (%) | Q3: =UPPER(title658)&" (%)" -> ASH (%) | R3: FAT (%) | S3: DRY MATTER (%) | T3: VS (%) | U3: m3/t VS | V3: CH4 (%) | W3: LHV (MJ/m3) | X3: m3/t VS | Y3: CH4 (%) | Z3: LHV (MJ/m3) | AA3: Number of moles | AM3: emprirical formula | AY3: =UPPER(title89) -> BIOGAS PRODUCTION | BL3: CO2 | BM3: CH4 | BN3: NH3 | BO3: H2S | BP3: H2O
A4: New Feedstock | D4: 0 | E4: 0 | F4: 0 | G4: 0 | T4: =$G$4 -> 0 | U4: =IFERROR(A_*22.415*$T4/(12*A_+B_+16*C_+14*D_)*1000,0) -> 0 | V4: =IFERROR($BM4,0) -> 0 | W4: =0.359*V4-0.024 -> -0.024 | X4: =IFERROR(($R4*$O$14+$O4*$O$15+$P4*$O$16),0) -> 0 | Y4: =IFERROR(($R4*$P$14+$O4*$P$15+$P4*$P$16)/100,0) -> 0 | Z4: =0.359*Y4-0.024 -> -0.024 | AA4: =$C4 -> 0 | AB4: C | AC4: =J4/CARBON -> 0 | AD4: H | AE4: =K4/HYDROGEN -> 0 | AF4: O | AG4: =L4/OXYGEN -> 0 | AH4: N | AI4: =M4/NITROGEN -> 0 | AJ4: S | AK4: =N4/SULFUR -> 0 | AM4: =$C4 -> 0 | AN4: C | AO4: =AC4/AI4 ->  | AP4: H | AQ4: =+AE4/AI4 ->  | AR4: O | AS4: =+AG4/AI4 ->  | AT4: N | AU4: =+AI4/AI4 ->  | AV4: S | AW4: =+AK4/AI4 ->  | AY4: =$C4 -> 0 | AZ4: F CO2 | BA4: =ABS(((A_/2)-(B_/8)+(C_/4)+(3*D_/B_)+(E_/4))) ->  | BB4: F CH4 | BC4: =ABS((A_/2)+(B_/8)-(C_/4)-(3*D_/8)-(E_/4)) ->  | BD4: F NH3 | BE4: =+AU4 ->  | BF4: F H2S | BG4: =+E_ ->  | BH4: F H2O | BI4: =ABS(0.2*(A_-(B_/4)-(C_/2)-(3*D_/4)+(E_/2))) ->  | BK4: =$C4 -> 0 | BL4: =$BA4/SUM($BA4:$BI4) ->  | BM4: =$BC4/SUM($BA4:$BI4) ->  | BN4: =$BE4/SUM($BA4:$BI4) ->  | BO4: =$BG4/SUM($BA4:$BI4) ->  | BP4: =$BI4/SUM($BA4:$BI4) -> 
B5: Type | C5: Feedstock ID | D5: COD in Wastewater (g/l) | E5: Biogas Potential (m3/t COD removed) | F5: Methane Content | G5: COD degradability (%)
A6: =title192 -> Wastewater | B6: =A6 -> Wastewater | C6: My Restaurant Wastewater | D6: 50 | E6: 350 | F6: 0.68 | G6: 0.8
N7: Atomic Mass
N8: C | O8: 12.0107
N9: H | O9: 1.00794
N10: O | O10: 15.9994
N11: N | O11: 14.0067
N12: S | O12: 32.065
N13: DATA | O13: Yield (M3/TS) | P13: CH4 (%)
N14: FATS | O14: 1390 | P14: 69
N15: PROTEINS | O15: 650 | P15: 78
N16: CARBOHYDRATE | O16: 850 | P16: 50
A19: Size Caluclator
A20: =title74 -> Please Select | B20: =title671 -> m3 Methane/day | C20: kWe | D20: =title260 -> m3 Biogas/day
A21: =title671 -> m3 Methane/day | B21: 1 | C21: =1/(10*30%/24) -> 8 | D21: =0.6 -> 0.6 | F21: 1
A22: kWe | B22: =1/(24/10/30%) -> 0.125 | C22: 1 | D22: =1/(24/10/30%/60%) -> 0.075 | F22: 2
A23: =title260 -> m3 Biogas/day | B23: =1/0.6 -> 1.666666667 | C23: =1/(10*30%*60%/24) -> 13.33333333 | D23: 1 | F23: 3
B26: =title248&" 1" -> Size 1 | C26: =title248&" 2" -> Size 2 | D26: =title248&" 3" -> Size 3 | E26: =title248&" 4" -> Size 4 | F26: =title64 -> Selection | G26: kWe | H26: Min | I26: 100
A27: =title671 -> m3 Methane/day | B27: =IF($G$28=1,B32,B37) -> 800 | C27: =IF($G$28=1,C32,C37) -> 140 | D27: =IF($G$28=1,D32,D37) -> 220 | E27: =IF($G$28=1,E32,E37) -> 960 | F27: Column | G27: =IF($G$26=title671,COLUMN($B$20),IF($G$26="kWe",COLUMN($C$20),IF($G$26=$D$20,COLUMN($D$20),0))) -> 3 | H27: Max | I27: 120
A28: kWe | B28: =IF($G$28=1,B33,B38) -> 100 | C28: 105 | D28: 115 | E28: 120 | F28: Selector | G28: 2
A29: =title260 -> m3 Biogas/day | B29: 1333 | C29: 167 | D29: 300 | E29: 1600
A31: Default | B31: Size1 | C31: Size2 | D31: Size3 | E31: Size4
A32: =title671 -> m3 Methane/day | B32: 2000 | C32: 8000 | D32: 80000 | E32: 400000
A33: kW | B33: 250 | C33: 1000 | D33: 10000 | E33: 50000
A34: =title260 -> m3 Biogas/day | B34: =B32/0.6 -> 3333.333333 | C34: =C32/0.6 -> 13333.33333 | D34: =D32/0.6 -> 133333.3333 | E34: =E32/0.6 -> 666666.6667
B35: 0 | C35: 25 | D35: 75 | E35: 100
A36: Calculated | B36: =title248&" 1" -> Size 1 | C36: =title248&" 2" -> Size 2 | D36: =title248&" 3" -> Size 3 | E36: =title248&" 4" -> Size 4
A37: =title671 -> m3 Methane/day | B37: =ROUND(VLOOKUP($A37,$A$20:$D$23,$G$27,FALSE)*$I$26,0) -> 800 | C37: =ROUND(VLOOKUP($A37,$A$20:$D$23,$G$27,FALSE)*(C$35-$B$35)*($I$27-$I$26)/($E$35-$B$35)+$I$26,0) -> 140 | D37: =ROUND(VLOOKUP($A37,$A$20:$D$23,$G$27,FALSE)*(D$35-$B$35)*($I$27-$I$26)/($E$35-$B$35)+$I$26,0) -> 220 | E37: =ROUND(VLOOKUP($A37,$A$20:$D$23,$G$27,FALSE)*$I$27,0) -> 960
A38: kWe | B38: =ROUND(VLOOKUP($A38,$A$20:$D$23,$G$27,FALSE)*$I$26,0) -> 100 | C38: =ROUND(VLOOKUP($A38,$A$20:$D$23,$G$27,FALSE)*(C$35-$B$35)*($I$27-$I$26)/($E$35-$B$35)+$I$26,0) -> 105 | D38: 115 | E38: =ROUND(VLOOKUP($A38,$A$20:$D$23,$G$27,FALSE)*$I$27,0) -> 120
A39: =title260 -> m3 Biogas/day | B39: =ROUND(VLOOKUP($A39,$A$20:$D$23,$G$27,FALSE)*$I$26,0) -> 1333 | C39: 167 | D39: 300 | E39: =ROUND(VLOOKUP($A39,$A$20:$D$23,$G$27,FALSE)*$I$27,0) -> 1600
A337: aa

Sheet Title (hidden)
B2: Selection | C2: =VLOOKUP(Start!C9,$A$3:$C$5,3,FALSE) -> 1
A3: EN | B3: English | C3: 1
A4: FR | B4: French | C4: 2
A5: ES | B5: Spanish | C5: 3
A7: ID | B7: English | C7: French | D7: Spanish | E7: Typeof | F7: Ref | G7: Name
A8: 1 | B8: 1 | C8: 2 | D8: 3
A9: 2 | B9: RAPID APPRAISAL TOOL FOR BIOGAS PRODUCTION INDUSTRIAL SCALE | C9: OUTIL D'ÉVALUATION RAPIDE POUR LA PRODUCTION INDUSTRIELLE DE BIOGAZ | D9: HERRAMIENTA DE EVALUACIÓN RÁPIDA PARA LA PRODUCCIÓN DE BIOGÁS A ESCALA INDUSTRIAL | E9: title | F9: =HLOOKUP($C$2,$B$8:$D9,$A9,FALSE) -> RAPID APPRAISAL TOOL FOR BIOGAS PRODUCTION INDUSTRIAL SCALE | G9: =$E9&$A9 -> title2
A10: 3 | B10: Disclaimer | C10: Déni de responsabilité | D10: Descargo de Responsabilidad | E10: title | F10: =HLOOKUP($C$2,$B$8:$D10,$A10,FALSE) -> Disclaimer | G10: title3
A11: 4 | B11: FAO declines all responsibility for errors or deficiencies in the database or software or in the documentation accompanying it, for program maintenance and upgrading as well as for any damage that may arise from them. FAO also declines any responsibility for updating the data and assumes no responsibility for errors and omissions in the data provided. Users are, however, kindly asked to report any errors or deficiencies in this product to FAO. The choices of calculation made in this tool are those of the author(s) and do not necessarily reflect the views and choices of the Food and Agriculture Organization of the United Nations. | C11: La FAO décline toute responsabilité quant aux erreurs ou défauts des textes du présent site et des bases de données y afférentes, ainsi que pour les dommages pouvant en résulter. La FAO décline également toute responsabilité quant à la mise à jour des données et se dégage de toute responsabilité quant aux erreurs ou omissions concernant les données fournies. Les utilisateurs sont toutefois invités à signaler toute erreur ou lacune de ce produit à la FAO. Les choix des calculs faits dans le présent outil sont celles du/des auteur(s) et ne reflètent pas nécessairement les choix et opinions de l’Organisation des Nations Unies pour l’alimentation et l’agriculture (FAO). | D11: La FAO declina cualquier responsabilidad por errores u otros defectos del banco de datos, programa o de la documentación que los acompaña, o por cualquier daño derivado de ellos, así como por el mantenimiento y el mejoramiento de los programas. La FAO declina asimismo cualquier responsabilidad por la actualización de los datos, o por errores u omisiones en los datos que se han proporcionado. Se pide no obstante a los usuarios que señalen eventuales errores o defectos de este producto a la FAO. La elección de los cálculos presente en esta herramienta son las del/de los autor(es) y no reflejan necesariamente las opiniones y elecciones de la Organización de las Naciones Unidas para la Agricultura y la Alimentación. | E11: title | F11: =HLOOKUP($C$2,$B$8:$D11,$A11,FALSE) -> FAO declines all responsibility for errors or deficiencies in the database or software or in the documentation accompanying it, for program maintenance and upgrading as well as for any damage that may arise from them. FAO also declines any responsibility for updating the data and assumes no responsibility for errors and omissions in the data provided. Users are, however, kindly asked to report any errors or deficiencies in this product to FAO. The choices of calculation made in this tool are those of the author(s) and do not necessarily reflect the views and choices of the Food and Agriculture Organization of the United Nations. | G11: title4
A12: 5 | B12: FINAL USE OF BIOGAS SELECTOR | C12: SELECTEUR D'UTILISATEUR FINAL DU BIOGAZ | D12: SELECCION DEL USO FINAL DEL BIOGAS | E12: title | F12: =HLOOKUP($C$2,$B$8:$D12,$A12,FALSE) -> FINAL USE OF BIOGAS SELECTOR | G12: title5
A13: 6 | B13: Select a final use for biogas produced | C13: Sélectionner un utilisateur final pour le biogaz produit | D13: Seleccionar el uso final para el biogás producido | E13: title | F13: =HLOOKUP($C$2,$B$8:$D13,$A13,FALSE) -> Select a final use for biogas produced | G13: title6
A14: 7 | B14: Option 1: Heat and Electricity | C14: Option1: Chaleur et Électricité | D14: Opción 1: Calor y Electricidad | E14: title | F14: =HLOOKUP($C$2,$B$8:$D14,$A14,FALSE) -> Option 1: Heat and Electricity | G14: title7
A15: 8 | B15: Heat Consumption per Household | C15: Consommation de chaleur par ménage | D15: Consumo de calor por hogar | E15: title | F15: =HLOOKUP($C$2,$B$8:$D15,$A15,FALSE) -> Heat Consumption per Household | G15: title8
A16: 9 | B16: Briquettes (kg) | C16: Briquette (kg) | D16: Briquetas (kg) | E16: title | F16: =HLOOKUP($C$2,$B$8:$D16,$A16,FALSE) -> Briquettes (kg) | G16: title9
A17: 10 | B17: Pellets (kg) | C17: Granulés de bois (kg) | D17: Pellets (kg) | E17: title | F17: =HLOOKUP($C$2,$B$8:$D17,$A17,FALSE) -> Pellets (kg) | G17: title10
A18: 11 | B18: Charcoal (kg) | C18: Charbon de bois (kg) | D18: Carbón vegetal (kg) | E18: title | F18: =HLOOKUP($C$2,$B$8:$D18,$A18,FALSE) -> Charcoal (kg) | G18: title11
A19: 12 | B19: Coal (kg) | C19: Charbon (kg) | D19: Carbón (kg) | E19: title | F19: =HLOOKUP($C$2,$B$8:$D19,$A19,FALSE) -> Coal (kg) | G19: title12
A20: 13 | B20: Fuelwood (kg) | C20: Bois-Energie (kg) | D20: Madera combustible (kg) | E20: title | F20: =HLOOKUP($C$2,$B$8:$D20,$A20,FALSE) -> Fuelwood (kg) | G20: title13
A21: 14 | B21: Kerosene (l) | C21: Kérosène (l) | D21: Kerosén (l) | E21: title | F21: =HLOOKUP($C$2,$B$8:$D21,$A21,FALSE) -> Kerosene (l) | G21: title14
A22: 15 | B22: LPG (l) | C22: GPL (l) | D22: Gas de baja presión (l) | E22: title | F22: =HLOOKUP($C$2,$B$8:$D22,$A22,FALSE) -> LPG (l) | G22: title15
A23: 16 | B23: Natural Gas (m3) | C23: Gaz Naturel (m3) | D23: Gas Natural (m3) | E23: title | F23: =HLOOKUP($C$2,$B$8:$D23,$A23,FALSE) -> Natural Gas (m3) | G23: title16
A24: 17 | B24: Price | C24: Prix | D24: Precio | E24: title | F24: =HLOOKUP($C$2,$B$8:$D24,$A24,FALSE) -> Price | G24: title17
A25: 18 | B25: Consumption | C25: Consommation | D25: Consumo | E25: title | F25: =HLOOKUP($C$2,$B$8:$D25,$A25,FALSE) -> Consumption | G25: title18
A26: 19 | B26: USD/unit/hh | C26: USD/unité/ménage | D26: USD/unidad/hh | E26: title | F26: =HLOOKUP($C$2,$B$8:$D26,$A26,FALSE) -> USD/unit/hh | G26: title19
A27: 20 | B27: unit/day/hh | C27: unité/jour/ménage | D27: unidad/día/hh | E27: title | F27: =HLOOKUP($C$2,$B$8:$D27,$A27,FALSE) -> unit/day/hh | G27: title20
A28: 21 | B28: unit/year/hh | C28: unité/an/ménage | D28: unidad/año/hh | E28: title | F28: =HLOOKUP($C$2,$B$8:$D28,$A28,FALSE) -> unit/year/hh | G28: title21
A29: 22 | B29: Heat (GJ) | C29: Chaleur (GJ) | D29: Calor (GJ) | E29: title | F29: =HLOOKUP($C$2,$B$8:$D29,$A29,FALSE) -> Heat (GJ) | G29: title22
A30: 23 | B30: Electricity (kWh) | C30: Électricité (kWh) | D30: Electricidad (kWh) | E30: title | F30: =HLOOKUP($C$2,$B$8:$D30,$A30,FALSE) -> Electricity (kWh) | G30: title23
A31: 24 | B31: USD/unit | C31: USD/unité | D31: USD/unidad | E31: title | F31: =HLOOKUP($C$2,$B$8:$D31,$A31,FALSE) -> USD/unit | G31: title24
A32: 25 | B32: unit/year/ind | C32: unité/an/ind | D32: unidad/año/ind | E32: title | F32: =HLOOKUP($C$2,$B$8:$D32,$A32,FALSE) -> unit/year/ind | G32: title25
A33: 26 | B33: Energy Consumption per Industry | C33: Consommation d'énergie par secteur | D33: Consumo de energía por industria | E33: title | F33: =HLOOKUP($C$2,$B$8:$D33,$A33,FALSE) -> Energy Consumption per Industry | G33: title26
A34: 27 | B34: Unit | C34: Unité | D34: Unidad | E34: title | F34: =HLOOKUP($C$2,$B$8:$D34,$A34,FALSE) -> Unit | G34: title27
A35: 28 | B35: Electricity Consumption per Household | C35: Consommation d'électricité par Ménage | D35: Consumo de Electricidad por Hogar | E35: title | F35: =HLOOKUP($C$2,$B$8:$D35,$A35,FALSE) -> Electricity Consumption per Household | G35: title28
A36: 29 | B36: unit/month/hh | C36: unité/mois/ménage | D36: unidad/mes/hh | E36: title | F36: =HLOOKUP($C$2,$B$8:$D36,$A36,FALSE) -> unit/month/hh | G36: title29
A37: 30 | B37: Option 2: Heating and/or cooking | C37: Option 2: Chauffage et/ou cuisson | D37: Opción 2: Calor y/o la Cocina | E37: title | F37: =HLOOKUP($C$2,$B$8:$D37,$A37,FALSE) -> Option 2: Heating and/or cooking | G37: title30
A38: 31 | B38: Heat Consumption per Industry | C38: Consommation de chaleur par secteur | D38: Consumo de calor por industria | E38: title | F38: =HLOOKUP($C$2,$B$8:$D38,$A38,FALSE) -> Heat Consumption per Industry | G38: title31
A39: 32 | B39: GJ/year/ind | C39: GJ/an/ind | D39: GJ/año/ind | E39: title | F39: =HLOOKUP($C$2,$B$8:$D39,$A39,FALSE) -> GJ/year/ind | G39: title32
A40: 33 | B40: Include Biogas Distribution | C40: Inclure la distribution de biogaz | D40: Incluir la distribucion del biogás | E40: title | F40: =HLOOKUP($C$2,$B$8:$D40,$A40,FALSE) -> Include Biogas Distribution | G40: title33
A41: 34 | B41: Option 3: Electricity Only | C41: Option 3: Électricité Seulement | D41: Opción3: Solo Electricidad | E41: title | F41: =HLOOKUP($C$2,$B$8:$D41,$A41,FALSE) -> Option 3: Electricity Only | G41: title34
A42: 35 | B42: Electricity | C42: Électricité | D42: Electricidad | E42: title | F42: =HLOOKUP($C$2,$B$8:$D42,$A42,FALSE) -> Electricity | G42: title35
A43: 36 | B43: kWh/month/hh | C43: kWh/mois/ménage | D43: kWh/mes/hh | E43: title | F43: =HLOOKUP($C$2,$B$8:$D43,$A43,FALSE) -> kWh/month/hh | G43: title36
A44: 37 | B44: kWh/year/hh | C44: kWh/an/ménage | D44: kWh/año/hh | E44: title | F44: =HLOOKUP($C$2,$B$8:$D44,$A44,FALSE) -> kWh/year/hh | G44: title37
A45: 38 | B45: Electricity Consumption per Industry | C45: Consommation d'électricité par secteur | D45: Consumo de electricidad por industria | E45: title | F45: =HLOOKUP($C$2,$B$8:$D45,$A45,FALSE) -> Electricity Consumption per Industry | G45: title38
A46: 39 | B46: kWh/year/ind | C46: kWh/an/ind | D46: kWh/año/ind | E46: title | F46: =HLOOKUP($C$2,$B$8:$D46,$A46,FALSE) -> kWh/year/ind | G46: title39
A47: 40 | B47: Option 4: Connection to natural gas line | C47: Option 4 : injection dans le réseau de gaz naturel | D47: Opción 4: Conexion a la línea de gas natural | E47: title | F47: =HLOOKUP($C$2,$B$8:$D47,$A47,FALSE) -> Option 4: Connection to natural gas line | G47: title40
A48: 41 | B48: Natural Gas Consumption per Household | C48: Consommation de gaz naturel par ménage | D48: Consumo de gas natural por hogar | E48: title | F48: =HLOOKUP($C$2,$B$8:$D48,$A48,FALSE) -> Natural Gas Consumption per Household | G48: title41
A49: 42 | B49: m3/day/hh | C49: m3/jour/ménage | D49: m3/día/hh | E49: title | F49: =HLOOKUP($C$2,$B$8:$D49,$A49,FALSE) -> m3/day/hh | G49: title42
A50: 43 | B50: m3/year/hh | C50: m3/an/ménage | D50: m3/año/hh | E50: title | F50: =HLOOKUP($C$2,$B$8:$D50,$A50,FALSE) -> m3/year/hh | G50: title43
A51: 44 | B51: Include biomethane transportation to connection point | C51: Inclure le transport du méthane au point d'injection | D51: Incluir el transporte de biometano al punto de conexión | E51: title | F51: =HLOOKUP($C$2,$B$8:$D51,$A51,FALSE) -> Include biomethane transportation to connection point | G51: title44
A52: 45 | B52: Distance biogas plant to connection point (km) | C52: Distance entre le site de production et le point d'injection (km) | D52: Distancia de la planta de biogás al punto de conexión | E52: title | F52: =HLOOKUP($C$2,$B$8:$D52,$A52,FALSE) -> Distance biogas plant to connection point (km) | G52: title45
A53: 46 | B53: Natural Gas Consumption per Industry | C53: Consommation de Gaz naturel par secteur | D53: Consumo de gas natural por industria | E53: title | F53: =HLOOKUP($C$2,$B$8:$D53,$A53,FALSE) -> Natural Gas Consumption per Industry | G53: title46
A54: 47 | B54: Natural Gas | C54: Gaz Naturel | D54: Gas Natural | E54: title | F54: =HLOOKUP($C$2,$B$8:$D54,$A54,FALSE) -> Natural Gas | G54: title47
A55: 48 | B55: m3/year/ind | C55: m3/an/ind | D55: m3/año/ind | E55: title | F55: =HLOOKUP($C$2,$B$8:$D55,$A55,FALSE) -> m3/year/ind | G55: title48
A56: 49 | B56: MJ/year/hh | C56: MJ/an/ménage | D56: MJ/año/hh | E56: title | F56: =HLOOKUP($C$2,$B$8:$D56,$A56,FALSE) -> MJ/year/hh | G56: title49
A57: 50 | B57: USD/year/hh | C57: USD/an/ménage | D57: USD/año/hh | E57: title | F57: =HLOOKUP($C$2,$B$8:$D57,$A57,FALSE) -> USD/year/hh | G57: title50
A58: 51 | B58: Heat | C58: Chaleur | D58: Calor | E58: title | F58: =HLOOKUP($C$2,$B$8:$D58,$A58,FALSE) -> Heat | G58: title51
A59: 52 | B59: Households | C59: Ménages | D59: Hogares | E59: title | F59: =HLOOKUP($C$2,$B$8:$D59,$A59,FALSE) -> Households | G59: title52
A60: 53 | B60: Expenditure Heat | C60: Dépense de Chaleur | D60: Gasto Calor | E60: title | F60: =HLOOKUP($C$2,$B$8:$D60,$A60,FALSE) -> Expenditure Heat | G60: title53
A61: 54 | B61: Expenditure Electricity | C61: Dépense d'Électricité | D61: Gasto Electricidad | E61: title | F61: =HLOOKUP($C$2,$B$8:$D61,$A61,FALSE) -> Expenditure Electricity | G61: title54
A62: 55 | B62: Industries | C62: Industries | D62: Industrias | E62: title | F62: =HLOOKUP($C$2,$B$8:$D62,$A62,FALSE) -> Industries | G62: title55
A63: 56 | B63: Expenditure | C63: Dépense | D63: Gasto | E63: title | F63: =HLOOKUP($C$2,$B$8:$D63,$A63,FALSE) -> Expenditure | G63: title56
A64: 57 | B64: m3 biogas | C64: m3 biogaz | D64: m3 biogás | E64: title | F64: =HLOOKUP($C$2,$B$8:$D64,$A64,FALSE) -> m3 biogas | G64: title57
A65: 58 | B65: unit fuel/m3 biogas | C65: Unité de carburant/m3 de biogaz | D65: unidad de combustible/m3 de biogás | E65: title | F65: =HLOOKUP($C$2,$B$8:$D65,$A65,FALSE) -> unit fuel/m3 biogas | G65: title58
A66: 59 | B66: m3 biogas/year/hh | C66: m3 biogaz/an/ménage | D66: m3 biogás/año/hh | E66: title | F66: =HLOOKUP($C$2,$B$8:$D66,$A66,FALSE) -> m3 biogas/year/hh | G66: title59
A67: 60 | B67: Heat (MJ) | C67: Chaleur (MJ) | D67: Calor (MJ) | E67: title | F67: =HLOOKUP($C$2,$B$8:$D67,$A67,FALSE) -> Heat (MJ) | G67: title60
A68: 61 | B68: Industrial | C68: Industriel | D68: Industrial | E68: title | F68: =HLOOKUP($C$2,$B$8:$D68,$A68,FALSE) -> Industrial | G68: title61
A69: 62 | B69: m3 biogas/day/ind | C69: m3 biogaz/jour/ind | D69: m3 biogás/día/ind | E69: title | F69: =HLOOKUP($C$2,$B$8:$D69,$A69,FALSE) -> m3 biogas/day/ind | G69: title62
A70: 63 | B70: m3 biogas/year/ind | C70: m3 biogaz/an/ind | D70: m3 biogás/año/ind | E70: title | F70: =HLOOKUP($C$2,$B$8:$D70,$A70,FALSE) -> m3 biogas/year/ind | G70: title63
A71: 64 | B71: Selection | C71: Sélection | D71: Selección | E71: title | F71: =HLOOKUP($C$2,$B$8:$D71,$A71,FALSE) -> Selection | G71: title64
A72: 65 | B72: Heat and Electricity | C72: Chauffage et Électricité | D72: Calor y electricidad | E72: title | F72: =HLOOKUP($C$2,$B$8:$D72,$A72,FALSE) -> Heat and Electricity | G72: title65
A73: 66 | B73: Heating and/or Cooking | C73: Chauffage et/ou Cuisson | D73: Calefacción y/o Cocinar | E73: title | F73: =HLOOKUP($C$2,$B$8:$D73,$A73,FALSE) -> Heating and/or Cooking | G73: =$E73&$A73 -> title66
A74: 67 | B74: Electricity Only | C74: Électricité Seulement | D74: Solo electricidad | E74: title | F74: =HLOOKUP($C$2,$B$8:$D74,$A74,FALSE) -> Electricity Only | G74: title67
A75: 68 | B75: Connection to natural gas line | C75: Connection au gazoduc | D75: Conexión a la línea de gas natural | E75: title | F75: =HLOOKUP($C$2,$B$8:$D75,$A75,FALSE) -> Connection to natural gas line | G75: title68
A76: 69 | B76: Injection Fuel Grid | C76: Injection dans le réseau | D76: Inyección a la red de combustible | E76: title | F76: =HLOOKUP($C$2,$B$8:$D76,$A76,FALSE) -> Injection Fuel Grid | G76: title69
A77: 70 | B77: m3 methane/year/hh | C77: m3 méthane/an/ménage | D77: m3 metano/año/hogar | E77: title | F77: =HLOOKUP($C$2,$B$8:$D77,$A77,FALSE) -> m3 methane/year/hh | G77: title70
A78: 71 | B78: Expenditure (USD/YEAR/HH) | C78: Dépense (USD/AN/MÉNAGE) | D78: Gasto (USD/AÑO/Hogar) | E78: title | F78: =HLOOKUP($C$2,$B$8:$D78,$A78,FALSE) -> Expenditure (USD/YEAR/HH) | G78: title71
A79: 72 | B79: m3 methane/year/ind | C79: m3 méthane/an/ind | D79: m3 metano/año/ind | E79: title | F79: =HLOOKUP($C$2,$B$8:$D79,$A79,FALSE) -> m3 methane/year/ind | G79: title72
A80: 73 | B80: Expernditure (USD/YEAR/ind) | C80: Dépense (USD/AN/IND) | D80: Gasto (USD/AÑO/IND) | E80: title | F80: =HLOOKUP($C$2,$B$8:$D80,$A80,FALSE) -> Expernditure (USD/YEAR/ind) | G80: title73
A81: 74 | B81: Please Select | C81: Sélectionnez | D81: Seleccione | E81: title | F81: =HLOOKUP($C$2,$B$8:$D81,$A81,FALSE) -> Please Select | G81: title74
A82: 75 | B82: Yes | C82: Oui | D82: Sí | E82: title | F82: =HLOOKUP($C$2,$B$8:$D82,$A82,FALSE) -> Yes | G82: title75
A83: 76 | B83: Fuel | C83: Carburant | D83: Combustible | E83: title | F83: =HLOOKUP($C$2,$B$8:$D83,$A83,FALSE) -> Fuel | G83: title76
A84: 77 | B84: CV (MJ/unit) | C84: CV (MJ/unité) | D84: Poder Calorífico (MJ/unidad) | E84: title | F84: =HLOOKUP($C$2,$B$8:$D84,$A84,FALSE) -> CV (MJ/unit) | G84: title77
A85: 78 | B85: Unit/m3 BIOGAS | C85: Unité/m3 BIOGAZ | D85: Unidad/m3 BIOGÁS | E85: title | F85: =HLOOKUP($C$2,$B$8:$D85,$A85,FALSE) -> Unit/m3 BIOGAS | G85: title78
A86: 79 | B86: Biogas (m3) | C86: Biogaz (m3) | D86: Biogás (m3) | E86: title | F86: =HLOOKUP($C$2,$B$8:$D86,$A86,FALSE) -> Biogas (m3) | G86: title79
A87: 80 | B87: Biogas Density | C87: Densité du biogaz | D87: Densidad del biogás | E87: title | F87: =HLOOKUP($C$2,$B$8:$D87,$A87,FALSE) -> Biogas Density | G87: title80
A88: 81 | B88: Kg biogas/m3 | C88: Kg biogaz/m3 | D88: Kg biogás/m3 | E88: title | F88: =HLOOKUP($C$2,$B$8:$D88,$A88,FALSE) -> Kg biogas/m3 | G88: title81
A89: 82 | B89: Final Use Selected : | C89: Utilisateur final selectionné | D89: Uso final seleccionado : | E89: title | F89: =HLOOKUP($C$2,$B$8:$D89,$A89,FALSE) -> Final Use Selected : | G89: title82
A90: 83 | B90: Biogas | C90: Biogaz | D90: Biogás | E90: title | F90: =HLOOKUP($C$2,$B$8:$D90,$A90,FALSE) -> Biogas | G90: title83
A91: 84 | B91: Manure | C91: Fumier | D91: Estiércol | E91: title | F91: =HLOOKUP($C$2,$B$8:$D91,$A91,FALSE) -> Manure | G91: title84
A92: 85 | B92: Crop Residues | C92: Résidus de cultures | D92: Residuos de cultivos | E92: title | F92: =HLOOKUP($C$2,$B$8:$D92,$A92,FALSE) -> Crop Residues | G92: title85
A93: 86 | B93: Biomass collection & transportation | C93: Collecte & transport de biomasse | D93: Recolección & Transporte de Residuos de Biomasa | E93: title | F93: =HLOOKUP($C$2,$B$8:$D93,$A93,FALSE) -> Biomass collection & transportation | G93: title86
A94: 87 | B94: Feedstock storage | C94: Stockage des intrants | D94: Almacenamiento de la materia prima | E94: title | F94: =HLOOKUP($C$2,$B$8:$D94,$A94,FALSE) -> Feedstock storage | G94: title87
A95: 88 | B95: Feedstock Pretreatment | C95: Pré-traitement des intrants | D95: Pre-tratado de la materia prima | E95: title | F95: =HLOOKUP($C$2,$B$8:$D95,$A95,FALSE) -> Feedstock Pretreatment | G95: title88
A96: 89 | B96: Biogas Production | C96: Production de Biogaz | D96: Producción de biogás | E96: title | F96: =HLOOKUP($C$2,$B$8:$D96,$A96,FALSE) -> Biogas Production | G96: title89
A97: 90 | B97: Connection to Natural Gas Pipeline | C97: Connection au Gazoduc | D97: Conexión a la línea de gas natural | E97: title | F97: =HLOOKUP($C$2,$B$8:$D97,$A97,FALSE) -> Connection to Natural Gas Pipeline | G97: title90
A98: 91 | B98: Upgrade System | C98: Améliorer le système | D98: Mejorar el sistema | E98: title | F98: =HLOOKUP($C$2,$B$8:$D98,$A98,FALSE) -> Upgrade System | G98: title91
A99: 92 | B99: Biomethane | C99: Biométhane | D99: Biometano | E99: title | F99: =HLOOKUP($C$2,$B$8:$D99,$A99,FALSE) -> Biomethane | G99: title92
A100: 93 | B100: Food Processing Residues | C100: Résidus de transformation des aliments | D100: Residuos del procesamiento de alimentos | E100: title | F100: =HLOOKUP($C$2,$B$8:$D100,$A100,FALSE) -> Food Processing Residues | G100: title93
A101: 94 | B101: Waste Waters | C101: Eaux usées | D101: Aguas residuales | E101: title | F101: =HLOOKUP($C$2,$B$8:$D101,$A101,FALSE) -> Waste Waters | G101: title94
A102: 95 | B102: DATA ENTRY FOR BIOGAS PRODUCTION - INDUSTRIAL SCALE | C102: ENTRER LES DONNÉES POUR LA PRODUCTION DE BIOGAZ A ÉCHELLE INDUSTRIELLE | D102: INGRESO DE DATOS PARA LA PRODUCCION DE BIOGAS - ESCALA INDUSTRIAL | E102: title | F102: =HLOOKUP($C$2,$B$8:$D102,$A102,FALSE) -> DATA ENTRY FOR BIOGAS PRODUCTION - INDUSTRIAL SCALE | G102: title95
A103: 96 | B103: Processes to analyze and Operation Mode Selection | C103: Traitements à analyser et Sélection d'un Mode Opératoire | D103: Procesos a analizar y selección del Modo de Operación | E103: title | F103: =HLOOKUP($C$2,$B$8:$D103,$A103,FALSE) -> Processes to analyze and Operation Mode Selection | G103: title96
A104: 97 | B104: Include processes to compare | C104: Inclure les traitements à comparer | D104: Incluir los procesos a comparar | E104: title | F104: =HLOOKUP($C$2,$B$8:$D104,$A104,FALSE) -> Include processes to compare | G104: title97
A105: 98 | B105: Process | C105: Traitement | D105: Procedimiento | E105: title | F105: =HLOOKUP($C$2,$B$8:$D105,$A105,FALSE) -> Process | G105: title98
A106: 99 | B106: Single Feedstock | C106: Intrant unique | D106: Materia prima única | E106: title | F106: =HLOOKUP($C$2,$B$8:$D106,$A106,FALSE) -> Single Feedstock | G106: title99
A107: 100 | B107: Multi-Feedstock | C107: Intrants multiples | D107: Múltiples paterias primas | E107: title | F107: =HLOOKUP($C$2,$B$8:$D107,$A107,FALSE) -> Multi-Feedstock | G107: title100
A108: 101 | B108: Optimized Co-digestion | C108: Co-digestion optimisée | D108: Co-digestión optimizada | E108: title | F108: =HLOOKUP($C$2,$B$8:$D108,$A108,FALSE) -> Optimized Co-digestion | G108: title101
A109: 102 | B109: One single feedstock is used throughout the year | C109: Un seul intrant unique est utilisé tout au long de l'année | D109: Una sola materia prima es utilizada durante todo el año | E109: title | F109: =HLOOKUP($C$2,$B$8:$D109,$A109,FALSE) -> One single feedstock is used throughout the year | G109: title102
A110: 103 | B110: Up to 5 feedstock options can be used throughout the year. But only one option can be allocated to each month. | C110: Jusqu'à 5 options d'intrants peuvent êtres utilisées tout au long de l'année. Mais seule 1 option peut être attribuée à chaque mois. | D110: Hasta cinco materias primas son utilizadas durante todo el año. Pero solo una puede ser asignada a cada mes | E110: title | F110: =HLOOKUP($C$2,$B$8:$D110,$A110,FALSE) -> Up to 5 feedstock options can be used throughout the year. But only one option can be allocated to each month. | G110: title103
A111: 104 | B111: Up to 5 feedstock options can be used throughout the year, plus 1 main co-digestion feedstock. All combinations are accepted. Use of manure or wastewater as co-digestion feedstock is required. | C111: Jusqu'à 5 options d'intrants peuvent êtres utilisées tout au long de l'année plus 1 intrant principal en co-digestion. Toutes les combinaisons sont acceptées. L'utilisation de fumier ou d'eaux usées en tant qu'intrant pour la co-digestion est requis. | D111: Hasta cinco materias primas son utilizadas durante todo el año. Adicionalmente una materia prima para co-digestión. Todas las combinaciones son aceptadas. El uso de estiércol o aguas residuales como materia prima de codigestión es requerida. | E111: title | F111: =HLOOKUP($C$2,$B$8:$D111,$A111,FALSE) -> Up to 5 feedstock options can be used throughout the year, plus 1 main co-digestion feedstock. All combinations are accepted. Use of manure or wastewater as co-digestion feedstock is required. | G111: title104
A112: 105 | B112: Operation Mode | C112: Mode opératoire | D112: Modo de Operación | E112: title | F112: =HLOOKUP($C$2,$B$8:$D112,$A112,FALSE) -> Operation Mode | G112: title105
A113: 106 | B113: Feedstock Availability and Cost | C113: Disponibilité et Coût des Intrants | D113: Disponibilidad y costo de la materia prima | E113: title | F113: =HLOOKUP($C$2,$B$8:$D113,$A113,FALSE) -> Feedstock Availability and Cost | G113: title106
A114: 107 | B114: Main Feedstocks | C114: Intrants principaux | D114: Materias primas principales | E114: title | F114: =HLOOKUP($C$2,$B$8:$D114,$A114,FALSE) -> Main Feedstocks | G114: title107
A115: 108 | B115: Main Category | C115: Catégorie principale | D115: Categorías principales | E115: title | F115: =HLOOKUP($C$2,$B$8:$D115,$A115,FALSE) -> Main Category | G115: title108
A116: 109 | B116: Feedstock | C116: Intrants | D116: Materia prima | E116: title | F116: =HLOOKUP($C$2,$B$8:$D116,$A116,FALSE) -> Feedstock | G116: title109
A117: 110 | B117: Feedstock Available (t/year) | C117: Intrants disponibles (t/an) | D117: Materia prima disponible (t/año) | E117: title | F117: =HLOOKUP($C$2,$B$8:$D117,$A117,FALSE) -> Feedstock Available (t/year) | G117: title110
A118: 111 | B118: Default values | C118: Valeurs par défaut | D118: Valores por defecto | E118: title | F118: =HLOOKUP($C$2,$B$8:$D118,$A118,FALSE) -> Default values | G118: title111
A119: 112 | B119: User defined | C119: Défini par l'utilisateur | D119: Definidos por el usuario | E119: title | F119: =HLOOKUP($C$2,$B$8:$D119,$A119,FALSE) -> User defined | G119: title112
A120: 113 | B120: Use Market Price | C120: Utiliser le prix du marché | D120: Usar el Valor de Mercado | E120: title | F120: =HLOOKUP($C$2,$B$8:$D120,$A120,FALSE) -> Use Market Price | G120: title113
A121: 114 | B121: Use Calculator | C121: Utiliser le calculateur | D121: Usar Calculadora | E121: title | F121: =HLOOKUP($C$2,$B$8:$D121,$A121,FALSE) -> Use Calculator | G121: title114
A122: 115 | B122: Price (USD/t) | C122: Prix (USD/t) | D122: Precio (USD/t) | E122: title | F122: =HLOOKUP($C$2,$B$8:$D122,$A122,FALSE) -> Price (USD/t) | G122: title115
A123: 116 | B123: Storage Cost (USD/t) | C123: Coût du stockage (USD/t) | D123: Costo de almacenamiento (USD/t) | E123: title | F123: =HLOOKUP($C$2,$B$8:$D123,$A123,FALSE) -> Storage Cost (USD/t) | G123: title116
A124: 117 | B124: Biogas potential | C124: Potentiel de production du biogaz | D124: Potencial de biogás | E124: title | F124: =HLOOKUP($C$2,$B$8:$D124,$A124,FALSE) -> Biogas potential | G124: title117
A125: 118 | B125: Feedstock Price | C125: Prix des intrants | D125: Precio de la Materia Prima | E125: title | F125: =HLOOKUP($C$2,$B$8:$D125,$A125,FALSE) -> Feedstock Price | G125: title118
A126: 119 | B126: Crops | C126: Productions agricoles | D126: Cultivos | E126: title | F126: =HLOOKUP($C$2,$B$8:$D126,$A126,FALSE) -> Crops | G126: title119
A127: 120 | B127: Energy Crops | C127: Cultures énergétiques | D127: Cultivos energéticos | E127: title | F127: =HLOOKUP($C$2,$B$8:$D127,$A127,FALSE) -> Energy Crops | G127: title120
A128: 121 | B128: Production Cost and Financial Parameters | C128: Coût de Production et Paramètres Financiers | D128: Costo de producción y parámetros financieros | E128: title | F128: =HLOOKUP($C$2,$B$8:$D128,$A128,FALSE) -> Production Cost and Financial Parameters | G128: title121
A129: 122 | B129: Utilities and other Raw Material | C129: Charges et autres matières premières | D129: Servicios básicos y otras materias primas | E129: title | F129: =HLOOKUP($C$2,$B$8:$D129,$A129,FALSE) -> Utilities and other Raw Material | G129: title122
A130: 123 | B130: Water | C130: Eau | D130: Agua | E130: title | F130: =HLOOKUP($C$2,$B$8:$D130,$A130,FALSE) -> Water | G130: title123
A131: 124 | B131: Caustic Soda (NaOH) | C131: Soude caustique | D131: Soda cáustica (NaOH) | E131: title | F131: =HLOOKUP($C$2,$B$8:$D131,$A131,FALSE) -> Caustic Soda (NaOH) | G131: title124
A132: 125 | B132: Labour | C132: Main d’oeuvre | D132: Mano de obra | E132: title | F132: =HLOOKUP($C$2,$B$8:$D132,$A132,FALSE) -> Labour | G132: title125
A133: 126 | B133: Skilled worker | C133: Ouvrier qualifié | D133: Trabajadores cualificados | E133: title | F133: =HLOOKUP($C$2,$B$8:$D133,$A133,FALSE) -> Skilled worker | G133: title126
A134: 127 | B134: Unskilled worker | C134: Ouvrier non-qualifié | D134: Trabajadores no cualificados | E134: title | F134: =HLOOKUP($C$2,$B$8:$D134,$A134,FALSE) -> Unskilled worker | G134: title127
A135: 128 | B135: USD/person-hour | C135: USD/personne-heure | D135: USD/persona-hora | E135: title | F135: =HLOOKUP($C$2,$B$8:$D135,$A135,FALSE) -> USD/person-hour | G135: title128
A136: 129 | B136: Feedstock collection | C136: Collecte des intrants | D136: Recolección de la materia prima | E136: title | F136: =HLOOKUP($C$2,$B$8:$D136,$A136,FALSE) -> Feedstock collection | G136: title129
A137: 130 | B137: Working hours per day (manual) | C137: Heures de travail par jour (manuel) | D137: Horas de trabajo por día (manual) | E137: title | F137: =HLOOKUP($C$2,$B$8:$D137,$A137,FALSE) -> Working hours per day (manual) | G137: =$E137&$A137 -> title130
A138: 131 | B138: Diesel price | C138: Prix du Diesel | D138: Precio del diésel | E138: title | F138: =HLOOKUP($C$2,$B$8:$D138,$A138,FALSE) -> Diesel price | G138: title131
A139: 132 | B139: h/day | C139: h/jour | D139: h/día | E139: title | F139: =HLOOKUP($C$2,$B$8:$D139,$A139,FALSE) -> h/day | G139: title132
A140: 133 | B140: Working hours per day (mechanized) | C140: Heures de travail par jour (mécanisé ) | D140: Horas de trabajo por día (mecanizado) | E140: title | F140: =HLOOKUP($C$2,$B$8:$D140,$A140,FALSE) -> Working hours per day (mechanized) | G140: title133
A141: 134 | B141: Operating days per year | C141: Jours de fonctionnement par an | D141: Días de operación por año | E141: title | F141: =HLOOKUP($C$2,$B$8:$D141,$A141,FALSE) -> Operating days per year | G141: title134
A142: 135 | B142: days/year | C142: jours/an | D142: días/año | E142: title | F142: =HLOOKUP($C$2,$B$8:$D142,$A142,FALSE) -> days/year | G142: title135
A143: 136 | B143: Market Prices | C143: Les Prix du Marché | D143: Precios de Mercado | E143: title | F143: =HLOOKUP($C$2,$B$8:$D143,$A143,FALSE) -> Market Prices | G143: title136
A144: 137 | B144: Electricity Selling Price | C144: Prix de Vente de l'Électricité | D144: Precio de Venta de la Electricidad | E144: title | F144: =HLOOKUP($C$2,$B$8:$D144,$A144,FALSE) -> Electricity Selling Price | G144: title137
A145: 138 | B145: Heat Selling Price | C145: Prix de Vente de la Chaleur | D145: Precio de Venta de Calor | E145: title | F145: =HLOOKUP($C$2,$B$8:$D145,$A145,FALSE) -> Heat Selling Price | G145: title138
A146: 139 | B146: Biogas Selling Prince | C146: Prix de Vente du Biogaz | D146: Precio de Venta de Biogás | E146: title | F146: =HLOOKUP($C$2,$B$8:$D146,$A146,FALSE) -> Biogas Selling Prince | G146: title139
A147: 140 | B147: Natural Gas Selling Price | C147: Prix de Vente du Gaz Naturel | D147: Precio de venta de Gas Natural | E147: title | F147: =HLOOKUP($C$2,$B$8:$D147,$A147,FALSE) -> Natural Gas Selling Price | G147: title140
A148: 141 | B148: Digestate Market Price | C148: Prix du Marché du Digestat | D148: Precio de Mercado de Digestato | E148: title | F148: =HLOOKUP($C$2,$B$8:$D148,$A148,FALSE) -> Digestate Market Price | G148: title141
A149: 142 | B149: Operating parameters | C149: Paramètres opérationnels | D149: Parámetros de operación | E149: title | F149: =HLOOKUP($C$2,$B$8:$D149,$A149,FALSE) -> Operating parameters | G149: title142
A150: 143 | B150: Digestate Recovery System | C150: Système de récupération du digestat | D150: Sistema de recuperación del digestato | E150: title | F150: =HLOOKUP($C$2,$B$8:$D150,$A150,FALSE) -> Digestate Recovery System | G150: title143
A151: 144 | B151: Heat Loss In Production | C151: Perte de chaleur pendant la production | D151: Perdidas de calor durante la producción | E151: title | F151: =HLOOKUP($C$2,$B$8:$D151,$A151,FALSE) -> Heat Loss In Production | G151: title144
A152: 145 | B152: Electricity Loss In Production | C152: Perte d'électricité pendant la production | D152: Perdidas de electricidad durante la producción | E152: title | F152: =HLOOKUP($C$2,$B$8:$D152,$A152,FALSE) -> Electricity Loss In Production | G152: title145
A153: 146 | B153: Storage safety rate of Biogas | C153: Taux de stockage de sécurité du biogaz | D153: Nivel de almacenamiento de seguridad de biogás | E153: title | F153: =HLOOKUP($C$2,$B$8:$D153,$A153,FALSE) -> Storage safety rate of Biogas | G153: title146
A154: 147 | B154: Solids Recovery (%) | C154: Récupération des matières solides (%) | D154: Recuperación de sólidos (%) | E154: title | F154: =HLOOKUP($C$2,$B$8:$D154,$A154,FALSE) -> Solids Recovery (%) | G154: title147
A155: 148 | B155: Heat loss in Distribution | C155: Perte de chaleur dans la distribution | D155: Pérdida de calor durante la distribución | E155: title | F155: =HLOOKUP($C$2,$B$8:$D155,$A155,FALSE) -> Heat loss in Distribution | G155: title148
A156: 149 | B156: Electricity loss in Distribution | C156: Perte d'électricité dans la distribution | D156: Pérdida de electricidad durante la distribución | E156: title | F156: =HLOOKUP($C$2,$B$8:$D156,$A156,FALSE) -> Electricity loss in Distribution | G156: title149
A157: 150 | B157: Other costs | C157: Autres coûts | D157: Otros costos | E157: title | F157: =HLOOKUP($C$2,$B$8:$D157,$A157,FALSE) -> Other costs | G157: title150
A158: 151 | B158: Plant overhead | C158: Frais généraux de l'usine | D158: Gastos generales de planta | E158: title | F158: =HLOOKUP($C$2,$B$8:$D158,$A158,FALSE) -> Plant overhead | G158: title151
A159: 152 | B159: Maintenance (%) | C159: Maintenance (%) | D159: Mantenimiento (%) | E159: title | F159: =HLOOKUP($C$2,$B$8:$D159,$A159,FALSE) -> Maintenance (%) | G159: title152
A160: 153 | B160: Miscellaneous (%) | C160: Divers (%) | D160: Gastos miscelaneos (%) | E160: title | F160: =HLOOKUP($C$2,$B$8:$D160,$A160,FALSE) -> Miscellaneous (%) | G160: title153
A161: 154 | B161: General and administrative (%) | C161: Frais généraux et administratifs (%) | D161: Generales y administrativos (%) | E161: title | F161: =HLOOKUP($C$2,$B$8:$D161,$A161,FALSE) -> General and administrative (%) | G161: title154
A162: 155 | B162: Financial parameters | C162: Paramètres financiers | D162: Parámetros financieros | E162: title | F162: =HLOOKUP($C$2,$B$8:$D162,$A162,FALSE) -> Financial parameters | G162: title155
A163: 156 | B163: Loan ratio Size 1 | C163: Ratio du prêt taille 1 | D163: Proporción del crédito - Tamaño 1 (%) | E163: title | F163: =HLOOKUP($C$2,$B$8:$D163,$A163,FALSE) -> Loan ratio Size 1 | G163: title156
A164: 157 | B164: Loan ratio Size 2 | C164: Ratio du prêt taille 2 | D164: Proporción del crédito - Tamaño 2 (%) | E164: title | F164: =HLOOKUP($C$2,$B$8:$D164,$A164,FALSE) -> Loan ratio Size 2 | G164: title157
A165: 158 | B165: Loan ratio Size 3 | C165: Ratio du prêt taille 3 | D165: Proporción del crédito - Tamaño 3 (%) | E165: title | F165: =HLOOKUP($C$2,$B$8:$D165,$A165,FALSE) -> Loan ratio Size 3 | G165: title158
A166: 159 | B166: Loan ratio Size 4 | C166: Ratio du prêt taille 4 | D166: Proporción del crédito - Tamaño 4 (%) | E166: title | F166: =HLOOKUP($C$2,$B$8:$D166,$A166,FALSE) -> Loan ratio Size 4 | G166: title159
A167: 160 | B167: Investment cost update | C167: Taux d'investissement actualisé | D167: Actualización del costo de inversión | E167: title | F167: =HLOOKUP($C$2,$B$8:$D167,$A167,FALSE) -> Investment cost update | G167: title160
A168: 161 | B168: Discount rate | C168: Taux d'actualisation | D168: Tasa de descuento | E168: title | F168: =HLOOKUP($C$2,$B$8:$D168,$A168,FALSE) -> Discount rate | G168: title161
A169: 162 | B169: Loan interest rate | C169: Taux d'intérêt du prêt | D169: Tasa de interés de créditos | E169: title | F169: =HLOOKUP($C$2,$B$8:$D169,$A169,FALSE) -> Loan interest rate | G169: title162
A170: 163 | B170: Loan terms | C170: La durée du prêt | D170: Plazo del créditos | E170: title | F170: =HLOOKUP($C$2,$B$8:$D170,$A170,FALSE) -> Loan terms | G170: title163
A171: 164 | B171: year | C171: année | D171: año | E171: title | F171: =HLOOKUP($C$2,$B$8:$D171,$A171,FALSE) -> year | G171: title164
A172: 165 | B172: Loan term (years) | C172: Durée du prêt (années) | D172: Plazo del crédito (años) | E172: title | F172: =HLOOKUP($C$2,$B$8:$D172,$A172,FALSE) -> Loan term (years) | G172: title165
A173: 166 | B173: Residue | C173: Résidu | D173: Residuo | E173: title | F173: =HLOOKUP($C$2,$B$8:$D173,$A173,FALSE) -> Residue | G173: title166
A174: 167 | B174: Codigestion | C174: Co-digestion | D174: Co-digestión | E174: title | F174: =HLOOKUP($C$2,$B$8:$D174,$A174,FALSE) -> Codigestion | G174: title167
A175: 168 | B175: Market Price | C175: Prix du Marché | D175: Precio de Mercado | E175: title | F175: =HLOOKUP($C$2,$B$8:$D175,$A175,FALSE) -> Market Price | G175: title168
A176: 169 | B176: Wage | C176: Salaire | D176: Salario | E176: title | F176: =HLOOKUP($C$2,$B$8:$D176,$A176,FALSE) -> Wage | G176: title169
A177: 170 | B177: Diesel | C177: Diesel | D177: Diesel | E177: title | F177: =HLOOKUP($C$2,$B$8:$D177,$A177,FALSE) -> Diesel | G177: title170
A178: 171 | B178: Decision1 | C178: Décision1 | D178: Decisión1 | E178: title | F178: =HLOOKUP($C$2,$B$8:$D178,$A178,FALSE) -> Decision1 | G178: title171
A179: 172 | B179: Single | C179: Simple | D179: Simple | E179: title | F179: =HLOOKUP($C$2,$B$8:$D179,$A179,FALSE) -> Single | G179: title172
A180: 173 | B180: Multi | C180: Multi | D180: Múltiple | E180: title | F180: =HLOOKUP($C$2,$B$8:$D180,$A180,FALSE) -> Multi | G180: title173
A181: 174 | B181: Planner | C181: Planificateur | D181: Planificador | E181: title | F181: =HLOOKUP($C$2,$B$8:$D181,$A181,FALSE) -> Planner | G181: title174
A182: 175 | B182: Storage | C182: Stockage | D182: Almacenamiento | E182: title | F182: =HLOOKUP($C$2,$B$8:$D182,$A182,FALSE) -> Storage | G182: title175
A183: 176 | B183: Storage Selection | C183: Sélection du stockage | D183: Selección de almacenamiento | E183: title | F183: =HLOOKUP($C$2,$B$8:$D183,$A183,FALSE) -> Storage Selection | G183: title176
A184: 177 | B184: Sedimentator | C184: Sédimentateur | D184: Sedimentador | E184: title | F184: =HLOOKUP($C$2,$B$8:$D184,$A184,FALSE) -> Sedimentator | G184: title177
A185: 178 | B185: Floater | C185: Collecteur | D185: Flotador | E185: title | F185: =HLOOKUP($C$2,$B$8:$D185,$A185,FALSE) -> Floater | G185: title178
A186: 179 | B186: Centrifuge | C186: Centrifugeuse | D186: Centrifugador | E186: title | F186: =HLOOKUP($C$2,$B$8:$D186,$A186,FALSE) -> Centrifuge | G186: title179
A187: 180 | B187: Belt Press | C187: Filtre-presse à bandes | D187: Prensa de correa | E187: title | F187: =HLOOKUP($C$2,$B$8:$D187,$A187,FALSE) -> Belt Press | G187: title180
A188: 181 | B188: Screen Sieves | C188: Filtre à tamis | D188: Tamices de pantalla | E188: title | F188: =HLOOKUP($C$2,$B$8:$D188,$A188,FALSE) -> Screen Sieves | G188: title181
A189: 182 | B189: Screw Press | C189: Presse à vis | D189: Prensa de tornillo | E189: title | F189: =HLOOKUP($C$2,$B$8:$D189,$A189,FALSE) -> Screw Press | G189: title182
A190: 183 | B190: Option 5: Vehicular Gas | C190: Option 5: gas pour véhicules | D190: Opción 5: Gas Vehicular | E190: title | F190: =HLOOKUP($C$2,$B$8:$D190,$A190,FALSE) -> Option 5: Vehicular Gas | G190: title183
A191: 184 | B191: Biodiesel/Oilseed Ind. | C191: Biodiesel/Oléagineux Ind. | D191: Biodiesel/Semilla oleaginosa Ind. | E191: title | F191: =HLOOKUP($C$2,$B$8:$D191,$A191,FALSE) -> Biodiesel/Oilseed Ind. | G191: title184
A192: 185 | B192: Dairy-milk ind. | C192: Produits laitiers Ind. | D192: Industria lechera | E192: title | F192: =HLOOKUP($C$2,$B$8:$D192,$A192,FALSE) -> Dairy-milk ind. | G192: title185
A193: 186 | B193: Eth-Sugar-Starch Ind. | C193: Ethanol-Sucre-Fécule | D193: Industria de ethanol-azucar-almidón | E193: title | F193: =HLOOKUP($C$2,$B$8:$D193,$A193,FALSE) -> Eth-Sugar-Starch Ind. | G193: title186
A194: 187 | B194: Food Process. Res. | C194: Résidus de transformation des aliments | D194: Residuos de l procesamiento de alimentos | E194: title | F194: =HLOOKUP($C$2,$B$8:$D194,$A194,FALSE) -> Food Process. Res. | G194: title187
A195: 188 | B195: Grass | C195: Foin | D195: Hierba/forraje | E195: title | F195: =HLOOKUP($C$2,$B$8:$D195,$A195,FALSE) -> Grass | G195: title188
A196: 189 | B196: Other Options | C196: Autres options | D196: Otras opciones | E196: title | F196: =HLOOKUP($C$2,$B$8:$D196,$A196,FALSE) -> Other Options | G196: title189
A197: 190 | B197: Slaughterhouses wastes | C197: Déchets d'abattoirs | D197: Residuos de mataderos | E197: title | F197: =HLOOKUP($C$2,$B$8:$D197,$A197,FALSE) -> Slaughterhouses wastes | G197: title190
A198: 191 | B198: Yeast-Alcoholic Bev. | C198: Brevages fermentés | D198: Levadura-bebidas alcohólicas | E198: title | F198: =HLOOKUP($C$2,$B$8:$D198,$A198,FALSE) -> Yeast-Alcoholic Bev. | G198: title191
A199: 192 | B199: Wastewater | C199: Eaux usées | D199: Aguas residuales | E199: title | F199: =HLOOKUP($C$2,$B$8:$D199,$A199,FALSE) -> Wastewater | G199: title192
A200: 193 | B200: Use white cells to input data | C200: Utilisez les cellules blanches pour saisir les données | D200: Utilice las celdas en blanco para ingresar los datos | E200: title | F200: =HLOOKUP($C$2,$B$8:$D200,$A200,FALSE) -> Use white cells to input data | G200: title193
A201: 194 | B201: Grey cells are used for calculations | C201: Les cellules grises sont utilisées pour les calculs | D201: Utilice las celdas en gris para los cálculos | E201: title | F201: =HLOOKUP($C$2,$B$8:$D201,$A201,FALSE) -> Grey cells are used for calculations | G201: =$E201&$A201 -> title194
A202: 195 | B202: Wage for trained operators and technicians who leads the operation and maintenance of the plant. | C202: Salaires pour les opérateurs et techniciens formés à la conduite des opérations et à la maintenance de l'usine. | D202: Salarios para los operadores y técnicos capacitados que conduce la operación y mantenimiento de la planta. | E202: title | F202: =HLOOKUP($C$2,$B$8:$D202,$A202,FALSE) -> Wage for trained operators and technicians who leads the operation and maintenance of the plant. | G202: title195
... 589 more rows

Sheet Label (hidden)
B1: BB1:B51
B2: Selection | C2: =VLOOKUP(Start!C9,$A$3:$C$5,3,FALSE) -> 1
A3: EN | B3: English | C3: 1
A4: FR | B4: French | C4: 2
A5: ES | B5: Spanish | C5: 3
A7: ID | B7: English | C7: French | D7: Spanish | E7: Typeof | F7: Ref | G7: Name
A8: 1 | B8: 1 | C8: 2 | D8: 3
A9: 2 | B9: Biogas Process Description | C9: Description du Processus de Biogaz | D9: Descripción del Proceso de Obtención de Biogás | E9: label | F9: =HLOOKUP($C$2,$B$8:$D9,$A9,FALSE) -> Biogas Process Description | G9: =$E9&$A9 -> label2
A10: 3 | B10: Data Entry | C10: Saisie de Données | D10: Datos de Entrada | E10: label | F10: =HLOOKUP($C$2,$B$8:$D10,$A10,FALSE) -> Data Entry | G10: label3
A11: 4 | B11: NEXT >> Biogas use selection | C11: Sélection du l'utilisation des biogaz | D11: Selección del uso de biogás | E11: label | F11: =HLOOKUP($C$2,$B$8:$D11,$A11,FALSE) -> NEXT >> Biogas use selection | G11: label4
A12: 5 | B12: << BACK Start | C12: << RETOUR Début | D12: << VOLVER Inicio | E12: label | F12: =HLOOKUP($C$2,$B$8:$D12,$A12,FALSE) -> << BACK Start | G12: label5
A13: 6 | B13: NEXT >> Data Entry | C13: SUIVANT >> Saisie de Données | D13: SIGUIENTE >> Datos de Entrada | E13: label | F13: =HLOOKUP($C$2,$B$8:$D13,$A13,FALSE) -> NEXT >> Data Entry | G13: label6
A14: 7 | B14: Biogas use selection | C14: Sélection du l'utilisation des biogaz | D14: Selección del uso de biogás | E14: label | F14: =HLOOKUP($C$2,$B$8:$D14,$A14,FALSE) -> Biogas use selection | G14: label7
A15: 8 | B15: Load Default Values | C15: Charger les Valeurs par Défaut | D15: Cargar Valores por Defecto | E15: label | F15: =HLOOKUP($C$2,$B$8:$D15,$A15,FALSE) -> Load Default Values | G15: label8
A16: 9 | B16: Clear data | C16: Effacer les données | D16: Borrar datos | E16: label | F16: =HLOOKUP($C$2,$B$8:$D16,$A16,FALSE) -> Clear data | G16: label9
A17: 10 | B17: Recalculate Plant Sizes | C17: Recalculer la taille de la centrale | D17: Recalcular tamaños de planta | E17: label | F17: =HLOOKUP($C$2,$B$8:$D17,$A17,FALSE) -> Recalculate Plant Sizes | G17: label10
A18: 11 | B18: Selected Biogas Process Description | C18: Description du processus de génération de biogaz sélectionné | D18: Descripción del proceso de biogás seleccionado | E18: label | F18: =HLOOKUP($C$2,$B$8:$D18,$A18,FALSE) -> Selected Biogas Process Description | G18: label11
A19: 12 | B19: Input new feedstock manually | C19: Saisir nouvelle matière première manuellement | D19: Ingresar nueva materia prima manualmente | E19: label | F19: =HLOOKUP($C$2,$B$8:$D19,$A19,FALSE) -> Input new feedstock manually | G19: label12
A20: 13 | B20: Feedstock Planner 1 | C20: Planificateur de matières premières 1 | D20: Planificador de materias primas 1 | E20: label | F20: =HLOOKUP($C$2,$B$8:$D20,$A20,FALSE) -> Feedstock Planner 1 | G20: label13
A21: 14 | B21: Feedstock Planner 2 | C21: Planificateur de matières premières 2 | D21: Planificador de materias primas 2 | E21: label | F21: =HLOOKUP($C$2,$B$8:$D21,$A21,FALSE) -> Feedstock Planner 2 | G21: label14
A22: 15 | B22: Feedstock Planner 3 | C22: Planificateur de matières premières 3 | D22: Planificador de materias primas 3 | E22: label | F22: =HLOOKUP($C$2,$B$8:$D22,$A22,FALSE) -> Feedstock Planner 3 | G22: label15
A23: 16 | B23: Feedstock Planner 4 | C23: Planificateur de matières premières 4 | D23: Planificador de materias primas 4 | E23: label | F23: =HLOOKUP($C$2,$B$8:$D23,$A23,FALSE) -> Feedstock Planner 4 | G23: label16
A24: 17 | B24: Production Cost 1 | C24: Coût de Production 1 | D24: Costo de Producción 1 | E24: label | F24: =HLOOKUP($C$2,$B$8:$D24,$A24,FALSE) -> Production Cost 1 | G24: label17
A25: 18 | B25: Production Cost 2 | C25: Coût de Production 2 | D25: Costo de Producción 2 | E25: label | F25: =HLOOKUP($C$2,$B$8:$D25,$A25,FALSE) -> Production Cost 2 | G25: label18
A26: 19 | B26: Production Cost 3 | C26: Coût de Production 3 | D26: Costo de Producción 3 | E26: label | F26: =HLOOKUP($C$2,$B$8:$D26,$A26,FALSE) -> Production Cost 3 | G26: label19
A27: 20 | B27: Production Cost 4 | C27: Coût de Production 4 | D27: Costo de Producción 4 | E27: label | F27: =HLOOKUP($C$2,$B$8:$D27,$A27,FALSE) -> Production Cost 4 | G27: label20
A28: 21 | B28: NEXT >> Summary of Results Comparative | C28: SUIVANT >> Résumé des Résultats Comparatifs | D28: SIGUIENTE >> Resumen de Resultados Comparativos | E28: label | F28: =HLOOKUP($C$2,$B$8:$D28,$A28,FALSE) -> NEXT >> Summary of Results Comparative | G28: label21
A29: 22 | B29: NEXT >> Summary of Results by Feedstock | C29: SUIVANT >> Résumé des Résultats par Matière Premières | D29: SIGUIENTE >> Resumen de Resultados por Materia Prima | E29: label | F29: =HLOOKUP($C$2,$B$8:$D29,$A29,FALSE) -> NEXT >> Summary of Results by Feedstock | G29: label22
A30: 23 | B30: Price FS 1 | C30: Prix FS 1 | D30: Precio FS 1 | E30: label | F30: =HLOOKUP($C$2,$B$8:$D30,$A30,FALSE) -> Price FS 1 | G30: label23
A31: 24 | B31: << BACK Data Entry | C31: << RETOUR Saisie de Données | D31: << VOLVER Datos de Entrada | E31: label | F31: =HLOOKUP($C$2,$B$8:$D31,$A31,FALSE) -> << BACK Data Entry | G31: label24
A32: 25 | B32: << BACK Production Cost 1 | C32: << RETOUR Coût de Production 1 | D32: << VOLVER Costo de Producción 1 | E32: label | F32: =HLOOKUP($C$2,$B$8:$D32,$A32,FALSE) -> << BACK Production Cost 1 | G32: label25
A33: 26 | B33: << BACK Production Cost 2 | C33: << RETOUR Coût de Production 2 | D33: << VOLVER Costo de Producción 2 | E33: label | F33: =HLOOKUP($C$2,$B$8:$D33,$A33,FALSE) -> << BACK Production Cost 2 | G33: label26
A34: 27 | B34: << BACK Production Cost 3 | C34: << RETOUR Coût de Production 3 | D34: << VOLVER Costo de Producción 3 | E34: label | F34: =HLOOKUP($C$2,$B$8:$D34,$A34,FALSE) -> << BACK Production Cost 3 | G34: label27
A35: 28 | B35: << BACK Production Cost 4 | C35: << RETOUR Coût de Production 4 | D35: << VOLVER Costo de Producción 4 | E35: label | F35: =HLOOKUP($C$2,$B$8:$D35,$A35,FALSE) -> << BACK Production Cost 4 | G35: label28
A36: 29 | B36: Hide this sheet | C36: Cachez cette feuille | D36: Ocultar esta Hoja | E36: label | F36: =HLOOKUP($C$2,$B$8:$D36,$A36,FALSE) -> Hide this sheet | G36: label29
A37: 30 | B37: Spread | C37: Écart | D37: Expandir | E37: label | F37: =HLOOKUP($C$2,$B$8:$D37,$A37,FALSE) -> Spread | G37: label30
A38: 31 | B38: Price FS 2 | C38: Prix FS 2 | D38: Precio FS 2 | E38: label | F38: =HLOOKUP($C$2,$B$8:$D38,$A38,FALSE) -> Price FS 2 | G38: label31
A39: 32 | B39: Price FS 3 | C39: Prix FS 3 | D39: Precio FS 3 | E39: label | F39: =HLOOKUP($C$2,$B$8:$D39,$A39,FALSE) -> Price FS 3 | G39: label32
A40: 33 | B40: Price FS 4 | C40: Prix FS 4 | D40: Precio FS 4 | E40: label | F40: =HLOOKUP($C$2,$B$8:$D40,$A40,FALSE) -> Price FS 4 | G40: label33
A41: 34 | B41: Price FS 5 | C41: Prix FS 5 | D41: Precio FS 5 | E41: label | F41: =HLOOKUP($C$2,$B$8:$D41,$A41,FALSE) -> Price FS 5 | G41: label34
A42: 35 | B42: Price FS 6 | C42: Prix FS 6 | D42: Precio FS 6 | E42: label | F42: =HLOOKUP($C$2,$B$8:$D42,$A42,FALSE) -> Price FS 6 | G42: label35
A43: 36 | B43: Finanacial Analysis Size 1 | C43: Analyse financière Taille 1 | D43: Análisis financiero tamaño 1 | E43: label | F43: =HLOOKUP($C$2,$B$8:$D43,$A43,FALSE) -> Finanacial Analysis Size 1 | G43: label36
A44: 37 | B44: Finanacial Analysis Size 2 | C44: Analyse financière Taille 2 | D44: Análisis financiero tamaño 2 | E44: label | F44: =HLOOKUP($C$2,$B$8:$D44,$A44,FALSE) -> Finanacial Analysis Size 2 | G44: label37
A45: 38 | B45: Finanacial Analysis Size 3 | C45: Analyse financière Taille 3 | D45: Análisis financiero tamaño 3 | E45: label | F45: =HLOOKUP($C$2,$B$8:$D45,$A45,FALSE) -> Finanacial Analysis Size 3 | G45: label38
A46: 39 | B46: Finanacial Analysis Size 4 | C46: Analyse financière Taille 4 | D46: Análisis financiero tamaño 4 | E46: label | F46: =HLOOKUP($C$2,$B$8:$D46,$A46,FALSE) -> Finanacial Analysis Size 4 | G46: label39
A47: 40 | B47: Detailed Investment Cost 1 | C47: Coût d'investissement détaillé 1 | D47: Costo de inversión detallado 1 | E47: label | F47: =HLOOKUP($C$2,$B$8:$D47,$A47,FALSE) -> Detailed Investment Cost 1 | G47: label40
A48: 41 | B48: Detailed Investment Cost 2 | C48: Coût d'investissement détaillé 2 | D48: Costo de inversión detallado 2 | E48: label | F48: =HLOOKUP($C$2,$B$8:$D48,$A48,FALSE) -> Detailed Investment Cost 2 | G48: label41
A49: 42 | B49: Detailed Investment Cost 3 | C49: Coût d'investissement détaillé 3 | D49: Costo de inversión detallado 3 | E49: label | F49: =HLOOKUP($C$2,$B$8:$D49,$A49,FALSE) -> Detailed Investment Cost 3 | G49: label42
A50: 43 | B50: Detailed Investment Cost 4 | C50: Coût d'investissement détaillé 4 | D50: Costo de inversión detallado 4 | E50: label | F50: =HLOOKUP($C$2,$B$8:$D50,$A50,FALSE) -> Detailed Investment Cost 4 | G50: label43
A51: 44 | B51: Create PDF Report | C51: Créer un rapport PDF | D51: Crear un Reporte en PDF | E51: label | F51: =HLOOKUP($C$2,$B$8:$D51,$A51,FALSE) -> Create PDF Report | G51: label44

Sheet DB_Prop_Translation (hidden)
B2: Selection | C2: =VLOOKUP(Start!C9,$A$3:$C$5,3,FALSE) -> 1
A3: EN | B3: English | C3: 1
A4: FR | B4: French | C4: 2
A5: ES | B5: Spanish | C5: 3
A7: ID | B7: English | C7: French | D7: Spanish | E7: Typeof | F7: Ref | G7: Name
A8: 1 | B8: 1 | C8: 2 | D8: 3
A9: 2 | B9: Coconut cake/expeller | C9: Tourteau de coco/expeller | D9: Torta de coco / expulsor | E9: feed | F9: =HLOOKUP($C$2,$B$8:$D9,$A9,FALSE) -> Coconut cake/expeller | G9: =$E9&$A9 -> feed2
A10: 3 | B10: Coconut extraction meal | C10: Extrait de coco | D10: Harina de extracción de coco | E10: feed | F10: =HLOOKUP($C$2,$B$8:$D10,$A10,FALSE) -> Coconut extraction meal | G10: feed3
A11: 4 | B11: Cotton seed extraction meal | C11: Extrait de graines de coton | D11: Harina de extracción de semillas de algodón | E11: feed | F11: =HLOOKUP($C$2,$B$8:$D11,$A11,FALSE) -> Cotton seed extraction meal | G11: feed4
A12: 5 | B12: Fish Oil | C12: Huile de poisson | D12: Aceite de pescado | E12: feed | F12: =HLOOKUP($C$2,$B$8:$D12,$A12,FALSE) -> Fish Oil | G12: feed5
A13: 6 | B13: Flax cake/expeller | C13: Tourteau de lin/expeller | D13: torta de lino / expulsor | E13: feed | F13: =HLOOKUP($C$2,$B$8:$D13,$A13,FALSE) -> Flax cake/expeller | G13: feed6
A14: 7 | B14: Flax extraction meal | C14: Extrait de lin | D14: Harina de extracción de lino | E14: feed | F14: =HLOOKUP($C$2,$B$8:$D14,$A14,FALSE) -> Flax extraction meal | G14: feed7
A15: 8 | B15: Glycerin | C15: Glycérine | D15: Glicerina | E15: feed | F15: =HLOOKUP($C$2,$B$8:$D15,$A15,FALSE) -> Glycerin | G15: feed8
A16: 9 | B16: Hemp press cake, fresh | C16: Tourteau de chanvre, frais | D16: Torta del prensado de cáñamo, fresco | E16: feed | F16: =HLOOKUP($C$2,$B$8:$D16,$A16,FALSE) -> Hemp press cake, fresh | G16: feed9
A17: 10 | B17: Linseed oil | C17: Huile de lin | D17: aceite de semilla de linaza | E17: feed | F17: =HLOOKUP($C$2,$B$8:$D17,$A17,FALSE) -> Linseed oil | G17: feed10
A18: 11 | B18: Maize germ cake/expeller | C18: Tourteau de germes de maïs/expeller | D18: Torta germen de maíz / expulsor | E18: feed | F18: =HLOOKUP($C$2,$B$8:$D18,$A18,FALSE) -> Maize germ cake/expeller | G18: feed11
A19: 12 | B19: Maize germ extraction meal | C19: Extrait de germes de maïs | D19: Torta germen de trigo / expulsor | E19: feed | F19: =HLOOKUP($C$2,$B$8:$D19,$A19,FALSE) -> Maize germ extraction meal | G19: feed12
A20: 13 | B20: Oilseed Residuals (pressed) | C20: Résidus oléagineux (pressés) | D20: Residuos de oleaginosas (prensado) | E20: feed | F20: =HLOOKUP($C$2,$B$8:$D20,$A20,FALSE) -> Oilseed Residuals (pressed) | G20: feed13
A21: 14 | B21: Olive pulp | C21: Tourteau d'extraction d'olives | D21: pulpa de la aceituna | E21: feed | F21: =HLOOKUP($C$2,$B$8:$D21,$A21,FALSE) -> Olive pulp | G21: feed14
A22: 15 | B22: Palm Kernell | C22: Noix de palme | D22: Grano de palma | E22: feed | F22: =HLOOKUP($C$2,$B$8:$D22,$A22,FALSE) -> Palm Kernell | G22: feed15
A23: 16 | B23: Palm-kernel cake/expeller | C23: Tourteau gras d'huile de palmiste | D23: torta de grano de palma / expulsor | E23: feed | F23: =HLOOKUP($C$2,$B$8:$D23,$A23,FALSE) -> Palm-kernel cake/expeller | G23: feed16
A24: 17 | B24: Palm-kernel extraction meal | C24: Tourteau déshuilé d'huile de palmiste | D24: Harina de extracción de grano de palma | E24: feed | F24: =HLOOKUP($C$2,$B$8:$D24,$A24,FALSE) -> Palm-kernel extraction meal | G24: feed17
A25: 18 | B25: Peanut cake/expeller | C25: Tourteau d'arachide/expeller | D25: Torta de cacahuete / expulsor | E25: feed | F25: =HLOOKUP($C$2,$B$8:$D25,$A25,FALSE) -> Peanut cake/expeller | G25: feed18
A26: 19 | B26: Peanut extraction meal | C26: Extrait d'arachide | D26: Harina de extracción de cacahuete | E26: feed | F26: =HLOOKUP($C$2,$B$8:$D26,$A26,FALSE) -> Peanut extraction meal | G26: feed19
A27: 20 | B27: Rape cake (pressed cold) | C27: Tourteau de graines de colza (pressées à froid) | D27: Torta de colza (prensado en frío) | E27: feed | F27: =HLOOKUP($C$2,$B$8:$D27,$A27,FALSE) -> Rape cake (pressed cold) | G27: feed20
A28: 21 | B28: Rapeseed cake/expeller | C28: Tourteau de colza/expeller | D28: Harina de torta de colza / expulsor | E28: feed | F28: =HLOOKUP($C$2,$B$8:$D28,$A28,FALSE) -> Rapeseed cake/expeller | G28: feed21
A29: 22 | B29: Rapeseed extraction meal | C29: Extrait de colza | D29: Torta de colza | E29: feed | F29: =HLOOKUP($C$2,$B$8:$D29,$A29,FALSE) -> Rapeseed extraction meal | G29: feed22
A30: 23 | B30: Rapeseed oil | C30: Huile de colza | D30: Aceite de colza | E30: feed | F30: =HLOOKUP($C$2,$B$8:$D30,$A30,FALSE) -> Rapeseed oil | G30: feed23
A31: 24 | B31: Raw Glycerol | C31: Glycérol brut | D31: Glicerol crudo | E31: feed | F31: =HLOOKUP($C$2,$B$8:$D31,$A31,FALSE) -> Raw Glycerol | G31: feed24
A32: 25 | B32: Safflower extraction meal | C32: Extrait de carthame | D32: Harina de extracción de cártamo | E32: feed | F32: =HLOOKUP($C$2,$B$8:$D32,$A32,FALSE) -> Safflower extraction meal | G32: feed25
A33: 26 | B33: Sesame extraction meal | C33: Extrait de sésame | D33: Harina de extracción de sesamo | E33: feed | F33: =HLOOKUP($C$2,$B$8:$D33,$A33,FALSE) -> Sesame extraction meal | G33: feed26
A34: 27 | B34: Soy beans seeds steam-heated | C34: Graines de soja chauffées à la vapeur | D34: semillas de soja calentados por vapor | E34: feed | F34: =HLOOKUP($C$2,$B$8:$D34,$A34,FALSE) -> Soy beans seeds steam-heated | G34: feed27
A35: 28 | B35: Soya Oil | C35: Huile de soja | D35: Aceite de soja | E35: feed | F35: =HLOOKUP($C$2,$B$8:$D35,$A35,FALSE) -> Soya Oil | G35: feed28
A36: 29 | B36: Soybean extraction meal | C36: Extrait de graines de soja | D36: Harina de extracción de soja | E36: feed | F36: =HLOOKUP($C$2,$B$8:$D36,$A36,FALSE) -> Soybean extraction meal | G36: feed29
A37: 30 | B37: Sunflower cake cold pressed | C37: Tourteau de tournesol pressé à froid | D37: Torta de girasol prensado en frío | E37: feed | F37: =HLOOKUP($C$2,$B$8:$D37,$A37,FALSE) -> Sunflower cake cold pressed | G37: feed30
A38: 31 | B38: Sunflower extraction meal | C38: Extrait de tournesol | D38: Harina de extracción de girasol | E38: feed | F38: =HLOOKUP($C$2,$B$8:$D38,$A38,FALSE) -> Sunflower extraction meal | G38: feed31
A39: 32 | B39: Sunflower Oil | C39: Huile de tournesol | D39: Aceite de girasol | E39: feed | F39: =HLOOKUP($C$2,$B$8:$D39,$A39,FALSE) -> Sunflower Oil | G39: feed32
A40: 33 | B40: Sunflower peelings | C40: Épluchures de tournesol | D40: Peladuras de girasol | E40: feed | F40: =HLOOKUP($C$2,$B$8:$D40,$A40,FALSE) -> Sunflower peelings | G40: feed33
A41: 34 | B41: Apple cake | C41: Tourteau de pomme | D41: Torta de manzanas | E41: feed | F41: =HLOOKUP($C$2,$B$8:$D41,$A41,FALSE) -> Apple cake | G41: feed34
A42: 35 | B42: Apple waste | C42: Épluchures de pomme | D42: residuos de manzanas | E42: feed | F42: =HLOOKUP($C$2,$B$8:$D42,$A42,FALSE) -> Apple waste | G42: feed35
A43: 36 | B43: Apricot fibre | C43: Fibre d'abricot | D43: Fibra de albaricoque | E43: feed | F43: =HLOOKUP($C$2,$B$8:$D43,$A43,FALSE) -> Apricot fibre | G43: feed36
A44: 37 | B44: Asparagus waste | C44: Déchets d'asperge | D44: Residuos de Espárrago | E44: feed | F44: =HLOOKUP($C$2,$B$8:$D44,$A44,FALSE) -> Asparagus waste | G44: feed37
A45: 38 | B45: Banana Residues | C45: Résidus de banane | D45: Residuos de plátano | E45: feed | F45: =HLOOKUP($C$2,$B$8:$D45,$A45,FALSE) -> Banana Residues | G45: feed38
A46: 39 | B46: Barley straw | C46: Paille d'orge | D46: Paja de cebada | E46: feed | F46: =HLOOKUP($C$2,$B$8:$D46,$A46,FALSE) -> Barley straw | G46: feed39
A47: 40 | B47: Cauliflower Residues | C47: Résidus de choux fleur | D47: Residuos de Coliflor | E47: feed | F47: =HLOOKUP($C$2,$B$8:$D47,$A47,FALSE) -> Cauliflower Residues | G47: feed40
A48: 41 | B48: Cut flower wastes | C48: Déchets de fleurs coupées | D48: Desechos del cortado de flores | E48: feed | F48: =HLOOKUP($C$2,$B$8:$D48,$A48,FALSE) -> Cut flower wastes | G48: feed41
A49: 42 | B49: Eggplant Residues | C49: Résidus d'aubergine | D49: Residuos de la berenjena | E49: feed | F49: =HLOOKUP($C$2,$B$8:$D49,$A49,FALSE) -> Eggplant Residues | G49: feed42
A50: 43 | B50: Feeding beet leaves, fresh | C50: Feuilles de betterave fourragère, fraiches | D50: Hojas de remolacha, frescas | E50: feed | F50: =HLOOKUP($C$2,$B$8:$D50,$A50,FALSE) -> Feeding beet leaves, fresh | G50: feed43
A51: 44 | B51: Feeding beet leaves, silage | C51: Feuilles de betterave fourragère, ensilées | D51: Hojas de remolacha, ensiladas | E51: feed | F51: =HLOOKUP($C$2,$B$8:$D51,$A51,FALSE) -> Feeding beet leaves, silage | G51: feed44
A52: 45 | B52: Field fodder hay | C52: Fourrage séché des champs | D52: Heno de forraje de campo | E52: feed | F52: =HLOOKUP($C$2,$B$8:$D52,$A52,FALSE) -> Field fodder hay | G52: feed45
A53: 46 | B53: Grape Residues | C53: Résidus de raisin | D53: Residuos de uva | E53: feed | F53: =HLOOKUP($C$2,$B$8:$D53,$A53,FALSE) -> Grape Residues | G53: feed46
A54: 47 | B54: Lemon Residues | C54: Résidus de citron | D54: Residuos de limon | E54: feed | F54: =HLOOKUP($C$2,$B$8:$D54,$A54,FALSE) -> Lemon Residues | G54: feed47
A55: 48 | B55: Maize cobs | C55: Rafle de maïs | D55: Mazorcas de Maíz | E55: feed | F55: =HLOOKUP($C$2,$B$8:$D55,$A55,FALSE) -> Maize cobs | G55: feed48
A56: 49 | B56: Maize stover | C56: Tiges et feuilles de maïs | D56: Maíz | E56: feed | F56: =HLOOKUP($C$2,$B$8:$D56,$A56,FALSE) -> Maize stover | G56: feed49
A57: 50 | B57: Maize Straw | C57: Paille de maïs | D57: Paja de maiz | E57: feed | F57: =HLOOKUP($C$2,$B$8:$D57,$A57,FALSE) -> Maize Straw | G57: feed50
A58: 51 | B58: Mango Resdiues | C58: Résidus de mangue | D58: Residuos de mango | E58: feed | F58: =HLOOKUP($C$2,$B$8:$D58,$A58,FALSE) -> Mango Resdiues | G58: feed51
A59: 52 | B59: Oat straw | C59: Paille d'avoine | D59: Paja de avena | E59: feed | F59: =HLOOKUP($C$2,$B$8:$D59,$A59,FALSE) -> Oat straw | G59: feed52
A60: 53 | B60: Orange Residues | C60: Épluchures d'orange | D60: Residuos de naranja | E60: feed | F60: =HLOOKUP($C$2,$B$8:$D60,$A60,FALSE) -> Orange Residues | G60: feed53
A61: 54 | B61: Pea straw | C61: Paille de petits pois | D61: Paja de guisantes | E61: feed | F61: =HLOOKUP($C$2,$B$8:$D61,$A61,FALSE) -> Pea straw | G61: feed54
A62: 55 | B62: Pineapple Residues | C62: Épluchures d'ananas | D62: Residuos de piña | E62: feed | F62: =HLOOKUP($C$2,$B$8:$D62,$A62,FALSE) -> Pineapple Residues | G62: feed55
A63: 56 | B63: Pineapple waste | C63: Déchets d'ananas | D63: Residuos de piña | E63: feed | F63: =HLOOKUP($C$2,$B$8:$D63,$A63,FALSE) -> Pineapple waste | G63: feed56
A64: 57 | B64: Potatoe Residues | C64: Épluchures de pommes de terre | D64: Residuos de patatas | E64: feed | F64: =HLOOKUP($C$2,$B$8:$D64,$A64,FALSE) -> Potatoe Residues | G64: feed57
A65: 58 | B65: Rapeseed straw | C65: Paille de colza | D65: Paja de colza | E65: feed | F65: =HLOOKUP($C$2,$B$8:$D65,$A65,FALSE) -> Rapeseed straw | G65: feed58
A66: 59 | B66: Rice Straw | C66: Paille de riz | D66: Paja de arroz | E66: feed | F66: =HLOOKUP($C$2,$B$8:$D66,$A66,FALSE) -> Rice Straw | G66: feed59
A67: 60 | B67: Rye straw | C67: Paille de seigle | D67: Paja de centeno | E67: feed | F67: =HLOOKUP($C$2,$B$8:$D67,$A67,FALSE) -> Rye straw | G67: feed60
A68: 61 | B68: Ryegrass straw | C68: Paille d'avoine | D68: Paja de centeno | E68: feed | F68: =HLOOKUP($C$2,$B$8:$D68,$A68,FALSE) -> Ryegrass straw | G68: feed61
A69: 62 | B69: Spinach waste | C69: Déchets d’épinard | D69: residuos de espinaca | E69: feed | F69: =HLOOKUP($C$2,$B$8:$D69,$A69,FALSE) -> Spinach waste | G69: feed62
A70: 63 | B70: Other Straw | C70: Autre paille | D70: Paja Otros | E70: feed | F70: =HLOOKUP($C$2,$B$8:$D70,$A70,FALSE) -> Other Straw | G70: feed63
A71: 64 | B71: Sugar Beet leaf | C71: Feuille de betterave sucrière | D71: hojas de remolacha | E71: feed | F71: =HLOOKUP($C$2,$B$8:$D71,$A71,FALSE) -> Sugar Beet leaf | G71: feed64
A72: 65 | B72: Sugar beet tops | C72: Collet de betterave sucrière | D72: Copas de remolacha | E72: feed | F72: =HLOOKUP($C$2,$B$8:$D72,$A72,FALSE) -> Sugar beet tops | G72: feed65
A73: 66 | B73: Sugar beet waste | C73: Déchets de betterave sucrière | D73: Residuos de remolacha | E73: feed | F73: =HLOOKUP($C$2,$B$8:$D73,$A73,FALSE) -> Sugar beet waste | G73: =$E73&$A73 -> feed66
A74: 67 | B74: Sugar beet, leaves and tops, silage | C74: Betterave sucrière, feuilles et collets, ensilée | D74: Hojas y las tapas de remolacha, ensilado | E74: feed | F74: =HLOOKUP($C$2,$B$8:$D74,$A74,FALSE) -> Sugar beet, leaves and tops, silage | G74: feed67
A75: 68 | B75: Sugas beet leaf (fresh) | C75: Feuille de betterave sucrière (fraîche) | D75: Hoja de remolacha (frescas) | E75: feed | F75: =HLOOKUP($C$2,$B$8:$D75,$A75,FALSE) -> Sugas beet leaf (fresh) | G75: feed68
A76: 69 | B76: Tangerine Residues | C76: Résidus de mandarine | D76: Residuos de mandarina | E76: feed | F76: =HLOOKUP($C$2,$B$8:$D76,$A76,FALSE) -> Tangerine Residues | G76: feed69
A77: 70 | B77: Tea Waste | C77: Déchets de thé | D77: Residuos de Té | E77: feed | F77: =HLOOKUP($C$2,$B$8:$D77,$A77,FALSE) -> Tea Waste | G77: feed70
A78: 71 | B78: Tomatoe Residues | C78: Résidus des tomates | D78: Residuos de Tomate | E78: feed | F78: =HLOOKUP($C$2,$B$8:$D78,$A78,FALSE) -> Tomatoe Residues | G78: feed71
A79: 72 | B79: Turnip Residues | C79: Résidus des navets | D79: Residuos de nabo | E79: feed | F79: =HLOOKUP($C$2,$B$8:$D79,$A79,FALSE) -> Turnip Residues | G79: feed72
A80: 73 | B80: Turnips tops, fresh | C80: Collets de navet, frais | D80: nabos copas, fresco | E80: feed | F80: =HLOOKUP($C$2,$B$8:$D80,$A80,FALSE) -> Turnips tops, fresh | G80: feed73
A81: 74 | B81: Wheat straw | C81: Paille de blé | D81: paja de trigo | E81: feed | F81: =HLOOKUP($C$2,$B$8:$D81,$A81,FALSE) -> Wheat straw | G81: feed74
A82: 75 | B82: Cocoa Shell | C82: Coques de cacao | D82: Cáscara de cocoa | E82: feed | F82: =HLOOKUP($C$2,$B$8:$D82,$A82,FALSE) -> Cocoa Shell | G82: feed75
A83: 76 | B83: Butter milk fresh | C83: Babeurre frais | D83: Mantequilla de leche fresca | E83: feed | F83: =HLOOKUP($C$2,$B$8:$D83,$A83,FALSE) -> Butter milk fresh | G83: feed76
A84: 77 | B84: Cheese waste | C84: Restes de fromage | D84: Residuos de queso | E84: feed | F84: =HLOOKUP($C$2,$B$8:$D84,$A84,FALSE) -> Cheese waste | G84: feed77
A85: 78 | B85: Dairy cow slurry | C85: Lisier de vache laitière | D85: Estiercol liquido de vaca lechera | E85: feed | F85: =HLOOKUP($C$2,$B$8:$D85,$A85,FALSE) -> Dairy cow slurry | G85: feed78
A86: 79 | B86: Dairy slurry inc. fodder remains | C86: Lisier de vache laitière, restes de fourrage inclus | D86: Estiercol liquido de vaca lechera con restos de alimentos para ganado | E86: feed | F86: =HLOOKUP($C$2,$B$8:$D86,$A86,FALSE) -> Dairy slurry inc. fodder remains | G86: feed79
A87: 80 | B87: Milk Whey | C87: Lactosérum | D87: Suero de leche | E87: feed | F87: =HLOOKUP($C$2,$B$8:$D87,$A87,FALSE) -> Milk Whey | G87: feed80
A88: 81 | B88: Skimmed milk dry | C88: Lait écrémé, en poudre | D88: leche desnatada seca | E88: feed | F88: =HLOOKUP($C$2,$B$8:$D88,$A88,FALSE) -> Skimmed milk dry | G88: feed81
A89: 82 | B89: Skimmed milk fresh | C89: Lait écrémé, frais | D89: leche desnatada fresca | E89: feed | F89: =HLOOKUP($C$2,$B$8:$D89,$A89,FALSE) -> Skimmed milk fresh | G89: feed82
A90: 83 | B90: Sour whey fresh | C90: Lactosérum acide, frais | D90: Suero de leche agria fresca | E90: feed | F90: =HLOOKUP($C$2,$B$8:$D90,$A90,FALSE) -> Sour whey fresh | G90: feed83
A91: 84 | B91: Whole cows milk fresh | C91: Lait entier de vache, frais | D91: Leche de vaca entera fresca | E91: feed | F91: =HLOOKUP($C$2,$B$8:$D91,$A91,FALSE) -> Whole cows milk fresh | G91: feed84
A92: 85 | B92: Barley | C92: Orge | D92: Cebada | E92: feed | F92: =HLOOKUP($C$2,$B$8:$D92,$A92,FALSE) -> Barley | G92: feed85
A93: 86 | B93: Barley grain | C93: Grain d'orge | D93: grano de cebada | E93: feed | F93: =HLOOKUP($C$2,$B$8:$D93,$A93,FALSE) -> Barley grain | G93: feed86
A94: 87 | B94: Forage sorghum | C94: Sorgho fourrager | D94: sorgo forrajero | E94: feed | F94: =HLOOKUP($C$2,$B$8:$D94,$A94,FALSE) -> Forage sorghum | G94: feed87
A95: 88 | B95: Grain sorghum | C95: Sorgho à grains | D95: Grano de sorgo | E95: feed | F95: =HLOOKUP($C$2,$B$8:$D95,$A95,FALSE) -> Grain sorghum | G95: feed88
A96: 89 | B96: Grass Clipings | C96: Herbe coupée | D96: Recortes de césped | E96: feed | F96: =HLOOKUP($C$2,$B$8:$D96,$A96,FALSE) -> Grass Clipings | G96: feed89
A97: 90 | B97: Grass fresh | C97: Herbe, fraîche | D97: hierba fresca | E97: feed | F97: =HLOOKUP($C$2,$B$8:$D97,$A97,FALSE) -> Grass fresh | G97: feed90
A98: 91 | B98: Green maize | C98: Maïs vert | D98: Maiz verde | E98: feed | F98: =HLOOKUP($C$2,$B$8:$D98,$A98,FALSE) -> Green maize | G98: feed91
A99: 92 | B99: Maize | C99: Mais | D99: Maíz | E99: feed | F99: =HLOOKUP($C$2,$B$8:$D99,$A99,FALSE) -> Maize | G99: feed92
A100: 93 | B100: Maize grain dry | C100: Maïs en grains secs | D100: Maíz grano seco | E100: feed | F100: =HLOOKUP($C$2,$B$8:$D100,$A100,FALSE) -> Maize grain dry | G100: feed93
A101: 94 | B101: Oat grain | C101: Avoine en grains | D101: Grano de avena | E101: feed | F101: =HLOOKUP($C$2,$B$8:$D101,$A101,FALSE) -> Oat grain | G101: feed94
A102: 95 | B102: Rapeseed | C102: Colza | D102: Colza (semilla) | E102: feed | F102: =HLOOKUP($C$2,$B$8:$D102,$A102,FALSE) -> Rapeseed | G102: feed95
A103: 96 | B103: Reed, cattail, fresh | C103: Roseau, épis, frais | D103: Reed, espadaña, fresco | E103: feed | F103: =HLOOKUP($C$2,$B$8:$D103,$A103,FALSE) -> Reed, cattail, fresh | G103: feed96
A104: 97 | B104: Rice | C104: Riz | D104: arroz | E104: feed | F104: =HLOOKUP($C$2,$B$8:$D104,$A104,FALSE) -> Rice | G104: feed97
A105: 98 | B105: Seaweed, fresh | C105: Algue marine, fraîche | D105: algas, frescas | E105: feed | F105: =HLOOKUP($C$2,$B$8:$D105,$A105,FALSE) -> Seaweed, fresh | G105: feed98
A106: 99 | B106: Sorghum | C106: Sorgho | D106: Sorgo | E106: feed | F106: =HLOOKUP($C$2,$B$8:$D106,$A106,FALSE) -> Sorghum | G106: feed99
A107: 100 | B107: Sorghum grains | C107: Sorgho en grains | D107: granos de sorgo | E107: feed | F107: =HLOOKUP($C$2,$B$8:$D107,$A107,FALSE) -> Sorghum grains | G107: feed100
A108: 101 | B108: Sugar beet | C108: Betterave sucrière | D108: Remolacha | E108: feed | F108: =HLOOKUP($C$2,$B$8:$D108,$A108,FALSE) -> Sugar beet | G108: feed101
A109: 102 | B109: Sunflower | C109: Tournesol | D109: Sunflower | E109: feed | F109: =HLOOKUP($C$2,$B$8:$D109,$A109,FALSE) -> Sunflower | G109: feed102
A110: 103 | B110: Sunflowers green start of flowering | C110: Tournesols verts en début de floraison | D110: Girasoles verdes de inicio de la floración | E110: feed | F110: =HLOOKUP($C$2,$B$8:$D110,$A110,FALSE) -> Sunflowers green start of flowering | G110: feed103
A111: 104 | B111: Sweet Sorghum | C111: Sorgho sucrier | D111: sorgo dulce | E111: feed | F111: =HLOOKUP($C$2,$B$8:$D111,$A111,FALSE) -> Sweet Sorghum | G111: feed104
A112: 105 | B112: Triticale | C112: Triticale | D112: Triticale | E112: feed | F112: =HLOOKUP($C$2,$B$8:$D112,$A112,FALSE) -> Triticale | G112: feed105
A113: 106 | B113: Triticale grains | C113: Grains de triticale | D113: Granos de triticale | E113: feed | F113: =HLOOKUP($C$2,$B$8:$D113,$A113,FALSE) -> Triticale grains | G113: feed106
A114: 107 | B114: Wheat | C114: Blé | D114: Trigo | E114: feed | F114: =HLOOKUP($C$2,$B$8:$D114,$A114,FALSE) -> Wheat | G114: feed107
A115: 108 | B115: Wheat grain | C115: Grains de blé | D115: Granos de trigo | E115: feed | F115: =HLOOKUP($C$2,$B$8:$D115,$A115,FALSE) -> Wheat grain | G115: feed108
A116: 109 | B116: White fir | C116: Sapin du Colorado | D116: abeto blanco | E116: feed | F116: =HLOOKUP($C$2,$B$8:$D116,$A116,FALSE) -> White fir | G116: feed109
A117: 110 | B117: Willow | C117: Saule | D117: Mimbre | E117: feed | F117: =HLOOKUP($C$2,$B$8:$D117,$A117,FALSE) -> Willow | G117: feed110
A118: 111 | B118: Winter Barley | C118: Orge d'hiver | D118: Cebada de invierno | E118: feed | F118: =HLOOKUP($C$2,$B$8:$D118,$A118,FALSE) -> Winter Barley | G118: feed111
A119: 112 | B119: Maize Grain Silage (Crimped seed) | C119: Grains ensilés de maïs (semence gaufrée) | D119: maíz en grano ensilado (semilla rizada) | E119: feed | F119: =HLOOKUP($C$2,$B$8:$D119,$A119,FALSE) -> Maize Grain Silage (Crimped seed) | G119: feed112
A120: 113 | B120: Maize Silage | C120: Maïs ensilé | D120: maíz de ensilaje | E120: feed | F120: =HLOOKUP($C$2,$B$8:$D120,$A120,FALSE) -> Maize Silage | G120: feed113
A121: 114 | B121: Miscanthus silage | C121: Roseau de Chine ensilé | D121: Miscanthus ensilaje | E121: feed | F121: =HLOOKUP($C$2,$B$8:$D121,$A121,FALSE) -> Miscanthus silage | G121: feed114
A122: 115 | B122: Miscanthus silage | C122: Roseau de Chine ensilé | D122: Miscanthus sillage | E122: feed | F122: =HLOOKUP($C$2,$B$8:$D122,$A122,FALSE) -> Miscanthus silage | G122: feed115
A123: 116 | B123: Sugar beet leaves, silage | C123: Feuilles de betterave sucrière, ensilées | D123: hojas de remolacha azucarera, ensilado | E123: feed | F123: =HLOOKUP($C$2,$B$8:$D123,$A123,FALSE) -> Sugar beet leaves, silage | G123: feed116
A124: 117 | B124: Sugar beet silage | C124: Betterave sucrière ensilée | D124: Remolacha ensilaje | E124: feed | F124: =HLOOKUP($C$2,$B$8:$D124,$A124,FALSE) -> Sugar beet silage | G124: feed117
A125: 118 | B125: Wheat strip waste | C125: Déchets de blé déchiqueté | D125: Trigo residuos en tira | E125: feed | F125: =HLOOKUP($C$2,$B$8:$D125,$A125,FALSE) -> Wheat strip waste | G125: feed118
A126: 119 | B126: Apple Marc | C126: Marc de pomme | D126: Marcos de manzana | E126: feed | F126: =HLOOKUP($C$2,$B$8:$D126,$A126,FALSE) -> Apple Marc | G126: feed119
A127: 120 | B127: Maize gluten | C127: Gluten de maïs | D127: Gluten de maiz | E127: feed | F127: =HLOOKUP($C$2,$B$8:$D127,$A127,FALSE) -> Maize gluten | G127: feed120
A128: 121 | B128: Maize gluten feed | C128: Fourrage au gluten de maïs | D128: Pienso de gluten de maiz | E128: feed | F128: =HLOOKUP($C$2,$B$8:$D128,$A128,FALSE) -> Maize gluten feed | G128: feed121
A129: 122 | B129: Mash from distillations | C129: Moût de distillation | D129: Puré de destilaciones | E129: feed | F129: =HLOOKUP($C$2,$B$8:$D129,$A129,FALSE) -> Mash from distillations | G129: feed122
A130: 123 | B130: Molasses | C130: Mélasses | D130: Melaza | E130: feed | F130: =HLOOKUP($C$2,$B$8:$D130,$A130,FALSE) -> Molasses | G130: feed123
A131: 124 | B131: Potato chips | C131: Chips de pomme de terre | D131: chips de potata | E131: feed | F131: =HLOOKUP($C$2,$B$8:$D131,$A131,FALSE) -> Potato chips | G131: feed124
A132: 125 | B132: Potato flakes | C132: Flocons de pomme de terre | D132: escamas potata | E132: feed | F132: =HLOOKUP($C$2,$B$8:$D132,$A132,FALSE) -> Potato flakes | G132: feed125
A133: 126 | B133: Potato press water | C133: Eau de presse des pommes de terre | D133: Agua del prensado de patata | E133: feed | F133: =HLOOKUP($C$2,$B$8:$D133,$A133,FALSE) -> Potato press water | G133: feed126
A134: 127 | B134: Potato pulp, dried | C134: Pulpe de pomme de terre, séchée | D134: pulpa de la patata, seca | E134: feed | F134: =HLOOKUP($C$2,$B$8:$D134,$A134,FALSE) -> Potato pulp, dried | G134: feed127
A135: 128 | B135: Potato starch | C135: Fécule de pomme de terre | D135: almidón de patata | E135: feed | F135: =HLOOKUP($C$2,$B$8:$D135,$A135,FALSE) -> Potato starch | G135: feed128
A136: 129 | B136: Residue from production of sweets | C136: Résidus de la production de bonbons | D136: Residuos de la producción de dulces | E136: feed | F136: =HLOOKUP($C$2,$B$8:$D136,$A136,FALSE) -> Residue from production of sweets | G136: feed129
A137: 130 | B137: Sugar beet chips | C137: Chips de betterave sucrière | D137: Chips de remolacha azucarera | E137: feed | F137: =HLOOKUP($C$2,$B$8:$D137,$A137,FALSE) -> Sugar beet chips | G137: =$E137&$A137 -> feed130
A138: 131 | B138: Sugar beet dried & shredded | C138: Betterave sucrière, séchée et broyée | D138: Remolacha deshidratada y triturada | E138: feed | F138: =HLOOKUP($C$2,$B$8:$D138,$A138,FALSE) -> Sugar beet dried & shredded | G138: feed131
A139: 132 | B139: Sugar beet fresh | C139: Betterave sucrière, fraîche | D139: Remolacha fresca | E139: feed | F139: =HLOOKUP($C$2,$B$8:$D139,$A139,FALSE) -> Sugar beet fresh | G139: feed132
A140: 133 | B140: Sugar beet melasse | C140: Mélasse de betterave sucrière | D140: Melaza de remolacha | E140: feed | F140: =HLOOKUP($C$2,$B$8:$D140,$A140,FALSE) -> Sugar beet melasse | G140: feed133
A141: 134 | B141: Sugar beet pulp, dried | C141: Pulpe de betterave sucrière, séchée | D141: Pulpa de remolacha, seca | E141: feed | F141: =HLOOKUP($C$2,$B$8:$D141,$A141,FALSE) -> Sugar beet pulp, dried | G141: feed134
A142: 135 | B142: Sugar beet tops clean | C142: Collets de betterave sucrière, lavées | D142: Hojas de remolacha limpia | E142: feed | F142: =HLOOKUP($C$2,$B$8:$D142,$A142,FALSE) -> Sugar beet tops clean | G142: feed135
A143: 136 | B143: Sugar filter cake | C143: Tourteau de sucre filtré | D143: Torta de filtrado de azucar | E143: feed | F143: =HLOOKUP($C$2,$B$8:$D143,$A143,FALSE) -> Sugar filter cake | G143: feed136
A144: 137 | B144: Sugar for feeding | C144: Sucre fourrager | D144: Azucar para pienso | E144: feed | F144: =HLOOKUP($C$2,$B$8:$D144,$A144,FALSE) -> Sugar for feeding | G144: feed137
A145: 138 | B145: Apple pulp | C145: Pulpe de pomme | D145: Pulpa de manzana | E145: feed | F145: =HLOOKUP($C$2,$B$8:$D145,$A145,FALSE) -> Apple pulp | G145: feed138
A146: 139 | B146: Apple slurry | C146: Bouillie de pomme | D146: residuo liquido de manzana | E146: feed | F146: =HLOOKUP($C$2,$B$8:$D146,$A146,FALSE) -> Apple slurry | G146: feed139
A147: 140 | B147: Asparagus peels | C147: Épluchures d’asperges | D147: Espárrago cascaras | E147: feed | F147: =HLOOKUP($C$2,$B$8:$D147,$A147,FALSE) -> Asparagus peels | G147: feed140
A148: 141 | B148: Baking wastes | C148: Déchets de boulangerie | D148: Residuos de horneado | E148: feed | F148: =HLOOKUP($C$2,$B$8:$D148,$A148,FALSE) -> Baking wastes | G148: feed141
A149: 142 | B149: Banana peels | C149: Peaux de banane | D149: cáscaras de plátano | E149: feed | F149: =HLOOKUP($C$2,$B$8:$D149,$A149,FALSE) -> Banana peels | G149: feed142
A150: 143 | B150: Barley fresh mass | C150: Masse fraiche d'orge | D150: Cebada masa fresca | E150: feed | F150: =HLOOKUP($C$2,$B$8:$D150,$A150,FALSE) -> Barley fresh mass | G150: feed143
A151: 144 | B151: Barley silage | C151: Orge ensilée | D151: Cebada ensilaje | E151: feed | F151: =HLOOKUP($C$2,$B$8:$D151,$A151,FALSE) -> Barley silage | G151: feed144
A152: 145 | B152: Field fodder silage | C152: Fourrage des champs, ensilé | D152: Ensilaje forrajero | E152: feed | F152: =HLOOKUP($C$2,$B$8:$D152,$A152,FALSE) -> Field fodder silage | G152: feed145
A153: 146 | B153: Hemp press cake | C153: Tourteau de chanvre | D153: Torta de prensade de cáñamo | E153: feed | F153: =HLOOKUP($C$2,$B$8:$D153,$A153,FALSE) -> Hemp press cake | G153: feed146
A154: 147 | B154: Hemp silage | C154: Chanvre ensilée | D154: Cáñamo ensilaje | E154: feed | F154: =HLOOKUP($C$2,$B$8:$D154,$A154,FALSE) -> Hemp silage | G154: feed147
A155: 148 | B155: Loose skinned mandarin | C155: Peaux de mandarines | D155: Mandarina de piel suelta | E155: feed | F155: =HLOOKUP($C$2,$B$8:$D155,$A155,FALSE) -> Loose skinned mandarin | G155: feed148
A156: 149 | B156: Maize strip waste | C156: Déchets de maïs déchiqueté | D156: Residuos en tira de maiz | E156: feed | F156: =HLOOKUP($C$2,$B$8:$D156,$A156,FALSE) -> Maize strip waste | G156: feed149
A157: 150 | B157: Mango Peels | C157: Peaux de mangue | D157: Mango cáscaras | E157: feed | F157: =HLOOKUP($C$2,$B$8:$D157,$A157,FALSE) -> Mango Peels | G157: feed150
A158: 151 | B158: Rapeseed strip waste | C158: Déchets de colza déchiqueté | D158: Colza residuos en tira | E158: feed | F158: =HLOOKUP($C$2,$B$8:$D158,$A158,FALSE) -> Rapeseed strip waste | G158: feed151
A159: 152 | B159: Reed, cattail, silage | C159: Roseau, épis, ensilé | D159: Reed, espadaña, ensilado | E159: feed | F159: =HLOOKUP($C$2,$B$8:$D159,$A159,FALSE) -> Reed, cattail, silage | G159: feed152
A160: 153 | B160: Bakery residues | C160: Résidus de boulangerie | D160: Panadería residuos | E160: feed | F160: =HLOOKUP($C$2,$B$8:$D160,$A160,FALSE) -> Bakery residues | G160: feed153
A161: 154 | B161: Barley bran | C161: Son d'orge | D161: Cebada afrecho | E161: feed | F161: =HLOOKUP($C$2,$B$8:$D161,$A161,FALSE) -> Barley bran | G161: feed154
A162: 155 | B162: Barley feeding meal | C162: Farine fourragère d'orge | D162: cebada harina de pienso | E162: feed | F162: =HLOOKUP($C$2,$B$8:$D162,$A162,FALSE) -> Barley feeding meal | G162: feed155
A163: 156 | B163: Bran and cereal strip waste (70:30), fresh | C163: Son et déchets de céréales déchiquettées (70:30), frais | D163: Afrecho y residuos de cereales en tira (70 : 30),fresco | E163: feed | F163: =HLOOKUP($C$2,$B$8:$D163,$A163,FALSE) -> Bran and cereal strip waste (70:30), fresh | G163: feed156
A164: 157 | B164: Cereal Mash | C164: Moût de céréales | D164: puré de cereales | E164: feed | F164: =HLOOKUP($C$2,$B$8:$D164,$A164,FALSE) -> Cereal Mash | G164: feed157
A165: 158 | B165: Cereal strip waste, fresh | C165: Bourre de céréales, fraîche | D165: Cereal residuos en tira, fresca | E165: feed | F165: =HLOOKUP($C$2,$B$8:$D165,$A165,FALSE) -> Cereal strip waste, fresh | G165: feed158
A166: 159 | B166: Chip fat | C166: Graisse des cossettes | D166: Grasa de la viruta | E166: feed | F166: =HLOOKUP($C$2,$B$8:$D166,$A166,FALSE) -> Chip fat | G166: feed159
A167: 160 | B167: Coffee pulp | C167: Pulpe de café | D167: pulpa de café | E167: feed | F167: =HLOOKUP($C$2,$B$8:$D167,$A167,FALSE) -> Coffee pulp | G167: feed160
A168: 161 | B168: Dairy industry wastes | C168: Déchets des industries laitières | D168: lácteos desechos de la industria | E168: feed | F168: =HLOOKUP($C$2,$B$8:$D168,$A168,FALSE) -> Dairy industry wastes | G168: feed161
A169: 162 | B169: Discarded wheat flour | C169: Rejets de farine de froment | D169: desechados harina de trigo | E169: feed | F169: =HLOOKUP($C$2,$B$8:$D169,$A169,FALSE) -> Discarded wheat flour | G169: feed162
A170: 163 | B170: Field bean grain | C170: Grains de féveroles | D170: Grano de haba del campo | E170: feed | F170: =HLOOKUP($C$2,$B$8:$D170,$A170,FALSE) -> Field bean grain | G170: feed163
A171: 164 | B171: Grain Peas | C171: Pois en grain | D171: Guisantes en grano | E171: feed | F171: =HLOOKUP($C$2,$B$8:$D171,$A171,FALSE) -> Grain Peas | G171: feed164
A172: 165 | B172: Maize , broken | C172: Maïs, concassé | D172: Maiz, rotos | E172: feed | F172: =HLOOKUP($C$2,$B$8:$D172,$A172,FALSE) -> Maize , broken | G172: feed165
A173: 166 | B173: Maize grain powder | C173: Poudre de grains de maïs | D173: Grano de maiz en polvo | E173: feed | F173: =HLOOKUP($C$2,$B$8:$D173,$A173,FALSE) -> Maize grain powder | G173: feed166
A174: 167 | B174: Malt coffee marc | C174: Malt de marc de café | D174: Marco de café de malta | E174: feed | F174: =HLOOKUP($C$2,$B$8:$D174,$A174,FALSE) -> Malt coffee marc | G174: feed167
A175: 168 | B175: Medical tea (Production waste) | C175: Thé thérapeutique (déchets de la production) | D175: té Médico (residuos de fabricación) | E175: feed | F175: =HLOOKUP($C$2,$B$8:$D175,$A175,FALSE) -> Medical tea (Production waste) | G175: feed168
A176: 169 | B176: Mixed grain | C176: Mélange de céréales | D176: mezclado de granos | E176: feed | F176: =HLOOKUP($C$2,$B$8:$D176,$A176,FALSE) -> Mixed grain | G176: feed169
A177: 170 | B177: Oat bran | C177: Son d'avoine | D177: Afrecho de avena | E177: feed | F177: =HLOOKUP($C$2,$B$8:$D177,$A177,FALSE) -> Oat bran | G177: feed170
A178: 171 | B178: Oats fodder flour | C178: Farine d'avoine fourragère | D178: Harina de pienso de avena | E178: feed | F178: =HLOOKUP($C$2,$B$8:$D178,$A178,FALSE) -> Oats fodder flour | G178: feed171
A179: 172 | B179: Old bread | C179: Pain rassis | D179: pan viejo | E179: feed | F179: =HLOOKUP($C$2,$B$8:$D179,$A179,FALSE) -> Old bread | G179: feed172
A180: 173 | B180: Old chip fat | C180: Graisse usagée de cossettes | D180: Grasa de viruta vieja | E180: feed | F180: =HLOOKUP($C$2,$B$8:$D180,$A180,FALSE) -> Old chip fat | G180: feed173
A181: 174 | B181: Onion Residues | C181: Pelures d'oignon | D181: Residuos de cebolla | E181: feed | F181: =HLOOKUP($C$2,$B$8:$D181,$A181,FALSE) -> Onion Residues | G181: feed174
A182: 175 | B182: Other cereals straw | C182: Paille d'autres céréales | D182: Paja de otros cereales | E182: feed | F182: =HLOOKUP($C$2,$B$8:$D182,$A182,FALSE) -> Other cereals straw | G182: feed175
A183: 176 | B183: Potato flakes | C183: Flocons de pomme de terre | D183: copos de patata | E183: feed | F183: =HLOOKUP($C$2,$B$8:$D183,$A183,FALSE) -> Potato flakes | G183: feed176
A184: 177 | B184: Potato peeling wastes roughly | C184: Épluchures grossières de pomme de terre | D184: patatas desechos cascaras | E184: feed | F184: =HLOOKUP($C$2,$B$8:$D184,$A184,FALSE) -> Potato peeling wastes roughly | G184: feed177
A185: 178 | B185: Potato Pulp/Peelings | C185: Pulpe/Épluchures de pomme de terre | D185: Patata pulpa/cascaras | E185: feed | F185: =HLOOKUP($C$2,$B$8:$D185,$A185,FALSE) -> Potato Pulp/Peelings | G185: feed178
A186: 179 | B186: Potatoes amniotic fluid (Starch production) | C186: Liquide amniotique des pommes de terre (production d'amidon) | D186: Patatas líquido amniótico (producción almidon) | E186: feed | F186: =HLOOKUP($C$2,$B$8:$D186,$A186,FALSE) -> Potatoes amniotic fluid (Starch production) | G186: feed179
A187: 180 | B187: Potatoes mash | C187: Purée de pommes de terre | D187: Patatas puré | E187: feed | F187: =HLOOKUP($C$2,$B$8:$D187,$A187,FALSE) -> Potatoes mash | G187: feed180
A188: 181 | B188: Potatoes pulp | C188: Pulpe de pommes de terre | D188: Patatas pulpa | E188: feed | F188: =HLOOKUP($C$2,$B$8:$D188,$A188,FALSE) -> Potatoes pulp | G188: feed181
A189: 182 | B189: Potatoes shredder | C189: Broyeur de pommes de terre | D189: Patatas trituradora | E189: feed | F189: =HLOOKUP($C$2,$B$8:$D189,$A189,FALSE) -> Potatoes shredder | G189: feed182
A190: 183 | B190: Potatoes waste water | C190: Eau usée des pommes de terre | D190: Patatas de aguas residuales | E190: feed | F190: =HLOOKUP($C$2,$B$8:$D190,$A190,FALSE) -> Potatoes waste water | G190: feed183
A191: 184 | B191: Processing waste (filtration cake, pulp) | C191: Déchets de la transformation (gâteau de filtration, pulpe) | D191: Desecho de procesamiento(torta de filtración, pulpa) | E191: feed | F191: =HLOOKUP($C$2,$B$8:$D191,$A191,FALSE) -> Processing waste (filtration cake, pulp) | G191: feed184
A192: 185 | B192: Pulp | C192: Pulpe | D192: Pulpa | E192: feed | F192: =HLOOKUP($C$2,$B$8:$D192,$A192,FALSE) -> Pulp | G192: feed185
A193: 186 | B193: Rice Bran | C193: Son de riz | D193: Arroz afrecho | E193: feed | F193: =HLOOKUP($C$2,$B$8:$D193,$A193,FALSE) -> Rice Bran | G193: feed186
A194: 187 | B194: Rice feeding meal | C194: Farine fourragère de riz | D194: Arroz harina de pienso | E194: feed | F194: =HLOOKUP($C$2,$B$8:$D194,$A194,FALSE) -> Rice feeding meal | G194: feed187
A195: 188 | B195: Rolled oats | C195: Flocons d'avoine | D195: Avena rollos | E195: feed | F195: =HLOOKUP($C$2,$B$8:$D195,$A195,FALSE) -> Rolled oats | G195: feed188
A196: 189 | B196: Rye bran | C196: Son de seigle | D196: Centeno afrecho | E196: feed | F196: =HLOOKUP($C$2,$B$8:$D196,$A196,FALSE) -> Rye bran | G196: feed189
A197: 190 | B197: Rye feeding meal | C197: Farine fourragère de seigle | D197: Avena harina de pienso | E197: feed | F197: =HLOOKUP($C$2,$B$8:$D197,$A197,FALSE) -> Rye feeding meal | G197: feed190
A198: 191 | B198: Silage seep water | C198: Eau de percolation ensilée | D198: Agua de ensilaje | E198: feed | F198: =HLOOKUP($C$2,$B$8:$D198,$A198,FALSE) -> Silage seep water | G198: feed191
A199: 192 | B199: Succory chaff | C199: Balle de chicorée | D199: Achicoria paja | E199: feed | F199: =HLOOKUP($C$2,$B$8:$D199,$A199,FALSE) -> Succory chaff | G199: feed192
A200: 193 | B200: Succory mush | C200: Bouillie de chicorée | D200: Achicoria pure | E200: feed | F200: =HLOOKUP($C$2,$B$8:$D200,$A200,FALSE) -> Succory mush | G200: feed193
A201: 194 | B201: Vegetable wastes | C201: Déchets végétaux | D201: vegetales residuos | E201: feed | F201: =HLOOKUP($C$2,$B$8:$D201,$A201,FALSE) -> Vegetable wastes | G201: =$E201&$A201 -> feed194
A202: 195 | B202: Wheat bran | C202: Son de blé | D202: Trigo afrecho | E202: feed | F202: =HLOOKUP($C$2,$B$8:$D202,$A202,FALSE) -> Wheat bran | G202: feed195
... 157 more rows

Sheet Database_Prop (hidden)
A1: =title74 -> Please Select | B1: =title74 -> Please Select | D1: VS | E1: m3 CH4 per t VS | F1: methane content | G1: TS (%) | K1: References
A2: =title184 -> Biodiesel/Oilseed Ind. | B2: =feed2 -> Coconut cake/expeller | C2: =$A2&" "&$B2 -> Biodiesel/Oilseed Ind. Coconut cake/expeller | D2: 0.931 | E2: 815 | F2: 0.554601227 | G2: 0.9 | K2: http://daten.ktbl.de/euagrobiogasbasis/navigation.do?selectedAction=Startseite | Q2: C | R2: H | S2: O | T2: N | U2: S | V2: DRY MATTER (%) | W2: PROTEIN (%) | X2: CARBOHYDRATE (%) | Y2: =UPPER(title658)&" (%)" -> ASH (%) | Z2: FAT (%) | AA2: VS (%)
A3: Biodiesel/Oilseed Ind. | B3: =feed3 -> Coconut extraction meal | C3: Biodiesel/Oilseed Ind. Coconut extraction meal | D3: 0.926 | E3: 788 | F3: 0.5406091371 | G3: 0.9 | K3: http://daten.ktbl.de/euagrobiogasbasis/navigation.do?selectedAction=Startseite | P3: =title672 -> Barley Straw | Q3: 46.8 | R3: 5.53 | S3: 41.9 | T3: 0.41 | U3: 0.06 | V3: 0.065 | W3: 0.183 | X3: 0.623 | Y3: 0.074 | Z3: 0.03887 | AA3: 0.96
A4: Biodiesel/Oilseed Ind. | B4: =feed4 -> Cotton seed extraction meal | C4: Biodiesel/Oilseed Ind. Cotton seed extraction meal | D4: 0.93 | E4: 794 | F4: 0.5591939547 | G4: 0.9 | K4: http://daten.ktbl.de/euagrobiogasbasis/navigation.do?selectedAction=Startseite | P4: Cassava Cake | Q4: 59.31 | R4: 9.78 | S4: 28.74 | T4: 2.06 | U4: 0.11 | V4: 0.7816 | W4: 0.0182 | X4: 0.699 | Y4: 0.0161 | Z4: 0.0009 | AA4: 0.96
A5: Biodiesel/Oilseed Ind. | B5: =feed5 -> Fish Oil | C5: Biodiesel/Oilseed Ind. Fish Oil | D5: =AVERAGE(80%,85%) -> 0.825 | E5: =AVERAGE(350,450) -> 400 | F5: 0.6 | G5: 1 | K5: http://www.feedipedia.org/node/205 | P5: Castorbean Cake | Q5: 50.62375 | R5: 6.71125 | S5: 38.74125 | T5: 1.76125 | U5: 0.08375 | V5: 0.0703 | W5: 0.2078 | X5: 0.2498 | Y5: 0.0775 | Z5: 0.512 | AA5: 0.96
A6: Biodiesel/Oilseed Ind. | B6: =feed6 -> Flax cake/expeller | C6: Biodiesel/Oilseed Ind. Flax cake/expeller | D6: 0.936 | E6: 820 | F6: 0.5682926829 | G6: 0.903 | K6: http://daten.ktbl.de/euagrobiogasbasis/navigation.do?selectedAction=Startseite | P6: Coconut Cake | Q6: 50.62375 | R6: 6.71125 | S6: 38.74125 | T6: 1.76125 | U6: 0.08375 | V6: 0.1039 | W6: 0.2657 | X6: 0.1062 | Y6: 0.0166 | Z6: 0.4075 | AA6: 0.96
A7: Biodiesel/Oilseed Ind. | B7: =feed7 -> Flax extraction meal | C7: Biodiesel/Oilseed Ind. Flax extraction meal | D7: 0.934 | E7: 795 | F7: 0.5559748428 | G7: 0.89 | K7: http://daten.ktbl.de/euagrobiogasbasis/navigation.do?selectedAction=Startseite | P7: Cottonseed Cake | Q7: 52 | R7: 5.9 | S7: 40.8 | T7: 1.3 | U7: 0.05 | V7: 0.067 | W7: 0.403 | X7: 0.108 | Y7: 0.068 | Z7: 0.25
A8: Biodiesel/Oilseed Ind. | B8: =feed8 -> Glycerin | C8: Biodiesel/Oilseed Ind. Glycerin | D8: 0.995 | E8: 850 | F8: 0.6 | G8: 1 | P8: Groundnut Cake | Q8: 50.62375 | R8: 6.71125 | S8: 38.74125 | T8: 1.76125 | U8: 0.08375 | V8: 0.08 | W8: 0.2426 | X8: 0.26 | Y8: 0.02 | Z8: 0.45
A9: Biodiesel/Oilseed Ind. | B9: =feed9 -> Hemp press cake, fresh | C9: Biodiesel/Oilseed Ind. Hemp press cake, fresh | D9: 0.929 | E9: 119 | F9: 0.6470588235 | G9: 0.894 | K9: http://daten.ktbl.de/euagrobiogasbasis/navigation.do?selectedAction=Startseite | P9: Jatropha Cake | Q9: 59.17 | R9: 6.52 | S9: 33.93 | T9: 0.38 | U9: 0.05 | V9: 0.0672 | W9: 0.1898 | X9: 0.28 | Y9: 0.0531 | Z9: 0.1218
A10: Biodiesel/Oilseed Ind. | B10: =feed10 -> Linseed oil | C10: Biodiesel/Oilseed Ind. Linseed oil | D10: 0.999 | E10: 1225 | F10: 0.68 | G10: 0.999 | P10: Maize Stover | Q10: 43.65 | R10: 5.56 | S10: 43.31 | T10: 0.61 | U10: 0.01 | V10: 0.063 | W10: 0.098 | X10: 0.723 | Y10: 0.023 | Z10: 0.031
A11: Biodiesel/Oilseed Ind. | B11: =feed11 -> Maize germ cake/expeller | C11: Biodiesel/Oilseed Ind. Maize germ cake/expeller | D11: 0.963 | E11: 800 | F11: 0.5425 | G11: 0.915 | K11: http://daten.ktbl.de/euagrobiogasbasis/navigation.do?selectedAction=Startseite | P11: Oil Palm Cake | Q11: 52.53 | R11: 5.65 | S11: 38.93 | T11: 2.86 | U11: 0.03 | V11: 0.092 | W11: 0.186 | X11: 0.37 | Y11: 0.045 | Z11: 0.4
A12: Biodiesel/Oilseed Ind. | B12: =feed12 -> Maize germ extraction meal | C12: Biodiesel/Oilseed Ind. Maize germ extraction meal | D12: 0.953 | E12: 774 | F12: 0.5297157623 | G12: 0.89 | K12: http://daten.ktbl.de/euagrobiogasbasis/navigation.do?selectedAction=Startseite | P12: Potatoes Cake | Q12: 50.62375 | R12: 6.71125 | S12: 38.74125 | T12: 1.76125 | U12: 0.08375 | V12: 0.728 | W12: 0.025 | X12: 0.703 | Y12: 0.018 | Z12: 0.001
A13: Biodiesel/Oilseed Ind. | B13: =feed13 -> Oilseed Residuals (pressed) | C13: Biodiesel/Oilseed Ind. Oilseed Residuals (pressed) | D13: 0.97 | E13: =AVERAGE(1,0.9)*1000 -> 950 | F13: 0.7075 | G13: 0.92 | P13: Rapeseed Cake | Q13: 48.62 | R13: 7.47 | S13: 35.42 | T13: 3.78 | U13: 0.15 | V13: 0.1 | W13: 0.339 | X13: 0.197 | Y13: 0.075 | Z13: 0.1
A14: Biodiesel/Oilseed Ind. | B14: =feed14 -> Olive pulp | C14: Biodiesel/Oilseed Ind. Olive pulp | D14: 0.921 | E14: 293 | F14: 0.5290102389 | G14: 0.945 | K14: http://daten.ktbl.de/euagrobiogasbasis/navigation.do?selectedAction=Startseite | P14: Rice Husk | Q14: 45.41 | R14: 6.28 | S14: 47.1 | T14: 0.99 | U14: 0.21 | V14: 0.042 | W14: 0.14 | X14: 0.48 | Y14: 0.06 | Z14: 0.198
A15: Biodiesel/Oilseed Ind. | B15: =feed15 -> Palm Kernell | C15: Biodiesel/Oilseed Ind. Palm Kernell | D15: 0.957 | E15: 588.6 | F15: 0.542 | G15: 0.886 | P15: Safflower Cake | Q15: 49.5 | R15: 6.9 | S15: 40.6 | T15: 3 | U15: 0.05 | V15: 0.087 | W15: 0.454 | X15: 0.201 | Y15: 0.105 | Z15: 0.35
A16: Biodiesel/Oilseed Ind. | B16: =feed16 -> Palm-kernel cake/expeller | C16: Biodiesel/Oilseed Ind. Palm-kernel cake/expeller | D16: 0.956 | E16: 818 | F16: 0.5525672372 | G16: 0.915 | K16: http://daten.ktbl.de/euagrobiogasbasis/navigation.do?selectedAction=Startseite | P16: Sesame Cake | Q16: 49.85642857 | R16: 6.502857143 | S16: 38.34428571 | T16: 2.257857143 | U16: 0.07785714286 | V16: 0.178 | W16: 0.356 | X16: 0.076 | Y16: 0.066 | Z16: 0.18
A17: Biodiesel/Oilseed Ind. | B17: =feed17 -> Palm-kernel extraction meal | C17: Biodiesel/Oilseed Ind. Palm-kernel extraction meal | D17: 0.956 | E17: 780 | F17: 0.5320512821 | G17: 0.886 | K17: http://daten.ktbl.de/euagrobiogasbasis/navigation.do?selectedAction=Startseite | P17: Sorghum Bagasse | Q17: 49.5 | R17: 6.2 | S17: 40.1 | T17: 0.9 | U17: 0.01 | V17: 0.2688 | W17: 0.0162 | X17: 0.1298 | Y17: 0.0134 | Z17: 0.031
A18: Biodiesel/Oilseed Ind. | B18: =feed18 -> Peanut cake/expeller | C18: Biodiesel/Oilseed Ind. Peanut cake/expeller | D18: 0.933 | E18: 831 | F18: 0.5800240674 | G18: 0.918 | K18: http://daten.ktbl.de/euagrobiogasbasis/navigation.do?selectedAction=Startseite | P18: Soybean Cake | Q18: 55.89 | R18: 6.57 | S18: 28.25 | T18: 9.29 | U18: 0.05 | V18: 0.083 | W18: 0.4437 | X18: 0.125 | Y18: 0.0563 | Z18: 0.218
A19: Biodiesel/Oilseed Ind. | B19: =feed19 -> Peanut extraction meal | C19: Biodiesel/Oilseed Ind. Peanut extraction meal | D19: 0.935 | E19: 789 | F19: 0.5602027883 | G19: 0.903 | K19: http://daten.ktbl.de/euagrobiogasbasis/navigation.do?selectedAction=Startseite | P19: Sugar Cane Bagasse | Q19: 44.8 | R19: 5.35 | S19: 39.55 | T19: 0.38 | U19: 0.01 | V19: 0.49 | W19: 0.024 | X19: 0.43 | Y19: 0.017 | Z19: 0.035
A20: Biodiesel/Oilseed Ind. | B20: =feed20 -> Rape cake (pressed cold) | C20: Biodiesel/Oilseed Ind. Rape cake (pressed cold) | D20: 0.18204 | E20: 488 | F20: 0.543 | G20: 0.205 | K20: CropGEN Database | P20: Sunflower Cake | Q20: 47.61 | R20: 8.33 | S20: 38.79 | T20: 5.04 | U20: 0.19 | V20: 0.09 | W20: 0.203 | X20: 0.202 | Y20: 0.111 | Z20: 0.326
A21: Biodiesel/Oilseed Ind. | B21: =feed21 -> Rapeseed cake/expeller | C21: Biodiesel/Oilseed Ind. Rapeseed cake/expeller | D21: 0.928 | E21: 850 | F21: 0.5823529412 | G21: 0.906 | K21: http://daten.ktbl.de/euagrobiogasbasis/navigation.do?selectedAction=Startseite | P21: Wheat Straw | Q21: 43.2 | R21: 5 | S21: 39.4 | T21: 0.61 | U21: 0.11 | V21: 0.078 | W21: 0.174 | X21: 0.576 | Y21: 0.084 | Z21: 0.045
A22: Biodiesel/Oilseed Ind. | B22: =feed22 -> Rapeseed extraction meal | C22: Biodiesel/Oilseed Ind. Rapeseed extraction meal | D22: 0.916 | E22: 792 | F22: 0.5555555556 | G22: 0.887 | K22: http://daten.ktbl.de/euagrobiogasbasis/navigation.do?selectedAction=Startseite | P22: Raw Hazelnut Skin | Q22: 45.7 | R22: 5.4 | S22: 47.8 | T22: 1.1 | U22: 0
A23: Biodiesel/Oilseed Ind. | B23: =feed23 -> Rapeseed oil | C23: Biodiesel/Oilseed Ind. Rapeseed oil | D23: 0.999 | E23: 1200 | F23: 0.68 | G23: 0.999 | P23: Fine Hazelnut Skin | Q23: 56.8 | R23: 6.8 | S23: 35.2 | T23: 1.2 | U23: 0
A24: Biodiesel/Oilseed Ind. | B24: =feed24 -> Raw Glycerol | C24: Biodiesel/Oilseed Ind. Raw Glycerol | D24: 0.947 | E24: 1164 | F24: 0.6451890034 | G24: 0.84 | K24: http://daten.ktbl.de/euagrobiogasbasis/navigation.do?selectedAction=Startseite | P24: Large Hazelnut Skin | Q24: 54.6 | R24: 7.2 | S24: 36.1 | T24: 2.2 | U24: 0
A25: Biodiesel/Oilseed Ind. | B25: =feed25 -> Safflower extraction meal | C25: Biodiesel/Oilseed Ind. Safflower extraction meal | D25: 0.937 | E25: 779 | F25: 0.5455712452 | G25: 0.91 | K25: http://daten.ktbl.de/euagrobiogasbasis/navigation.do?selectedAction=Startseite | P25: Wine Less | Q25: 7.4 | R25: 10.4 | S25: 82 | T25: 0.2 | U25: 0
A26: Biodiesel/Oilseed Ind. | B26: =feed26 -> Sesame extraction meal | C26: Biodiesel/Oilseed Ind. Sesame extraction meal | D26: 0.883 | E26: 792 | F26: 0.5631313131 | G26: 0.91 | K26: http://daten.ktbl.de/euagrobiogasbasis/navigation.do?selectedAction=Startseite | P26: Grape Pomace | Q26: 22.1 | R26: 8.6 | S26: 68.5 | T26: 0.8 | U26: 0
A27: Biodiesel/Oilseed Ind. | B27: =feed27 -> Soy beans seeds steam-heated | C27: Biodiesel/Oilseed Ind. Soy beans seeds steam-heated | D27: 0.947 | E27: 732.9 | F27: 0.636 | G27: 0.935 | P27: Rice Bran | Q27: 44.9 | R27: 6.9 | S27: 45.8 | T27: 2.4 | U27: 0
A28: Biodiesel/Oilseed Ind. | B28: =feed28 -> Soya Oil | C28: Biodiesel/Oilseed Ind. Soya Oil | D28: 0.999 | E28: 1225 | F28: 0.68 | G28: 0.999
A29: Biodiesel/Oilseed Ind. | B29: =feed29 -> Soybean extraction meal | C29: Biodiesel/Oilseed Ind. Soybean extraction meal | D29: 0.934 | E29: 791 | F29: 0.5638432364 | G29: 0.887 | K29: http://daten.ktbl.de/euagrobiogasbasis/navigation.do?selectedAction=Startseite
A30: Biodiesel/Oilseed Ind. | B30: =feed30 -> Sunflower cake cold pressed | C30: Biodiesel/Oilseed Ind. Sunflower cake cold pressed | D30: 0.919 | E30: 542.1 | F30: 0.628 | G30: 0.88
A31: Biodiesel/Oilseed Ind. | B31: =feed31 -> Sunflower extraction meal | C31: Biodiesel/Oilseed Ind. Sunflower extraction meal | D31: 0.93 | E31: 792 | F31: 0.553030303 | G31: 0.896 | K31: http://daten.ktbl.de/euagrobiogasbasis/navigation.do?selectedAction=Startseite
A32: Biodiesel/Oilseed Ind. | B32: =feed32 -> Sunflower Oil | C32: Biodiesel/Oilseed Ind. Sunflower Oil | D32: 0.999 | E32: 1225 | F32: 0.68 | G32: 0.999
A33: Biodiesel/Oilseed Ind. | B33: =feed33 -> Sunflower peelings | C33: Biodiesel/Oilseed Ind. Sunflower peelings | D33: 0.963 | E33: 447 | F33: 0.644295302 | G33: 0.903 | K33: http://daten.ktbl.de/euagrobiogasbasis/navigation.do?selectedAction=Startseite
A34: =title85 -> Crop Residues | B34: =feed34 -> Apple cake | C34: Crop Residues Apple cake | D34: 1 | E34: 454 | F34: 0.535 | G34: 0.165 | K34: http://daten.ktbl.de/euagrobiogasbasis/navigation.do?selectedAction=Startseite
A35: Crop Residues | B35: =feed35 -> Apple waste | C35: Crop Residues Apple waste | D35: 1 | E35: 437 | F35: 0.51 | G35: 0.12 | K35: http://daten.ktbl.de/euagrobiogasbasis/navigation.do?selectedAction=Startseite
A36: Crop Residues | B36: =feed36 -> Apricot fibre | C36: Crop Residues Apricot fibre | D36: 1 | E36: 477 | F36: 0.56 | G36: 0.177 | K36: http://daten.ktbl.de/euagrobiogasbasis/navigation.do?selectedAction=Startseite
A37: Crop Residues | B37: =feed37 -> Asparagus waste | C37: Crop Residues Asparagus waste | D37: 1 | E37: 460 | F37: 0.485 | G37: 0.095 | K37: http://daten.ktbl.de/euagrobiogasbasis/navigation.do?selectedAction=Startseite
A38: Crop Residues | B38: =feed38 -> Banana Residues | C38: Crop Residues Banana Residues | D38: 0.912 | E38: 292 | F38: 0.6 | G38: 0.128 | K38: CropGEN Database
A39: Crop Residues | B39: =feed39 -> Barley straw | C39: Crop Residues Barley straw | D39: 0.891 | E39: 767 | F39: 0.5149934811 | G39: 0.86 | K39: http://daten.ktbl.de/euagrobiogasbasis/navigation.do?selectedAction=Startseite
A40: Crop Residues | B40: =feed40 -> Cauliflower Residues | C40: Crop Residues Cauliflower Residues | D40: 0.846 | E40: 261 | F40: 0.6 | G40: 0.212 | K40: CropGEN Database
A41: Crop Residues | B41: =feed41 -> Cut flower wastes | C41: Crop Residues Cut flower wastes | D41: 0.92 | E41: 27 | F41: 0.55 | G41: 0.475 | K41: http://daten.ktbl.de/euagrobiogasbasis/navigation.do?selectedAction=Startseite
A42: Crop Residues | B42: =feed42 -> Eggplant Residues | C42: Crop Residues Eggplant Residues | D42: 0.926 | E42: 385 | F42: 0.6 | G42: 1 | K42: CropGEN Database
A43: Crop Residues | B43: =feed43 -> Feeding beet leaves, fresh | C43: Crop Residues Feeding beet leaves, fresh | D43: 0.795 | E43: 779 | F43: 0.5314505777 | G43: 0.17 | K43: CropGEN Database
A44: Crop Residues | B44: =feed44 -> Feeding beet leaves, silage | C44: Crop Residues Feeding beet leaves, silage | D44: 0.802 | E44: 782 | F44: 0.5332480818 | G44: 0.166 | K44: CropGEN Database
A45: Crop Residues | B45: =feed45 -> Field fodder hay | C45: Crop Residues Field fodder hay | D45: 0.811176 | E45: 267 | F45: 0.671 | G45: 0.876 | K45: CropGEN Database
A46: Crop Residues | B46: =feed46 -> Grape Residues | C46: Crop Residues Grape Residues | D46: 0.911 | E46: 232 | F46: 0.6 | G46: 0.916 | K46: CropGEN Database
A47: Crop Residues | B47: =feed47 -> Lemon Residues | C47: Crop Residues Lemon Residues | D47: 0.968 | E47: 473 | F47: 0.6 | G47: 0.2 | K47: CropGEN Database
A48: Crop Residues | B48: =feed48 -> Maize cobs | C48: Crop Residues Maize cobs | D48: 0.4 | E48: 465 | F48: 0.575 | G48: 0.209 | K48: CropGEN Database
A49: Crop Residues | B49: =feed49 -> Maize stover | C49: Crop Residues Maize stover | D49: 0.932 | E49: 360 | F49: 0.6 | G49: 0.896
A50: Crop Residues | B50: =feed50 -> Maize Straw | C50: Crop Residues Maize Straw | D50: 0.72 | E50: =AVERAGE(0.4,1)*1000 -> 700 | F50: 0.6 | G50: 0.86 | K50: http://www.giz.de/fachexpertise/downloads/gtz2010-en-biogas-assessment-kenya.pdf
A51: Crop Residues | B51: =feed51 -> Mango Resdiues | C51: Crop Residues Mango Resdiues | D51: 0.957 | E51: 469 | F51: 0.6 | G51: 1 | K51: http://daten.ktbl.de/euagrobiogasbasis/navigation.do?selectedAction=Startseite
A52: Crop Residues | B52: =feed52 -> Oat straw | C52: Crop Residues Oat straw | D52: 0.923 | E52: 765 | F52: 0.5150326797 | G52: 0.86 | K52: http://www.feedipedia.org/node/691
A53: Crop Residues | B53: =feed53 -> Orange Residues | C53: Crop Residues Orange Residues | D53: 0.935 | E53: 479 | F53: 0.6 | G53: 0.266 | K53: CropGEN Database
A54: Crop Residues | B54: =feed54 -> Pea straw | C54: Crop Residues Pea straw | D54: 0.926 | E54: 432 | F54: 0.6574074074 | G54: 0.86
A55: Crop Residues | B55: =feed55 -> Pineapple Residues | C55: Crop Residues Pineapple Residues | D55: 0.939 | E55: 356 | F55: =AVERAGE(60%,63%) -> 0.615 | G55: 0.196 | K55: CropGEN Database
A56: Crop Residues | B56: =feed56 -> Pineapple waste | C56: Crop Residues Pineapple waste | D56: 0.946 | E56: 568 | F56: 0.565 | G56: 0.196 | K56: CropGEN Database
A57: Crop Residues | B57: =feed57 -> Potatoe Residues | C57: Crop Residues Potatoe Residues | D57: 0.9 | E57: 267 | F57: 0.51 | G57: 0.19
A58: Crop Residues | B58: =feed58 -> Rapeseed straw | C58: Crop Residues Rapeseed straw | D58: 0.926 | E58: 458 | F58: 0.6572052402 | G58: 0.86 | K58: CropGEN Database
A59: Crop Residues | B59: =feed59 -> Rice Straw | C59: Crop Residues Rice Straw | D59: =AVERAGE(70%,95%) -> 0.825 | E59: =AVERAGE(0.55,0.62)*1000 -> 585 | F59: 0.6 | G59: =AVERAGE(25%,60%) -> 0.425 | K59: http://daten.ktbl.de/euagrobiogasbasis/navigation.do?selectedAction=Startseite
A60: Crop Residues | B60: =feed60 -> Rye straw | C60: Crop Residues Rye straw | D60: 0.923 | E60: 764 | F60: 0.5143979058 | G60: 0.86 | K60: CropGEN Database
A61: Crop Residues | B61: =feed61 -> Ryegrass straw | C61: Crop Residues Ryegrass straw | D61: 0.974 | E61: 546 | F61: 0.6446886447 | G61: 0.881
A62: Crop Residues | B62: =feed62 -> Spinach waste | C62: Crop Residues Spinach waste | D62: 0.97 | E62: 316 | F62: 0.6 | G62: 0.95 | K62: CropGEN Database
A63: Crop Residues | B63: =feed63 -> Other Straw | C63: Crop Residues Other Straw | D63: 0.93 | E63: 484 | F63: 0.5144628099 | G63: 0.643
A64: Crop Residues | B64: =feed64 -> Sugar Beet leaf | C64: Crop Residues Sugar Beet leaf | D64: 0.1872 | E64: 385 | F64: 0.497 | G64: 0.195 | K64: http://daten.ktbl.de/euagrobiogasbasis/navigation.do?selectedAction=Startseite
A65: Crop Residues | B65: =feed65 -> Sugar beet tops | C65: Crop Residues Sugar beet tops | D65: 0.08120454545 | E65: 292.2727273 | F65: 0.469 | G65: 0.1020909091 | K65: http://daten.ktbl.de/euagrobiogasbasis/navigation.do?selectedAction=Startseite
A66: Crop Residues | B66: =feed66 -> Sugar beet waste | C66: =$A66&" "&$B66 -> Crop Residues Sugar beet waste | D66: 0.099 | E66: 445 | F66: 0.62 | G66: 0.07
A67: Crop Residues | B67: =feed67 -> Sugar beet, leaves and tops, silage | C67: Crop Residues Sugar beet, leaves and tops, silage | D67: 0.801 | E67: 642 | F67: 0.5358255452 | G67: 0.134 | K67: CropGEN Database
A68: Crop Residues | B68: =feed68 -> Sugas beet leaf (fresh) | C68: Crop Residues Sugas beet leaf (fresh) | D68: 0.132492 | E68: 344 | F68: 0.489 | G68: 0.181 | K68: cropgen
A69: Crop Residues | B69: =feed69 -> Tangerine Residues | C69: Crop Residues Tangerine Residues | D69: 0.946 | E69: 471 | F69: 0.6 | G69: 1 | K69: http://daten.ktbl.de/euagrobiogasbasis/navigation.do?selectedAction=Startseite | L69: https://books.google.com.co/books?id=UbcEAAAAYAAJ&pg=PA189&lpg=PA189&dq=dry+matter+%25+%2B+%22grape+vine%22&source=bl&ots=fBZH0lF3BF&sig=TQMkv4Sqa0cXu1lYa8-klxQ91G0&hl=es-419&sa=X&ei=SFPnVI7cLouqgwSJsYPICA&ved=0CBwQ6AEwADgK#v=onepage&q=dry%20matter%20%25%20%2B%20%22grape%20vine%22&f=false
A70: Crop Residues | B70: =feed70 -> Tea Waste | C70: Crop Residues Tea Waste | D70: 0.7566 | E70: 358 | F70: 0.55 | G70: 0.227 | K70: http://daten.ktbl.de/euagrobiogasbasis/navigation.do?selectedAction=Startseite
A71: Crop Residues | B71: =feed71 -> Tomatoe Residues | C71: Crop Residues Tomatoe Residues | D71: 0.953 | E71: 298 | F71: 0.6 | G71: 0.95 | K71: http://daten.ktbl.de/euagrobiogasbasis/navigation.do?selectedAction=Startseite
A72: Crop Residues | B72: =feed72 -> Turnip Residues | C72: Crop Residues Turnip Residues | D72: 0.844 | E72: 314 | F72: 0.6 | G72: 0.95
A73: Crop Residues | B73: =feed73 -> Turnips tops, fresh | C73: Crop Residues Turnips tops, fresh | D73: 0.799 | E73: 520 | F73: 0.525 | G73: 0.111 | K73: http://daten.ktbl.de/euagrobiogasbasis/navigation.do?selectedAction=Startseite
A74: Crop Residues | B74: =feed74 -> Wheat straw | C74: Crop Residues Wheat straw | D74: 0.8946726667 | E74: 342.5666667 | F74: 0.5679277108 | G74: 0.7236666667 | K74: http://daten.ktbl.de/euagrobiogasbasis/navigation.do?selectedAction=Startseite
A75: Crop Residues | B75: =feed75 -> Cocoa Shell | C75: Crop Residues Cocoa Shell | D75: 0.874 | E75: 195 | F75: 0.5 | G75: 0.87 | K75: http://dx.doi.org/10.4236/sgre.2014.56012
A76: =title185 -> Dairy-milk ind. | B76: =feed76 -> Butter milk fresh | C76: Dairy-milk ind. Butter milk fresh | D76: 0.923 | E76: 736.2 | F76: 0.592 | G76: 0.08 | K76: http://daten.ktbl.de/euagrobiogasbasis/navigation.do?selectedAction=Startseite
A77: Dairy-milk ind. | B77: =feed77 -> Cheese waste | C77: Dairy-milk ind. Cheese waste | D77: 0.94 | E77: 904 | F77: 0.675 | G77: 0.793 | K77: CropGEN Database
A78: Dairy-milk ind. | B78: =feed78 -> Dairy cow slurry | C78: Dairy-milk ind. Dairy cow slurry | D78: 0.85 | E78: 280 | F78: 0.55 | G78: 0.085 | K78: http://daten.ktbl.de/euagrobiogasbasis/navigation.do?selectedAction=Startseite
A79: Dairy-milk ind. | B79: =feed79 -> Dairy slurry inc. fodder remains | C79: Dairy-milk ind. Dairy slurry inc. fodder remains | D79: 0.85 | E79: 350 | F79: 0.55 | G79: 0.085 | K79: CropGEN Database
A80: Dairy-milk ind. | B80: =feed80 -> Milk Whey | C80: Dairy-milk ind. Milk Whey | D80: 0.1192 | E80: 1000 | F80: =AVERAGE(65.6,68.7,62.4,63.4,62.6,65.3)/100 -> 0.6466666667 | G80: 0.06 | K80: CropGEN Database
A81: Dairy-milk ind. | B81: =feed81 -> Skimmed milk dry | C81: Dairy-milk ind. Skimmed milk dry | D81: 0.917 | E81: 728.6 | F81: 0.577 | G81: 0.941 | K81: CropGEN Database
A82: Dairy-milk ind. | B82: =feed82 -> Skimmed milk fresh | C82: Dairy-milk ind. Skimmed milk fresh | D82: 0.918 | E82: 730 | F82: 0.577 | G82: 0.086 | K82: http://daten.ktbl.de/euagrobiogasbasis/navigation.do?selectedAction=Startseite
A83: Dairy-milk ind. | B83: =feed83 -> Sour whey fresh | C83: Dairy-milk ind. Sour whey fresh | D83: 0.888 | E83: 742.3 | F83: 0.535 | G83: 0.056 | K83: CropGEN Database
A84: Dairy-milk ind. | B84: =feed84 -> Whole cows milk fresh | C84: Dairy-milk ind. Whole cows milk fresh | D84: 0.947 | E84: 899.1 | F84: 0.628 | G84: 0.135
A85: =title120 -> Energy Crops | B85: =feed85 -> Barley | C85: Energy Crops Barley | D85: 0.9259833333 | E85: 461.6666667 | F85: 0.6261666667 | G85: 0.3012833333
A86: Energy Crops | B86: =feed86 -> Barley grain | C86: Energy Crops Barley grain | D86: 0.972 | E86: 684.1 | F86: 0.527 | G86: 0.87
A87: Energy Crops | B87: =feed87 -> Forage sorghum | C87: Energy Crops Forage sorghum | D87: 0.9193 | E87: 295 | F87: 0.569 | G87: 0.2705
A88: Energy Crops | B88: =feed88 -> Grain sorghum | C88: Energy Crops Grain sorghum | D88: 0.9538 | E88: 372 | F88: 0.596 | G88: 0.4669 | K88: http://daten.ktbl.de/euagrobiogasbasis/navigation.do?selectedAction=Startseite
A89: Energy Crops | B89: =feed89 -> Grass Clipings | C89: Energy Crops Grass Clipings | D89: 0.73 | E89: 185 | F89: =80/185 -> 0.4324324324 | G89: 0.48 | K89: http://daten.ktbl.de/euagrobiogasbasis/navigation.do?selectedAction=Startseite
A90: Energy Crops | B90: =feed90 -> Grass fresh | C90: Energy Crops Grass fresh | D90: 0.189267 | E90: 330 | F90: 0.554 | G90: 0.211 | K90: http://daten.ktbl.de/euagrobiogasbasis/navigation.do?selectedAction=Startseite
A91: Energy Crops | B91: =feed91 -> Green maize | C91: Energy Crops Green maize | D91: 0.947 | E91: 575.6 | F91: 0.6 | G91: 0.24
A92: Energy Crops | B92: =feed92 -> Maize | C92: Energy Crops Maize | D92: 0.399916129 | E92: 433.5806452 | F92: 0.589 | G92: 0.3904677419
A93: Energy Crops | B93: =feed93 -> Maize grain dry | C93: Energy Crops Maize grain dry | D93: 0.983 | E93: 690.2 | F93: 0.528 | G93: 0.87
A94: Energy Crops | B94: =feed94 -> Oat grain | C94: Energy Crops Oat grain | D94: 0.967 | E94: 595.6 | F94: 0.541 | G94: 0.87
A95: Energy Crops | B95: =feed95 -> Rapeseed | C95: Energy Crops Rapeseed | D95: 0.926 | E95: 1060 | F95: =691/1060 -> 0.6518867925 | G95: 0.88 | K95: http://www.fao.org/docrep/004/x6512e/x6512e09.htm
A96: Energy Crops | B96: =feed96 -> Reed, cattail, fresh | C96: Energy Crops Reed, cattail, fresh | D96: 0.931 | E96: 315 | F96: 0.5111111111 | G96: 0.588
A97: Energy Crops | B97: =feed97 -> Rice | C97: Energy Crops Rice | D97: 0.794 | E97: 330 | F97: 0.6 | G97: 0.88
A98: Energy Crops | B98: =feed98 -> Seaweed, fresh | C98: Energy Crops Seaweed, fresh | D98: 0.702 | E98: 760 | F98: 0.5118421053 | G98: 0.151
A99: Energy Crops | B99: =feed99 -> Sorghum | C99: Energy Crops Sorghum | D99: 0.52502046 | E99: 349.625 | F99: 0.467 | G99: 0.54254 | K99: http://daten.ktbl.de/euagrobiogasbasis/navigation.do?selectedAction=Startseite
A100: Energy Crops | B100: =feed100 -> Sorghum grains | C100: Energy Crops Sorghum grains | D100: 0.979 | E100: 779 | F100: =410/779 -> 0.5263157895 | G100: 0.878 | K100: CropGEN Database
A101: Energy Crops | B101: =feed101 -> Sugar beet | C101: Energy Crops Sugar beet | D101: 0.43344 | E101: 395.2 | F101: 0.6166666667 | G101: 0.1678 | K101: http://biomethaneregions.cra.wallonie.be/img/download/TrainingTheTrainers_UK_Feedstocks_and_Pretreatments.pdf
A102: Energy Crops | B102: =feed102 -> Sunflower | C102: Energy Crops Sunflower | D102: 0.966 | E102: 699.4 | F102: 0.635 | G102: 0.88 | K102: CropGEN Database
A103: Energy Crops | B103: =feed103 -> Sunflowers green start of flowering | C103: Energy Crops Sunflowers green start of flowering | D103: 0.878 | E103: 537.3 | F103: 0.534 | G103: 0.16 | K103: CropGEN Database
A104: Energy Crops | B104: =feed104 -> Sweet Sorghum | C104: Energy Crops Sweet Sorghum | D104: 0.9058333333 | E104: 395.3333333 | F104: 0.585 | G104: 0.03348333333 | K104: http://biomethaneregions.cra.wallonie.be/img/download/TrainingTheTrainers_UK_Feedstocks_and_Pretreatments.pdf
A105: Energy Crops | B105: =feed105 -> Triticale | C105: Energy Crops Triticale | D105: 0.669917847 | E105: 454.5 | F105: 0.649 | G105: 0.4554666667 | K105: CropGEN Database
A106: Energy Crops | B106: =feed106 -> Triticale grains | C106: Energy Crops Triticale grains | D106: 0.951 | E106: 752 | F106: 0.5066489362 | G106: 0.871 | K106: http://biomethaneregions.cra.wallonie.be/img/download/TrainingTheTrainers_UK_Feedstocks_and_Pretreatments.pdf
A107: Energy Crops | B107: =feed107 -> Wheat | C107: Energy Crops Wheat | D107: 0.9201088889 | E107: 298 | F107: 0.562525 | G107: 0.2218555556 | K107: CropGEN Database
A108: Energy Crops | B108: =feed108 -> Wheat grain | C108: Energy Crops Wheat grain | D108: 0.981 | E108: 700.9 | F108: 0.528 | G108: 0.87 | K108: http://biomethaneregions.cra.wallonie.be/img/download/TrainingTheTrainers_UK_Feedstocks_and_Pretreatments.pdf
A109: Energy Crops | B109: =feed109 -> White fir | C109: Energy Crops White fir | D109: 0.985 | E109: 42 | F109: 0.6 | G109: 0.947 | K109: http://biomethaneregions.cra.wallonie.be/img/download/TrainingTheTrainers_UK_Feedstocks_and_Pretreatments.pdf
A110: Energy Crops | B110: =feed110 -> Willow | C110: Energy Crops Willow | D110: 0.49 | E110: 240.8333333 | F110: 0.6 | G110: 0.6 | K110: http://biomethaneregions.cra.wallonie.be/img/download/TrainingTheTrainers_UK_Feedstocks_and_Pretreatments.pdf
A111: Energy Crops | B111: =feed111 -> Winter Barley | C111: Energy Crops Winter Barley | D111: 0.36174769 | E111: 292 | F111: 0.6 | G111: 0.3794 | K111: http://daten.ktbl.de/euagrobiogasbasis/navigation.do?selectedAction=Startseite
A112: =title186 -> Eth-Sugar-Starch Ind. | B112: =feed112 -> Maize Grain Silage (Crimped seed) | C112: Eth-Sugar-Starch Ind. Maize Grain Silage (Crimped seed) | D112: 0.98 | E112: 708.4 | F112: 0.526 | G112: 0.65 | K112: CropGEN Database
A113: Eth-Sugar-Starch Ind. | B113: =feed113 -> Maize Silage | C113: Eth-Sugar-Starch Ind. Maize Silage | D113: 0.2842224 | E113: 367.8 | F113: 0.5295 | G113: 0.2996 | K113: http://daten.ktbl.de/euagrobiogasbasis/navigation.do?selectedAction=Startseite
A114: Eth-Sugar-Starch Ind. | B114: =feed114 -> Miscanthus silage | C114: Eth-Sugar-Starch Ind. Miscanthus silage | D114: 0.285088 | E114: 219 | F114: 0.467 | G114: 0.302 | K114: CropGEN Database
A115: Eth-Sugar-Starch Ind. | B115: =feed115 -> Miscanthus silage | C115: Eth-Sugar-Starch Ind. Miscanthus silage | D115: 0.966 | E115: 346 | F115: =187/346 -> 0.5404624277 | G115: 0.348 | K115: CropGEN Database
A116: Eth-Sugar-Starch Ind. | B116: =feed116 -> Sugar beet leaves, silage | C116: Eth-Sugar-Starch Ind. Sugar beet leaves, silage | D116: 0.748 | E116: 783 | F116: 0.5325670498 | G116: 0.154 | K116: CropGEN Database
A117: Eth-Sugar-Starch Ind. | B117: =feed117 -> Sugar beet silage | C117: Eth-Sugar-Starch Ind. Sugar beet silage | D117: 0.172224 | E117: 235 | F117: 0.469 | G117: 0.234 | K117: Cropgen
A118: Eth-Sugar-Starch Ind. | B118: =feed118 -> Wheat strip waste | C118: Eth-Sugar-Starch Ind. Wheat strip waste | D118: 0.938 | E118: 854 | F118: 0.5503512881 | G118: 0.843 | K118: CropGEN Database
A119: Eth-Sugar-Starch Ind. | B119: =feed119 -> Apple Marc | C119: Eth-Sugar-Starch Ind. Apple Marc | D119: 0.86 | E119: 750 | F119: 0.6 | G119: 0.25 | K119: CropGEN Database
A120: Eth-Sugar-Starch Ind. | B120: =feed120 -> Maize gluten | C120: Eth-Sugar-Starch Ind. Maize gluten | D120: 0.979 | E120: 673.9 | F120: 0.66 | G120: 0.905 | K120: http://daten.ktbl.de/euagrobiogasbasis/navigation.do?selectedAction=Startseite
A121: Eth-Sugar-Starch Ind. | B121: =feed121 -> Maize gluten feed | C121: Eth-Sugar-Starch Ind. Maize gluten feed | D121: 0.944 | E121: 792 | F121: 0.5454545455 | G121: 0.896 | K121: CropGEN Database
A122: Eth-Sugar-Starch Ind. | B122: =feed122 -> Mash from distillations | C122: Eth-Sugar-Starch Ind. Mash from distillations | D122: =AVERAGE(65%,85%) -> 0.75 | E122: =420 -> 420 | F122: 0.6 | G122: =AVERAGE(2%,8%) -> 0.05 | K122: http://biomethaneregions.cra.wallonie.be/img/download/TrainingTheTrainers_UK_Feedstocks_and_Pretreatments.pdf
A123: Eth-Sugar-Starch Ind. | B123: =feed123 -> Molasses | C123: Eth-Sugar-Starch Ind. Molasses | D123: 0.897 | E123: 709.2 | F123: 0.522 | G123: 0.77 | K123: CropGEN Database
A124: Eth-Sugar-Starch Ind. | B124: =feed124 -> Potato chips | C124: Eth-Sugar-Starch Ind. Potato chips | D124: 0.951 | E124: 758 | F124: 0.5105540897 | G124: 0.883 | K124: http://biomethaneregions.cra.wallonie.be/img/download/TrainingTheTrainers_UK_Feedstocks_and_Pretreatments.pdf
A125: Eth-Sugar-Starch Ind. | B125: =feed125 -> Potato flakes | C125: Eth-Sugar-Starch Ind. Potato flakes | D125: 0.948 | E125: 757 | F125: 0.5112285337 | G125: 0.88 | K125: http://biomethaneregions.cra.wallonie.be/img/download/TrainingTheTrainers_UK_Feedstocks_and_Pretreatments.pdf
A126: Eth-Sugar-Starch Ind. | B126: =feed126 -> Potato press water | C126: Eth-Sugar-Starch Ind. Potato press water | D126: 0.72 | E126: 575 | F126: 0.6886956522 | G126: 0.0255 | K126: CropGEN Database
A127: Eth-Sugar-Starch Ind. | B127: =feed127 -> Potato pulp, dried | C127: Eth-Sugar-Starch Ind. Potato pulp, dried | D127: 0.923 | E127: 762 | F127: 0.5196850394 | G127: 0.883 | K127: CropGEN Database
A128: Eth-Sugar-Starch Ind. | B128: =feed128 -> Potato starch | C128: Eth-Sugar-Starch Ind. Potato starch | D128: 0.931 | E128: 759 | F128: 0.5151515152 | G128: 0.831 | K128: http://daten.ktbl.de/euagrobiogasbasis/navigation.do?selectedAction=Startseite
A129: Eth-Sugar-Starch Ind. | B129: =feed129 -> Residue from production of sweets | C129: Eth-Sugar-Starch Ind. Residue from production of sweets | D129: 0.867 | E129: 598 | F129: 0.6287625418 | G129: 0.868 | K129: CropGEN Database
A130: Eth-Sugar-Starch Ind. | B130: =feed130 -> Sugar beet chips | C130: =$A130&" "&$B130 -> Eth-Sugar-Starch Ind. Sugar beet chips | D130: 0.946 | E130: 747 | F130: 0.5756358768 | G130: 0.295 | K130: http://biomethaneregions.cra.wallonie.be/img/download/TrainingTheTrainers_UK_Feedstocks_and_Pretreatments.pdf
A131: Eth-Sugar-Starch Ind. | B131: =feed131 -> Sugar beet dried & shredded | C131: Eth-Sugar-Starch Ind. Sugar beet dried & shredded | D131: 0.946 | E131: 685.8 | F131: 0.506 | G131: 0.916 | K131: CropGEN Database
A132: Eth-Sugar-Starch Ind. | B132: =feed132 -> Sugar beet fresh | C132: Eth-Sugar-Starch Ind. Sugar beet fresh | D132: 0.919 | E132: 696 | F132: 0.508 | G132: 0.23 | K132: CropGEN Database
A133: Eth-Sugar-Starch Ind. | B133: =feed133 -> Sugar beet melasse | C133: Eth-Sugar-Starch Ind. Sugar beet melasse | D133: 0.863 | E133: 760 | F133: 0.5197368421 | G133: 0.788 | K133: CropGEN Database
A134: Eth-Sugar-Starch Ind. | B134: =feed134 -> Sugar beet pulp, dried | C134: Eth-Sugar-Starch Ind. Sugar beet pulp, dried | D134: 0.921 | E134: 761 | F134: 0.5151116951 | G134: 0.9
A135: Eth-Sugar-Starch Ind. | B135: =feed135 -> Sugar beet tops clean | C135: Eth-Sugar-Starch Ind. Sugar beet tops clean | D135: 0.835 | E135: 637 | F135: 0.537 | G135: 0.16
A136: Eth-Sugar-Starch Ind. | B136: =feed136 -> Sugar filter cake | C136: Eth-Sugar-Starch Ind. Sugar filter cake | D136: 0.7 | E136: 475 | F136: 0.55 | G136: 0.25 | K136: http://daten.ktbl.de/euagrobiogasbasis/navigation.do?selectedAction=Startseite
A137: Eth-Sugar-Starch Ind. | B137: =feed137 -> Sugar for feeding | C137: Eth-Sugar-Starch Ind. Sugar for feeding | D137: 0.992 | E137: 751 | F137: 0.500665779 | G137: 0.986
A138: =title187 -> Food Process. Res. | B138: =feed138 -> Apple pulp | C138: Food Process. Res. Apple pulp | D138: 1 | E138: 308 | F138: 0.6 | G138: 0.179 | K138: Cropgen
A139: Food Process. Res. | B139: =feed139 -> Apple slurry | C139: Food Process. Res. Apple slurry | D139: 1 | E139: 281 | F139: 0.6 | G139: 0.54 | K139: http://daten.ktbl.de/euagrobiogasbasis/navigation.do?selectedAction=Startseite
A140: Food Process. Res. | B140: =feed140 -> Asparagus peels | C140: Food Process. Res. Asparagus peels | D140: 1 | E140: 219 | F140: 0.6 | G140: 0.95 | K140: http://daten.ktbl.de/euagrobiogasbasis/navigation.do?selectedAction=Startseite
A141: Food Process. Res. | B141: =feed141 -> Baking wastes | C141: Food Process. Res. Baking wastes | D141: 0.971 | E141: 764 | F141: 0.528 | G141: 0.877 | K141: CropGEN Database
A142: Food Process. Res. | B142: =feed142 -> Banana peels | C142: Food Process. Res. Banana peels | D142: 0.9101428571 | E142: 298.8571429 | F142: 0.6 | G142: 0.95 | K142: CropGEN Database
A143: Food Process. Res. | B143: =feed143 -> Barley fresh mass | C143: Food Process. Res. Barley fresh mass | D143: 0.212472 | E143: 474.5 | F143: 0.625 | G143: 0.231 | K143: CropGEN Database
A144: Food Process. Res. | B144: =feed144 -> Barley silage | C144: Food Process. Res. Barley silage | D144: 0.290433 | E144: 572 | F144: 0.655 | G144: 0.3175 | K144: http://daten.ktbl.de/euagrobiogasbasis/navigation.do?selectedAction=Startseite
A145: Food Process. Res. | B145: =feed145 -> Field fodder silage | C145: Food Process. Res. Field fodder silage | D145: 0.113284 | E145: 331 | F145: 0.694 | G145: 0.127 | K145: CropGEN Database
A146: Food Process. Res. | B146: =feed146 -> Hemp press cake | C146: Food Process. Res. Hemp press cake | D146: 0.83142 | E146: 77 | F146: 0.652 | G146: 0.894 | K146: CropGEN Database
A147: Food Process. Res. | B147: =feed147 -> Hemp silage | C147: Food Process. Res. Hemp silage | D147: 0.24464 | E147: 159 | F147: 0.469 | G147: 0.278
A148: Food Process. Res. | B148: =feed148 -> Loose skinned mandarin | C148: Food Process. Res. Loose skinned mandarin | D148: 0.9504 | E148: 523.6 | F148: 0.6 | G148: 0.95 | K148: Cropgen
A149: Food Process. Res. | B149: =feed149 -> Maize strip waste | C149: Food Process. Res. Maize strip waste | D149: 0.948 | E149: 930 | F149: 0.5075268817 | G149: 0.274
A150: Food Process. Res. | B150: =feed150 -> Mango Peels | C150: Food Process. Res. Mango Peels | D150: 0.961 | E150: 419.5714286 | F150: 0.6 | G150: 0.95 | K150: http://daten.ktbl.de/euagrobiogasbasis/navigation.do?selectedAction=Startseite
A151: Food Process. Res. | B151: =feed151 -> Rapeseed strip waste | C151: Food Process. Res. Rapeseed strip waste | D151: 0.913 | E151: 627 | F151: 0.5167464115 | G151: 0.901 | K151: CropGEN Database
A152: Food Process. Res. | B152: =feed152 -> Reed, cattail, silage | C152: Food Process. Res. Reed, cattail, silage | D152: 0.951 | E152: 384 | F152: 0.4322916667 | G152: 0.772
A153: Food Process. Res. | B153: =feed153 -> Bakery residues | C153: Food Process. Res. Bakery residues | D153: 0.981 | E153: 791 | F153: 0.5347661188 | G153: 0.882 | K153: http://biomethaneregions.cra.wallonie.be/img/download/TrainingTheTrainers_UK_Feedstocks_and_Pretreatments.pdf
A154: Food Process. Res. | B154: =feed154 -> Barley bran | C154: Food Process. Res. Barley bran | D154: 0.942 | E154: 788 | F154: 0.5329949239 | G154: 0.893 | K154: http://daten.ktbl.de/euagrobiogasbasis/navigation.do?selectedAction=Startseite
A155: Food Process. Res. | B155: =feed155 -> Barley feeding meal | C155: Food Process. Res. Barley feeding meal | D155: 0.957 | E155: 787 | F155: 0.5336721728 | G155: 0.88 | K155: http://daten.ktbl.de/euagrobiogasbasis/navigation.do?selectedAction=Startseite
A156: Food Process. Res. | B156: =feed156 -> Bran and cereal strip waste (70:30), fresh | C156: Food Process. Res. Bran and cereal strip waste (70:30), fresh | D156: 0.913075 | E156: 455.5 | F156: 0.4615705128 | G156: 0.95 | K156: http://daten.ktbl.de/euagrobiogasbasis/navigation.do?selectedAction=Startseite
A157: Food Process. Res. | B157: =feed157 -> Cereal Mash | C157: Food Process. Res. Cereal Mash | D157: =AVERAGE(90%,83%) -> 0.865 | E157: 900 | F157: 0.6 | G157: =AVERAGE(6%,8%) -> 0.07 | K157: http://daten.ktbl.de/euagrobiogasbasis/navigation.do?selectedAction=Startseite
A158: Food Process. Res. | B158: =feed158 -> Cereal strip waste, fresh | C158: Food Process. Res. Cereal strip waste, fresh | D158: 0.939 | E158: 714 | F158: 0.4901960784 | G158: 0.889 | K158: http://daten.ktbl.de/euagrobiogasbasis/navigation.do?selectedAction=Startseite
A159: Food Process. Res. | B159: =feed159 -> Chip fat | C159: Food Process. Res. Chip fat | D159: 0.999 | E159: 320 | F159: 0.471875 | G159: 0.997 | K159: http://daten.ktbl.de/euagrobiogasbasis/navigation.do?selectedAction=Startseite
A160: Food Process. Res. | B160: =feed160 -> Coffee pulp | C160: Food Process. Res. Coffee pulp | D160: 0.186 | E160: 390 | F160: 0.63 | G160: 0.918 | K160: http://daten.ktbl.de/euagrobiogasbasis/navigation.do?selectedAction=Startseite
A161: Food Process. Res. | B161: =feed161 -> Dairy industry wastes | C161: Food Process. Res. Dairy industry wastes | D161: 0.82 | E161: 381 | F161: 0.7 | G161: 0.05
A162: Food Process. Res. | B162: =feed162 -> Discarded wheat flour | C162: Food Process. Res. Discarded wheat flour | D162: 0.96 | E162: 700 | F162: 0.6 | G162: 0.88
A163: Food Process. Res. | B163: =feed163 -> Field bean grain | C163: Food Process. Res. Field bean grain | D163: 0.961 | E163: 696.2 | F163: 0.561 | G163: 0.87 | K163: http://daten.ktbl.de/euagrobiogasbasis/navigation.do?selectedAction=Startseite
A164: Food Process. Res. | B164: =feed164 -> Grain Peas | C164: Food Process. Res. Grain Peas | D164: 0.963 | E164: 693.9 | F164: 0.55 | G164: 0.87 | K164: http://daten.ktbl.de/euagrobiogasbasis/navigation.do?selectedAction=Startseite
A165: Food Process. Res. | B165: =feed165 -> Maize , broken | C165: Food Process. Res. Maize , broken | D165: 0.99 | E165: 824 | F165: 0.4587378641 | G165: 0.917
A166: Food Process. Res. | B166: =feed166 -> Maize grain powder | C166: Food Process. Res. Maize grain powder | D166: 0.981 | E166: 487 | F166: 0.4702258727 | G166: 0.914 | K166: http://www.giz.de/fachexpertise/downloads/gtz2010-en-biogas-assessment-kenya.pdf
A167: Food Process. Res. | B167: =feed167 -> Malt coffee marc | C167: Food Process. Res. Malt coffee marc | D167: 0.205936 | E167: 309 | F167: 0.59 | G167: 0.211 | K167: http://daten.ktbl.de/euagrobiogasbasis/navigation.do?selectedAction=Startseite
A168: Food Process. Res. | B168: =feed168 -> Medical tea (Production waste) | C168: Food Process. Res. Medical tea (Production waste) | D168: 0.14592 | E168: 166 | F168: 0.505 | G168: 0.19 | K168: http://daten.ktbl.de/euagrobiogasbasis/navigation.do?selectedAction=Startseite
A169: Food Process. Res. | B169: =feed169 -> Mixed grain | C169: Food Process. Res. Mixed grain | D169: 0.972 | E169: 682.5 | F169: 0.527 | G169: 0.87 | K169: http://daten.ktbl.de/euagrobiogasbasis/navigation.do?selectedAction=Startseite
A170: =title187 -> Food Process. Res. | B170: =feed170 -> Oat bran | C170: Food Process. Res. Oat bran | D170: 0.946 | E170: 782 | F170: 0.5268542199 | G170: 0.91 | K170: http://daten.ktbl.de/euagrobiogasbasis/navigation.do?selectedAction=Startseite
A171: Food Process. Res. | B171: =feed171 -> Oats fodder flour | C171: Food Process. Res. Oats fodder flour | D171: 0.974 | E171: 732.6 | F171: 0.549 | G171: 0.909 | K171: http://daten.ktbl.de/euagrobiogasbasis/navigation.do?selectedAction=Startseite
A172: Food Process. Res. | B172: =feed172 -> Old bread | C172: Food Process. Res. Old bread | D172: 0.972 | E172: 763 | F172: 0.528 | G172: 0.65
A173: Food Process. Res. | B173: =feed173 -> Old chip fat | C173: Food Process. Res. Old chip fat | D173: 0.97 | E173: 1000 | F173: 0.6 | G173: 0.97 | K173: http://daten.ktbl.de/euagrobiogasbasis/navigation.do?selectedAction=Startseite
A174: Food Process. Res. | B174: =feed174 -> Onion Residues | C174: Food Process. Res. Onion Residues | D174: 0.882 | E174: 400 | F174: 0.6 | G174: 0.132 | K174: http://daten.ktbl.de/euagrobiogasbasis/navigation.do?selectedAction=Startseite
A175: Food Process. Res. | B175: =feed175 -> Other cereals straw | C175: Food Process. Res. Other cereals straw | D175: =AVERAGE(89%,94%) -> 0.915 | E175: =AVERAGE(0.2,0.5)*1000 -> 350 | F175: 0.6 | G175: 0.86 | K175: http://www.feedipedia.org/node/549
A176: Food Process. Res. | B176: =feed176 -> Potato flakes | C176: Food Process. Res. Potato flakes | D176: 0.947 | E176: 667.6 | F176: 0.506 | G176: 0.88 | K176: CropGEN Database
A177: Food Process. Res. | B177: =feed177 -> Potato peeling wastes roughly | C177: Food Process. Res. Potato peeling wastes roughly | D177: 0.938 | E177: 655.9 | F177: 0.514 | G177: 0.11
A178: Food Process. Res. | B178: =feed178 -> Potato Pulp/Peelings | C178: Food Process. Res. Potato Pulp/Peelings | D178: =AVERAGE(85%,96%) -> 0.905 | E178: =AVERAGE(0.3,0.9)*1000 -> 600 | F178: 0.6 | G178: =AVERAGE(6%,18%) -> 0.12
A179: Food Process. Res. | B179: =feed179 -> Potatoes amniotic fluid (Starch production) | C179: Food Process. Res. Potatoes amniotic fluid (Starch production) | D179: 0.022015 | E179: 516 | F179: 0.71 | G179: 0.035
A180: Food Process. Res. | B180: =feed180 -> Potatoes mash | C180: Food Process. Res. Potatoes mash | D180: 0.039997 | E180: 366 | F180: 0.544 | G180: 0.047 | K180: http://daten.ktbl.de/euagrobiogasbasis/navigation.do?selectedAction=Startseite
A181: Food Process. Res. | B181: =feed181 -> Potatoes pulp | C181: Food Process. Res. Potatoes pulp | D181: 0.17993 | E181: 278 | F181: 0.58 | G181: 0.19 | K181: http://daten.ktbl.de/euagrobiogasbasis/navigation.do?selectedAction=Startseite | L181: http://www.nt.gov.au/d/Primary_Industry/Content/File/horticulture/IS31_dry_matter_testing_of_mangoes.pdf
A182: Food Process. Res. | B182: =feed182 -> Potatoes shredder | C182: Food Process. Res. Potatoes shredder | D182: 0.185322 | E182: 411 | F182: 0.565 | G182: 0.201 | K182: CropGEN Database
A183: Food Process. Res. | B183: =feed183 -> Potatoes waste water | C183: Food Process. Res. Potatoes waste water | D183: 0.013008 | E183: 274 | F183: 0.65 | G183: 0.016 | K183: CropGEN Database
A184: Food Process. Res. | B184: =feed184 -> Processing waste (filtration cake, pulp) | C184: Food Process. Res. Processing waste (filtration cake, pulp) | D184: 0.9 | E184: 320 | F184: 0.51875 | G184: 0.74
A185: Food Process. Res. | B185: =feed185 -> Pulp | C185: Food Process. Res. Pulp | D185: 0.9 | E185: =AVERAGE(0.65,0.75)*1000 -> 700 | F185: 0.6 | G185: 0.13 | K185: http://daten.ktbl.de/euagrobiogasbasis/navigation.do?selectedAction=Startseite
A186: Food Process. Res. | B186: =feed186 -> Rice Bran | C186: Food Process. Res. Rice Bran | D186: =AVERAGE(70%,95%) -> 0.825 | E186: =0.1*1000 -> 100 | F186: 0.6 | G186: 0.9
A187: Food Process. Res. | B187: =feed187 -> Rice feeding meal | C187: Food Process. Res. Rice feeding meal | D187: 0.877 | E187: 855 | F187: 0.5707602339 | G187: 0.896
A188: Food Process. Res. | B188: =feed188 -> Rolled oats | C188: Food Process. Res. Rolled oats | D188: 0.981 | E188: 694.2 | F188: 0.535 | G188: 0.91
A189: Food Process. Res. | B189: =feed189 -> Rye bran | C189: Food Process. Res. Rye bran | D189: 0.944 | E189: 784 | F189: 0.5318877551 | G189: 0.88 | K189: https://www.ecn.nl/phyllis2/Browse/Standard/ECN-Phyllis#onion
A190: Food Process. Res. | B190: =feed190 -> Rye feeding meal | C190: Food Process. Res. Rye feeding meal | D190: 0.964 | E190: 782 | F190: 0.5319693095 | G190: 0.88
A191: Food Process. Res. | B191: =feed191 -> Silage seep water | C191: Food Process. Res. Silage seep water | D191: 0.1068 | E191: 492 | F191: 0.58 | G191: 0.15
A192: Food Process. Res. | B192: =feed192 -> Succory chaff | C192: Food Process. Res. Succory chaff | D192: 0.667 | E192: 710 | F192: 0.4704225352 | G192: 0.197
A193: Food Process. Res. | B193: =feed193 -> Succory mush | C193: Food Process. Res. Succory mush | D193: 0.667 | E193: 771 | F193: 0.4565499351 | G193: 0.197
A194: Food Process. Res. | B194: =feed194 -> Vegetable wastes | C194: =$A194&" "&$B194 -> Food Process. Res. Vegetable wastes | D194: 0.76 | E194: 500 | F194: 0.56 | G194: 0.15 | K194: CropGEN Database
A195: Food Process. Res. | B195: =feed195 -> Wheat bran | C195: Food Process. Res. Wheat bran | D195: 0.94 | E195: 820 | F195: 0.4707317073 | G195: 0.885 | K195: CropGEN Database
A196: Food Process. Res. | B196: =feed196 -> Wheat chaff | C196: Food Process. Res. Wheat chaff | D196: 0.865 | E196: 340.9 | F196: 0.507 | G196: 0.89 | K196: CropGEN Database
A197: Food Process. Res. | B197: =feed197 -> Wheat flakes | C197: Food Process. Res. Wheat flakes | D197: 0.983 | E197: 704.5 | F197: 0.528 | G197: 0.87 | K197: CropGEN Database
A198: Food Process. Res. | B198: =feed198 -> Wheat germs | C198: Food Process. Res. Wheat germs | D198: 0.95 | E198: 828 | F198: 0.5664251208 | G198: 0.9 | K198: CropGEN Database
A199: Food Process. Res. | B199: =feed199 -> Wheat semolina bran | C199: Food Process. Res. Wheat semolina bran | D199: 0.945 | E199: 585.7 | F199: 0.55 | G199: 0.878 | K199: http://daten.ktbl.de/euagrobiogasbasis/navigation.do?selectedAction=Startseite
A200: Food Process. Res. | B200: =feed200 -> Fruit slurry | C200: Food Process. Res. Fruit slurry | D200: =AVERAGE(92%,98%) -> 0.95 | E200: =AVERAGE(500,800) -> 650 | F200: 0.5 | G200: =AVERAGE(10%,4%) -> 0.07 | K200: http://cdn.intechopen.com/pdfs-wm/27154.pdf
... 141 more rows

Sheet Start
E3: =title2 -> RAPID APPRAISAL TOOL FOR BIOGAS PRODUCTION INDUSTRIAL SCALE
C9: EN
C30: =title3 -> Disclaimer
C31: =title4 -> FAO declines all responsibility for errors or deficiencies in the database or software or in the documentation accompanying it, for program maintenance and upgrading as well as for any damage that may arise from them. FAO also declines any responsibility for updating the data and assumes no responsibility for errors and omissions in the data provided. Users are, however, kindly asked to report any errors or deficiencies in this product to FAO. The choices of calculation made in this tool are those of the author(s) and do not necessarily reflect the views and choices of the Food and Agriculture Organization of the United Nations.
C35: © FAO, 2016

Sheet Biogas Use Selection
C3: FINAL USE OF BIOGAS SELECTOR
C6: =title6 -> Select a final use for biogas produced | F6: Heat and Electricity
C8: =title7 -> Option 1: Heat and Electricity
C10: =title8 -> Heat Consumption per Household | H10: =title26 -> Energy Consumption per Industry
D11: =title17 -> Price | E11: =title18 -> Consumption | I11: =title17 -> Price | J11: =title18 -> Consumption
D12: =title19 -> USD/unit/hh | E12: =title20 -> unit/day/hh | F12: =title21 -> unit/year/hh | I12: =title24 -> USD/unit | J12: =title25 -> unit/year/ind | O12: =title49 -> MJ/year/hh | P12: =title50 -> USD/year/hh | S12: =title50 -> USD/year/hh
C13: =title9 -> Briquettes (kg) | F13: =E13*365 -> 0 | H13: =title22 -> Heat (GJ) | N13: =title9 -> Briquettes (kg) | O13: =$F13*$AD77 -> 0 | P13: =D13*F13 -> 0 | R13: =title51 -> Heat | S13: =I13*J13 -> 0
C14: =title10 -> Pellets (kg) | F14: =E14*365 -> 0 | H14: =title23 -> Electricity (kWh) | N14: =title10 -> Pellets (kg) | O14: =$F14*$AD78 -> 0 | P14: =D14*F14 -> 0 | R14: =title35 -> Electricity | S14: =I14*J14 -> 0
C15: =title11 -> Charcoal (kg) | F15: 0 | N15: =title11 -> Charcoal (kg) | O15: 0 | P15: =D15*F15 -> 0
C16: =title12 -> Coal (kg) | F16: 0 | N16: =title12 -> Coal (kg) | O16: 0 | P16: 0
C17: =title13 -> Fuelwood (kg) | F17: 0 | N17: =title13 -> Fuelwood (kg) | O17: 0 | P17: 0
C18: =title14 -> Kerosene (l) | F18: 0 | N18: =title14 -> Kerosene (l) | O18: 0 | P18: 0
C19: =title15 -> LPG (l) | F19: 0 | N19: =title15 -> LPG (l) | O19: 0 | P19: 0
C20: =title16 -> Natural Gas (m3) | F20: 0 | N20: =title16 -> Natural Gas (m3) | O20: 0 | P20: 0
C22: =title28 -> Electricity Consumption per Household
D23: =title17 -> Price | E23: =title18 -> Consumption | M23: =title52 -> Households | N23: =title51 -> Heat | O23: =SUM(O13:O21) -> 0 | P23: =title49 -> MJ/year/hh | Q23: =title55 -> Industries | R23: =title51 -> Heat | S23: =J13*1000 -> 0 | T23: =title49 -> MJ/year/hh
D24: =title19 -> USD/unit/hh | E24: =title29 -> unit/month/hh | F24: =title21 -> unit/year/hh | N24: =title35 -> Electricity | O24: =F25 -> 0 | P24: =title37 -> kWh/year/hh | R24: =title35 -> Electricity | S24: =J14 -> 0 | T24: =title39 -> kWh/year/ind
C25: =title23 -> Electricity (kWh) | F25: =E25*12 -> 0 | N25: =title53 -> Expenditure Heat | O25: =SUM(P13:P20) -> 0 | P25: =title50 -> USD/year/hh | R25: =title56 -> Expenditure | S25: =SUM(S13) -> 0 | T25: =title50 -> USD/year/hh
N26: =title54 -> Expenditure Electricity | O26: =+D25*F25 -> 0 | P26: =title50 -> USD/year/hh | R26: =title54 -> Expenditure Electricity | S26: =+I14*J14 -> 0
C27: =title30 -> Option 2: Heating and/or cooking
O28: =title52 -> Households | T28: =title61 -> Industrial
C29: =title8 -> Heat Consumption per Household | H29: =title31 -> Heat Consumption per Industry | O29: =title58 -> unit fuel/m3 biogas | P29: =title59 -> m3 biogas/year/hh | Q29: =title50 -> USD/year/hh | T29: =title62 -> m3 biogas/day/ind | U29: =title50 -> USD/year/hh
D30: =title17 -> Price | E30: =title18 -> Consumption | I30: =title17 -> Price | J30: =title18 -> Consumption | N30: =title9 -> Briquettes (kg) | O30: =+$AE77 -> 1.289142798 | P30: =F32/O30 -> 0 | Q30: =D32*F32 -> 0 | R30: =title60 -> Heat (MJ) | T30: =J32*1000/$AD$76 -> 0 | U30: =I32*J32 -> 0
D31: =title19 -> USD/unit/hh | E31: =title20 -> unit/day/hh | F31: =title21 -> unit/year/hh | I31: USD/GJ | J31: =title32 -> GJ/year/ind | N31: =title10 -> Pellets (kg) | O31: =+$AE78 -> 1.289142798 | P31: =F34/O31 -> 0 | Q31: =D34*F34 -> 0
C32: =title9 -> Briquettes (kg) | F32: =E32*365 -> 0 | H32: =title22 -> Heat (GJ) | N32: =title11 -> Charcoal (kg) | O32: 0.6653640249 | P32: =F35/O32 -> 0 | Q32: =D35*F35 -> 0
C33: =title10 -> Pellets (kg) | F33: 0 | N33: =title12 -> Coal (kg) | O33: 0.8010207679
C34: =title11 -> Charcoal (kg) | F34: 0 | J34: =IF($J$35=title75,TRUE,FALSE) -> TRUE | N34: =title13 -> Fuelwood (kg) | O34: 1.031314239 | P34: =F36/O34 -> 0 | Q34: =D36*F36 -> 0
C35: =title12 -> Coal (kg) | F35: 0 | H35: =title33 -> Include Biogas Distribution | J35: Yes | N35: =title14 -> Kerosene (l) | O35: 0.5933913916 | P35: 0 | Q35: 0
C36: =title13 -> Fuelwood (kg) | F36: 0 | N36: =title15 -> LPG (l) | O36: 0.8360877492 | P36: 0 | Q36: 0
C37: =title14 -> Kerosene (l) | F37: 0 | H37: =IF(J34=TRUE,title698&" "&ROUND(biogas_range1,0)&" (USD/hh)",title699) -> Now, the biogas distribution cost is included using a proxy of 53 (USD/hh) | N37: =title16 -> Natural Gas (m3) | O37: 0.5856412485 | P37: 0 | Q37: 0
C38: =title15 -> LPG (l) | F38: 0 | N38: =title52 -> Households | R38: =title55 -> Industries
C39: =title16 -> Natural Gas (m3) | F39: 0 | N39: =title57 -> m3 biogas | O39: =SUM(P30:P37) -> 0 | P39: =title59 -> m3 biogas/year/hh | R39: =title57 -> m3 biogas | S39: =$T$30 -> 0 | T39: =title63 -> m3 biogas/year/ind
N40: =title56 -> Expenditure | O40: =SUM(Q30:Q37) -> 0 | P40: =title50 -> USD/year/hh | R40: =title56 -> Expenditure | S40: =SUM(U30:U37) -> 0 | T40: =title50 -> USD/year/hh
C42: =title34 -> Option 3: Electricity Only
C44: =title28 -> Electricity Consumption per Household | H44: =title38 -> Electricity Consumption per Industry
D45: =title17 -> Price | E45: =title18 -> Consumption | I45: =title17 -> Price | J45: =title18 -> Consumption
D46: USD/kWh | E46: =title36 -> kWh/month/hh | F46: =title37 -> kWh/year/hh | I46: USD/kWh | J46: =title39 -> kWh/year/ind
C47: =title35 -> Electricity | F47: =E47*12 -> 0 | H47: =title23 -> Electricity (kWh)
C50: =title40 -> Option 4: Connection to natural gas line
C52: =title41 -> Natural Gas Consumption per Household | H52: =title46 -> Natural Gas Consumption per Industry
D53: =title17 -> Price | E53: =title18 -> Consumption | I53: =title17 -> Price | J53: =title18 -> Consumption
D54: USD/m3 | E54: =title42 -> m3/day/hh | F54: =title43 -> m3/year/hh | I54: USD/m3 | J54: =title48 -> m3/year/ind
C55: =title16 -> Natural Gas (m3) | F55: =E55*365 -> 0 | H55: =title47 -> Natural Gas
E56: =IF($E$57=title75,TRUE,FALSE) -> TRUE
C57: =title44 -> Include biomethane transportation to connection point | E57: Yes | F57: =IF($E$57="no",TRUE,FALSE) -> FALSE | G57: =IF(E56=TRUE,title700&" "&ROUND(biogas_range2,0)&" (USD/hh)",title701) -> Now, the biomethane transportation to connection point is included using a proxy of 109 (USD/hh)
C58: =title45 -> Distance biogas plant to connection point (km)
O67: =title64 -> Selection | P67: =VLOOKUP($Q$67,O71:$P$75,2,FALSE) -> 1 | Q67: =F6 -> Heat and Electricity | AC67: =title74 -> Please Select | AE67: =title75 -> Yes
O68: 1 | P68: 2 | Q68: 3 | R68: 4 | S68: 5 | T68: 6 | U68: 7 | W68: 8 | X68: 9 | Y68: 10 | Z68: 11 | AA68: 12 | AC68: =title65 -> Heat and Electricity | AE68: No
Q69: =title52 -> Households | U69: =title71 -> Expenditure (USD/YEAR/HH) | V69: =title71 -> Expenditure (USD/YEAR/HH) | W69: =title55 -> Industries | AA69: =title73 -> Expernditure (USD/YEAR/ind) | AB69: =title73 -> Expernditure (USD/YEAR/ind) | AC69: =title66 -> Heating and/or Cooking
Q70: =title51 -> Heat | R70: =title27 -> Unit | S70: =title35 -> Electricity | T70: =title27 -> Unit | U70: =title51 -> Heat | V70: =title35 -> Electricity | W70: =title51 -> Heat | X70: =title27 -> Unit | Y70: =title35 -> Electricity | Z70: =title27 -> Unit | AA70: =title51 -> Heat | AB70: =title35 -> Electricity | AC70: =title67 -> Electricity Only
O71: =title65 -> Heat and Electricity | P71: 1 | Q71: =O23 -> 0 | R71: =P23 -> MJ/year/hh | S71: =O24 -> 0 | T71: =P24 -> kWh/year/hh | U71: =O25 -> 0 | V71: =O26 -> 0 | W71: =S23 -> 0 | X71: =T23 -> MJ/year/hh | Y71: =S24 -> 0 | Z71: =T24 -> kWh/year/ind | AA71: =S25 -> 0 | AB71: =S26 -> 0 | AC71: =title68 -> Connection to natural gas line
O72: =title66 -> Heating and/or Cooking | P72: 2 | Q72: =O39 -> 0 | R72: =P39 -> m3 biogas/year/hh | U72: =O40 -> 0 | W72: =S39 -> 0 | X72: =T39 -> m3 biogas/year/ind | AA72: =S40 -> 0
O73: =title67 -> Electricity Only | P73: 3 | S73: =$F$47 -> 0 | T73: =title37 -> kWh/year/hh | V73: =D47*F47 -> 0 | Y73: =$J$47 -> 0 | Z73: =title39 -> kWh/year/ind | AB73: =I47*J47 -> 0
O74: =title68 -> Connection to natural gas line | P74: 4 | Q74: =$F$55 -> 0 | R74: =title70 -> m3 methane/year/hh | U74: =D55*F55 -> 0 | W74: =J55 -> 0 | X74: =title72 -> m3 methane/year/ind | AA74: =I55*J55 -> 0 | AC74: http://wogone.com/science/the_energy_and_fuel_data_sheet.pdf
O75: =title69 -> Injection Fuel Grid | P75: 5 | AC75: =title76 -> Fuel | AD75: =title77 -> CV (MJ/unit) | AE75: =title78 -> Unit/m3 BIOGAS
AC76: =title79 -> Biogas (m3) | AD76: =17.0465163411132*$AD$86 -> 20.62628477
AC77: =title9 -> Briquettes (kg) | AD77: 16 | AE77: =$AD$76/AD77 -> 1.289142798
AC78: =title10 -> Pellets (kg) | AD78: 16 | AE78: =$AD$76/AD78 -> 1.289142798
AC79: =title11 -> Charcoal (kg) | AD79: 31 | AE79: =$AD$76/AD79 -> 0.6653640249
AC80: =title12 -> Coal (kg) | AD80: 25.75 | AE80: 0.8010207679
AC81: =title13 -> Fuelwood (kg) | AD81: 20 | AE81: 1.031314239
AC82: =title14 -> Kerosene (l) | AD82: =44*0.79 -> 34.76 | AE82: 0.5933913916
AC83: =title15 -> LPG (l) | AD83: 24.67 | AE83: 0.8360877492
AC84: =title16 -> Natural Gas (m3) | AD84: 35.22 | AE84: 0.5856412485
AC86: =title80 -> Biogas Density | AD86: 1.21 | AE86: =title81 -> Kg biogas/m3
F111: =title74 -> Please Select

Sheet Biogas Process Description
C4: =UPPER(label2) -> BIOGAS PROCESS DESCRIPTION
C7: =title82&'Biogas Use Selection'!$F$6 -> Final Use Selected : Heat and Electricity

Sheet Data entry needs
C3: =title95 -> DATA ENTRY FOR BIOGAS PRODUCTION - INDUSTRIAL SCALE
H5: Please Select Please Select
F6: =title193 -> Use white cells to input data | J6: =title194 -> Grey cells are used for calculations
C8: =title96 -> Processes to analyze and Operation Mode Selection
C10: =title97 -> Include processes to compare | F10: TRUE | H10: TRUE | J10: TRUE | L10: TRUE
D11: =IF($BP$125=1,TRUE,FALSE) -> FALSE | F11: =IF($BP$125=2,TRUE,FALSE) -> FALSE | J11: =IF($BP$125=3,TRUE,FALSE) -> TRUE
C12: =title105 -> Operation Mode | D12: =title99 -> Single Feedstock | F12: =title100 -> Multi-Feedstock | J12: =title101 -> Optimized Co-digestion
D13: =title102 -> One single feedstock is used throughout the year | F13: =title103 -> Up to 5 feedstock options can be used throughout the year. But only one option can be allocated to each month. | J13: =title104 -> Up to 5 feedstock options can be used throughout the year, plus 1 main co-digestion feedstock. All combinations are accepted. Use of manure or wastewater as co-digestion feedstock is required.
C16: =title106 -> Feedstock Availability and Cost
C18: =title98&" 1" -> Process 1 | D18: =title107 -> Main Feedstocks | G18: =title117 -> Biogas potential | K18: =title118 -> Feedstock Price
G19: FALSE | K19: TRUE
D20: =title108 -> Main Category | E20: =title109 -> Feedstock | F20: =title110 -> Feedstock Available (t/year) | G20: =IF($D21=title192,"COD (g/l)","VS (%)") -> VS (%) | H20: =IF($D21=title192,"COD Deg. (%)","TS (%)") -> TS (%) | I20: =IF($D21=title192,"BMP (m3/t COD)","BMP (m3/t VS)") -> BMP (m3/t VS) | J20: CH4 (%) | K20: =title115 -> Price (USD/t) | M20: =title116 -> Storage Cost (USD/t)
B21: =ROW(D21) -> 21 | D21: Please Select | E21: Please Select | G21: =BJ129 -> 0 | H21: =BK129 -> 0 | I21: =BL129 -> 0 | J21: =BM129 -> 0 | L21: =IF(OR($D21=title119,$D21=title120),TRUE,FALSE) -> FALSE
D22: =title108 -> Main Category | E22: =title109 -> Feedstock | F22: =title110 -> Feedstock Available (t/year) | G22: =IF($D23=title192,"COD (g/l)","VS (%)") -> VS (%) | H22: =IF($D23=title192,"COD Deg. (%)","TS (%)") -> TS (%) | I22: =IF($D23=title192,"BMP (m3/t COD)","BMP (m3/t VS)") -> BMP (m3/t VS) | J22: CH4 (%) | M22: =title116 -> Storage Cost (USD/t)
B23: =ROW(D23) -> 23 | D23: Please Select | E23: Please Select | G23: =BJ131 -> 0 | H23: =BK131 -> 0 | I23: =BL131 -> 0 | J23: =BM131 -> 0 | L23: =IF(OR($D23=title119,$D23=title120),TRUE,FALSE) -> FALSE
D24: =title108 -> Main Category | E24: =title109 -> Feedstock | F24: =title110 -> Feedstock Available (t/year) | G24: =IF($D25=title192,"COD (g/l)","VS (%)") -> VS (%) | H24: =IF($D25=title192,"COD Deg. (%)","TS (%)") -> TS (%) | I24: =IF($D25=title192,"BMP (m3/t COD)","BMP (m3/t VS)") -> BMP (m3/t VS) | J24: CH4 (%) | M24: =title116 -> Storage Cost (USD/t)
B25: =ROW(D25) -> 25 | D25: Please Select | E25: Please Select | G25: =BJ133 -> 0 | H25: =BK133 -> 0 | I25: =BL133 -> 0 | J25: =BM133 -> 0 | L25: =IF(OR($D25=title119,$D25=title120),TRUE,FALSE) -> FALSE
D26: =title108 -> Main Category | E26: =title109 -> Feedstock | F26: =title110 -> Feedstock Available (t/year) | G26: =IF($D27=title192,"COD (g/l)","VS (%)") -> VS (%) | H26: =IF($D27=title192,"COD Deg. (%)","TS (%)") -> TS (%) | I26: =IF($D27=title192,"BMP (m3/t COD)","BMP (m3/t VS)") -> BMP (m3/t VS) | J26: CH4 (%) | M26: =title116 -> Storage Cost (USD/t)
B27: =ROW(D27) -> 27 | D27: Please Select | E27: Please Select | G27: =BJ135 -> 0 | H27: =BK135 -> 0 | I27: =BL135 -> 0 | J27: =BM135 -> 0 | L27: =IF(OR($D27=title119,$D27=title120),TRUE,FALSE) -> FALSE
D28: =title108 -> Main Category | E28: =title109 -> Feedstock | F28: =title110 -> Feedstock Available (t/year) | G28: =IF($D29=title192,"COD (g/l)","VS (%)") -> VS (%) | H28: =IF($D29=title192,"COD Deg. (%)","TS (%)") -> TS (%) | I28: =IF($D29=title192,"BMP (m3/t COD)","BMP (m3/t VS)") -> BMP (m3/t VS) | J28: CH4 (%) | M28: =title116 -> Storage Cost (USD/t)
B29: =ROW(D29) -> 29 | D29: Please Select | E29: Please Select | G29: =BJ137 -> 0 | H29: =BK137 -> 0 | I29: =BL137 -> 0 | J29: =BM137 -> 0 | L29: =IF(OR($D29=title119,$D29=title120),TRUE,FALSE) -> FALSE
D31: =title219 -> Codigestion Feedstock | E31: Codigestion Fs to Main Fs ratio : | F31: 50 | G31: =$F$31/100 -> 0.5
D32: =title108 -> Main Category | E32: =title109 -> Feedstock | F32: Feedstock Required for Codigestion (t/yr) | G32: =IF($D33=title192,"COD (g/l)","VS (%)") -> VS (%) | H32: =IF($D33=title192,"COD Deg. (%)","TS (%)") -> TS (%) | I32: =IF($D33=title192,"BMP (m3/t COD)","BMP (m3/t VS)") -> BMP (m3/t VS) | J32: CH4 (%) | K32: =title115 -> Price (USD/t) | M32: =title116 -> Storage Cost (USD/t)
B33: =ROW(D33) -> 33 | D33: Please Select | E33: Please Select | F33: =IF(D33=title74,0,F21+F23+F25+F27+F29)*G31/(1-G31) -> 0 | G33: =BJ139 -> 0 | H33: =BK139 -> 0 | I33: =BL139 -> 0 | J33: =BM139 -> 0 | L33: =IF(OR($D33=title119,$D33=title120),TRUE,FALSE) -> FALSE
D34: * VS = Volatile Solids, TS = Total Solids, COD =Chemical Oxygen Demand, BMP = Biomethane Potential, CH4 = Methane
C36: =title98&" 2" -> Process 2 | D36: =title107 -> Main Feedstocks | G36: =title117 -> Biogas potential | K36: =title118 -> Feedstock Price
G37: FALSE | K37: TRUE
D38: =title108 -> Main Category | E38: =title109 -> Feedstock | F38: =title110 -> Feedstock Available (t/year) | G38: =IF($D39=title192,"COD (g/l)","VS (%)") -> VS (%) | H38: =IF($D39=title192,"COD Deg. (%)","TS (%)") -> TS (%) | I38: =IF($D39=title192,"BMP (m3/t COD)","BMP (m3/t VS)") -> BMP (m3/t VS) | J38: CH4 (%) | K38: =title115 -> Price (USD/t) | M38: =title116 -> Storage Cost (USD/t)
B39: =ROW(D39) -> 39 | D39: Please Select | E39: Please Select | G39: =BJ142 -> 0 | H39: =BK142 -> 0 | I39: =BL142 -> 0 | J39: =BM142 -> 0 | L39: =IF(OR($D39=title119,$D39=title120),TRUE,FALSE) -> FALSE
D40: =title108 -> Main Category | E40: =title109 -> Feedstock | F40: =title110 -> Feedstock Available (t/year) | G40: =IF($D41=title192,"COD (g/l)","VS (%)") -> VS (%) | H40: =IF($D41=title192,"COD Deg. (%)","TS (%)") -> TS (%) | I40: =IF($D41=title192,"BMP (m3/t COD)","BMP (m3/t VS)") -> BMP (m3/t VS) | J40: CH4 (%) | M40: =title116 -> Storage Cost (USD/t)
B41: =ROW(D41) -> 41 | D41: Please Select | E41: Please Select | G41: =BJ144 -> 0 | H41: =BK144 -> 0 | I41: =BL144 -> 0 | J41: =BM144 -> 0 | L41: =IF(OR($D41=title119,$D41=title120),TRUE,FALSE) -> FALSE
D42: =title108 -> Main Category | E42: =title109 -> Feedstock | F42: =title110 -> Feedstock Available (t/year) | G42: =IF($D43=title192,"COD (g/l)","VS (%)") -> VS (%) | H42: =IF($D43=title192,"COD Deg. (%)","TS (%)") -> TS (%) | I42: =IF($D43=title192,"BMP (m3/t COD)","BMP (m3/t VS)") -> BMP (m3/t VS) | J42: CH4 (%) | M42: =title116 -> Storage Cost (USD/t)
B43: =ROW(D43) -> 43 | D43: Please Select | E43: Please Select | G43: =BJ146 -> 0 | H43: =BK146 -> 0 | I43: =BL146 -> 0 | J43: =BM146 -> 0 | L43: =IF(OR($D43=title119,$D43=title120),TRUE,FALSE) -> FALSE
D44: =title108 -> Main Category | E44: =title109 -> Feedstock | F44: =title110 -> Feedstock Available (t/year) | G44: =IF($D45=title192,"COD (g/l)","VS (%)") -> VS (%) | H44: =IF($D45=title192,"COD Deg. (%)","TS (%)") -> TS (%) | I44: =IF($D45=title192,"BMP (m3/t COD)","BMP (m3/t VS)") -> BMP (m3/t VS) | J44: CH4 (%) | M44: =title116 -> Storage Cost (USD/t)
B45: =ROW(D45) -> 45 | D45: Please Select | E45: Please Select | G45: =BJ148 -> 0 | H45: =BK148 -> 0 | I45: =BL148 -> 0 | J45: =BM148 -> 0 | L45: =IF(OR($D45=title119,$D45=title120),TRUE,FALSE) -> FALSE
D46: =title108 -> Main Category | E46: =title109 -> Feedstock | F46: =title110 -> Feedstock Available (t/year) | G46: =IF($D47=title192,"COD (g/l)","VS (%)") -> VS (%) | H46: =IF($D47=title192,"COD Deg. (%)","TS (%)") -> TS (%) | I46: =IF($D47=title192,"BMP (m3/t COD)","BMP (m3/t VS)") -> BMP (m3/t VS) | J46: CH4 (%) | M46: =title116 -> Storage Cost (USD/t)
B47: =ROW(D47) -> 47 | D47: Please Select | E47: Please Select | G47: =BJ150 -> 0 | H47: =BK150 -> 0 | I47: =BL150 -> 0 | J47: =BM150 -> 0 | L47: =IF(OR($D47=title119,$D47=title120),TRUE,FALSE) -> FALSE
D49: =title219 -> Codigestion Feedstock | E49: =title220 -> Codigestion Fs to Main Fs ratio | F49: 50 | G49: =$F49/100 -> 0.5
D50: =title108 -> Main Category | E50: =title109 -> Feedstock | F50: Feedstock Required for Codigestion (t/yr) | G50: =IF($D51=title192,"COD (g/l)","VS (%)") -> VS (%) | H50: =IF($D51=title192,"COD Deg. (%)","TS (%)") -> TS (%) | I50: =IF($D51=title192,"BMP (m3/t COD)","BMP (m3/t VS)") -> BMP (m3/t VS) | J50: CH4 (%) | K50: =title115 -> Price (USD/t) | M50: =title116 -> Storage Cost (USD/t)
B51: =ROW(D51) -> 51 | D51: Please Select | E51: Please Select | F51: =IF(D51=title74,0,F39+F41+F43+F45+F47)*G49/(1-G49) -> 0 | G51: =BJ152 -> 0 | H51: =BK152 -> 0 | I51: =BL152 -> 0 | J51: =BM152 -> 0 | L51: =IF(OR($D51=title119,$D51=title120),TRUE,FALSE) -> FALSE
D52: * VS = Volatile Solids, TS = Total Solids, COD =Chemical Oxygen Demand, BMP = Biomethane Potential, CH4 = Methane
C54: =title98&" 3" -> Process 3 | D54: =title107 -> Main Feedstocks | G54: =title117 -> Biogas potential | K54: =title118 -> Feedstock Price
G55: FALSE | K55: TRUE
D56: =title108 -> Main Category | E56: =title109 -> Feedstock | F56: =title110 -> Feedstock Available (t/year) | G56: =IF($D57=title192,"COD (g/l)","VS (%)") -> VS (%) | H56: =IF($D57=title192,"COD Deg. (%)","TS (%)") -> TS (%) | I56: =IF($D57=title192,"BMP (m3/t COD)","BMP (m3/t VS)") -> BMP (m3/t VS) | J56: CH4 (%) | K56: =title115 -> Price (USD/t) | M56: =title116 -> Storage Cost (USD/t)
B57: =ROW(D57) -> 57 | D57: Please Select | E57: Please Select | G57: =BJ155 -> 0 | H57: =BK155 -> 0 | I57: =BL155 -> 0 | J57: =BM155 -> 0 | L57: =IF(OR($D57=title119,$D57=title120),TRUE,FALSE) -> FALSE
D58: =title108 -> Main Category | E58: =title109 -> Feedstock | F58: =title110 -> Feedstock Available (t/year) | G58: =IF($D59=title192,"COD (g/l)","VS (%)") -> VS (%) | H58: =IF($D59=title192,"COD Deg. (%)","TS (%)") -> TS (%) | I58: =IF($D59=title192,"BMP (m3/t COD)","BMP (m3/t VS)") -> BMP (m3/t VS) | J58: CH4 (%) | M58: =title116 -> Storage Cost (USD/t)
B59: =ROW(D59) -> 59 | D59: Please Select | E59: Please Select | G59: =BJ157 -> 0 | H59: =BK157 -> 0 | I59: =BL157 -> 0 | J59: =BM157 -> 0 | L59: =IF(OR($D59=title119,$D59=title120),TRUE,FALSE) -> FALSE
D60: =title108 -> Main Category | E60: =title109 -> Feedstock | F60: =title110 -> Feedstock Available (t/year) | G60: =IF($D61=title192,"COD (g/l)","VS (%)") -> VS (%) | H60: =IF($D61=title192,"COD Deg. (%)","TS (%)") -> TS (%) | I60: =IF($D61=title192,"BMP (m3/t COD)","BMP (m3/t VS)") -> BMP (m3/t VS) | J60: CH4 (%) | M60: =title116 -> Storage Cost (USD/t)
B61: =ROW(D61) -> 61 | D61: Please Select | E61: Please Select | G61: =BJ159 -> 0 | H61: =BK159 -> 0 | I61: =BL159 -> 0 | J61: =BM159 -> 0 | L61: =IF(OR($D61=title119,$D61=title120),TRUE,FALSE) -> FALSE
D62: =title108 -> Main Category | E62: =title109 -> Feedstock | F62: =title110 -> Feedstock Available (t/year) | G62: =IF($D63=title192,"COD (g/l)","VS (%)") -> VS (%) | H62: =IF($D63=title192,"COD Deg. (%)","TS (%)") -> TS (%) | I62: =IF($D63=title192,"BMP (m3/t COD)","BMP (m3/t VS)") -> BMP (m3/t VS) | J62: CH4 (%) | M62: =title116 -> Storage Cost (USD/t)
B63: =ROW(D63) -> 63 | D63: Please Select | E63: Please Select | G63: =BJ161 -> 0 | H63: =BK161 -> 0 | I63: =BL161 -> 0 | J63: =BM161 -> 0 | L63: =IF(OR($D63=title119,$D63=title120),TRUE,FALSE) -> FALSE
D64: =title108 -> Main Category | E64: =title109 -> Feedstock | F64: =title110 -> Feedstock Available (t/year) | G64: =IF($D65=title192,"COD (g/l)","VS (%)") -> VS (%) | H64: =IF($D65=title192,"COD Deg. (%)","TS (%)") -> TS (%) | I64: =IF($D65=title192,"BMP (m3/t COD)","BMP (m3/t VS)") -> BMP (m3/t VS) | J64: CH4 (%) | M64: =title116 -> Storage Cost (USD/t)
B65: =ROW(D65) -> 65 | D65: Please Select | E65: Please Select | G65: =BJ163 -> 0 | H65: =BK163 -> 0 | I65: =BL163 -> 0 | J65: =BM163 -> 0 | L65: =IF(OR($D65=title119,$D65=title120),TRUE,FALSE) -> FALSE
D67: =title219 -> Codigestion Feedstock | E67: =title220 -> Codigestion Fs to Main Fs ratio | F67: 50 | G67: =$F$67/100 -> 0.5
D68: =title108 -> Main Category | E68: =title109 -> Feedstock | F68: Feedstock Required for Codigestion (t/yr) | G68: =IF($D69=title192,"COD (g/l)","VS (%)") -> VS (%) | H68: =IF($D69=title192,"COD Deg. (%)","TS (%)") -> TS (%) | I68: =IF($D69=title192,"BMP (m3/t COD)","BMP (m3/t VS)") -> BMP (m3/t VS) | J68: CH4 (%) | K68: =title115 -> Price (USD/t) | M68: =title116 -> Storage Cost (USD/t)
B69: =ROW(D69) -> 69 | D69: Please Select | E69: Please Select | F69: =IF(D69=title74,0,F57+F59+F61+F63+F65)*G67/(1-G67) -> 0 | G69: =BJ165 -> 0 | H69: =BK165 -> 0 | I69: =BL165 -> 0 | J69: =BM165 -> 0 | L69: =IF(OR($D69=title119,$D69=title120),TRUE,FALSE) -> FALSE
D70: * VS = Volatile Solids, TS = Total Solids, COD =Chemical Oxygen Demand, BMP = Biomethane Potential, CH4 = Methane
C72: =title98&" 4" -> Process 4 | D72: =title107 -> Main Feedstocks | G72: =title117 -> Biogas potential | K72: =title118 -> Feedstock Price
G73: FALSE | K73: TRUE
D74: =title108 -> Main Category | E74: =title109 -> Feedstock | F74: =title110 -> Feedstock Available (t/year) | G74: =IF($D75=title192,"COD (g/l)","VS (%)") -> VS (%) | H74: =IF($D75=title192,"COD Deg. (%)","TS (%)") -> TS (%) | I74: =IF($D75=title192,"BMP (m3/t COD)","BMP (m3/t VS)") -> BMP (m3/t VS) | J74: CH4 (%) | K74: =title115 -> Price (USD/t) | M74: =title116 -> Storage Cost (USD/t)
B75: =ROW(D75) -> 75 | D75: Please Select | E75: Please Select | G75: =BJ168 -> 0 | H75: =BK168 -> 0 | I75: =BL168 -> 0 | J75: =BM168 -> 0 | L75: =IF(OR($D75=title119,$D75=title120),TRUE,FALSE) -> FALSE
D76: =title108 -> Main Category | E76: =title109 -> Feedstock | F76: =title110 -> Feedstock Available (t/year) | G76: =IF($D77=title192,"COD (g/l)","VS (%)") -> VS (%) | H76: =IF($D77=title192,"COD Deg. (%)","TS (%)") -> TS (%) | I76: =IF($D77=title192,"BMP (m3/t COD)","BMP (m3/t VS)") -> BMP (m3/t VS) | J76: CH4 (%) | M76: =title116 -> Storage Cost (USD/t)
B77: =ROW(D77) -> 77 | D77: Please Select | E77: Please Select | G77: =BJ170 -> 0 | H77: =BK170 -> 0 | I77: =BL170 -> 0 | J77: =BM170 -> 0 | L77: =IF(OR($D77=title119,$D77=title120),TRUE,FALSE) -> FALSE
D78: =title108 -> Main Category | E78: =title109 -> Feedstock | F78: =title110 -> Feedstock Available (t/year) | G78: =IF($D79=title192,"COD (g/l)","VS (%)") -> VS (%) | H78: =IF($D79=title192,"COD Deg. (%)","TS (%)") -> TS (%) | I78: =IF($D79=title192,"BMP (m3/t COD)","BMP (m3/t VS)") -> BMP (m3/t VS) | J78: CH4 (%) | M78: =title116 -> Storage Cost (USD/t)
B79: =ROW(D79) -> 79 | D79: Please Select | E79: Please Select | G79: =BJ172 -> 0 | H79: =BK172 -> 0 | I79: =BL172 -> 0 | J79: =BM172 -> 0 | L79: =IF(OR($D79=title119,$D79=title120),TRUE,FALSE) -> FALSE
D80: =title108 -> Main Category | E80: =title109 -> Feedstock | F80: =title110 -> Feedstock Available (t/year) | G80: =IF($D81=title192,"COD (g/l)","VS (%)") -> VS (%) | H80: =IF($D81=title192,"COD Deg. (%)","TS (%)") -> TS (%) | I80: =IF($D81=title192,"BMP (m3/t COD)","BMP (m3/t VS)") -> BMP (m3/t VS) | J80: CH4 (%) | M80: =title116 -> Storage Cost (USD/t)
B81: =ROW(D81) -> 81 | D81: Please Select | E81: Please Select | G81: =BJ174 -> 0 | H81: =BK174 -> 0 | I81: =BL174 -> 0 | J81: =BM174 -> 0 | L81: =IF(OR($D81=title119,$D81=title120),TRUE,FALSE) -> FALSE
D82: =title108 -> Main Category | E82: =title109 -> Feedstock | F82: =title110 -> Feedstock Available (t/year) | G82: =IF($D83=title192,"COD (g/l)","VS (%)") -> VS (%) | H82: =IF($D83=title192,"COD Deg. (%)","TS (%)") -> TS (%) | I82: =IF($D83=title192,"BMP (m3/t COD)","BMP (m3/t VS)") -> BMP (m3/t VS) | J82: CH4 (%) | M82: =title116 -> Storage Cost (USD/t)
B83: =ROW(D83) -> 83 | D83: Please Select | E83: Please Select | G83: =BJ176 -> 0 | H83: =BK176 -> 0 | I83: =BL176 -> 0 | J83: =BM176 -> 0 | L83: =IF(OR($D83=title119,$D83=title120),TRUE,FALSE) -> FALSE
D85: =title219 -> Codigestion Feedstock | E85: =title220 -> Codigestion Fs to Main Fs ratio | F85: 50 | G85: =$F$85/100 -> 0.5
D86: =title108 -> Main Category | E86: =title109 -> Feedstock | F86: Feedstock Required for Codigestion (t/yr) | G86: =IF($D87=title192,"COD (g/l)","VS (%)") -> VS (%) | H86: =IF($D87=title192,"COD Deg. (%)","TS (%)") -> TS (%) | I86: =IF($D87=title192,"BMP (m3/t COD)","BMP (m3/t VS)") -> BMP (m3/t VS) | J86: CH4 (%) | K86: =title115 -> Price (USD/t) | M86: =title116 -> Storage Cost (USD/t)
B87: =ROW(D87) -> 87 | D87: Please Select | E87: Please Select | F87: =IF(D87=title74,0,F75+F77+F79+F81+F83)*G85/(1-G85) -> 0 | G87: =BJ178 -> 0 | H87: =BK178 -> 0 | I87: =BL178 -> 0 | J87: =BM178 -> 0 | L87: =IF(OR($D87=title119,$D87=title120),TRUE,FALSE) -> FALSE
D88: =title221 -> * VS = Volatile Solids, TS = Total Solids, COD =Chemical Oxygen Demand, BMP = Biomethane Potential, CH4 = Methane
C89: =title121 -> Production Cost and Financial Parameters
C91: =title122 -> Utilities and other Raw Material | G91: =title27 -> Unit
C92: =title123 -> Water | G92: USD/m3 | H92: =title35 -> Electricity | M92: USD/kWh
C93: =title124 -> Caustic Soda (NaOH) | G93: USD/t | H93: =title51 -> Heat | M93: USD/GJ
C94: http://www.icis.com/chemicals/channel-info-chemicals-a-z/
C95: =title125 -> Labour | G95: =title27 -> Unit
C96: =title126 -> Skilled worker | G96: =title128 -> USD/person-hour | H96: =title127 -> Unskilled worker | M96: =title128 -> USD/person-hour
C98: =title129 -> Feedstock collection | G98: =title27 -> Unit | M98: =title27 -> Unit
C99: =title130 -> Working hours per day (manual) | G99: =title132 -> h/day | H99: =title133 -> Working hours per day (mechanized) | M99: =title132 -> h/day
C100: =title131 -> Diesel price | G100: USD/l | H100: =title134 -> Operating days per year | M100: =title135 -> days/year
C102: =title136 -> Market Prices | G102: =title27 -> Unit
C103: =title137 -> Electricity Selling Price | G103: USD/kWh | H103: =title140 -> Natural Gas Selling Price | M103: USD/m3
C104: =title138 -> Heat Selling Price | G104: USD/GJ | H104: =title141 -> Digestate Market Price | M104: USD/t
C105: =title139 -> Biogas Selling Prince | G105: USD/m3
C107: =title142 -> Operating parameters | G107: =title27 -> Unit
H108: =title146 -> Storage safety rate of Biogas
C110: =title143 -> Digestate Recovery System | F110: Please Select | H110: =title147 -> Solids Recovery (%) | L110: =VLOOKUP($F$110,$BO$148:$BP$154,2,FALSE) -> 0
C111: =title144 -> Heat Loss In Production | H111: =title148 -> Heat loss in Distribution
C112: =title145 -> Electricity Loss In Production | H112: =title149 -> Electricity loss in Distribution
C113: =title150 -> Other costs | G113: =title27 -> Unit
C114: =title151&" (%)" -> Plant overhead (%) | H114: =title153 -> Miscellaneous (%)
C115: =title152 -> Maintenance (%) | H115: =title154 -> General and administrative (%)
C117: =title155 -> Financial parameters | G117: =title27 -> Unit | H117: =title160 -> Investment cost update
C118: =title156 -> Loan ratio Size 1 | H118: =title161 -> Discount rate
C119: =title157 -> Loan ratio Size 2 | H119: =title162 -> Loan interest rate
C120: =title158 -> Loan ratio Size 3 | H120: =title163 -> Loan terms | M120: =title164 -> year
C121: =title159 -> Loan ratio Size 4 | H121: =title725&" "&MONTH(TODAY())&"/"&YEAR(TODAY()) -> Plant Cost Index during 7/2017 | AE121: =OFFSET('Data entry needs'!$AF$131,0,0,ABS(200-COUNTBLANK('Data entry needs'!J$131:J$331)),1) -> Please Select
H122: http://base.intratec.us/home/ic-index | BR122: =title168&" PS1" -> Market Price PS1 | BS122: =$K$19 -> TRUE
BR123: =title168&" PS2" -> Market Price PS2 | BS123: =$K$37 -> TRUE
AF124: =OFFSET('Data entry needs'!$AF$131,0,0,ABS(200-COUNTBLANK('Data entry needs'!$AF$131:AF331)),1) ->  | BR124: =title168&" PS3" -> Market Price PS3 | BS124: =$K$55 -> TRUE
BD125: Main FS | BE125: Country | BF125: Region | BO125: =title105 -> Operation Mode | BP125: 3 | BR125: =title168&" PS4" -> Market Price PS4 | BS125: =$K$73 -> TRUE
AE126: List Count | AF126: =ABS(200-COUNTBLANK(AF$131:AF$331)) -> 0 | AG126: =ABS(200-COUNTBLANK(AG$131:AG$331)) -> 0 | AH126: 0 | AI126: 0 | AJ126: 0 | AK126: 0 | AL126: 0 | AM126: 0 | AN126: 0 | AO126: 0 | AP126: 0 | AQ126: 0 | AR126: 0 | AS126: 0 | AT126: 0 | AU126: 0 | AV126: 0 | AW126: 0 | AX126: 0 | AY126: 0 | AZ126: 0 | BA126: 0 | BB126: 0 | BC126: 0 | BN126: !T171 | BR126: =title169&1 -> Wage1 | BS126: =IF(OR($F$96="",$F$96=" "),TRUE,FALSE) -> TRUE
AF127: =title98&" 1" -> Process 1 | AL127: =title98&" 2" -> Process 2 | AR127: =title98&" 3" -> Process 3 | AX127: =title98&" 4" -> Process 4 | BH127: =title98&" 1" -> Process 1 | BI127: PS1 | BR127: =title169&2 -> Wage2 | BS127: =IF(OR($L$96="",$L$96=" "),TRUE,FALSE) -> TRUE
AE128: =UPPER(title167) -> CODIGESTION | AF128: =IF(AF$129=title84,1,IF(AF$129=title192,2,0)) -> 0 | AG128: 0 | AH128: 0 | AI128: 0 | AJ128: 0 | AK128: 0 | AL128: 0 | AM128: 0 | AN128: 0 | AO128: 0 | AP128: 0 | AQ128: 0 | AR128: 0 | AS128: 0 | AT128: 0 | AU128: 0 | AV128: 0 | AW128: 0 | AX128: 0 | AY128: 0 | AZ128: 0 | BA128: 0 | BB128: 0 | BC128: 0 | BH128: =title108 -> Main Category | BI128: =title109 -> Feedstock | BJ128: =G$20 -> VS (%) | BK128: =H$20 -> TS (%) | BL128: =I$20 -> BMP (m3/t VS) | BM128: CH4 (%) | BN128: Collection Price | BR128: =title170 -> Diesel | BS128: =IF(OR($F$100="",$F$100=" "),TRUE,FALSE) -> TRUE
AF129: =$D$21 -> Please Select | AG129: =$D$23 -> Please Select | AH129: =$D$25 -> Please Select | AI129: =$D$27 -> Please Select | AJ129: =$D$29 -> Please Select | AK129: =$D$33 -> Please Select | AL129: =$D$39 -> Please Select | AM129: =$D$41 -> Please Select | AN129: =$D$43 -> Please Select | AO129: =$D$45 -> Please Select | AP129: =$D$47 -> Please Select | AQ129: =$D$51 -> Please Select | AR129: =$D$57 -> Please Select | AS129: =$D$59 -> Please Select | AT129: =$D$61 -> Please Select | AU129: =$D$63 -> Please Select | AV129: =$D$65 -> Please Select | AW129: =$D$69 -> Please Select | AX129: =$D$75 -> Please Select | AY129: =$D$77 -> Please Select | AZ129: =$D$79 -> Please Select | BA129: =$D$81 -> Please Select | BB129: =$D$83 -> Please Select | BC129: =$D$87 -> Please Select | BD129: =title74 -> Please Select | BE129: Select the country | BG129: FS1 | BH129: =D$21 -> Please Select | BI129: =E$21 -> Please Select | BJ129: =IFERROR(IF($BH129=title192,VLOOKUP($BH129&" "&$BI129,Database_Prop!$C:$G,2,FALSE),TEXT(VLOOKUP($BH129&" "&$BI129,Database_Prop!$C:$G,2,FALSE),"0%")),0) -> 0 | BK129: =IFERROR(VLOOKUP($BH129&" "&$BI129,Database_Prop!$C:$G,5,FALSE),0) -> 0 | BL129: =IFERROR(VLOOKUP($BH129&" "&$BI129,Database_Prop!$C:$G,3,FALSE),0) -> 0 | BM129: =IFERROR(VLOOKUP($BH129&" "&$BI129,Database_Prop!$C:$G,4,FALSE),0) -> 0 | BN129: =IFERROR(INDIRECT("PRICE_"&$BG129&"_"&BI$127&$BN$126),0) -> 0 | BR129: =title171&1 -> Decision11 | BS129: =+OR(BS126,BS127,BS128) -> TRUE
AF130: =title166&1 -> Residue1 | AG130: =title166&2 -> Residue2 | AH130: =title166&3 -> Residue3 | AI130: =title166&4 -> Residue4 | AJ130: =title166&5 -> Residue5 | AK130: =title167&1 -> Codigestion1 | AL130: =title166&12 -> Residue12 | AM130: =title166&22 -> Residue22 | AN130: =title166&32 -> Residue32 | AO130: =title166&42 -> Residue42 | AP130: =title166&52 -> Residue52 | AQ130: =title167&2 -> Codigestion2 | AR130: =title166&13 -> Residue13 | AS130: =title166&23 -> Residue23 | AT130: =title166&33 -> Residue33 | AU130: =title166&43 -> Residue43 | AV130: =title166&53 -> Residue53 | AW130: =title167&3 -> Codigestion3 | AX130: =title166&14 -> Residue14 | AY130: =title166&24 -> Residue24 | AZ130: =title166&34 -> Residue34 | BA130: =title166&44 -> Residue44 | BB130: =title166&54 -> Residue54 | BC130: =title167&4 -> Codigestion4 | BD130: =title184 -> Biodiesel/Oilseed Ind. | BE130: Afghanistan | BF130: Indian Subcontinent | BH130: =title108 -> Main Category | BI130: =title109 -> Feedstock | BJ130: =G$22 -> VS (%) | BK130: =H$22 -> TS (%) | BL130: =I$22 -> BMP (m3/t VS) | BM130: CH4 (%) | BN130: Collection Price
AF131: =title74 -> Please Select | AG131: Please Select | AH131: Please Select | AI131: Please Select | AJ131: Please Select | AK131: Please Select | AL131: Please Select | AM131: Please Select | AN131: Please Select | AO131: Please Select | AP131: Please Select | AQ131: Please Select | AR131: Please Select | AS131: Please Select | AT131: Please Select | AU131: Please Select | AV131: Please Select | AW131: Please Select | AX131: Please Select | AY131: Please Select | AZ131: Please Select | BA131: Please Select | BB131: Please Select | BC131: Please Select | BD131: =title85 -> Crop Residues | BE131: Åland Islands | BF131: Western Europe | BG131: FS2 | BH131: =D$23 -> Please Select | BI131: =E$23 -> Please Select | BJ131: =IFERROR(IF($BH131=title192,VLOOKUP($BH131&" "&$BI131,Database_Prop!$C:$G,2,FALSE),TEXT(VLOOKUP($BH131&" "&$BI131,Database_Prop!$C:$G,2,FALSE),"0%")),0) -> 0 | BK131: =IFERROR(VLOOKUP($BH131&" "&$BI131,Database_Prop!$C:$G,5,FALSE),0) -> 0 | BL131: =IFERROR(VLOOKUP($BH131&" "&$BI131,Database_Prop!$C:$G,3,FALSE),0) -> 0 | BM131: =IFERROR(VLOOKUP($BH131&" "&$BI131,Database_Prop!$C:$G,4,FALSE),0) -> 0 | BN131: =IFERROR(INDIRECT("PRICE_"&$BG131&"_"&BI$127&$BN$126),0) -> 0 | BR131: ICU | BS131: =IF(OR($L$121="",$L$121=" "),TRUE,FALSE) -> TRUE
AE132: 1 | AF132: =IFERROR(INDEX(Database_Prop!$B$2:$B$1498,SMALL(IF(Database_Prop!$A$2:$A$1498=AF$129,ROW(Database_Prop!$B$2:$B$1498)-ROW(Database_Prop!$B$2)+1),ROWS(Database_Prop!C$2:'Database_Prop'!C2))),"") ->  | AG132: =IFERROR(INDEX(Database_Prop!$B$2:$B$1498,SMALL(IF(Database_Prop!$A$2:$A$1498=AG$129,ROW(Database_Prop!$B$2:$B$1498)-ROW(Database_Prop!$B$2)+1),ROWS(Database_Prop!D$2:'Database_Prop'!D2))),"") ->  | AH132: =IFERROR(INDEX(Database_Prop!$B$2:$B$1498,SMALL(IF(Database_Prop!$A$2:$A$1498=AH$129,ROW(Database_Prop!$B$2:$B$1498)-ROW(Database_Prop!$B$2)+1),ROWS(Database_Prop!E$2:'Database_Prop'!E2))),"") ->  | AI132: =IFERROR(INDEX(Database_Prop!$B$2:$B$1498,SMALL(IF(Database_Prop!$A$2:$A$1498=AI$129,ROW(Database_Prop!$B$2:$B$1498)-ROW(Database_Prop!$B$2)+1),ROWS(Database_Prop!F$2:'Database_Prop'!F2))),"") ->  | AJ132: =IFERROR(INDEX(Database_Prop!$B$2:$B$1498,SMALL(IF(Database_Prop!$A$2:$A$1498=AJ$129,ROW(Database_Prop!$B$2:$B$1498)-ROW(Database_Prop!$B$2)+1),ROWS(Database_Prop!G$2:'Database_Prop'!G2))),"") ->  | AK132: =IFERROR(INDEX(Database_Prop!$B$2:$B$1498,SMALL(IF(Database_Prop!$A$2:$A$1498=AK$129,ROW(Database_Prop!$B$2:$B$1498)-ROW(Database_Prop!$B$2)+1),ROWS(Database_Prop!H$2:'Database_Prop'!H2))),"") ->  | AL132: =IFERROR(INDEX(Database_Prop!$B$2:$B$1498,SMALL(IF(Database_Prop!$A$2:$A$1498=AL$129,ROW(Database_Prop!$B$2:$B$1498)-ROW(Database_Prop!$B$2)+1),ROWS(Database_Prop!I$2:'Database_Prop'!I2))),"") ->  | AM132: =IFERROR(INDEX(Database_Prop!$B$2:$B$1498,SMALL(IF(Database_Prop!$A$2:$A$1498=AM$129,ROW(Database_Prop!$B$2:$B$1498)-ROW(Database_Prop!$B$2)+1),ROWS(Database_Prop!J$2:'Database_Prop'!J2))),"") ->  | AN132: =IFERROR(INDEX(Database_Prop!$B$2:$B$1498,SMALL(IF(Database_Prop!$A$2:$A$1498=AN$129,ROW(Database_Prop!$B$2:$B$1498)-ROW(Database_Prop!$B$2)+1),ROWS(Database_Prop!K$2:'Database_Prop'!K2))),"") ->  | AO132: =IFERROR(INDEX(Database_Prop!$B$2:$B$1498,SMALL(IF(Database_Prop!$A$2:$A$1498=AO$129,ROW(Database_Prop!$B$2:$B$1498)-ROW(Database_Prop!$B$2)+1),ROWS(Database_Prop!L$2:'Database_Prop'!L2))),"") ->  | AP132: =IFERROR(INDEX(Database_Prop!$B$2:$B$1498,SMALL(IF(Database_Prop!$A$2:$A$1498=AP$129,ROW(Database_Prop!$B$2:$B$1498)-ROW(Database_Prop!$B$2)+1),ROWS(Database_Prop!M$2:'Database_Prop'!M2))),"") ->  | AQ132: =IFERROR(INDEX(Database_Prop!$B$2:$B$1498,SMALL(IF(Database_Prop!$A$2:$A$1498=AQ$129,ROW(Database_Prop!$B$2:$B$1498)-ROW(Database_Prop!$B$2)+1),ROWS(Database_Prop!N$2:'Database_Prop'!N2))),"") ->  | AR132: =IFERROR(INDEX(Database_Prop!$B$2:$B$1498,SMALL(IF(Database_Prop!$A$2:$A$1498=AR$129,ROW(Database_Prop!$B$2:$B$1498)-ROW(Database_Prop!$B$2)+1),ROWS(Database_Prop!O$2:'Database_Prop'!O2))),"") ->  | AS132: =IFERROR(INDEX(Database_Prop!$B$2:$B$1498,SMALL(IF(Database_Prop!$A$2:$A$1498=AS$129,ROW(Database_Prop!$B$2:$B$1498)-ROW(Database_Prop!$B$2)+1),ROWS(Database_Prop!P$2:'Database_Prop'!P2))),"") ->  | AT132: =IFERROR(INDEX(Database_Prop!$B$2:$B$1498,SMALL(IF(Database_Prop!$A$2:$A$1498=AT$129,ROW(Database_Prop!$B$2:$B$1498)-ROW(Database_Prop!$B$2)+1),ROWS(Database_Prop!Q$2:'Database_Prop'!Q2))),"") ->  | AU132: =IFERROR(INDEX(Database_Prop!$B$2:$B$1498,SMALL(IF(Database_Prop!$A$2:$A$1498=AU$129,ROW(Database_Prop!$B$2:$B$1498)-ROW(Database_Prop!$B$2)+1),ROWS(Database_Prop!R$2:'Database_Prop'!R2))),"") ->  | AV132: =IFERROR(INDEX(Database_Prop!$B$2:$B$1498,SMALL(IF(Database_Prop!$A$2:$A$1498=AV$129,ROW(Database_Prop!$B$2:$B$1498)-ROW(Database_Prop!$B$2)+1),ROWS(Database_Prop!S$2:'Database_Prop'!S2))),"") ->  | AW132: =IFERROR(INDEX(Database_Prop!$B$2:$B$1498,SMALL(IF(Database_Prop!$A$2:$A$1498=AW$129,ROW(Database_Prop!$B$2:$B$1498)-ROW(Database_Prop!$B$2)+1),ROWS(Database_Prop!T$2:'Database_Prop'!T2))),"") ->  | AX132: =IFERROR(INDEX(Database_Prop!$B$2:$B$1498,SMALL(IF(Database_Prop!$A$2:$A$1498=AX$129,ROW(Database_Prop!$B$2:$B$1498)-ROW(Database_Prop!$B$2)+1),ROWS(Database_Prop!U$2:'Database_Prop'!U2))),"") ->  | AY132: =IFERROR(INDEX(Database_Prop!$B$2:$B$1498,SMALL(IF(Database_Prop!$A$2:$A$1498=AY$129,ROW(Database_Prop!$B$2:$B$1498)-ROW(Database_Prop!$B$2)+1),ROWS(Database_Prop!V$2:'Database_Prop'!V2))),"") ->  | AZ132: =IFERROR(INDEX(Database_Prop!$B$2:$B$1498,SMALL(IF(Database_Prop!$A$2:$A$1498=AZ$129,ROW(Database_Prop!$B$2:$B$1498)-ROW(Database_Prop!$B$2)+1),ROWS(Database_Prop!W$2:'Database_Prop'!W2))),"") ->  | BA132: =IFERROR(INDEX(Database_Prop!$B$2:$B$1498,SMALL(IF(Database_Prop!$A$2:$A$1498=BA$129,ROW(Database_Prop!$B$2:$B$1498)-ROW(Database_Prop!$B$2)+1),ROWS(Database_Prop!X$2:'Database_Prop'!X2))),"") ->  | BB132: =IFERROR(INDEX(Database_Prop!$B$2:$B$1498,SMALL(IF(Database_Prop!$A$2:$A$1498=BB$129,ROW(Database_Prop!$B$2:$B$1498)-ROW(Database_Prop!$B$2)+1),ROWS(Database_Prop!Y$2:'Database_Prop'!Y2))),"") ->  | BC132: =IFERROR(INDEX(Database_Prop!$B$2:$B$1498,SMALL(IF(Database_Prop!$A$2:$A$1498=BC$129,ROW(Database_Prop!$B$2:$B$1498)-ROW(Database_Prop!$B$2)+1),ROWS(Database_Prop!Z$2:'Database_Prop'!Z2))),"") ->  | BD132: =title119 -> Crops | BE132: Albania | BF132: Eastern Europe | BH132: =title108 -> Main Category | BI132: =title109 -> Feedstock | BJ132: =G$24 -> VS (%) | BK132: =H$24 -> TS (%) | BL132: =I$24 -> BMP (m3/t VS) | BM132: CH4 (%) | BN132: Collection Price | BW132: =title175 -> Storage | BX132: =title176 -> Storage Selection
AE133: =AE132+1 -> 2 | AF133: =IFERROR(INDEX(Database_Prop!$B$2:$B$1498,SMALL(IF(Database_Prop!$A$2:$A$1498=AF$129,ROW(Database_Prop!$B$2:$B$1498)-ROW(Database_Prop!$B$2)+1),ROWS(Database_Prop!C$2:'Database_Prop'!C3))),"") ->  | AG133: =IFERROR(INDEX(Database_Prop!$B$2:$B$1498,SMALL(IF(Database_Prop!$A$2:$A$1498=AG$129,ROW(Database_Prop!$B$2:$B$1498)-ROW(Database_Prop!$B$2)+1),ROWS(Database_Prop!D$2:'Database_Prop'!D3))),"") ->  | AH133: =IFERROR(INDEX(Database_Prop!$B$2:$B$1498,SMALL(IF(Database_Prop!$A$2:$A$1498=AH$129,ROW(Database_Prop!$B$2:$B$1498)-ROW(Database_Prop!$B$2)+1),ROWS(Database_Prop!E$2:'Database_Prop'!E3))),"") ->  | AI133: =IFERROR(INDEX(Database_Prop!$B$2:$B$1498,SMALL(IF(Database_Prop!$A$2:$A$1498=AI$129,ROW(Database_Prop!$B$2:$B$1498)-ROW(Database_Prop!$B$2)+1),ROWS(Database_Prop!F$2:'Database_Prop'!F3))),"") ->  | AJ133: =IFERROR(INDEX(Database_Prop!$B$2:$B$1498,SMALL(IF(Database_Prop!$A$2:$A$1498=AJ$129,ROW(Database_Prop!$B$2:$B$1498)-ROW(Database_Prop!$B$2)+1),ROWS(Database_Prop!G$2:'Database_Prop'!G3))),"") ->  | AK133: =IFERROR(INDEX(Database_Prop!$B$2:$B$1498,SMALL(IF(Database_Prop!$A$2:$A$1498=AK$129,ROW(Database_Prop!$B$2:$B$1498)-ROW(Database_Prop!$B$2)+1),ROWS(Database_Prop!H$2:'Database_Prop'!H3))),"") ->  | AL133: =IFERROR(INDEX(Database_Prop!$B$2:$B$1498,SMALL(IF(Database_Prop!$A$2:$A$1498=AL$129,ROW(Database_Prop!$B$2:$B$1498)-ROW(Database_Prop!$B$2)+1),ROWS(Database_Prop!I$2:'Database_Prop'!I3))),"") ->  | AM133: =IFERROR(INDEX(Database_Prop!$B$2:$B$1498,SMALL(IF(Database_Prop!$A$2:$A$1498=AM$129,ROW(Database_Prop!$B$2:$B$1498)-ROW(Database_Prop!$B$2)+1),ROWS(Database_Prop!J$2:'Database_Prop'!J3))),"") ->  | AN133: =IFERROR(INDEX(Database_Prop!$B$2:$B$1498,SMALL(IF(Database_Prop!$A$2:$A$1498=AN$129,ROW(Database_Prop!$B$2:$B$1498)-ROW(Database_Prop!$B$2)+1),ROWS(Database_Prop!K$2:'Database_Prop'!K3))),"") ->  | AO133: =IFERROR(INDEX(Database_Prop!$B$2:$B$1498,SMALL(IF(Database_Prop!$A$2:$A$1498=AO$129,ROW(Database_Prop!$B$2:$B$1498)-ROW(Database_Prop!$B$2)+1),ROWS(Database_Prop!L$2:'Database_Prop'!L3))),"") ->  | AP133: =IFERROR(INDEX(Database_Prop!$B$2:$B$1498,SMALL(IF(Database_Prop!$A$2:$A$1498=AP$129,ROW(Database_Prop!$B$2:$B$1498)-ROW(Database_Prop!$B$2)+1),ROWS(Database_Prop!M$2:'Database_Prop'!M3))),"") ->  | AQ133: =IFERROR(INDEX(Database_Prop!$B$2:$B$1498,SMALL(IF(Database_Prop!$A$2:$A$1498=AQ$129,ROW(Database_Prop!$B$2:$B$1498)-ROW(Database_Prop!$B$2)+1),ROWS(Database_Prop!N$2:'Database_Prop'!N3))),"") ->  | AR133: =IFERROR(INDEX(Database_Prop!$B$2:$B$1498,SMALL(IF(Database_Prop!$A$2:$A$1498=AR$129,ROW(Database_Prop!$B$2:$B$1498)-ROW(Database_Prop!$B$2)+1),ROWS(Database_Prop!O$2:'Database_Prop'!O3))),"") ->  | AS133: =IFERROR(INDEX(Database_Prop!$B$2:$B$1498,SMALL(IF(Database_Prop!$A$2:$A$1498=AS$129,ROW(Database_Prop!$B$2:$B$1498)-ROW(Database_Prop!$B$2)+1),ROWS(Database_Prop!P$2:'Database_Prop'!P3))),"") ->  | AT133: =IFERROR(INDEX(Database_Prop!$B$2:$B$1498,SMALL(IF(Database_Prop!$A$2:$A$1498=AT$129,ROW(Database_Prop!$B$2:$B$1498)-ROW(Database_Prop!$B$2)+1),ROWS(Database_Prop!Q$2:'Database_Prop'!Q3))),"") ->  | AU133: =IFERROR(INDEX(Database_Prop!$B$2:$B$1498,SMALL(IF(Database_Prop!$A$2:$A$1498=AU$129,ROW(Database_Prop!$B$2:$B$1498)-ROW(Database_Prop!$B$2)+1),ROWS(Database_Prop!R$2:'Database_Prop'!R3))),"") ->  | AV133: =IFERROR(INDEX(Database_Prop!$B$2:$B$1498,SMALL(IF(Database_Prop!$A$2:$A$1498=AV$129,ROW(Database_Prop!$B$2:$B$1498)-ROW(Database_Prop!$B$2)+1),ROWS(Database_Prop!S$2:'Database_Prop'!S3))),"") ->  | AW133: =IFERROR(INDEX(Database_Prop!$B$2:$B$1498,SMALL(IF(Database_Prop!$A$2:$A$1498=AW$129,ROW(Database_Prop!$B$2:$B$1498)-ROW(Database_Prop!$B$2)+1),ROWS(Database_Prop!T$2:'Database_Prop'!T3))),"") ->  | AX133: =IFERROR(INDEX(Database_Prop!$B$2:$B$1498,SMALL(IF(Database_Prop!$A$2:$A$1498=AX$129,ROW(Database_Prop!$B$2:$B$1498)-ROW(Database_Prop!$B$2)+1),ROWS(Database_Prop!U$2:'Database_Prop'!U3))),"") ->  | AY133: =IFERROR(INDEX(Database_Prop!$B$2:$B$1498,SMALL(IF(Database_Prop!$A$2:$A$1498=AY$129,ROW(Database_Prop!$B$2:$B$1498)-ROW(Database_Prop!$B$2)+1),ROWS(Database_Prop!V$2:'Database_Prop'!V3))),"") ->  | AZ133: =IFERROR(INDEX(Database_Prop!$B$2:$B$1498,SMALL(IF(Database_Prop!$A$2:$A$1498=AZ$129,ROW(Database_Prop!$B$2:$B$1498)-ROW(Database_Prop!$B$2)+1),ROWS(Database_Prop!W$2:'Database_Prop'!W3))),"") ->  | BA133: =IFERROR(INDEX(Database_Prop!$B$2:$B$1498,SMALL(IF(Database_Prop!$A$2:$A$1498=BA$129,ROW(Database_Prop!$B$2:$B$1498)-ROW(Database_Prop!$B$2)+1),ROWS(Database_Prop!X$2:'Database_Prop'!X3))),"") ->  | BB133: =IFERROR(INDEX(Database_Prop!$B$2:$B$1498,SMALL(IF(Database_Prop!$A$2:$A$1498=BB$129,ROW(Database_Prop!$B$2:$B$1498)-ROW(Database_Prop!$B$2)+1),ROWS(Database_Prop!Y$2:'Database_Prop'!Y3))),"") ->  | BC133: =IFERROR(INDEX(Database_Prop!$B$2:$B$1498,SMALL(IF(Database_Prop!$A$2:$A$1498=BC$129,ROW(Database_Prop!$B$2:$B$1498)-ROW(Database_Prop!$B$2)+1),ROWS(Database_Prop!Z$2:'Database_Prop'!Z3))),"") ->  | BD133: =title185 -> Dairy-milk ind. | BE133: Algeria | BF133: Africa | BG133: FS3 | BH133: =D$25 -> Please Select | BI133: =E$25 -> Please Select | BJ133: =IFERROR(IF($BH133=title192,VLOOKUP($BH133&" "&$BI133,Database_Prop!$C:$G,2,FALSE),TEXT(VLOOKUP($BH133&" "&$BI133,Database_Prop!$C:$G,2,FALSE),"0%")),0) -> 0 | BK133: =IFERROR(VLOOKUP($BH133&" "&$BI133,Database_Prop!$C:$G,5,FALSE),0) -> 0 | BL133: =IFERROR(VLOOKUP($BH133&" "&$BI133,Database_Prop!$C:$G,3,FALSE),0) -> 0 | BM133: =IFERROR(VLOOKUP($BH133&" "&$BI133,Database_Prop!$C:$G,4,FALSE),0) -> 0 | BN133: 0 | BS133: =title174 -> Planner | BU133: =title7 -> Option 1: Heat and Electricity | BV133: 1 | BW133: 0 | BX133: =VLOOKUP('Biogas Use Selection'!$P$67,'Data entry needs'!BV133:$BW$137,2,FALSE) -> 0
AE134: =AE133+1 -> 3 | AF134: =IFERROR(INDEX(Database_Prop!$B$2:$B$1498,SMALL(IF(Database_Prop!$A$2:$A$1498=AF$129,ROW(Database_Prop!$B$2:$B$1498)-ROW(Database_Prop!$B$2)+1),ROWS(Database_Prop!C$2:'Database_Prop'!C4))),"") ->  | AG134: =IFERROR(INDEX(Database_Prop!$B$2:$B$1498,SMALL(IF(Database_Prop!$A$2:$A$1498=AG$129,ROW(Database_Prop!$B$2:$B$1498)-ROW(Database_Prop!$B$2)+1),ROWS(Database_Prop!D$2:'Database_Prop'!D4))),"") ->  | AH134: =IFERROR(INDEX(Database_Prop!$B$2:$B$1498,SMALL(IF(Database_Prop!$A$2:$A$1498=AH$129,ROW(Database_Prop!$B$2:$B$1498)-ROW(Database_Prop!$B$2)+1),ROWS(Database_Prop!E$2:'Database_Prop'!E4))),"") ->  | AI134: =IFERROR(INDEX(Database_Prop!$B$2:$B$1498,SMALL(IF(Database_Prop!$A$2:$A$1498=AI$129,ROW(Database_Prop!$B$2:$B$1498)-ROW(Database_Prop!$B$2)+1),ROWS(Database_Prop!F$2:'Database_Prop'!F4))),"") ->  | AJ134: =IFERROR(INDEX(Database_Prop!$B$2:$B$1498,SMALL(IF(Database_Prop!$A$2:$A$1498=AJ$129,ROW(Database_Prop!$B$2:$B$1498)-ROW(Database_Prop!$B$2)+1),ROWS(Database_Prop!G$2:'Database_Prop'!G4))),"") ->  | AK134: =IFERROR(INDEX(Database_Prop!$B$2:$B$1498,SMALL(IF(Database_Prop!$A$2:$A$1498=AK$129,ROW(Database_Prop!$B$2:$B$1498)-ROW(Database_Prop!$B$2)+1),ROWS(Database_Prop!H$2:'Database_Prop'!H4))),"") ->  | AL134: =IFERROR(INDEX(Database_Prop!$B$2:$B$1498,SMALL(IF(Database_Prop!$A$2:$A$1498=AL$129,ROW(Database_Prop!$B$2:$B$1498)-ROW(Database_Prop!$B$2)+1),ROWS(Database_Prop!I$2:'Database_Prop'!I4))),"") ->  | AM134: =IFERROR(INDEX(Database_Prop!$B$2:$B$1498,SMALL(IF(Database_Prop!$A$2:$A$1498=AM$129,ROW(Database_Prop!$B$2:$B$1498)-ROW(Database_Prop!$B$2)+1),ROWS(Database_Prop!J$2:'Database_Prop'!J4))),"") ->  | AN134: =IFERROR(INDEX(Database_Prop!$B$2:$B$1498,SMALL(IF(Database_Prop!$A$2:$A$1498=AN$129,ROW(Database_Prop!$B$2:$B$1498)-ROW(Database_Prop!$B$2)+1),ROWS(Database_Prop!K$2:'Database_Prop'!K4))),"") ->  | AO134: =IFERROR(INDEX(Database_Prop!$B$2:$B$1498,SMALL(IF(Database_Prop!$A$2:$A$1498=AO$129,ROW(Database_Prop!$B$2:$B$1498)-ROW(Database_Prop!$B$2)+1),ROWS(Database_Prop!L$2:'Database_Prop'!L4))),"") ->  | AP134: =IFERROR(INDEX(Database_Prop!$B$2:$B$1498,SMALL(IF(Database_Prop!$A$2:$A$1498=AP$129,ROW(Database_Prop!$B$2:$B$1498)-ROW(Database_Prop!$B$2)+1),ROWS(Database_Prop!M$2:'Database_Prop'!M4))),"") ->  | AQ134: =IFERROR(INDEX(Database_Prop!$B$2:$B$1498,SMALL(IF(Database_Prop!$A$2:$A$1498=AQ$129,ROW(Database_Prop!$B$2:$B$1498)-ROW(Database_Prop!$B$2)+1),ROWS(Database_Prop!N$2:'Database_Prop'!N4))),"") ->  | AR134: =IFERROR(INDEX(Database_Prop!$B$2:$B$1498,SMALL(IF(Database_Prop!$A$2:$A$1498=AR$129,ROW(Database_Prop!$B$2:$B$1498)-ROW(Database_Prop!$B$2)+1),ROWS(Database_Prop!O$2:'Database_Prop'!O4))),"") ->  | AS134: =IFERROR(INDEX(Database_Prop!$B$2:$B$1498,SMALL(IF(Database_Prop!$A$2:$A$1498=AS$129,ROW(Database_Prop!$B$2:$B$1498)-ROW(Database_Prop!$B$2)+1),ROWS(Database_Prop!P$2:'Database_Prop'!P4))),"") ->  | AT134: =IFERROR(INDEX(Database_Prop!$B$2:$B$1498,SMALL(IF(Database_Prop!$A$2:$A$1498=AT$129,ROW(Database_Prop!$B$2:$B$1498)-ROW(Database_Prop!$B$2)+1),ROWS(Database_Prop!Q$2:'Database_Prop'!Q4))),"") ->  | AU134: =IFERROR(INDEX(Database_Prop!$B$2:$B$1498,SMALL(IF(Database_Prop!$A$2:$A$1498=AU$129,ROW(Database_Prop!$B$2:$B$1498)-ROW(Database_Prop!$B$2)+1),ROWS(Database_Prop!R$2:'Database_Prop'!R4))),"") ->  | AV134: =IFERROR(INDEX(Database_Prop!$B$2:$B$1498,SMALL(IF(Database_Prop!$A$2:$A$1498=AV$129,ROW(Database_Prop!$B$2:$B$1498)-ROW(Database_Prop!$B$2)+1),ROWS(Database_Prop!S$2:'Database_Prop'!S4))),"") ->  | AW134: =IFERROR(INDEX(Database_Prop!$B$2:$B$1498,SMALL(IF(Database_Prop!$A$2:$A$1498=AW$129,ROW(Database_Prop!$B$2:$B$1498)-ROW(Database_Prop!$B$2)+1),ROWS(Database_Prop!T$2:'Database_Prop'!T4))),"") ->  | AX134: =IFERROR(INDEX(Database_Prop!$B$2:$B$1498,SMALL(IF(Database_Prop!$A$2:$A$1498=AX$129,ROW(Database_Prop!$B$2:$B$1498)-ROW(Database_Prop!$B$2)+1),ROWS(Database_Prop!U$2:'Database_Prop'!U4))),"") ->  | AY134: =IFERROR(INDEX(Database_Prop!$B$2:$B$1498,SMALL(IF(Database_Prop!$A$2:$A$1498=AY$129,ROW(Database_Prop!$B$2:$B$1498)-ROW(Database_Prop!$B$2)+1),ROWS(Database_Prop!V$2:'Database_Prop'!V4))),"") ->  | AZ134: =IFERROR(INDEX(Database_Prop!$B$2:$B$1498,SMALL(IF(Database_Prop!$A$2:$A$1498=AZ$129,ROW(Database_Prop!$B$2:$B$1498)-ROW(Database_Prop!$B$2)+1),ROWS(Database_Prop!W$2:'Database_Prop'!W4))),"") ->  | BA134: =IFERROR(INDEX(Database_Prop!$B$2:$B$1498,SMALL(IF(Database_Prop!$A$2:$A$1498=BA$129,ROW(Database_Prop!$B$2:$B$1498)-ROW(Database_Prop!$B$2)+1),ROWS(Database_Prop!X$2:'Database_Prop'!X4))),"") ->  | BB134: =IFERROR(INDEX(Database_Prop!$B$2:$B$1498,SMALL(IF(Database_Prop!$A$2:$A$1498=BB$129,ROW(Database_Prop!$B$2:$B$1498)-ROW(Database_Prop!$B$2)+1),ROWS(Database_Prop!Y$2:'Database_Prop'!Y4))),"") ->  | BC134: =IFERROR(INDEX(Database_Prop!$B$2:$B$1498,SMALL(IF(Database_Prop!$A$2:$A$1498=BC$129,ROW(Database_Prop!$B$2:$B$1498)-ROW(Database_Prop!$B$2)+1),ROWS(Database_Prop!Z$2:'Database_Prop'!Z4))),"") ->  | BD134: =title120 -> Energy Crops | BE134: American Samoa | BF134: Oceania | BH134: =title108 -> Main Category | BI134: =title109 -> Feedstock | BJ134: =G$26 -> VS (%) | BK134: =H$26 -> TS (%) | BL134: =I$26 -> BMP (m3/t VS) | BM134: CH4 (%) | BN134: Collection Price | BO134: =title98&" 1" -> Process 1 | BP134: =$F$10 -> TRUE | BQ134: =title172 -> Single | BR134: =AND($D$11,$BP$134) -> FALSE | BS134: =IF(SUM(Planner_PS1!$R$13:$R$17,Planner_PS1!$R$20)<>0,TRUE,FALSE) -> FALSE | BU134: =title30 -> Option 2: Heating and/or cooking | BV134: 2 | BW134: 1
AE135: 4 | AF135: =IFERROR(INDEX(Database_Prop!$B$2:$B$1498,SMALL(IF(Database_Prop!$A$2:$A$1498=AF$129,ROW(Database_Prop!$B$2:$B$1498)-ROW(Database_Prop!$B$2)+1),ROWS(Database_Prop!C$2:'Database_Prop'!C5))),"") ->  | AG135: =IFERROR(INDEX(Database_Prop!$B$2:$B$1498,SMALL(IF(Database_Prop!$A$2:$A$1498=AG$129,ROW(Database_Prop!$B$2:$B$1498)-ROW(Database_Prop!$B$2)+1),ROWS(Database_Prop!D$2:'Database_Prop'!D5))),"") ->  | AH135: =IFERROR(INDEX(Database_Prop!$B$2:$B$1498,SMALL(IF(Database_Prop!$A$2:$A$1498=AH$129,ROW(Database_Prop!$B$2:$B$1498)-ROW(Database_Prop!$B$2)+1),ROWS(Database_Prop!E$2:'Database_Prop'!E5))),"") ->  | AI135: =IFERROR(INDEX(Database_Prop!$B$2:$B$1498,SMALL(IF(Database_Prop!$A$2:$A$1498=AI$129,ROW(Database_Prop!$B$2:$B$1498)-ROW(Database_Prop!$B$2)+1),ROWS(Database_Prop!F$2:'Database_Prop'!F5))),"") ->  | AJ135: =IFERROR(INDEX(Database_Prop!$B$2:$B$1498,SMALL(IF(Database_Prop!$A$2:$A$1498=AJ$129,ROW(Database_Prop!$B$2:$B$1498)-ROW(Database_Prop!$B$2)+1),ROWS(Database_Prop!G$2:'Database_Prop'!G5))),"") ->  | AK135: =IFERROR(INDEX(Database_Prop!$B$2:$B$1498,SMALL(IF(Database_Prop!$A$2:$A$1498=AK$129,ROW(Database_Prop!$B$2:$B$1498)-ROW(Database_Prop!$B$2)+1),ROWS(Database_Prop!H$2:'Database_Prop'!H5))),"") ->  | AL135: =IFERROR(INDEX(Database_Prop!$B$2:$B$1498,SMALL(IF(Database_Prop!$A$2:$A$1498=AL$129,ROW(Database_Prop!$B$2:$B$1498)-ROW(Database_Prop!$B$2)+1),ROWS(Database_Prop!I$2:'Database_Prop'!I5))),"") ->  | AM135: =IFERROR(INDEX(Database_Prop!$B$2:$B$1498,SMALL(IF(Database_Prop!$A$2:$A$1498=AM$129,ROW(Database_Prop!$B$2:$B$1498)-ROW(Database_Prop!$B$2)+1),ROWS(Database_Prop!J$2:'Database_Prop'!J5))),"") ->  | AN135: =IFERROR(INDEX(Database_Prop!$B$2:$B$1498,SMALL(IF(Database_Prop!$A$2:$A$1498=AN$129,ROW(Database_Prop!$B$2:$B$1498)-ROW(Database_Prop!$B$2)+1),ROWS(Database_Prop!K$2:'Database_Prop'!K5))),"") ->  | AO135: =IFERROR(INDEX(Database_Prop!$B$2:$B$1498,SMALL(IF(Database_Prop!$A$2:$A$1498=AO$129,ROW(Database_Prop!$B$2:$B$1498)-ROW(Database_Prop!$B$2)+1),ROWS(Database_Prop!L$2:'Database_Prop'!L5))),"") ->  | AP135: =IFERROR(INDEX(Database_Prop!$B$2:$B$1498,SMALL(IF(Database_Prop!$A$2:$A$1498=AP$129,ROW(Database_Prop!$B$2:$B$1498)-ROW(Database_Prop!$B$2)+1),ROWS(Database_Prop!M$2:'Database_Prop'!M5))),"") ->  | AQ135: =IFERROR(INDEX(Database_Prop!$B$2:$B$1498,SMALL(IF(Database_Prop!$A$2:$A$1498=AQ$129,ROW(Database_Prop!$B$2:$B$1498)-ROW(Database_Prop!$B$2)+1),ROWS(Database_Prop!N$2:'Database_Prop'!N5))),"") ->  | AR135: =IFERROR(INDEX(Database_Prop!$B$2:$B$1498,SMALL(IF(Database_Prop!$A$2:$A$1498=AR$129,ROW(Database_Prop!$B$2:$B$1498)-ROW(Database_Prop!$B$2)+1),ROWS(Database_Prop!O$2:'Database_Prop'!O5))),"") ->  | AS135: =IFERROR(INDEX(Database_Prop!$B$2:$B$1498,SMALL(IF(Database_Prop!$A$2:$A$1498=AS$129,ROW(Database_Prop!$B$2:$B$1498)-ROW(Database_Prop!$B$2)+1),ROWS(Database_Prop!P$2:'Database_Prop'!P5))),"") ->  | AT135: =IFERROR(INDEX(Database_Prop!$B$2:$B$1498,SMALL(IF(Database_Prop!$A$2:$A$1498=AT$129,ROW(Database_Prop!$B$2:$B$1498)-ROW(Database_Prop!$B$2)+1),ROWS(Database_Prop!Q$2:'Database_Prop'!Q5))),"") ->  | AU135: =IFERROR(INDEX(Database_Prop!$B$2:$B$1498,SMALL(IF(Database_Prop!$A$2:$A$1498=AU$129,ROW(Database_Prop!$B$2:$B$1498)-ROW(Database_Prop!$B$2)+1),ROWS(Database_Prop!R$2:'Database_Prop'!R5))),"") ->  | AV135: =IFERROR(INDEX(Database_Prop!$B$2:$B$1498,SMALL(IF(Database_Prop!$A$2:$A$1498=AV$129,ROW(Database_Prop!$B$2:$B$1498)-ROW(Database_Prop!$B$2)+1),ROWS(Database_Prop!S$2:'Database_Prop'!S5))),"") ->  | AW135: =IFERROR(INDEX(Database_Prop!$B$2:$B$1498,SMALL(IF(Database_Prop!$A$2:$A$1498=AW$129,ROW(Database_Prop!$B$2:$B$1498)-ROW(Database_Prop!$B$2)+1),ROWS(Database_Prop!T$2:'Database_Prop'!T5))),"") ->  | AX135: =IFERROR(INDEX(Database_Prop!$B$2:$B$1498,SMALL(IF(Database_Prop!$A$2:$A$1498=AX$129,ROW(Database_Prop!$B$2:$B$1498)-ROW(Database_Prop!$B$2)+1),ROWS(Database_Prop!U$2:'Database_Prop'!U5))),"") ->  | AY135: =IFERROR(INDEX(Database_Prop!$B$2:$B$1498,SMALL(IF(Database_Prop!$A$2:$A$1498=AY$129,ROW(Database_Prop!$B$2:$B$1498)-ROW(Database_Prop!$B$2)+1),ROWS(Database_Prop!V$2:'Database_Prop'!V5))),"") ->  | AZ135: =IFERROR(INDEX(Database_Prop!$B$2:$B$1498,SMALL(IF(Database_Prop!$A$2:$A$1498=AZ$129,ROW(Database_Prop!$B$2:$B$1498)-ROW(Database_Prop!$B$2)+1),ROWS(Database_Prop!W$2:'Database_Prop'!W5))),"") ->  | BA135: =IFERROR(INDEX(Database_Prop!$B$2:$B$1498,SMALL(IF(Database_Prop!$A$2:$A$1498=BA$129,ROW(Database_Prop!$B$2:$B$1498)-ROW(Database_Prop!$B$2)+1),ROWS(Database_Prop!X$2:'Database_Prop'!X5))),"") ->  | BB135: =IFERROR(INDEX(Database_Prop!$B$2:$B$1498,SMALL(IF(Database_Prop!$A$2:$A$1498=BB$129,ROW(Database_Prop!$B$2:$B$1498)-ROW(Database_Prop!$B$2)+1),ROWS(Database_Prop!Y$2:'Database_Prop'!Y5))),"") ->  | BC135: =IFERROR(INDEX(Database_Prop!$B$2:$B$1498,SMALL(IF(Database_Prop!$A$2:$A$1498=BC$129,ROW(Database_Prop!$B$2:$B$1498)-ROW(Database_Prop!$B$2)+1),ROWS(Database_Prop!Z$2:'Database_Prop'!Z5))),"") ->  | BD135: =title186 -> Eth-Sugar-Starch Ind. | BE135: Andorra | BF135: Western Europe | BG135: FS4 | BH135: =D$27 -> Please Select | BI135: =E$27 -> Please Select | BJ135: =IFERROR(IF($BH135=title192,VLOOKUP($BH135&" "&$BI135,Database_Prop!$C:$G,2,FALSE),TEXT(VLOOKUP($BH135&" "&$BI135,Database_Prop!$C:$G,2,FALSE),"0%")),0) -> 0 | BK135: =IFERROR(VLOOKUP($BH135&" "&$BI135,Database_Prop!$C:$G,5,FALSE),0) -> 0 | BL135: =IFERROR(VLOOKUP($BH135&" "&$BI135,Database_Prop!$C:$G,3,FALSE),0) -> 0 | BM135: =IFERROR(VLOOKUP($BH135&" "&$BI135,Database_Prop!$C:$G,4,FALSE),0) -> 0 | BN135: 0 | BQ135: =title173 -> Multi | BR135: =AND($F$11,$BP$134) -> FALSE | BU135: =title34 -> Option 3: Electricity Only | BV135: 3 | BW135: 0
AE136: 5 | AF136: =IFERROR(INDEX(Database_Prop!$B$2:$B$1498,SMALL(IF(Database_Prop!$A$2:$A$1498=AF$129,ROW(Database_Prop!$B$2:$B$1498)-ROW(Database_Prop!$B$2)+1),ROWS(Database_Prop!C$2:'Database_Prop'!C6))),"") ->  | AG136: =IFERROR(INDEX(Database_Prop!$B$2:$B$1498,SMALL(IF(Database_Prop!$A$2:$A$1498=AG$129,ROW(Database_Prop!$B$2:$B$1498)-ROW(Database_Prop!$B$2)+1),ROWS(Database_Prop!D$2:'Database_Prop'!D6))),"") ->  | AH136: =IFERROR(INDEX(Database_Prop!$B$2:$B$1498,SMALL(IF(Database_Prop!$A$2:$A$1498=AH$129,ROW(Database_Prop!$B$2:$B$1498)-ROW(Database_Prop!$B$2)+1),ROWS(Database_Prop!E$2:'Database_Prop'!E6))),"") ->  | AI136: =IFERROR(INDEX(Database_Prop!$B$2:$B$1498,SMALL(IF(Database_Prop!$A$2:$A$1498=AI$129,ROW(Database_Prop!$B$2:$B$1498)-ROW(Database_Prop!$B$2)+1),ROWS(Database_Prop!F$2:'Database_Prop'!F6))),"") ->  | AJ136: =IFERROR(INDEX(Database_Prop!$B$2:$B$1498,SMALL(IF(Database_Prop!$A$2:$A$1498=AJ$129,ROW(Database_Prop!$B$2:$B$1498)-ROW(Database_Prop!$B$2)+1),ROWS(Database_Prop!G$2:'Database_Prop'!G6))),"") ->  | AK136: =IFERROR(INDEX(Database_Prop!$B$2:$B$1498,SMALL(IF(Database_Prop!$A$2:$A$1498=AK$129,ROW(Database_Prop!$B$2:$B$1498)-ROW(Database_Prop!$B$2)+1),ROWS(Database_Prop!H$2:'Database_Prop'!H6))),"") ->  | AL136: =IFERROR(INDEX(Database_Prop!$B$2:$B$1498,SMALL(IF(Database_Prop!$A$2:$A$1498=AL$129,ROW(Database_Prop!$B$2:$B$1498)-ROW(Database_Prop!$B$2)+1),ROWS(Database_Prop!I$2:'Database_Prop'!I6))),"") ->  | AM136: =IFERROR(INDEX(Database_Prop!$B$2:$B$1498,SMALL(IF(Database_Prop!$A$2:$A$1498=AM$129,ROW(Database_Prop!$B$2:$B$1498)-ROW(Database_Prop!$B$2)+1),ROWS(Database_Prop!J$2:'Database_Prop'!J6))),"") ->  | AN136: =IFERROR(INDEX(Database_Prop!$B$2:$B$1498,SMALL(IF(Database_Prop!$A$2:$A$1498=AN$129,ROW(Database_Prop!$B$2:$B$1498)-ROW(Database_Prop!$B$2)+1),ROWS(Database_Prop!K$2:'Database_Prop'!K6))),"") ->  | AO136: =IFERROR(INDEX(Database_Prop!$B$2:$B$1498,SMALL(IF(Database_Prop!$A$2:$A$1498=AO$129,ROW(Database_Prop!$B$2:$B$1498)-ROW(Database_Prop!$B$2)+1),ROWS(Database_Prop!L$2:'Database_Prop'!L6))),"") ->  | AP136: =IFERROR(INDEX(Database_Prop!$B$2:$B$1498,SMALL(IF(Database_Prop!$A$2:$A$1498=AP$129,ROW(Database_Prop!$B$2:$B$1498)-ROW(Database_Prop!$B$2)+1),ROWS(Database_Prop!M$2:'Database_Prop'!M6))),"") ->  | AQ136: =IFERROR(INDEX(Database_Prop!$B$2:$B$1498,SMALL(IF(Database_Prop!$A$2:$A$1498=AQ$129,ROW(Database_Prop!$B$2:$B$1498)-ROW(Database_Prop!$B$2)+1),ROWS(Database_Prop!N$2:'Database_Prop'!N6))),"") ->  | AR136: =IFERROR(INDEX(Database_Prop!$B$2:$B$1498,SMALL(IF(Database_Prop!$A$2:$A$1498=AR$129,ROW(Database_Prop!$B$2:$B$1498)-ROW(Database_Prop!$B$2)+1),ROWS(Database_Prop!O$2:'Database_Prop'!O6))),"") ->  | AS136: =IFERROR(INDEX(Database_Prop!$B$2:$B$1498,SMALL(IF(Database_Prop!$A$2:$A$1498=AS$129,ROW(Database_Prop!$B$2:$B$1498)-ROW(Database_Prop!$B$2)+1),ROWS(Database_Prop!P$2:'Database_Prop'!P6))),"") ->  | AT136: =IFERROR(INDEX(Database_Prop!$B$2:$B$1498,SMALL(IF(Database_Prop!$A$2:$A$1498=AT$129,ROW(Database_Prop!$B$2:$B$1498)-ROW(Database_Prop!$B$2)+1),ROWS(Database_Prop!Q$2:'Database_Prop'!Q6))),"") ->  | AU136: =IFERROR(INDEX(Database_Prop!$B$2:$B$1498,SMALL(IF(Database_Prop!$A$2:$A$1498=AU$129,ROW(Database_Prop!$B$2:$B$1498)-ROW(Database_Prop!$B$2)+1),ROWS(Database_Prop!R$2:'Database_Prop'!R6))),"") ->  | AV136: =IFERROR(INDEX(Database_Prop!$B$2:$B$1498,SMALL(IF(Database_Prop!$A$2:$A$1498=AV$129,ROW(Database_Prop!$B$2:$B$1498)-ROW(Database_Prop!$B$2)+1),ROWS(Database_Prop!S$2:'Database_Prop'!S6))),"") ->  | AW136: =IFERROR(INDEX(Database_Prop!$B$2:$B$1498,SMALL(IF(Database_Prop!$A$2:$A$1498=AW$129,ROW(Database_Prop!$B$2:$B$1498)-ROW(Database_Prop!$B$2)+1),ROWS(Database_Prop!T$2:'Database_Prop'!T6))),"") ->  | AX136: =IFERROR(INDEX(Database_Prop!$B$2:$B$1498,SMALL(IF(Database_Prop!$A$2:$A$1498=AX$129,ROW(Database_Prop!$B$2:$B$1498)-ROW(Database_Prop!$B$2)+1),ROWS(Database_Prop!U$2:'Database_Prop'!U6))),"") ->  | AY136: =IFERROR(INDEX(Database_Prop!$B$2:$B$1498,SMALL(IF(Database_Prop!$A$2:$A$1498=AY$129,ROW(Database_Prop!$B$2:$B$1498)-ROW(Database_Prop!$B$2)+1),ROWS(Database_Prop!V$2:'Database_Prop'!V6))),"") ->  | AZ136: =IFERROR(INDEX(Database_Prop!$B$2:$B$1498,SMALL(IF(Database_Prop!$A$2:$A$1498=AZ$129,ROW(Database_Prop!$B$2:$B$1498)-ROW(Database_Prop!$B$2)+1),ROWS(Database_Prop!W$2:'Database_Prop'!W6))),"") ->  | BA136: =IFERROR(INDEX(Database_Prop!$B$2:$B$1498,SMALL(IF(Database_Prop!$A$2:$A$1498=BA$129,ROW(Database_Prop!$B$2:$B$1498)-ROW(Database_Prop!$B$2)+1),ROWS(Database_Prop!X$2:'Database_Prop'!X6))),"") ->  | BB136: =IFERROR(INDEX(Database_Prop!$B$2:$B$1498,SMALL(IF(Database_Prop!$A$2:$A$1498=BB$129,ROW(Database_Prop!$B$2:$B$1498)-ROW(Database_Prop!$B$2)+1),ROWS(Database_Prop!Y$2:'Database_Prop'!Y6))),"") ->  | BC136: =IFERROR(INDEX(Database_Prop!$B$2:$B$1498,SMALL(IF(Database_Prop!$A$2:$A$1498=BC$129,ROW(Database_Prop!$B$2:$B$1498)-ROW(Database_Prop!$B$2)+1),ROWS(Database_Prop!Z$2:'Database_Prop'!Z6))),"") ->  | BD136: =title187 -> Food Process. Res. | BE136: Angola | BF136: Africa | BH136: =title108 -> Main Category | BI136: =title109 -> Feedstock | BJ136: =G$28 -> VS (%) | BK136: =H$28 -> TS (%) | BL136: =I$28 -> BMP (m3/t VS) | BM136: CH4 (%) | BN136: Collection Price | BQ136: =title167 -> Codigestion | BR136: =AND($J$11,$BP$134) -> TRUE | BU136: =title40 -> Option 4: Connection to natural gas line | BV136: 4 | BW136: 2
AE137: 6 | AF137: =IFERROR(INDEX(Database_Prop!$B$2:$B$1498,SMALL(IF(Database_Prop!$A$2:$A$1498=AF$129,ROW(Database_Prop!$B$2:$B$1498)-ROW(Database_Prop!$B$2)+1),ROWS(Database_Prop!C$2:'Database_Prop'!C7))),"") ->  | AG137: =IFERROR(INDEX(Database_Prop!$B$2:$B$1498,SMALL(IF(Database_Prop!$A$2:$A$1498=AG$129,ROW(Database_Prop!$B$2:$B$1498)-ROW(Database_Prop!$B$2)+1),ROWS(Database_Prop!D$2:'Database_Prop'!D7))),"") ->  | AH137: =IFERROR(INDEX(Database_Prop!$B$2:$B$1498,SMALL(IF(Database_Prop!$A$2:$A$1498=AH$129,ROW(Database_Prop!$B$2:$B$1498)-ROW(Database_Prop!$B$2)+1),ROWS(Database_Prop!E$2:'Database_Prop'!E7))),"") ->  | AI137: =IFERROR(INDEX(Database_Prop!$B$2:$B$1498,SMALL(IF(Database_Prop!$A$2:$A$1498=AI$129,ROW(Database_Prop!$B$2:$B$1498)-ROW(Database_Prop!$B$2)+1),ROWS(Database_Prop!F$2:'Database_Prop'!F7))),"") ->  | AJ137: =IFERROR(INDEX(Database_Prop!$B$2:$B$1498,SMALL(IF(Database_Prop!$A$2:$A$1498=AJ$129,ROW(Database_Prop!$B$2:$B$1498)-ROW(Database_Prop!$B$2)+1),ROWS(Database_Prop!G$2:'Database_Prop'!G7))),"") ->  | AK137: =IFERROR(INDEX(Database_Prop!$B$2:$B$1498,SMALL(IF(Database_Prop!$A$2:$A$1498=AK$129,ROW(Database_Prop!$B$2:$B$1498)-ROW(Database_Prop!$B$2)+1),ROWS(Database_Prop!H$2:'Database_Prop'!H7))),"") ->  | AL137: =IFERROR(INDEX(Database_Prop!$B$2:$B$1498,SMALL(IF(Database_Prop!$A$2:$A$1498=AL$129,ROW(Database_Prop!$B$2:$B$1498)-ROW(Database_Prop!$B$2)+1),ROWS(Database_Prop!I$2:'Database_Prop'!I7))),"") ->  | AM137: =IFERROR(INDEX(Database_Prop!$B$2:$B$1498,SMALL(IF(Database_Prop!$A$2:$A$1498=AM$129,ROW(Database_Prop!$B$2:$B$1498)-ROW(Database_Prop!$B$2)+1),ROWS(Database_Prop!J$2:'Database_Prop'!J7))),"") ->  | AN137: =IFERROR(INDEX(Database_Prop!$B$2:$B$1498,SMALL(IF(Database_Prop!$A$2:$A$1498=AN$129,ROW(Database_Prop!$B$2:$B$1498)-ROW(Database_Prop!$B$2)+1),ROWS(Database_Prop!K$2:'Database_Prop'!K7))),"") ->  | AO137: =IFERROR(INDEX(Database_Prop!$B$2:$B$1498,SMALL(IF(Database_Prop!$A$2:$A$1498=AO$129,ROW(Database_Prop!$B$2:$B$1498)-ROW(Database_Prop!$B$2)+1),ROWS(Database_Prop!L$2:'Database_Prop'!L7))),"") ->  | AP137: =IFERROR(INDEX(Database_Prop!$B$2:$B$1498,SMALL(IF(Database_Prop!$A$2:$A$1498=AP$129,ROW(Database_Prop!$B$2:$B$1498)-ROW(Database_Prop!$B$2)+1),ROWS(Database_Prop!M$2:'Database_Prop'!M7))),"") ->  | AQ137: =IFERROR(INDEX(Database_Prop!$B$2:$B$1498,SMALL(IF(Database_Prop!$A$2:$A$1498=AQ$129,ROW(Database_Prop!$B$2:$B$1498)-ROW(Database_Prop!$B$2)+1),ROWS(Database_Prop!N$2:'Database_Prop'!N7))),"") ->  | AR137: =IFERROR(INDEX(Database_Prop!$B$2:$B$1498,SMALL(IF(Database_Prop!$A$2:$A$1498=AR$129,ROW(Database_Prop!$B$2:$B$1498)-ROW(Database_Prop!$B$2)+1),ROWS(Database_Prop!O$2:'Database_Prop'!O7))),"") ->  | AS137: =IFERROR(INDEX(Database_Prop!$B$2:$B$1498,SMALL(IF(Database_Prop!$A$2:$A$1498=AS$129,ROW(Database_Prop!$B$2:$B$1498)-ROW(Database_Prop!$B$2)+1),ROWS(Database_Prop!P$2:'Database_Prop'!P7))),"") ->  | AT137: =IFERROR(INDEX(Database_Prop!$B$2:$B$1498,SMALL(IF(Database_Prop!$A$2:$A$1498=AT$129,ROW(Database_Prop!$B$2:$B$1498)-ROW(Database_Prop!$B$2)+1),ROWS(Database_Prop!Q$2:'Database_Prop'!Q7))),"") ->  | AU137: =IFERROR(INDEX(Database_Prop!$B$2:$B$1498,SMALL(IF(Database_Prop!$A$2:$A$1498=AU$129,ROW(Database_Prop!$B$2:$B$1498)-ROW(Database_Prop!$B$2)+1),ROWS(Database_Prop!R$2:'Database_Prop'!R7))),"") ->  | AV137: =IFERROR(INDEX(Database_Prop!$B$2:$B$1498,SMALL(IF(Database_Prop!$A$2:$A$1498=AV$129,ROW(Database_Prop!$B$2:$B$1498)-ROW(Database_Prop!$B$2)+1),ROWS(Database_Prop!S$2:'Database_Prop'!S7))),"") ->  | AW137: =IFERROR(INDEX(Database_Prop!$B$2:$B$1498,SMALL(IF(Database_Prop!$A$2:$A$1498=AW$129,ROW(Database_Prop!$B$2:$B$1498)-ROW(Database_Prop!$B$2)+1),ROWS(Database_Prop!T$2:'Database_Prop'!T7))),"") ->  | AX137: =IFERROR(INDEX(Database_Prop!$B$2:$B$1498,SMALL(IF(Database_Prop!$A$2:$A$1498=AX$129,ROW(Database_Prop!$B$2:$B$1498)-ROW(Database_Prop!$B$2)+1),ROWS(Database_Prop!U$2:'Database_Prop'!U7))),"") ->  | AY137: =IFERROR(INDEX(Database_Prop!$B$2:$B$1498,SMALL(IF(Database_Prop!$A$2:$A$1498=AY$129,ROW(Database_Prop!$B$2:$B$1498)-ROW(Database_Prop!$B$2)+1),ROWS(Database_Prop!V$2:'Database_Prop'!V7))),"") ->  | AZ137: =IFERROR(INDEX(Database_Prop!$B$2:$B$1498,SMALL(IF(Database_Prop!$A$2:$A$1498=AZ$129,ROW(Database_Prop!$B$2:$B$1498)-ROW(Database_Prop!$B$2)+1),ROWS(Database_Prop!W$2:'Database_Prop'!W7))),"") ->  | BA137: =IFERROR(INDEX(Database_Prop!$B$2:$B$1498,SMALL(IF(Database_Prop!$A$2:$A$1498=BA$129,ROW(Database_Prop!$B$2:$B$1498)-ROW(Database_Prop!$B$2)+1),ROWS(Database_Prop!X$2:'Database_Prop'!X7))),"") ->  | BB137: =IFERROR(INDEX(Database_Prop!$B$2:$B$1498,SMALL(IF(Database_Prop!$A$2:$A$1498=BB$129,ROW(Database_Prop!$B$2:$B$1498)-ROW(Database_Prop!$B$2)+1),ROWS(Database_Prop!Y$2:'Database_Prop'!Y7))),"") ->  | BC137: =IFERROR(INDEX(Database_Prop!$B$2:$B$1498,SMALL(IF(Database_Prop!$A$2:$A$1498=BC$129,ROW(Database_Prop!$B$2:$B$1498)-ROW(Database_Prop!$B$2)+1),ROWS(Database_Prop!Z$2:'Database_Prop'!Z7))),"") ->  | BD137: =title188 -> Grass | BE137: Anguilla | BF137: Latin America | BG137: FS5 | BH137: =D$29 -> Please Select | BI137: =E$29 -> Please Select | BJ137: =IFERROR(IF($BH137=title192,VLOOKUP($BH137&" "&$BI137,Database_Prop!$C:$G,2,FALSE),TEXT(VLOOKUP($BH137&" "&$BI137,Database_Prop!$C:$G,2,FALSE),"0%")),0) -> 0 | BK137: =IFERROR(VLOOKUP($BH137&" "&$BI137,Database_Prop!$C:$G,5,FALSE),0) -> 0 | BL137: =IFERROR(VLOOKUP($BH137&" "&$BI137,Database_Prop!$C:$G,3,FALSE),0) -> 0 | BM137: =IFERROR(VLOOKUP($BH137&" "&$BI137,Database_Prop!$C:$G,4,FALSE),0) -> 0 | BN137: 0 | BO137: =title98&" 2" -> Process 2 | BP137: =$H$10 -> TRUE | BQ137: =title172 -> Single | BR137: =AND($D$11,BP137) -> FALSE | BS137: =IF(SUM(Planner_PS2!$R$13:$R$17,Planner_PS2!$R$20)<>0,TRUE,FALSE) -> FALSE | BU137: =title183 -> Option 5: Vehicular Gas | BV137: 5 | BW137: 3
AE138: 7 | AF138: =IFERROR(INDEX(Database_Prop!$B$2:$B$1498,SMALL(IF(Database_Prop!$A$2:$A$1498=AF$129,ROW(Database_Prop!$B$2:$B$1498)-ROW(Database_Prop!$B$2)+1),ROWS(Database_Prop!C$2:'Database_Prop'!C8))),"") ->  | AG138: =IFERROR(INDEX(Database_Prop!$B$2:$B$1498,SMALL(IF(Database_Prop!$A$2:$A$1498=AG$129,ROW(Database_Prop!$B$2:$B$1498)-ROW(Database_Prop!$B$2)+1),ROWS(Database_Prop!D$2:'Database_Prop'!D8))),"") ->  | AH138: =IFERROR(INDEX(Database_Prop!$B$2:$B$1498,SMALL(IF(Database_Prop!$A$2:$A$1498=AH$129,ROW(Database_Prop!$B$2:$B$1498)-ROW(Database_Prop!$B$2)+1),ROWS(Database_Prop!E$2:'Database_Prop'!E8))),"") ->  | AI138: =IFERROR(INDEX(Database_Prop!$B$2:$B$1498,SMALL(IF(Database_Prop!$A$2:$A$1498=AI$129,ROW(Database_Prop!$B$2:$B$1498)-ROW(Database_Prop!$B$2)+1),ROWS(Database_Prop!F$2:'Database_Prop'!F8))),"") ->  | AJ138: =IFERROR(INDEX(Database_Prop!$B$2:$B$1498,SMALL(IF(Database_Prop!$A$2:$A$1498=AJ$129,ROW(Database_Prop!$B$2:$B$1498)-ROW(Database_Prop!$B$2)+1),ROWS(Database_Prop!G$2:'Database_Prop'!G8))),"") ->  | AK138: =IFERROR(INDEX(Database_Prop!$B$2:$B$1498,SMALL(IF(Database_Prop!$A$2:$A$1498=AK$129,ROW(Database_Prop!$B$2:$B$1498)-ROW(Database_Prop!$B$2)+1),ROWS(Database_Prop!H$2:'Database_Prop'!H8))),"") ->  | AL138: =IFERROR(INDEX(Database_Prop!$B$2:$B$1498,SMALL(IF(Database_Prop!$A$2:$A$1498=AL$129,ROW(Database_Prop!$B$2:$B$1498)-ROW(Database_Prop!$B$2)+1),ROWS(Database_Prop!I$2:'Database_Prop'!I8))),"") ->  | AM138: =IFERROR(INDEX(Database_Prop!$B$2:$B$1498,SMALL(IF(Database_Prop!$A$2:$A$1498=AM$129,ROW(Database_Prop!$B$2:$B$1498)-ROW(Database_Prop!$B$2)+1),ROWS(Database_Prop!J$2:'Database_Prop'!J8))),"") ->  | AN138: =IFERROR(INDEX(Database_Prop!$B$2:$B$1498,SMALL(IF(Database_Prop!$A$2:$A$1498=AN$129,ROW(Database_Prop!$B$2:$B$1498)-ROW(Database_Prop!$B$2)+1),ROWS(Database_Prop!K$2:'Database_Prop'!K8))),"") ->  | AO138: =IFERROR(INDEX(Database_Prop!$B$2:$B$1498,SMALL(IF(Database_Prop!$A$2:$A$1498=AO$129,ROW(Database_Prop!$B$2:$B$1498)-ROW(Database_Prop!$B$2)+1),ROWS(Database_Prop!L$2:'Database_Prop'!L8))),"") ->  | AP138: =IFERROR(INDEX(Database_Prop!$B$2:$B$1498,SMALL(IF(Database_Prop!$A$2:$A$1498=AP$129,ROW(Database_Prop!$B$2:$B$1498)-ROW(Database_Prop!$B$2)+1),ROWS(Database_Prop!M$2:'Database_Prop'!M8))),"") ->  | AQ138: =IFERROR(INDEX(Database_Prop!$B$2:$B$1498,SMALL(IF(Database_Prop!$A$2:$A$1498=AQ$129,ROW(Database_Prop!$B$2:$B$1498)-ROW(Database_Prop!$B$2)+1),ROWS(Database_Prop!N$2:'Database_Prop'!N8))),"") ->  | AR138: =IFERROR(INDEX(Database_Prop!$B$2:$B$1498,SMALL(IF(Database_Prop!$A$2:$A$1498=AR$129,ROW(Database_Prop!$B$2:$B$1498)-ROW(Database_Prop!$B$2)+1),ROWS(Database_Prop!O$2:'Database_Prop'!O8))),"") ->  | AS138: =IFERROR(INDEX(Database_Prop!$B$2:$B$1498,SMALL(IF(Database_Prop!$A$2:$A$1498=AS$129,ROW(Database_Prop!$B$2:$B$1498)-ROW(Database_Prop!$B$2)+1),ROWS(Database_Prop!P$2:'Database_Prop'!P8))),"") ->  | AT138: =IFERROR(INDEX(Database_Prop!$B$2:$B$1498,SMALL(IF(Database_Prop!$A$2:$A$1498=AT$129,ROW(Database_Prop!$B$2:$B$1498)-ROW(Database_Prop!$B$2)+1),ROWS(Database_Prop!Q$2:'Database_Prop'!Q8))),"") ->  | AU138: =IFERROR(INDEX(Database_Prop!$B$2:$B$1498,SMALL(IF(Database_Prop!$A$2:$A$1498=AU$129,ROW(Database_Prop!$B$2:$B$1498)-ROW(Database_Prop!$B$2)+1),ROWS(Database_Prop!R$2:'Database_Prop'!R8))),"") ->  | AV138: =IFERROR(INDEX(Database_Prop!$B$2:$B$1498,SMALL(IF(Database_Prop!$A$2:$A$1498=AV$129,ROW(Database_Prop!$B$2:$B$1498)-ROW(Database_Prop!$B$2)+1),ROWS(Database_Prop!S$2:'Database_Prop'!S8))),"") ->  | AW138: =IFERROR(INDEX(Database_Prop!$B$2:$B$1498,SMALL(IF(Database_Prop!$A$2:$A$1498=AW$129,ROW(Database_Prop!$B$2:$B$1498)-ROW(Database_Prop!$B$2)+1),ROWS(Database_Prop!T$2:'Database_Prop'!T8))),"") ->  | AX138: =IFERROR(INDEX(Database_Prop!$B$2:$B$1498,SMALL(IF(Database_Prop!$A$2:$A$1498=AX$129,ROW(Database_Prop!$B$2:$B$1498)-ROW(Database_Prop!$B$2)+1),ROWS(Database_Prop!U$2:'Database_Prop'!U8))),"") ->  | AY138: =IFERROR(INDEX(Database_Prop!$B$2:$B$1498,SMALL(IF(Database_Prop!$A$2:$A$1498=AY$129,ROW(Database_Prop!$B$2:$B$1498)-ROW(Database_Prop!$B$2)+1),ROWS(Database_Prop!V$2:'Database_Prop'!V8))),"") ->  | AZ138: =IFERROR(INDEX(Database_Prop!$B$2:$B$1498,SMALL(IF(Database_Prop!$A$2:$A$1498=AZ$129,ROW(Database_Prop!$B$2:$B$1498)-ROW(Database_Prop!$B$2)+1),ROWS(Database_Prop!W$2:'Database_Prop'!W8))),"") ->  | BA138: =IFERROR(INDEX(Database_Prop!$B$2:$B$1498,SMALL(IF(Database_Prop!$A$2:$A$1498=BA$129,ROW(Database_Prop!$B$2:$B$1498)-ROW(Database_Prop!$B$2)+1),ROWS(Database_Prop!X$2:'Database_Prop'!X8))),"") ->  | BB138: =IFERROR(INDEX(Database_Prop!$B$2:$B$1498,SMALL(IF(Database_Prop!$A$2:$A$1498=BB$129,ROW(Database_Prop!$B$2:$B$1498)-ROW(Database_Prop!$B$2)+1),ROWS(Database_Prop!Y$2:'Database_Prop'!Y8))),"") ->  | BC138: =IFERROR(INDEX(Database_Prop!$B$2:$B$1498,SMALL(IF(Database_Prop!$A$2:$A$1498=BC$129,ROW(Database_Prop!$B$2:$B$1498)-ROW(Database_Prop!$B$2)+1),ROWS(Database_Prop!Z$2:'Database_Prop'!Z8))),"") ->  | BD138: =title189 -> Other Options | BE138: Antigua and Barbuda | BF138: Latin America | BH138: =title108 -> Main Category | BI138: =title109 -> Feedstock | BJ138: =G$28 -> VS (%) | BK138: =H$28 -> TS (%) | BL138: =I$28 -> BMP (m3/t VS) | BM138: CH4 (%) | BN138: Collection Price | BQ138: =title173 -> Multi | BR138: =AND($F$11,BP137) -> FALSE
AE139: 8 | AF139: =IFERROR(INDEX(Database_Prop!$B$2:$B$1498,SMALL(IF(Database_Prop!$A$2:$A$1498=AF$129,ROW(Database_Prop!$B$2:$B$1498)-ROW(Database_Prop!$B$2)+1),ROWS(Database_Prop!C$2:'Database_Prop'!C9))),"") ->  | AG139: =IFERROR(INDEX(Database_Prop!$B$2:$B$1498,SMALL(IF(Database_Prop!$A$2:$A$1498=AG$129,ROW(Database_Prop!$B$2:$B$1498)-ROW(Database_Prop!$B$2)+1),ROWS(Database_Prop!D$2:'Database_Prop'!D9))),"") ->  | AH139: =IFERROR(INDEX(Database_Prop!$B$2:$B$1498,SMALL(IF(Database_Prop!$A$2:$A$1498=AH$129,ROW(Database_Prop!$B$2:$B$1498)-ROW(Database_Prop!$B$2)+1),ROWS(Database_Prop!E$2:'Database_Prop'!E9))),"") ->  | AI139: =IFERROR(INDEX(Database_Prop!$B$2:$B$1498,SMALL(IF(Database_Prop!$A$2:$A$1498=AI$129,ROW(Database_Prop!$B$2:$B$1498)-ROW(Database_Prop!$B$2)+1),ROWS(Database_Prop!F$2:'Database_Prop'!F9))),"") ->  | AJ139: =IFERROR(INDEX(Database_Prop!$B$2:$B$1498,SMALL(IF(Database_Prop!$A$2:$A$1498=AJ$129,ROW(Database_Prop!$B$2:$B$1498)-ROW(Database_Prop!$B$2)+1),ROWS(Database_Prop!G$2:'Database_Prop'!G9))),"") ->  | AK139: =IFERROR(INDEX(Database_Prop!$B$2:$B$1498,SMALL(IF(Database_Prop!$A$2:$A$1498=AK$129,ROW(Database_Prop!$B$2:$B$1498)-ROW(Database_Prop!$B$2)+1),ROWS(Database_Prop!H$2:'Database_Prop'!H9))),"") ->  | AL139: =IFERROR(INDEX(Database_Prop!$B$2:$B$1498,SMALL(IF(Database_Prop!$A$2:$A$1498=AL$129,ROW(Database_Prop!$B$2:$B$1498)-ROW(Database_Prop!$B$2)+1),ROWS(Database_Prop!I$2:'Database_Prop'!I9))),"") ->  | AM139: =IFERROR(INDEX(Database_Prop!$B$2:$B$1498,SMALL(IF(Database_Prop!$A$2:$A$1498=AM$129,ROW(Database_Prop!$B$2:$B$1498)-ROW(Database_Prop!$B$2)+1),ROWS(Database_Prop!J$2:'Database_Prop'!J9))),"") ->  | AN139: =IFERROR(INDEX(Database_Prop!$B$2:$B$1498,SMALL(IF(Database_Prop!$A$2:$A$1498=AN$129,ROW(Database_Prop!$B$2:$B$1498)-ROW(Database_Prop!$B$2)+1),ROWS(Database_Prop!K$2:'Database_Prop'!K9))),"") ->  | AO139: =IFERROR(INDEX(Database_Prop!$B$2:$B$1498,SMALL(IF(Database_Prop!$A$2:$A$1498=AO$129,ROW(Database_Prop!$B$2:$B$1498)-ROW(Database_Prop!$B$2)+1),ROWS(Database_Prop!L$2:'Database_Prop'!L9))),"") ->  | AP139: =IFERROR(INDEX(Database_Prop!$B$2:$B$1498,SMALL(IF(Database_Prop!$A$2:$A$1498=AP$129,ROW(Database_Prop!$B$2:$B$1498)-ROW(Database_Prop!$B$2)+1),ROWS(Database_Prop!M$2:'Database_Prop'!M9))),"") ->  | AQ139: =IFERROR(INDEX(Database_Prop!$B$2:$B$1498,SMALL(IF(Database_Prop!$A$2:$A$1498=AQ$129,ROW(Database_Prop!$B$2:$B$1498)-ROW(Database_Prop!$B$2)+1),ROWS(Database_Prop!N$2:'Database_Prop'!N9))),"") ->  | AR139: =IFERROR(INDEX(Database_Prop!$B$2:$B$1498,SMALL(IF(Database_Prop!$A$2:$A$1498=AR$129,ROW(Database_Prop!$B$2:$B$1498)-ROW(Database_Prop!$B$2)+1),ROWS(Database_Prop!O$2:'Database_Prop'!O9))),"") ->  | AS139: =IFERROR(INDEX(Database_Prop!$B$2:$B$1498,SMALL(IF(Database_Prop!$A$2:$A$1498=AS$129,ROW(Database_Prop!$B$2:$B$1498)-ROW(Database_Prop!$B$2)+1),ROWS(Database_Prop!P$2:'Database_Prop'!P9))),"") ->  | AT139: =IFERROR(INDEX(Database_Prop!$B$2:$B$1498,SMALL(IF(Database_Prop!$A$2:$A$1498=AT$129,ROW(Database_Prop!$B$2:$B$1498)-ROW(Database_Prop!$B$2)+1),ROWS(Database_Prop!Q$2:'Database_Prop'!Q9))),"") ->  | AU139: =IFERROR(INDEX(Database_Prop!$B$2:$B$1498,SMALL(IF(Database_Prop!$A$2:$A$1498=AU$129,ROW(Database_Prop!$B$2:$B$1498)-ROW(Database_Prop!$B$2)+1),ROWS(Database_Prop!R$2:'Database_Prop'!R9))),"") ->  | AV139: =IFERROR(INDEX(Database_Prop!$B$2:$B$1498,SMALL(IF(Database_Prop!$A$2:$A$1498=AV$129,ROW(Database_Prop!$B$2:$B$1498)-ROW(Database_Prop!$B$2)+1),ROWS(Database_Prop!S$2:'Database_Prop'!S9))),"") ->  | AW139: =IFERROR(INDEX(Database_Prop!$B$2:$B$1498,SMALL(IF(Database_Prop!$A$2:$A$1498=AW$129,ROW(Database_Prop!$B$2:$B$1498)-ROW(Database_Prop!$B$2)+1),ROWS(Database_Prop!T$2:'Database_Prop'!T9))),"") ->  | AX139: =IFERROR(INDEX(Database_Prop!$B$2:$B$1498,SMALL(IF(Database_Prop!$A$2:$A$1498=AX$129,ROW(Database_Prop!$B$2:$B$1498)-ROW(Database_Prop!$B$2)+1),ROWS(Database_Prop!U$2:'Database_Prop'!U9))),"") ->  | AY139: =IFERROR(INDEX(Database_Prop!$B$2:$B$1498,SMALL(IF(Database_Prop!$A$2:$A$1498=AY$129,ROW(Database_Prop!$B$2:$B$1498)-ROW(Database_Prop!$B$2)+1),ROWS(Database_Prop!V$2:'Database_Prop'!V9))),"") ->  | AZ139: =IFERROR(INDEX(Database_Prop!$B$2:$B$1498,SMALL(IF(Database_Prop!$A$2:$A$1498=AZ$129,ROW(Database_Prop!$B$2:$B$1498)-ROW(Database_Prop!$B$2)+1),ROWS(Database_Prop!W$2:'Database_Prop'!W9))),"") ->  | BA139: =IFERROR(INDEX(Database_Prop!$B$2:$B$1498,SMALL(IF(Database_Prop!$A$2:$A$1498=BA$129,ROW(Database_Prop!$B$2:$B$1498)-ROW(Database_Prop!$B$2)+1),ROWS(Database_Prop!X$2:'Database_Prop'!X9))),"") ->  | BB139: =IFERROR(INDEX(Database_Prop!$B$2:$B$1498,SMALL(IF(Database_Prop!$A$2:$A$1498=BB$129,ROW(Database_Prop!$B$2:$B$1498)-ROW(Database_Prop!$B$2)+1),ROWS(Database_Prop!Y$2:'Database_Prop'!Y9))),"") ->  | BC139: =IFERROR(INDEX(Database_Prop!$B$2:$B$1498,SMALL(IF(Database_Prop!$A$2:$A$1498=BC$129,ROW(Database_Prop!$B$2:$B$1498)-ROW(Database_Prop!$B$2)+1),ROWS(Database_Prop!Z$2:'Database_Prop'!Z9))),"") ->  | BD139: =title190 -> Slaughterhouses wastes | BE139: Argentina | BF139: Latin America | BG139: FS6 | BH139: =D$33 -> Please Select | BI139: =E$33 -> Please Select | BJ139: =IFERROR(IF($BH139=title192,VLOOKUP($BH139&" "&$BI139,Database_Prop!$C:$G,2,FALSE),TEXT(VLOOKUP($BH139&" "&$BI139,Database_Prop!$C:$G,2,FALSE),"0%")),0) -> 0 | BK139: =IFERROR(VLOOKUP($BH139&" "&$BI139,Database_Prop!$C:$G,5,FALSE),0) -> 0 | BL139: =IFERROR(VLOOKUP($BH139&" "&$BI139,Database_Prop!$C:$G,3,FALSE),0) -> 0 | BM139: =IFERROR(VLOOKUP($BH139&" "&$BI139,Database_Prop!$C:$G,4,FALSE),0) -> 0 | BN139: 0 | BQ139: =title167 -> Codigestion | BR139: =AND($J$11,BP137) -> TRUE
AE140: 9 | AF140: =IFERROR(INDEX(Database_Prop!$B$2:$B$1498,SMALL(IF(Database_Prop!$A$2:$A$1498=AF$129,ROW(Database_Prop!$B$2:$B$1498)-ROW(Database_Prop!$B$2)+1),ROWS(Database_Prop!C$2:'Database_Prop'!C10))),"") ->  | AG140: =IFERROR(INDEX(Database_Prop!$B$2:$B$1498,SMALL(IF(Database_Prop!$A$2:$A$1498=AG$129,ROW(Database_Prop!$B$2:$B$1498)-ROW(Database_Prop!$B$2)+1),ROWS(Database_Prop!D$2:'Database_Prop'!D10))),"") ->  | AH140: =IFERROR(INDEX(Database_Prop!$B$2:$B$1498,SMALL(IF(Database_Prop!$A$2:$A$1498=AH$129,ROW(Database_Prop!$B$2:$B$1498)-ROW(Database_Prop!$B$2)+1),ROWS(Database_Prop!E$2:'Database_Prop'!E10))),"") ->  | AI140: =IFERROR(INDEX(Database_Prop!$B$2:$B$1498,SMALL(IF(Database_Prop!$A$2:$A$1498=AI$129,ROW(Database_Prop!$B$2:$B$1498)-ROW(Database_Prop!$B$2)+1),ROWS(Database_Prop!F$2:'Database_Prop'!F10))),"") ->  | AJ140: =IFERROR(INDEX(Database_Prop!$B$2:$B$1498,SMALL(IF(Database_Prop!$A$2:$A$1498=AJ$129,ROW(Database_Prop!$B$2:$B$1498)-ROW(Database_Prop!$B$2)+1),ROWS(Database_Prop!G$2:'Database_Prop'!G10))),"") ->  | AK140: =IFERROR(INDEX(Database_Prop!$B$2:$B$1498,SMALL(IF(Database_Prop!$A$2:$A$1498=AK$129,ROW(Database_Prop!$B$2:$B$1498)-ROW(Database_Prop!$B$2)+1),ROWS(Database_Prop!H$2:'Database_Prop'!H10))),"") ->  | AL140: =IFERROR(INDEX(Database_Prop!$B$2:$B$1498,SMALL(IF(Database_Prop!$A$2:$A$1498=AL$129,ROW(Database_Prop!$B$2:$B$1498)-ROW(Database_Prop!$B$2)+1),ROWS(Database_Prop!I$2:'Database_Prop'!I10))),"") ->  | AM140: =IFERROR(INDEX(Database_Prop!$B$2:$B$1498,SMALL(IF(Database_Prop!$A$2:$A$1498=AM$129,ROW(Database_Prop!$B$2:$B$1498)-ROW(Database_Prop!$B$2)+1),ROWS(Database_Prop!J$2:'Database_Prop'!J10))),"") ->  | AN140: =IFERROR(INDEX(Database_Prop!$B$2:$B$1498,SMALL(IF(Database_Prop!$A$2:$A$1498=AN$129,ROW(Database_Prop!$B$2:$B$1498)-ROW(Database_Prop!$B$2)+1),ROWS(Database_Prop!K$2:'Database_Prop'!K10))),"") ->  | AO140: =IFERROR(INDEX(Database_Prop!$B$2:$B$1498,SMALL(IF(Database_Prop!$A$2:$A$1498=AO$129,ROW(Database_Prop!$B$2:$B$1498)-ROW(Database_Prop!$B$2)+1),ROWS(Database_Prop!L$2:'Database_Prop'!L10))),"") ->  | AP140: =IFERROR(INDEX(Database_Prop!$B$2:$B$1498,SMALL(IF(Database_Prop!$A$2:$A$1498=AP$129,ROW(Database_Prop!$B$2:$B$1498)-ROW(Database_Prop!$B$2)+1),ROWS(Database_Prop!M$2:'Database_Prop'!M10))),"") ->  | AQ140: =IFERROR(INDEX(Database_Prop!$B$2:$B$1498,SMALL(IF(Database_Prop!$A$2:$A$1498=AQ$129,ROW(Database_Prop!$B$2:$B$1498)-ROW(Database_Prop!$B$2)+1),ROWS(Database_Prop!N$2:'Database_Prop'!N10))),"") ->  | AR140: =IFERROR(INDEX(Database_Prop!$B$2:$B$1498,SMALL(IF(Database_Prop!$A$2:$A$1498=AR$129,ROW(Database_Prop!$B$2:$B$1498)-ROW(Database_Prop!$B$2)+1),ROWS(Database_Prop!O$2:'Database_Prop'!O10))),"") ->  | AS140: =IFERROR(INDEX(Database_Prop!$B$2:$B$1498,SMALL(IF(Database_Prop!$A$2:$A$1498=AS$129,ROW(Database_Prop!$B$2:$B$1498)-ROW(Database_Prop!$B$2)+1),ROWS(Database_Prop!P$2:'Database_Prop'!P10))),"") ->  | AT140: =IFERROR(INDEX(Database_Prop!$B$2:$B$1498,SMALL(IF(Database_Prop!$A$2:$A$1498=AT$129,ROW(Database_Prop!$B$2:$B$1498)-ROW(Database_Prop!$B$2)+1),ROWS(Database_Prop!Q$2:'Database_Prop'!Q10))),"") ->  | AU140: =IFERROR(INDEX(Database_Prop!$B$2:$B$1498,SMALL(IF(Database_Prop!$A$2:$A$1498=AU$129,ROW(Database_Prop!$B$2:$B$1498)-ROW(Database_Prop!$B$2)+1),ROWS(Database_Prop!R$2:'Database_Prop'!R10))),"") ->  | AV140: =IFERROR(INDEX(Database_Prop!$B$2:$B$1498,SMALL(IF(Database_Prop!$A$2:$A$1498=AV$129,ROW(Database_Prop!$B$2:$B$1498)-ROW(Database_Prop!$B$2)+1),ROWS(Database_Prop!S$2:'Database_Prop'!S10))),"") ->  | AW140: =IFERROR(INDEX(Database_Prop!$B$2:$B$1498,SMALL(IF(Database_Prop!$A$2:$A$1498=AW$129,ROW(Database_Prop!$B$2:$B$1498)-ROW(Database_Prop!$B$2)+1),ROWS(Database_Prop!T$2:'Database_Prop'!T10))),"") ->  | AX140: =IFERROR(INDEX(Database_Prop!$B$2:$B$1498,SMALL(IF(Database_Prop!$A$2:$A$1498=AX$129,ROW(Database_Prop!$B$2:$B$1498)-ROW(Database_Prop!$B$2)+1),ROWS(Database_Prop!U$2:'Database_Prop'!U10))),"") ->  | AY140: =IFERROR(INDEX(Database_Prop!$B$2:$B$1498,SMALL(IF(Database_Prop!$A$2:$A$1498=AY$129,ROW(Database_Prop!$B$2:$B$1498)-ROW(Database_Prop!$B$2)+1),ROWS(Database_Prop!V$2:'Database_Prop'!V10))),"") ->  | AZ140: =IFERROR(INDEX(Database_Prop!$B$2:$B$1498,SMALL(IF(Database_Prop!$A$2:$A$1498=AZ$129,ROW(Database_Prop!$B$2:$B$1498)-ROW(Database_Prop!$B$2)+1),ROWS(Database_Prop!W$2:'Database_Prop'!W10))),"") ->  | BA140: =IFERROR(INDEX(Database_Prop!$B$2:$B$1498,SMALL(IF(Database_Prop!$A$2:$A$1498=BA$129,ROW(Database_Prop!$B$2:$B$1498)-ROW(Database_Prop!$B$2)+1),ROWS(Database_Prop!X$2:'Database_Prop'!X10))),"") ->  | BB140: =IFERROR(INDEX(Database_Prop!$B$2:$B$1498,SMALL(IF(Database_Prop!$A$2:$A$1498=BB$129,ROW(Database_Prop!$B$2:$B$1498)-ROW(Database_Prop!$B$2)+1),ROWS(Database_Prop!Y$2:'Database_Prop'!Y10))),"") ->  | BC140: =IFERROR(INDEX(Database_Prop!$B$2:$B$1498,SMALL(IF(Database_Prop!$A$2:$A$1498=BC$129,ROW(Database_Prop!$B$2:$B$1498)-ROW(Database_Prop!$B$2)+1),ROWS(Database_Prop!Z$2:'Database_Prop'!Z10))),"") ->  | BD140: =title191 -> Yeast-Alcoholic Bev. | BE140: Armenia | BF140: Asia | BH140: =title98&" 2" -> Process 2 | BI140: PS2 | BO140: =title98&" 3" -> Process 3 | BP140: =$J$10 -> TRUE | BQ140: =title172 -> Single | BR140: =AND($D$11,BP140) -> FALSE | BS140: =IF(SUM(Planner_PS3!$R$13:$R$17,Planner_PS3!$R$20)<>0,TRUE,FALSE) -> FALSE
AE141: 10 | AF141: =IFERROR(INDEX(Database_Prop!$B$2:$B$1498,SMALL(IF(Database_Prop!$A$2:$A$1498=AF$129,ROW(Database_Prop!$B$2:$B$1498)-ROW(Database_Prop!$B$2)+1),ROWS(Database_Prop!C$2:'Database_Prop'!C11))),"") ->  | AG141: =IFERROR(INDEX(Database_Prop!$B$2:$B$1498,SMALL(IF(Database_Prop!$A$2:$A$1498=AG$129,ROW(Database_Prop!$B$2:$B$1498)-ROW(Database_Prop!$B$2)+1),ROWS(Database_Prop!D$2:'Database_Prop'!D11))),"") ->  | AH141: =IFERROR(INDEX(Database_Prop!$B$2:$B$1498,SMALL(IF(Database_Prop!$A$2:$A$1498=AH$129,ROW(Database_Prop!$B$2:$B$1498)-ROW(Database_Prop!$B$2)+1),ROWS(Database_Prop!E$2:'Database_Prop'!E11))),"") ->  | AI141: =IFERROR(INDEX(Database_Prop!$B$2:$B$1498,SMALL(IF(Database_Prop!$A$2:$A$1498=AI$129,ROW(Database_Prop!$B$2:$B$1498)-ROW(Database_Prop!$B$2)+1),ROWS(Database_Prop!F$2:'Database_Prop'!F11))),"") ->  | AJ141: =IFERROR(INDEX(Database_Prop!$B$2:$B$1498,SMALL(IF(Database_Prop!$A$2:$A$1498=AJ$129,ROW(Database_Prop!$B$2:$B$1498)-ROW(Database_Prop!$B$2)+1),ROWS(Database_Prop!G$2:'Database_Prop'!G11))),"") ->  | AK141: =IFERROR(INDEX(Database_Prop!$B$2:$B$1498,SMALL(IF(Database_Prop!$A$2:$A$1498=AK$129,ROW(Database_Prop!$B$2:$B$1498)-ROW(Database_Prop!$B$2)+1),ROWS(Database_Prop!H$2:'Database_Prop'!H11))),"") ->  | AL141: =IFERROR(INDEX(Database_Prop!$B$2:$B$1498,SMALL(IF(Database_Prop!$A$2:$A$1498=AL$129,ROW(Database_Prop!$B$2:$B$1498)-ROW(Database_Prop!$B$2)+1),ROWS(Database_Prop!I$2:'Database_Prop'!I11))),"") ->  | AM141: =IFERROR(INDEX(Database_Prop!$B$2:$B$1498,SMALL(IF(Database_Prop!$A$2:$A$1498=AM$129,ROW(Database_Prop!$B$2:$B$1498)-ROW(Database_Prop!$B$2)+1),ROWS(Database_Prop!J$2:'Database_Prop'!J11))),"") ->  | AN141: =IFERROR(INDEX(Database_Prop!$B$2:$B$1498,SMALL(IF(Database_Prop!$A$2:$A$1498=AN$129,ROW(Database_Prop!$B$2:$B$1498)-ROW(Database_Prop!$B$2)+1),ROWS(Database_Prop!K$2:'Database_Prop'!K11))),"") ->  | AO141: =IFERROR(INDEX(Database_Prop!$B$2:$B$1498,SMALL(IF(Database_Prop!$A$2:$A$1498=AO$129,ROW(Database_Prop!$B$2:$B$1498)-ROW(Database_Prop!$B$2)+1),ROWS(Database_Prop!L$2:'Database_Prop'!L11))),"") ->  | AP141: =IFERROR(INDEX(Database_Prop!$B$2:$B$1498,SMALL(IF(Database_Prop!$A$2:$A$1498=AP$129,ROW(Database_Prop!$B$2:$B$1498)-ROW(Database_Prop!$B$2)+1),ROWS(Database_Prop!M$2:'Database_Prop'!M11))),"") ->  | AQ141: =IFERROR(INDEX(Database_Prop!$B$2:$B$1498,SMALL(IF(Database_Prop!$A$2:$A$1498=AQ$129,ROW(Database_Prop!$B$2:$B$1498)-ROW(Database_Prop!$B$2)+1),ROWS(Database_Prop!N$2:'Database_Prop'!N11))),"") ->  | AR141: =IFERROR(INDEX(Database_Prop!$B$2:$B$1498,SMALL(IF(Database_Prop!$A$2:$A$1498=AR$129,ROW(Database_Prop!$B$2:$B$1498)-ROW(Database_Prop!$B$2)+1),ROWS(Database_Prop!O$2:'Database_Prop'!O11))),"") ->  | AS141: =IFERROR(INDEX(Database_Prop!$B$2:$B$1498,SMALL(IF(Database_Prop!$A$2:$A$1498=AS$129,ROW(Database_Prop!$B$2:$B$1498)-ROW(Database_Prop!$B$2)+1),ROWS(Database_Prop!P$2:'Database_Prop'!P11))),"") ->  | AT141: =IFERROR(INDEX(Database_Prop!$B$2:$B$1498,SMALL(IF(Database_Prop!$A$2:$A$1498=AT$129,ROW(Database_Prop!$B$2:$B$1498)-ROW(Database_Prop!$B$2)+1),ROWS(Database_Prop!Q$2:'Database_Prop'!Q11))),"") ->  | AU141: =IFERROR(INDEX(Database_Prop!$B$2:$B$1498,SMALL(IF(Database_Prop!$A$2:$A$1498=AU$129,ROW(Database_Prop!$B$2:$B$1498)-ROW(Database_Prop!$B$2)+1),ROWS(Database_Prop!R$2:'Database_Prop'!R11))),"") ->  | AV141: =IFERROR(INDEX(Database_Prop!$B$2:$B$1498,SMALL(IF(Database_Prop!$A$2:$A$1498=AV$129,ROW(Database_Prop!$B$2:$B$1498)-ROW(Database_Prop!$B$2)+1),ROWS(Database_Prop!S$2:'Database_Prop'!S11))),"") ->  | AW141: =IFERROR(INDEX(Database_Prop!$B$2:$B$1498,SMALL(IF(Database_Prop!$A$2:$A$1498=AW$129,ROW(Database_Prop!$B$2:$B$1498)-ROW(Database_Prop!$B$2)+1),ROWS(Database_Prop!T$2:'Database_Prop'!T11))),"") ->  | AX141: =IFERROR(INDEX(Database_Prop!$B$2:$B$1498,SMALL(IF(Database_Prop!$A$2:$A$1498=AX$129,ROW(Database_Prop!$B$2:$B$1498)-ROW(Database_Prop!$B$2)+1),ROWS(Database_Prop!U$2:'Database_Prop'!U11))),"") ->  | AY141: =IFERROR(INDEX(Database_Prop!$B$2:$B$1498,SMALL(IF(Database_Prop!$A$2:$A$1498=AY$129,ROW(Database_Prop!$B$2:$B$1498)-ROW(Database_Prop!$B$2)+1),ROWS(Database_Prop!V$2:'Database_Prop'!V11))),"") ->  | AZ141: =IFERROR(INDEX(Database_Prop!$B$2:$B$1498,SMALL(IF(Database_Prop!$A$2:$A$1498=AZ$129,ROW(Database_Prop!$B$2:$B$1498)-ROW(Database_Prop!$B$2)+1),ROWS(Database_Prop!W$2:'Database_Prop'!W11))),"") ->  | BA141: =IFERROR(INDEX(Database_Prop!$B$2:$B$1498,SMALL(IF(Database_Prop!$A$2:$A$1498=BA$129,ROW(Database_Prop!$B$2:$B$1498)-ROW(Database_Prop!$B$2)+1),ROWS(Database_Prop!X$2:'Database_Prop'!X11))),"") ->  | BB141: =IFERROR(INDEX(Database_Prop!$B$2:$B$1498,SMALL(IF(Database_Prop!$A$2:$A$1498=BB$129,ROW(Database_Prop!$B$2:$B$1498)-ROW(Database_Prop!$B$2)+1),ROWS(Database_Prop!Y$2:'Database_Prop'!Y11))),"") ->  | BC141: =IFERROR(INDEX(Database_Prop!$B$2:$B$1498,SMALL(IF(Database_Prop!$A$2:$A$1498=BC$129,ROW(Database_Prop!$B$2:$B$1498)-ROW(Database_Prop!$B$2)+1),ROWS(Database_Prop!Z$2:'Database_Prop'!Z11))),"") ->  | BD141: =title84 -> Manure | BE141: Aruba | BF141: Latin America | BH141: =title108 -> Main Category | BI141: =title109 -> Feedstock | BJ141: =G$22 -> VS (%) | BK141: =H$22 -> TS (%) | BL141: =I$22 -> BMP (m3/t VS) | BM141: CH4 (%) | BN141: Collection Price | BQ141: =title173 -> Multi | BR141: =AND($F$11,BP140) -> FALSE
AE142: 11 | AF142: =IFERROR(INDEX(Database_Prop!$B$2:$B$1498,SMALL(IF(Database_Prop!$A$2:$A$1498=AF$129,ROW(Database_Prop!$B$2:$B$1498)-ROW(Database_Prop!$B$2)+1),ROWS(Database_Prop!C$2:'Database_Prop'!C12))),"") ->  | AG142: =IFERROR(INDEX(Database_Prop!$B$2:$B$1498,SMALL(IF(Database_Prop!$A$2:$A$1498=AG$129,ROW(Database_Prop!$B$2:$B$1498)-ROW(Database_Prop!$B$2)+1),ROWS(Database_Prop!D$2:'Database_Prop'!D12))),"") ->  | AH142: =IFERROR(INDEX(Database_Prop!$B$2:$B$1498,SMALL(IF(Database_Prop!$A$2:$A$1498=AH$129,ROW(Database_Prop!$B$2:$B$1498)-ROW(Database_Prop!$B$2)+1),ROWS(Database_Prop!E$2:'Database_Prop'!E12))),"") ->  | AI142: =IFERROR(INDEX(Database_Prop!$B$2:$B$1498,SMALL(IF(Database_Prop!$A$2:$A$1498=AI$129,ROW(Database_Prop!$B$2:$B$1498)-ROW(Database_Prop!$B$2)+1),ROWS(Database_Prop!F$2:'Database_Prop'!F12))),"") ->  | AJ142: =IFERROR(INDEX(Database_Prop!$B$2:$B$1498,SMALL(IF(Database_Prop!$A$2:$A$1498=AJ$129,ROW(Database_Prop!$B$2:$B$1498)-ROW(Database_Prop!$B$2)+1),ROWS(Database_Prop!G$2:'Database_Prop'!G12))),"") ->  | AK142: =IFERROR(INDEX(Database_Prop!$B$2:$B$1498,SMALL(IF(Database_Prop!$A$2:$A$1498=AK$129,ROW(Database_Prop!$B$2:$B$1498)-ROW(Database_Prop!$B$2)+1),ROWS(Database_Prop!H$2:'Database_Prop'!H12))),"") ->  | AL142: =IFERROR(INDEX(Database_Prop!$B$2:$B$1498,SMALL(IF(Database_Prop!$A$2:$A$1498=AL$129,ROW(Database_Prop!$B$2:$B$1498)-ROW(Database_Prop!$B$2)+1),ROWS(Database_Prop!I$2:'Database_Prop'!I12))),"") ->  | AM142: =IFERROR(INDEX(Database_Prop!$B$2:$B$1498,SMALL(IF(Database_Prop!$A$2:$A$1498=AM$129,ROW(Database_Prop!$B$2:$B$1498)-ROW(Database_Prop!$B$2)+1),ROWS(Database_Prop!J$2:'Database_Prop'!J12))),"") ->  | AN142: =IFERROR(INDEX(Database_Prop!$B$2:$B$1498,SMALL(IF(Database_Prop!$A$2:$A$1498=AN$129,ROW(Database_Prop!$B$2:$B$1498)-ROW(Database_Prop!$B$2)+1),ROWS(Database_Prop!K$2:'Database_Prop'!K12))),"") ->  | AO142: =IFERROR(INDEX(Database_Prop!$B$2:$B$1498,SMALL(IF(Database_Prop!$A$2:$A$1498=AO$129,ROW(Database_Prop!$B$2:$B$1498)-ROW(Database_Prop!$B$2)+1),ROWS(Database_Prop!L$2:'Database_Prop'!L12))),"") ->  | AP142: =IFERROR(INDEX(Database_Prop!$B$2:$B$1498,SMALL(IF(Database_Prop!$A$2:$A$1498=AP$129,ROW(Database_Prop!$B$2:$B$1498)-ROW(Database_Prop!$B$2)+1),ROWS(Database_Prop!M$2:'Database_Prop'!M12))),"") ->  | AQ142: =IFERROR(INDEX(Database_Prop!$B$2:$B$1498,SMALL(IF(Database_Prop!$A$2:$A$1498=AQ$129,ROW(Database_Prop!$B$2:$B$1498)-ROW(Database_Prop!$B$2)+1),ROWS(Database_Prop!N$2:'Database_Prop'!N12))),"") ->  | AR142: =IFERROR(INDEX(Database_Prop!$B$2:$B$1498,SMALL(IF(Database_Prop!$A$2:$A$1498=AR$129,ROW(Database_Prop!$B$2:$B$1498)-ROW(Database_Prop!$B$2)+1),ROWS(Database_Prop!O$2:'Database_Prop'!O12))),"") ->  | AS142: =IFERROR(INDEX(Database_Prop!$B$2:$B$1498,SMALL(IF(Database_Prop!$A$2:$A$1498=AS$129,ROW(Database_Prop!$B$2:$B$1498)-ROW(Database_Prop!$B$2)+1),ROWS(Database_Prop!P$2:'Database_Prop'!P12))),"") ->  | AT142: =IFERROR(INDEX(Database_Prop!$B$2:$B$1498,SMALL(IF(Database_Prop!$A$2:$A$1498=AT$129,ROW(Database_Prop!$B$2:$B$1498)-ROW(Database_Prop!$B$2)+1),ROWS(Database_Prop!Q$2:'Database_Prop'!Q12))),"") ->  | AU142: =IFERROR(INDEX(Database_Prop!$B$2:$B$1498,SMALL(IF(Database_Prop!$A$2:$A$1498=AU$129,ROW(Database_Prop!$B$2:$B$1498)-ROW(Database_Prop!$B$2)+1),ROWS(Database_Prop!R$2:'Database_Prop'!R12))),"") ->  | AV142: =IFERROR(INDEX(Database_Prop!$B$2:$B$1498,SMALL(IF(Database_Prop!$A$2:$A$1498=AV$129,ROW(Database_Prop!$B$2:$B$1498)-ROW(Database_Prop!$B$2)+1),ROWS(Database_Prop!S$2:'Database_Prop'!S12))),"") ->  | AW142: =IFERROR(INDEX(Database_Prop!$B$2:$B$1498,SMALL(IF(Database_Prop!$A$2:$A$1498=AW$129,ROW(Database_Prop!$B$2:$B$1498)-ROW(Database_Prop!$B$2)+1),ROWS(Database_Prop!T$2:'Database_Prop'!T12))),"") ->  | AX142: =IFERROR(INDEX(Database_Prop!$B$2:$B$1498,SMALL(IF(Database_Prop!$A$2:$A$1498=AX$129,ROW(Database_Prop!$B$2:$B$1498)-ROW(Database_Prop!$B$2)+1),ROWS(Database_Prop!U$2:'Database_Prop'!U12))),"") ->  | AY142: =IFERROR(INDEX(Database_Prop!$B$2:$B$1498,SMALL(IF(Database_Prop!$A$2:$A$1498=AY$129,ROW(Database_Prop!$B$2:$B$1498)-ROW(Database_Prop!$B$2)+1),ROWS(Database_Prop!V$2:'Database_Prop'!V12))),"") ->  | AZ142: =IFERROR(INDEX(Database_Prop!$B$2:$B$1498,SMALL(IF(Database_Prop!$A$2:$A$1498=AZ$129,ROW(Database_Prop!$B$2:$B$1498)-ROW(Database_Prop!$B$2)+1),ROWS(Database_Prop!W$2:'Database_Prop'!W12))),"") ->  | BA142: =IFERROR(INDEX(Database_Prop!$B$2:$B$1498,SMALL(IF(Database_Prop!$A$2:$A$1498=BA$129,ROW(Database_Prop!$B$2:$B$1498)-ROW(Database_Prop!$B$2)+1),ROWS(Database_Prop!X$2:'Database_Prop'!X12))),"") ->  | BB142: =IFERROR(INDEX(Database_Prop!$B$2:$B$1498,SMALL(IF(Database_Prop!$A$2:$A$1498=BB$129,ROW(Database_Prop!$B$2:$B$1498)-ROW(Database_Prop!$B$2)+1),ROWS(Database_Prop!Y$2:'Database_Prop'!Y12))),"") ->  | BC142: =IFERROR(INDEX(Database_Prop!$B$2:$B$1498,SMALL(IF(Database_Prop!$A$2:$A$1498=BC$129,ROW(Database_Prop!$B$2:$B$1498)-ROW(Database_Prop!$B$2)+1),ROWS(Database_Prop!Z$2:'Database_Prop'!Z12))),"") ->  | BD142: =IF($BP$125=3,"",title192) ->  | BE142: Australia | BF142: Oceania | BG142: FS1 | BH142: =$D$39 -> Please Select | BI142: =$E$39 -> Please Select | BJ142: =IFERROR(IF($BH142=title192,VLOOKUP($BH142&" "&$BI142,Database_Prop!$C:$G,2,FALSE),TEXT(VLOOKUP($BH142&" "&$BI142,Database_Prop!$C:$G,2,FALSE),"0%")),0) -> 0 | BK142: =IFERROR(VLOOKUP($BH142&" "&$BI142,Database_Prop!$C:$G,5,FALSE),0) -> 0 | BL142: =IFERROR(VLOOKUP($BH142&" "&$BI142,Database_Prop!$C:$G,3,FALSE),0) -> 0 | BM142: =IFERROR(VLOOKUP($BH142&" "&$BI142,Database_Prop!$C:$G,4,FALSE),0) -> 0 | BN142: =IFERROR(INDIRECT("PRICE_"&$BG142&"_"&BI$140&$BN$126),0) -> 0 | BQ142: =title167 -> Codigestion | BR142: =AND($J$11,BP140) -> TRUE
AE143: 12 | AF143: =IFERROR(INDEX(Database_Prop!$B$2:$B$1498,SMALL(IF(Database_Prop!$A$2:$A$1498=AF$129,ROW(Database_Prop!$B$2:$B$1498)-ROW(Database_Prop!$B$2)+1),ROWS(Database_Prop!C$2:'Database_Prop'!C13))),"") ->  | AG143: =IFERROR(INDEX(Database_Prop!$B$2:$B$1498,SMALL(IF(Database_Prop!$A$2:$A$1498=AG$129,ROW(Database_Prop!$B$2:$B$1498)-ROW(Database_Prop!$B$2)+1),ROWS(Database_Prop!D$2:'Database_Prop'!D13))),"") ->  | AH143: =IFERROR(INDEX(Database_Prop!$B$2:$B$1498,SMALL(IF(Database_Prop!$A$2:$A$1498=AH$129,ROW(Database_Prop!$B$2:$B$1498)-ROW(Database_Prop!$B$2)+1),ROWS(Database_Prop!E$2:'Database_Prop'!E13))),"") ->  | AI143: =IFERROR(INDEX(Database_Prop!$B$2:$B$1498,SMALL(IF(Database_Prop!$A$2:$A$1498=AI$129,ROW(Database_Prop!$B$2:$B$1498)-ROW(Database_Prop!$B$2)+1),ROWS(Database_Prop!F$2:'Database_Prop'!F13))),"") ->  | AJ143: =IFERROR(INDEX(Database_Prop!$B$2:$B$1498,SMALL(IF(Database_Prop!$A$2:$A$1498=AJ$129,ROW(Database_Prop!$B$2:$B$1498)-ROW(Database_Prop!$B$2)+1),ROWS(Database_Prop!G$2:'Database_Prop'!G13))),"") ->  | AK143: =IFERROR(INDEX(Database_Prop!$B$2:$B$1498,SMALL(IF(Database_Prop!$A$2:$A$1498=AK$129,ROW(Database_Prop!$B$2:$B$1498)-ROW(Database_Prop!$B$2)+1),ROWS(Database_Prop!H$2:'Database_Prop'!H13))),"") ->  | AL143: =IFERROR(INDEX(Database_Prop!$B$2:$B$1498,SMALL(IF(Database_Prop!$A$2:$A$1498=AL$129,ROW(Database_Prop!$B$2:$B$1498)-ROW(Database_Prop!$B$2)+1),ROWS(Database_Prop!I$2:'Database_Prop'!I13))),"") ->  | AM143: =IFERROR(INDEX(Database_Prop!$B$2:$B$1498,SMALL(IF(Database_Prop!$A$2:$A$1498=AM$129,ROW(Database_Prop!$B$2:$B$1498)-ROW(Database_Prop!$B$2)+1),ROWS(Database_Prop!J$2:'Database_Prop'!J13))),"") ->  | AN143: =IFERROR(INDEX(Database_Prop!$B$2:$B$1498,SMALL(IF(Database_Prop!$A$2:$A$1498=AN$129,ROW(Database_Prop!$B$2:$B$1498)-ROW(Database_Prop!$B$2)+1),ROWS(Database_Prop!K$2:'Database_Prop'!K13))),"") ->  | AO143: =IFERROR(INDEX(Database_Prop!$B$2:$B$1498,SMALL(IF(Database_Prop!$A$2:$A$1498=AO$129,ROW(Database_Prop!$B$2:$B$1498)-ROW(Database_Prop!$B$2)+1),ROWS(Database_Prop!L$2:'Database_Prop'!L13))),"") ->  | AP143: =IFERROR(INDEX(Database_Prop!$B$2:$B$1498,SMALL(IF(Database_Prop!$A$2:$A$1498=AP$129,ROW(Database_Prop!$B$2:$B$1498)-ROW(Database_Prop!$B$2)+1),ROWS(Database_Prop!M$2:'Database_Prop'!M13))),"") ->  | AQ143: =IFERROR(INDEX(Database_Prop!$B$2:$B$1498,SMALL(IF(Database_Prop!$A$2:$A$1498=AQ$129,ROW(Database_Prop!$B$2:$B$1498)-ROW(Database_Prop!$B$2)+1),ROWS(Database_Prop!N$2:'Database_Prop'!N13))),"") ->  | AR143: =IFERROR(INDEX(Database_Prop!$B$2:$B$1498,SMALL(IF(Database_Prop!$A$2:$A$1498=AR$129,ROW(Database_Prop!$B$2:$B$1498)-ROW(Database_Prop!$B$2)+1),ROWS(Database_Prop!O$2:'Database_Prop'!O13))),"") ->  | AS143: =IFERROR(INDEX(Database_Prop!$B$2:$B$1498,SMALL(IF(Database_Prop!$A$2:$A$1498=AS$129,ROW(Database_Prop!$B$2:$B$1498)-ROW(Database_Prop!$B$2)+1),ROWS(Database_Prop!P$2:'Database_Prop'!P13))),"") ->  | AT143: =IFERROR(INDEX(Database_Prop!$B$2:$B$1498,SMALL(IF(Database_Prop!$A$2:$A$1498=AT$129,ROW(Database_Prop!$B$2:$B$1498)-ROW(Database_Prop!$B$2)+1),ROWS(Database_Prop!Q$2:'Database_Prop'!Q13))),"") ->  | AU143: =IFERROR(INDEX(Database_Prop!$B$2:$B$1498,SMALL(IF(Database_Prop!$A$2:$A$1498=AU$129,ROW(Database_Prop!$B$2:$B$1498)-ROW(Database_Prop!$B$2)+1),ROWS(Database_Prop!R$2:'Database_Prop'!R13))),"") ->  | AV143: =IFERROR(INDEX(Database_Prop!$B$2:$B$1498,SMALL(IF(Database_Prop!$A$2:$A$1498=AV$129,ROW(Database_Prop!$B$2:$B$1498)-ROW(Database_Prop!$B$2)+1),ROWS(Database_Prop!S$2:'Database_Prop'!S13))),"") ->  | AW143: =IFERROR(INDEX(Database_Prop!$B$2:$B$1498,SMALL(IF(Database_Prop!$A$2:$A$1498=AW$129,ROW(Database_Prop!$B$2:$B$1498)-ROW(Database_Prop!$B$2)+1),ROWS(Database_Prop!T$2:'Database_Prop'!T13))),"") ->  | AX143: =IFERROR(INDEX(Database_Prop!$B$2:$B$1498,SMALL(IF(Database_Prop!$A$2:$A$1498=AX$129,ROW(Database_Prop!$B$2:$B$1498)-ROW(Database_Prop!$B$2)+1),ROWS(Database_Prop!U$2:'Database_Prop'!U13))),"") ->  | AY143: =IFERROR(INDEX(Database_Prop!$B$2:$B$1498,SMALL(IF(Database_Prop!$A$2:$A$1498=AY$129,ROW(Database_Prop!$B$2:$B$1498)-ROW(Database_Prop!$B$2)+1),ROWS(Database_Prop!V$2:'Database_Prop'!V13))),"") ->  | AZ143: =IFERROR(INDEX(Database_Prop!$B$2:$B$1498,SMALL(IF(Database_Prop!$A$2:$A$1498=AZ$129,ROW(Database_Prop!$B$2:$B$1498)-ROW(Database_Prop!$B$2)+1),ROWS(Database_Prop!W$2:'Database_Prop'!W13))),"") ->  | BA143: =IFERROR(INDEX(Database_Prop!$B$2:$B$1498,SMALL(IF(Database_Prop!$A$2:$A$1498=BA$129,ROW(Database_Prop!$B$2:$B$1498)-ROW(Database_Prop!$B$2)+1),ROWS(Database_Prop!X$2:'Database_Prop'!X13))),"") ->  | BB143: =IFERROR(INDEX(Database_Prop!$B$2:$B$1498,SMALL(IF(Database_Prop!$A$2:$A$1498=BB$129,ROW(Database_Prop!$B$2:$B$1498)-ROW(Database_Prop!$B$2)+1),ROWS(Database_Prop!Y$2:'Database_Prop'!Y13))),"") ->  | BC143: =IFERROR(INDEX(Database_Prop!$B$2:$B$1498,SMALL(IF(Database_Prop!$A$2:$A$1498=BC$129,ROW(Database_Prop!$B$2:$B$1498)-ROW(Database_Prop!$B$2)+1),ROWS(Database_Prop!Z$2:'Database_Prop'!Z13))),"") ->  | BD143: =title74 -> Please Select | BE143: Austria | BF143: Western Europe | BH143: =title108 -> Main Category | BI143: =title109 -> Feedstock | BJ143: =G$22 -> VS (%) | BK143: =H$22 -> TS (%) | BL143: =I$22 -> BMP (m3/t VS) | BM143: CH4 (%) | BN143: Collection Price | BO143: =title98&" 4" -> Process 4 | BP143: =$L$10 -> TRUE | BQ143: =title172 -> Single | BR143: =AND($D$11,BP143) -> FALSE | BS143: =IF(SUM(Planner_PS4!$R$13:$R$17,Planner_PS4!$R$20)<>0,TRUE,FALSE) -> FALSE
AE144: 13 | AF144: =IFERROR(INDEX(Database_Prop!$B$2:$B$1498,SMALL(IF(Database_Prop!$A$2:$A$1498=AF$129,ROW(Database_Prop!$B$2:$B$1498)-ROW(Database_Prop!$B$2)+1),ROWS(Database_Prop!C$2:'Database_Prop'!C14))),"") ->  | AG144: =IFERROR(INDEX(Database_Prop!$B$2:$B$1498,SMALL(IF(Database_Prop!$A$2:$A$1498=AG$129,ROW(Database_Prop!$B$2:$B$1498)-ROW(Database_Prop!$B$2)+1),ROWS(Database_Prop!D$2:'Database_Prop'!D14))),"") ->  | AH144: =IFERROR(INDEX(Database_Prop!$B$2:$B$1498,SMALL(IF(Database_Prop!$A$2:$A$1498=AH$129,ROW(Database_Prop!$B$2:$B$1498)-ROW(Database_Prop!$B$2)+1),ROWS(Database_Prop!E$2:'Database_Prop'!E14))),"") ->  | AI144: =IFERROR(INDEX(Database_Prop!$B$2:$B$1498,SMALL(IF(Database_Prop!$A$2:$A$1498=AI$129,ROW(Database_Prop!$B$2:$B$1498)-ROW(Database_Prop!$B$2)+1),ROWS(Database_Prop!F$2:'Database_Prop'!F14))),"") ->  | AJ144: =IFERROR(INDEX(Database_Prop!$B$2:$B$1498,SMALL(IF(Database_Prop!$A$2:$A$1498=AJ$129,ROW(Database_Prop!$B$2:$B$1498)-ROW(Database_Prop!$B$2)+1),ROWS(Database_Prop!G$2:'Database_Prop'!G14))),"") ->  | AK144: =IFERROR(INDEX(Database_Prop!$B$2:$B$1498,SMALL(IF(Database_Prop!$A$2:$A$1498=AK$129,ROW(Database_Prop!$B$2:$B$1498)-ROW(Database_Prop!$B$2)+1),ROWS(Database_Prop!H$2:'Database_Prop'!H14))),"") ->  | AL144: =IFERROR(INDEX(Database_Prop!$B$2:$B$1498,SMALL(IF(Database_Prop!$A$2:$A$1498=AL$129,ROW(Database_Prop!$B$2:$B$1498)-ROW(Database_Prop!$B$2)+1),ROWS(Database_Prop!I$2:'Database_Prop'!I14))),"") ->  | AM144: =IFERROR(INDEX(Database_Prop!$B$2:$B$1498,SMALL(IF(Database_Prop!$A$2:$A$1498=AM$129,ROW(Database_Prop!$B$2:$B$1498)-ROW(Database_Prop!$B$2)+1),ROWS(Database_Prop!J$2:'Database_Prop'!J14))),"") ->  | AN144: =IFERROR(INDEX(Database_Prop!$B$2:$B$1498,SMALL(IF(Database_Prop!$A$2:$A$1498=AN$129,ROW(Database_Prop!$B$2:$B$1498)-ROW(Database_Prop!$B$2)+1),ROWS(Database_Prop!K$2:'Database_Prop'!K14))),"") ->  | AO144: =IFERROR(INDEX(Database_Prop!$B$2:$B$1498,SMALL(IF(Database_Prop!$A$2:$A$1498=AO$129,ROW(Database_Prop!$B$2:$B$1498)-ROW(Database_Prop!$B$2)+1),ROWS(Database_Prop!L$2:'Database_Prop'!L14))),"") ->  | AP144: =IFERROR(INDEX(Database_Prop!$B$2:$B$1498,SMALL(IF(Database_Prop!$A$2:$A$1498=AP$129,ROW(Database_Prop!$B$2:$B$1498)-ROW(Database_Prop!$B$2)+1),ROWS(Database_Prop!M$2:'Database_Prop'!M14))),"") ->  | AQ144: =IFERROR(INDEX(Database_Prop!$B$2:$B$1498,SMALL(IF(Database_Prop!$A$2:$A$1498=AQ$129,ROW(Database_Prop!$B$2:$B$1498)-ROW(Database_Prop!$B$2)+1),ROWS(Database_Prop!N$2:'Database_Prop'!N14))),"") ->  | AR144: =IFERROR(INDEX(Database_Prop!$B$2:$B$1498,SMALL(IF(Database_Prop!$A$2:$A$1498=AR$129,ROW(Database_Prop!$B$2:$B$1498)-ROW(Database_Prop!$B$2)+1),ROWS(Database_Prop!O$2:'Database_Prop'!O14))),"") ->  | AS144: =IFERROR(INDEX(Database_Prop!$B$2:$B$1498,SMALL(IF(Database_Prop!$A$2:$A$1498=AS$129,ROW(Database_Prop!$B$2:$B$1498)-ROW(Database_Prop!$B$2)+1),ROWS(Database_Prop!P$2:'Database_Prop'!P14))),"") ->  | AT144: =IFERROR(INDEX(Database_Prop!$B$2:$B$1498,SMALL(IF(Database_Prop!$A$2:$A$1498=AT$129,ROW(Database_Prop!$B$2:$B$1498)-ROW(Database_Prop!$B$2)+1),ROWS(Database_Prop!Q$2:'Database_Prop'!Q14))),"") ->  | AU144: =IFERROR(INDEX(Database_Prop!$B$2:$B$1498,SMALL(IF(Database_Prop!$A$2:$A$1498=AU$129,ROW(Database_Prop!$B$2:$B$1498)-ROW(Database_Prop!$B$2)+1),ROWS(Database_Prop!R$2:'Database_Prop'!R14))),"") ->  | AV144: =IFERROR(INDEX(Database_Prop!$B$2:$B$1498,SMALL(IF(Database_Prop!$A$2:$A$1498=AV$129,ROW(Database_Prop!$B$2:$B$1498)-ROW(Database_Prop!$B$2)+1),ROWS(Database_Prop!S$2:'Database_Prop'!S14))),"") ->  | AW144: =IFERROR(INDEX(Database_Prop!$B$2:$B$1498,SMALL(IF(Database_Prop!$A$2:$A$1498=AW$129,ROW(Database_Prop!$B$2:$B$1498)-ROW(Database_Prop!$B$2)+1),ROWS(Database_Prop!T$2:'Database_Prop'!T14))),"") ->  | AX144: =IFERROR(INDEX(Database_Prop!$B$2:$B$1498,SMALL(IF(Database_Prop!$A$2:$A$1498=AX$129,ROW(Database_Prop!$B$2:$B$1498)-ROW(Database_Prop!$B$2)+1),ROWS(Database_Prop!U$2:'Database_Prop'!U14))),"") ->  | AY144: =IFERROR(INDEX(Database_Prop!$B$2:$B$1498,SMALL(IF(Database_Prop!$A$2:$A$1498=AY$129,ROW(Database_Prop!$B$2:$B$1498)-ROW(Database_Prop!$B$2)+1),ROWS(Database_Prop!V$2:'Database_Prop'!V14))),"") ->  | AZ144: =IFERROR(INDEX(Database_Prop!$B$2:$B$1498,SMALL(IF(Database_Prop!$A$2:$A$1498=AZ$129,ROW(Database_Prop!$B$2:$B$1498)-ROW(Database_Prop!$B$2)+1),ROWS(Database_Prop!W$2:'Database_Prop'!W14))),"") ->  | BA144: =IFERROR(INDEX(Database_Prop!$B$2:$B$1498,SMALL(IF(Database_Prop!$A$2:$A$1498=BA$129,ROW(Database_Prop!$B$2:$B$1498)-ROW(Database_Prop!$B$2)+1),ROWS(Database_Prop!X$2:'Database_Prop'!X14))),"") ->  | BB144: =IFERROR(INDEX(Database_Prop!$B$2:$B$1498,SMALL(IF(Database_Prop!$A$2:$A$1498=BB$129,ROW(Database_Prop!$B$2:$B$1498)-ROW(Database_Prop!$B$2)+1),ROWS(Database_Prop!Y$2:'Database_Prop'!Y14))),"") ->  | BC144: =IFERROR(INDEX(Database_Prop!$B$2:$B$1498,SMALL(IF(Database_Prop!$A$2:$A$1498=BC$129,ROW(Database_Prop!$B$2:$B$1498)-ROW(Database_Prop!$B$2)+1),ROWS(Database_Prop!Z$2:'Database_Prop'!Z14))),"") ->  | BD144: =title84 -> Manure | BE144: Azerbaijan | BF144: Asia | BG144: FS2 | BH144: =$D$41 -> Please Select | BI144: =$E$41 -> Please Select | BJ144: =IFERROR(IF($BH144=title192,VLOOKUP($BH144&" "&$BI144,Database_Prop!$C:$G,2,FALSE),TEXT(VLOOKUP($BH144&" "&$BI144,Database_Prop!$C:$G,2,FALSE),"0%")),0) -> 0 | BK144: =IFERROR(VLOOKUP($BH144&" "&$BI144,Database_Prop!$C:$G,5,FALSE),0) -> 0 | BL144: =IFERROR(VLOOKUP($BH144&" "&$BI144,Database_Prop!$C:$G,3,FALSE),0) -> 0 | BM144: =IFERROR(VLOOKUP($BH144&" "&$BI144,Database_Prop!$C:$G,4,FALSE),0) -> 0 | BN144: =IFERROR(INDIRECT("PRICE_"&$BG144&"_"&BI$140&$BN$126),0) -> 0 | BQ144: =title173 -> Multi | BR144: =AND($F$11,BP143) -> FALSE
AE145: 14 | AF145: =IFERROR(INDEX(Database_Prop!$B$2:$B$1498,SMALL(IF(Database_Prop!$A$2:$A$1498=AF$129,ROW(Database_Prop!$B$2:$B$1498)-ROW(Database_Prop!$B$2)+1),ROWS(Database_Prop!C$2:'Database_Prop'!C15))),"") ->  | AG145: =IFERROR(INDEX(Database_Prop!$B$2:$B$1498,SMALL(IF(Database_Prop!$A$2:$A$1498=AG$129,ROW(Database_Prop!$B$2:$B$1498)-ROW(Database_Prop!$B$2)+1),ROWS(Database_Prop!D$2:'Database_Prop'!D15))),"") ->  | AH145: =IFERROR(INDEX(Database_Prop!$B$2:$B$1498,SMALL(IF(Database_Prop!$A$2:$A$1498=AH$129,ROW(Database_Prop!$B$2:$B$1498)-ROW(Database_Prop!$B$2)+1),ROWS(Database_Prop!E$2:'Database_Prop'!E15))),"") ->  | AI145: =IFERROR(INDEX(Database_Prop!$B$2:$B$1498,SMALL(IF(Database_Prop!$A$2:$A$1498=AI$129,ROW(Database_Prop!$B$2:$B$1498)-ROW(Database_Prop!$B$2)+1),ROWS(Database_Prop!F$2:'Database_Prop'!F15))),"") ->  | AJ145: =IFERROR(INDEX(Database_Prop!$B$2:$B$1498,SMALL(IF(Database_Prop!$A$2:$A$1498=AJ$129,ROW(Database_Prop!$B$2:$B$1498)-ROW(Database_Prop!$B$2)+1),ROWS(Database_Prop!G$2:'Database_Prop'!G15))),"") ->  | AK145: =IFERROR(INDEX(Database_Prop!$B$2:$B$1498,SMALL(IF(Database_Prop!$A$2:$A$1498=AK$129,ROW(Database_Prop!$B$2:$B$1498)-ROW(Database_Prop!$B$2)+1),ROWS(Database_Prop!H$2:'Database_Prop'!H15))),"") ->  | AL145: =IFERROR(INDEX(Database_Prop!$B$2:$B$1498,SMALL(IF(Database_Prop!$A$2:$A$1498=AL$129,ROW(Database_Prop!$B$2:$B$1498)-ROW(Database_Prop!$B$2)+1),ROWS(Database_Prop!I$2:'Database_Prop'!I15))),"") ->  | AM145: =IFERROR(INDEX(Database_Prop!$B$2:$B$1498,SMALL(IF(Database_Prop!$A$2:$A$1498=AM$129,ROW(Database_Prop!$B$2:$B$1498)-ROW(Database_Prop!$B$2)+1),ROWS(Database_Prop!J$2:'Database_Prop'!J15))),"") ->  | AN145: =IFERROR(INDEX(Database_Prop!$B$2:$B$1498,SMALL(IF(Database_Prop!$A$2:$A$1498=AN$129,ROW(Database_Prop!$B$2:$B$1498)-ROW(Database_Prop!$B$2)+1),ROWS(Database_Prop!K$2:'Database_Prop'!K15))),"") ->  | AO145: =IFERROR(INDEX(Database_Prop!$B$2:$B$1498,SMALL(IF(Database_Prop!$A$2:$A$1498=AO$129,ROW(Database_Prop!$B$2:$B$1498)-ROW(Database_Prop!$B$2)+1),ROWS(Database_Prop!L$2:'Database_Prop'!L15))),"") ->  | AP145: =IFERROR(INDEX(Database_Prop!$B$2:$B$1498,SMALL(IF(Database_Prop!$A$2:$A$1498=AP$129,ROW(Database_Prop!$B$2:$B$1498)-ROW(Database_Prop!$B$2)+1),ROWS(Database_Prop!M$2:'Database_Prop'!M15))),"") ->  | AQ145: =IFERROR(INDEX(Database_Prop!$B$2:$B$1498,SMALL(IF(Database_Prop!$A$2:$A$1498=AQ$129,ROW(Database_Prop!$B$2:$B$1498)-ROW(Database_Prop!$B$2)+1),ROWS(Database_Prop!N$2:'Database_Prop'!N15))),"") ->  | AR145: =IFERROR(INDEX(Database_Prop!$B$2:$B$1498,SMALL(IF(Database_Prop!$A$2:$A$1498=AR$129,ROW(Database_Prop!$B$2:$B$1498)-ROW(Database_Prop!$B$2)+1),ROWS(Database_Prop!O$2:'Database_Prop'!O15))),"") ->  | AS145: =IFERROR(INDEX(Database_Prop!$B$2:$B$1498,SMALL(IF(Database_Prop!$A$2:$A$1498=AS$129,ROW(Database_Prop!$B$2:$B$1498)-ROW(Database_Prop!$B$2)+1),ROWS(Database_Prop!P$2:'Database_Prop'!P15))),"") ->  | AT145: =IFERROR(INDEX(Database_Prop!$B$2:$B$1498,SMALL(IF(Database_Prop!$A$2:$A$1498=AT$129,ROW(Database_Prop!$B$2:$B$1498)-ROW(Database_Prop!$B$2)+1),ROWS(Database_Prop!Q$2:'Database_Prop'!Q15))),"") ->  | AU145: =IFERROR(INDEX(Database_Prop!$B$2:$B$1498,SMALL(IF(Database_Prop!$A$2:$A$1498=AU$129,ROW(Database_Prop!$B$2:$B$1498)-ROW(Database_Prop!$B$2)+1),ROWS(Database_Prop!R$2:'Database_Prop'!R15))),"") ->  | AV145: =IFERROR(INDEX(Database_Prop!$B$2:$B$1498,SMALL(IF(Database_Prop!$A$2:$A$1498=AV$129,ROW(Database_Prop!$B$2:$B$1498)-ROW(Database_Prop!$B$2)+1),ROWS(Database_Prop!S$2:'Database_Prop'!S15))),"") ->  | AW145: =IFERROR(INDEX(Database_Prop!$B$2:$B$1498,SMALL(IF(Database_Prop!$A$2:$A$1498=AW$129,ROW(Database_Prop!$B$2:$B$1498)-ROW(Database_Prop!$B$2)+1),ROWS(Database_Prop!T$2:'Database_Prop'!T15))),"") ->  | AX145: =IFERROR(INDEX(Database_Prop!$B$2:$B$1498,SMALL(IF(Database_Prop!$A$2:$A$1498=AX$129,ROW(Database_Prop!$B$2:$B$1498)-ROW(Database_Prop!$B$2)+1),ROWS(Database_Prop!U$2:'Database_Prop'!U15))),"") ->  | AY145: =IFERROR(INDEX(Database_Prop!$B$2:$B$1498,SMALL(IF(Database_Prop!$A$2:$A$1498=AY$129,ROW(Database_Prop!$B$2:$B$1498)-ROW(Database_Prop!$B$2)+1),ROWS(Database_Prop!V$2:'Database_Prop'!V15))),"") ->  | AZ145: =IFERROR(INDEX(Database_Prop!$B$2:$B$1498,SMALL(IF(Database_Prop!$A$2:$A$1498=AZ$129,ROW(Database_Prop!$B$2:$B$1498)-ROW(Database_Prop!$B$2)+1),ROWS(Database_Prop!W$2:'Database_Prop'!W15))),"") ->  | BA145: =IFERROR(INDEX(Database_Prop!$B$2:$B$1498,SMALL(IF(Database_Prop!$A$2:$A$1498=BA$129,ROW(Database_Prop!$B$2:$B$1498)-ROW(Database_Prop!$B$2)+1),ROWS(Database_Prop!X$2:'Database_Prop'!X15))),"") ->  | BB145: =IFERROR(INDEX(Database_Prop!$B$2:$B$1498,SMALL(IF(Database_Prop!$A$2:$A$1498=BB$129,ROW(Database_Prop!$B$2:$B$1498)-ROW(Database_Prop!$B$2)+1),ROWS(Database_Prop!Y$2:'Database_Prop'!Y15))),"") ->  | BC145: =IFERROR(INDEX(Database_Prop!$B$2:$B$1498,SMALL(IF(Database_Prop!$A$2:$A$1498=BC$129,ROW(Database_Prop!$B$2:$B$1498)-ROW(Database_Prop!$B$2)+1),ROWS(Database_Prop!Z$2:'Database_Prop'!Z15))),"") ->  | BD145: =title192 -> Wastewater | BE145: Bahamas | BF145: Latin America | BH145: =title108 -> Main Category | BI145: =title109 -> Feedstock | BJ145: =G$24 -> VS (%) | BK145: =H$24 -> TS (%) | BL145: =I$24 -> BMP (m3/t VS) | BM145: CH4 (%) | BN145: Collection Price | BQ145: =title167 -> Codigestion | BR145: =AND($J$11,BP143) -> TRUE
AE146: 15 | AF146: =IFERROR(INDEX(Database_Prop!$B$2:$B$1498,SMALL(IF(Database_Prop!$A$2:$A$1498=AF$129,ROW(Database_Prop!$B$2:$B$1498)-ROW(Database_Prop!$B$2)+1),ROWS(Database_Prop!C$2:'Database_Prop'!C16))),"") ->  | AG146: =IFERROR(INDEX(Database_Prop!$B$2:$B$1498,SMALL(IF(Database_Prop!$A$2:$A$1498=AG$129,ROW(Database_Prop!$B$2:$B$1498)-ROW(Database_Prop!$B$2)+1),ROWS(Database_Prop!D$2:'Database_Prop'!D16))),"") ->  | AH146: =IFERROR(INDEX(Database_Prop!$B$2:$B$1498,SMALL(IF(Database_Prop!$A$2:$A$1498=AH$129,ROW(Database_Prop!$B$2:$B$1498)-ROW(Database_Prop!$B$2)+1),ROWS(Database_Prop!E$2:'Database_Prop'!E16))),"") ->  | AI146: =IFERROR(INDEX(Database_Prop!$B$2:$B$1498,SMALL(IF(Database_Prop!$A$2:$A$1498=AI$129,ROW(Database_Prop!$B$2:$B$1498)-ROW(Database_Prop!$B$2)+1),ROWS(Database_Prop!F$2:'Database_Prop'!F16))),"") ->  | AJ146: =IFERROR(INDEX(Database_Prop!$B$2:$B$1498,SMALL(IF(Database_Prop!$A$2:$A$1498=AJ$129,ROW(Database_Prop!$B$2:$B$1498)-ROW(Database_Prop!$B$2)+1),ROWS(Database_Prop!G$2:'Database_Prop'!G16))),"") ->  | AK146: =IFERROR(INDEX(Database_Prop!$B$2:$B$1498,SMALL(IF(Database_Prop!$A$2:$A$1498=AK$129,ROW(Database_Prop!$B$2:$B$1498)-ROW(Database_Prop!$B$2)+1),ROWS(Database_Prop!H$2:'Database_Prop'!H16))),"") ->  | AL146: =IFERROR(INDEX(Database_Prop!$B$2:$B$1498,SMALL(IF(Database_Prop!$A$2:$A$1498=AL$129,ROW(Database_Prop!$B$2:$B$1498)-ROW(Database_Prop!$B$2)+1),ROWS(Database_Prop!I$2:'Database_Prop'!I16))),"") ->  | AM146: =IFERROR(INDEX(Database_Prop!$B$2:$B$1498,SMALL(IF(Database_Prop!$A$2:$A$1498=AM$129,ROW(Database_Prop!$B$2:$B$1498)-ROW(Database_Prop!$B$2)+1),ROWS(Database_Prop!J$2:'Database_Prop'!J16))),"") ->  | AN146: =IFERROR(INDEX(Database_Prop!$B$2:$B$1498,SMALL(IF(Database_Prop!$A$2:$A$1498=AN$129,ROW(Database_Prop!$B$2:$B$1498)-ROW(Database_Prop!$B$2)+1),ROWS(Database_Prop!K$2:'Database_Prop'!K16))),"") ->  | AO146: =IFERROR(INDEX(Database_Prop!$B$2:$B$1498,SMALL(IF(Database_Prop!$A$2:$A$1498=AO$129,ROW(Database_Prop!$B$2:$B$1498)-ROW(Database_Prop!$B$2)+1),ROWS(Database_Prop!L$2:'Database_Prop'!L16))),"") ->  | AP146: =IFERROR(INDEX(Database_Prop!$B$2:$B$1498,SMALL(IF(Database_Prop!$A$2:$A$1498=AP$129,ROW(Database_Prop!$B$2:$B$1498)-ROW(Database_Prop!$B$2)+1),ROWS(Database_Prop!M$2:'Database_Prop'!M16))),"") ->  | AQ146: =IFERROR(INDEX(Database_Prop!$B$2:$B$1498,SMALL(IF(Database_Prop!$A$2:$A$1498=AQ$129,ROW(Database_Prop!$B$2:$B$1498)-ROW(Database_Prop!$B$2)+1),ROWS(Database_Prop!N$2:'Database_Prop'!N16))),"") ->  | AR146: =IFERROR(INDEX(Database_Prop!$B$2:$B$1498,SMALL(IF(Database_Prop!$A$2:$A$1498=AR$129,ROW(Database_Prop!$B$2:$B$1498)-ROW(Database_Prop!$B$2)+1),ROWS(Database_Prop!O$2:'Database_Prop'!O16))),"") ->  | AS146: =IFERROR(INDEX(Database_Prop!$B$2:$B$1498,SMALL(IF(Database_Prop!$A$2:$A$1498=AS$129,ROW(Database_Prop!$B$2:$B$1498)-ROW(Database_Prop!$B$2)+1),ROWS(Database_Prop!P$2:'Database_Prop'!P16))),"") ->  | AT146: =IFERROR(INDEX(Database_Prop!$B$2:$B$1498,SMALL(IF(Database_Prop!$A$2:$A$1498=AT$129,ROW(Database_Prop!$B$2:$B$1498)-ROW(Database_Prop!$B$2)+1),ROWS(Database_Prop!Q$2:'Database_Prop'!Q16))),"") ->  | AU146: =IFERROR(INDEX(Database_Prop!$B$2:$B$1498,SMALL(IF(Database_Prop!$A$2:$A$1498=AU$129,ROW(Database_Prop!$B$2:$B$1498)-ROW(Database_Prop!$B$2)+1),ROWS(Database_Prop!R$2:'Database_Prop'!R16))),"") ->  | AV146: =IFERROR(INDEX(Database_Prop!$B$2:$B$1498,SMALL(IF(Database_Prop!$A$2:$A$1498=AV$129,ROW(Database_Prop!$B$2:$B$1498)-ROW(Database_Prop!$B$2)+1),ROWS(Database_Prop!S$2:'Database_Prop'!S16))),"") ->  | AW146: =IFERROR(INDEX(Database_Prop!$B$2:$B$1498,SMALL(IF(Database_Prop!$A$2:$A$1498=AW$129,ROW(Database_Prop!$B$2:$B$1498)-ROW(Database_Prop!$B$2)+1),ROWS(Database_Prop!T$2:'Database_Prop'!T16))),"") ->  | AX146: =IFERROR(INDEX(Database_Prop!$B$2:$B$1498,SMALL(IF(Database_Prop!$A$2:$A$1498=AX$129,ROW(Database_Prop!$B$2:$B$1498)-ROW(Database_Prop!$B$2)+1),ROWS(Database_Prop!U$2:'Database_Prop'!U16))),"") ->  | AY146: =IFERROR(INDEX(Database_Prop!$B$2:$B$1498,SMALL(IF(Database_Prop!$A$2:$A$1498=AY$129,ROW(Database_Prop!$B$2:$B$1498)-ROW(Database_Prop!$B$2)+1),ROWS(Database_Prop!V$2:'Database_Prop'!V16))),"") ->  | AZ146: =IFERROR(INDEX(Database_Prop!$B$2:$B$1498,SMALL(IF(Database_Prop!$A$2:$A$1498=AZ$129,ROW(Database_Prop!$B$2:$B$1498)-ROW(Database_Prop!$B$2)+1),ROWS(Database_Prop!W$2:'Database_Prop'!W16))),"") ->  | BA146: =IFERROR(INDEX(Database_Prop!$B$2:$B$1498,SMALL(IF(Database_Prop!$A$2:$A$1498=BA$129,ROW(Database_Prop!$B$2:$B$1498)-ROW(Database_Prop!$B$2)+1),ROWS(Database_Prop!X$2:'Database_Prop'!X16))),"") ->  | BB146: =IFERROR(INDEX(Database_Prop!$B$2:$B$1498,SMALL(IF(Database_Prop!$A$2:$A$1498=BB$129,ROW(Database_Prop!$B$2:$B$1498)-ROW(Database_Prop!$B$2)+1),ROWS(Database_Prop!Y$2:'Database_Prop'!Y16))),"") ->  | BC146: =IFERROR(INDEX(Database_Prop!$B$2:$B$1498,SMALL(IF(Database_Prop!$A$2:$A$1498=BC$129,ROW(Database_Prop!$B$2:$B$1498)-ROW(Database_Prop!$B$2)+1),ROWS(Database_Prop!Z$2:'Database_Prop'!Z16))),"") ->  | BE146: Bahrain | BF146: Asia | BG146: FS3 | BH146: =$D$43 -> Please Select | BI146: =$E$43 -> Please Select | BJ146: =IFERROR(IF($BH146=title192,VLOOKUP($BH146&" "&$BI146,Database_Prop!$C:$G,2,FALSE),TEXT(VLOOKUP($BH146&" "&$BI146,Database_Prop!$C:$G,2,FALSE),"0%")),0) -> 0 | BK146: =IFERROR(VLOOKUP($BH146&" "&$BI146,Database_Prop!$C:$G,5,FALSE),0) -> 0 | BL146: =IFERROR(VLOOKUP($BH146&" "&$BI146,Database_Prop!$C:$G,3,FALSE),0) -> 0 | BM146: =IFERROR(VLOOKUP($BH146&" "&$BI146,Database_Prop!$C:$G,4,FALSE),0) -> 0 | BN146: =IFERROR(INDIRECT("PRICE_"&$BG146&"_"&BI$140&$BN$126),0) -> 0
AE147: 16 | AF147: =IFERROR(INDEX(Database_Prop!$B$2:$B$1498,SMALL(IF(Database_Prop!$A$2:$A$1498=AF$129,ROW(Database_Prop!$B$2:$B$1498)-ROW(Database_Prop!$B$2)+1),ROWS(Database_Prop!C$2:'Database_Prop'!C17))),"") ->  | AG147: =IFERROR(INDEX(Database_Prop!$B$2:$B$1498,SMALL(IF(Database_Prop!$A$2:$A$1498=AG$129,ROW(Database_Prop!$B$2:$B$1498)-ROW(Database_Prop!$B$2)+1),ROWS(Database_Prop!D$2:'Database_Prop'!D17))),"") ->  | AH147: =IFERROR(INDEX(Database_Prop!$B$2:$B$1498,SMALL(IF(Database_Prop!$A$2:$A$1498=AH$129,ROW(Database_Prop!$B$2:$B$1498)-ROW(Database_Prop!$B$2)+1),ROWS(Database_Prop!E$2:'Database_Prop'!E17))),"") ->  | AI147: =IFERROR(INDEX(Database_Prop!$B$2:$B$1498,SMALL(IF(Database_Prop!$A$2:$A$1498=AI$129,ROW(Database_Prop!$B$2:$B$1498)-ROW(Database_Prop!$B$2)+1),ROWS(Database_Prop!F$2:'Database_Prop'!F17))),"") ->  | AJ147: =IFERROR(INDEX(Database_Prop!$B$2:$B$1498,SMALL(IF(Database_Prop!$A$2:$A$1498=AJ$129,ROW(Database_Prop!$B$2:$B$1498)-ROW(Database_Prop!$B$2)+1),ROWS(Database_Prop!G$2:'Database_Prop'!G17))),"") ->  | AK147: =IFERROR(INDEX(Database_Prop!$B$2:$B$1498,SMALL(IF(Database_Prop!$A$2:$A$1498=AK$129,ROW(Database_Prop!$B$2:$B$1498)-ROW(Database_Prop!$B$2)+1),ROWS(Database_Prop!H$2:'Database_Prop'!H17))),"") ->  | AL147: =IFERROR(INDEX(Database_Prop!$B$2:$B$1498,SMALL(IF(Database_Prop!$A$2:$A$1498=AL$129,ROW(Database_Prop!$B$2:$B$1498)-ROW(Database_Prop!$B$2)+1),ROWS(Database_Prop!I$2:'Database_Prop'!I17))),"") ->  | AM147: =IFERROR(INDEX(Database_Prop!$B$2:$B$1498,SMALL(IF(Database_Prop!$A$2:$A$1498=AM$129,ROW(Database_Prop!$B$2:$B$1498)-ROW(Database_Prop!$B$2)+1),ROWS(Database_Prop!J$2:'Database_Prop'!J17))),"") ->  | AN147: =IFERROR(INDEX(Database_Prop!$B$2:$B$1498,SMALL(IF(Database_Prop!$A$2:$A$1498=AN$129,ROW(Database_Prop!$B$2:$B$1498)-ROW(Database_Prop!$B$2)+1),ROWS(Database_Prop!K$2:'Database_Prop'!K17))),"") ->  | AO147: =IFERROR(INDEX(Database_Prop!$B$2:$B$1498,SMALL(IF(Database_Prop!$A$2:$A$1498=AO$129,ROW(Database_Prop!$B$2:$B$1498)-ROW(Database_Prop!$B$2)+1),ROWS(Database_Prop!L$2:'Database_Prop'!L17))),"") ->  | AP147: =IFERROR(INDEX(Database_Prop!$B$2:$B$1498,SMALL(IF(Database_Prop!$A$2:$A$1498=AP$129,ROW(Database_Prop!$B$2:$B$1498)-ROW(Database_Prop!$B$2)+1),ROWS(Database_Prop!M$2:'Database_Prop'!M17))),"") ->  | AQ147: =IFERROR(INDEX(Database_Prop!$B$2:$B$1498,SMALL(IF(Database_Prop!$A$2:$A$1498=AQ$129,ROW(Database_Prop!$B$2:$B$1498)-ROW(Database_Prop!$B$2)+1),ROWS(Database_Prop!N$2:'Database_Prop'!N17))),"") ->  | AR147: =IFERROR(INDEX(Database_Prop!$B$2:$B$1498,SMALL(IF(Database_Prop!$A$2:$A$1498=AR$129,ROW(Database_Prop!$B$2:$B$1498)-ROW(Database_Prop!$B$2)+1),ROWS(Database_Prop!O$2:'Database_Prop'!O17))),"") ->  | AS147: =IFERROR(INDEX(Database_Prop!$B$2:$B$1498,SMALL(IF(Database_Prop!$A$2:$A$1498=AS$129,ROW(Database_Prop!$B$2:$B$1498)-ROW(Database_Prop!$B$2)+1),ROWS(Database_Prop!P$2:'Database_Prop'!P17))),"") ->  | AT147: =IFERROR(INDEX(Database_Prop!$B$2:$B$1498,SMALL(IF(Database_Prop!$A$2:$A$1498=AT$129,ROW(Database_Prop!$B$2:$B$1498)-ROW(Database_Prop!$B$2)+1),ROWS(Database_Prop!Q$2:'Database_Prop'!Q17))),"") ->  | AU147: =IFERROR(INDEX(Database_Prop!$B$2:$B$1498,SMALL(IF(Database_Prop!$A$2:$A$1498=AU$129,ROW(Database_Prop!$B$2:$B$1498)-ROW(Database_Prop!$B$2)+1),ROWS(Database_Prop!R$2:'Database_Prop'!R17))),"") ->  | AV147: =IFERROR(INDEX(Database_Prop!$B$2:$B$1498,SMALL(IF(Database_Prop!$A$2:$A$1498=AV$129,ROW(Database_Prop!$B$2:$B$1498)-ROW(Database_Prop!$B$2)+1),ROWS(Database_Prop!S$2:'Database_Prop'!S17))),"") ->  | AW147: =IFERROR(INDEX(Database_Prop!$B$2:$B$1498,SMALL(IF(Database_Prop!$A$2:$A$1498=AW$129,ROW(Database_Prop!$B$2:$B$1498)-ROW(Database_Prop!$B$2)+1),ROWS(Database_Prop!T$2:'Database_Prop'!T17))),"") ->  | AX147: =IFERROR(INDEX(Database_Prop!$B$2:$B$1498,SMALL(IF(Database_Prop!$A$2:$A$1498=AX$129,ROW(Database_Prop!$B$2:$B$1498)-ROW(Database_Prop!$B$2)+1),ROWS(Database_Prop!U$2:'Database_Prop'!U17))),"") ->  | AY147: =IFERROR(INDEX(Database_Prop!$B$2:$B$1498,SMALL(IF(Database_Prop!$A$2:$A$1498=AY$129,ROW(Database_Prop!$B$2:$B$1498)-ROW(Database_Prop!$B$2)+1),ROWS(Database_Prop!V$2:'Database_Prop'!V17))),"") ->  | AZ147: =IFERROR(INDEX(Database_Prop!$B$2:$B$1498,SMALL(IF(Database_Prop!$A$2:$A$1498=AZ$129,ROW(Database_Prop!$B$2:$B$1498)-ROW(Database_Prop!$B$2)+1),ROWS(Database_Prop!W$2:'Database_Prop'!W17))),"") ->  | BA147: =IFERROR(INDEX(Database_Prop!$B$2:$B$1498,SMALL(IF(Database_Prop!$A$2:$A$1498=BA$129,ROW(Database_Prop!$B$2:$B$1498)-ROW(Database_Prop!$B$2)+1),ROWS(Database_Prop!X$2:'Database_Prop'!X17))),"") ->  | BB147: =IFERROR(INDEX(Database_Prop!$B$2:$B$1498,SMALL(IF(Database_Prop!$A$2:$A$1498=BB$129,ROW(Database_Prop!$B$2:$B$1498)-ROW(Database_Prop!$B$2)+1),ROWS(Database_Prop!Y$2:'Database_Prop'!Y17))),"") ->  | BC147: =IFERROR(INDEX(Database_Prop!$B$2:$B$1498,SMALL(IF(Database_Prop!$A$2:$A$1498=BC$129,ROW(Database_Prop!$B$2:$B$1498)-ROW(Database_Prop!$B$2)+1),ROWS(Database_Prop!Z$2:'Database_Prop'!Z17))),"") ->  | BE147: Bangladesh | BF147: Indian Subcontinent | BH147: =title108 -> Main Category | BI147: =title109 -> Feedstock | BJ147: =G$26 -> VS (%) | BK147: =H$26 -> TS (%) | BL147: =I$26 -> BMP (m3/t VS) | BM147: CH4 (%) | BN147: Collection Price
AE148: 17 | AF148: =IFERROR(INDEX(Database_Prop!$B$2:$B$1498,SMALL(IF(Database_Prop!$A$2:$A$1498=AF$129,ROW(Database_Prop!$B$2:$B$1498)-ROW(Database_Prop!$B$2)+1),ROWS(Database_Prop!C$2:'Database_Prop'!C18))),"") ->  | AG148: =IFERROR(INDEX(Database_Prop!$B$2:$B$1498,SMALL(IF(Database_Prop!$A$2:$A$1498=AG$129,ROW(Database_Prop!$B$2:$B$1498)-ROW(Database_Prop!$B$2)+1),ROWS(Database_Prop!D$2:'Database_Prop'!D18))),"") ->  | AH148: =IFERROR(INDEX(Database_Prop!$B$2:$B$1498,SMALL(IF(Database_Prop!$A$2:$A$1498=AH$129,ROW(Database_Prop!$B$2:$B$1498)-ROW(Database_Prop!$B$2)+1),ROWS(Database_Prop!E$2:'Database_Prop'!E18))),"") ->  | AI148: =IFERROR(INDEX(Database_Prop!$B$2:$B$1498,SMALL(IF(Database_Prop!$A$2:$A$1498=AI$129,ROW(Database_Prop!$B$2:$B$1498)-ROW(Database_Prop!$B$2)+1),ROWS(Database_Prop!F$2:'Database_Prop'!F18))),"") ->  | AJ148: =IFERROR(INDEX(Database_Prop!$B$2:$B$1498,SMALL(IF(Database_Prop!$A$2:$A$1498=AJ$129,ROW(Database_Prop!$B$2:$B$1498)-ROW(Database_Prop!$B$2)+1),ROWS(Database_Prop!G$2:'Database_Prop'!G18))),"") ->  | AK148: =IFERROR(INDEX(Database_Prop!$B$2:$B$1498,SMALL(IF(Database_Prop!$A$2:$A$1498=AK$129,ROW(Database_Prop!$B$2:$B$1498)-ROW(Database_Prop!$B$2)+1),ROWS(Database_Prop!H$2:'Database_Prop'!H18))),"") ->  | AL148: =IFERROR(INDEX(Database_Prop!$B$2:$B$1498,SMALL(IF(Database_Prop!$A$2:$A$1498=AL$129,ROW(Database_Prop!$B$2:$B$1498)-ROW(Database_Prop!$B$2)+1),ROWS(Database_Prop!I$2:'Database_Prop'!I18))),"") ->  | AM148: =IFERROR(INDEX(Database_Prop!$B$2:$B$1498,SMALL(IF(Database_Prop!$A$2:$A$1498=AM$129,ROW(Database_Prop!$B$2:$B$1498)-ROW(Database_Prop!$B$2)+1),ROWS(Database_Prop!J$2:'Database_Prop'!J18))),"") ->  | AN148: =IFERROR(INDEX(Database_Prop!$B$2:$B$1498,SMALL(IF(Database_Prop!$A$2:$A$1498=AN$129,ROW(Database_Prop!$B$2:$B$1498)-ROW(Database_Prop!$B$2)+1),ROWS(Database_Prop!K$2:'Database_Prop'!K18))),"") ->  | AO148: =IFERROR(INDEX(Database_Prop!$B$2:$B$1498,SMALL(IF(Database_Prop!$A$2:$A$1498=AO$129,ROW(Database_Prop!$B$2:$B$1498)-ROW(Database_Prop!$B$2)+1),ROWS(Database_Prop!L$2:'Database_Prop'!L18))),"") ->  | AP148: =IFERROR(INDEX(Database_Prop!$B$2:$B$1498,SMALL(IF(Database_Prop!$A$2:$A$1498=AP$129,ROW(Database_Prop!$B$2:$B$1498)-ROW(Database_Prop!$B$2)+1),ROWS(Database_Prop!M$2:'Database_Prop'!M18))),"") ->  | AQ148: =IFERROR(INDEX(Database_Prop!$B$2:$B$1498,SMALL(IF(Database_Prop!$A$2:$A$1498=AQ$129,ROW(Database_Prop!$B$2:$B$1498)-ROW(Database_Prop!$B$2)+1),ROWS(Database_Prop!N$2:'Database_Prop'!N18))),"") ->  | AR148: =IFERROR(INDEX(Database_Prop!$B$2:$B$1498,SMALL(IF(Database_Prop!$A$2:$A$1498=AR$129,ROW(Database_Prop!$B$2:$B$1498)-ROW(Database_Prop!$B$2)+1),ROWS(Database_Prop!O$2:'Database_Prop'!O18))),"") ->  | AS148: =IFERROR(INDEX(Database_Prop!$B$2:$B$1498,SMALL(IF(Database_Prop!$A$2:$A$1498=AS$129,ROW(Database_Prop!$B$2:$B$1498)-ROW(Database_Prop!$B$2)+1),ROWS(Database_Prop!P$2:'Database_Prop'!P18))),"") ->  | AT148: =IFERROR(INDEX(Database_Prop!$B$2:$B$1498,SMALL(IF(Database_Prop!$A$2:$A$1498=AT$129,ROW(Database_Prop!$B$2:$B$1498)-ROW(Database_Prop!$B$2)+1),ROWS(Database_Prop!Q$2:'Database_Prop'!Q18))),"") ->  | AU148: =IFERROR(INDEX(Database_Prop!$B$2:$B$1498,SMALL(IF(Database_Prop!$A$2:$A$1498=AU$129,ROW(Database_Prop!$B$2:$B$1498)-ROW(Database_Prop!$B$2)+1),ROWS(Database_Prop!R$2:'Database_Prop'!R18))),"") ->  | AV148: =IFERROR(INDEX(Database_Prop!$B$2:$B$1498,SMALL(IF(Database_Prop!$A$2:$A$1498=AV$129,ROW(Database_Prop!$B$2:$B$1498)-ROW(Database_Prop!$B$2)+1),ROWS(Database_Prop!S$2:'Database_Prop'!S18))),"") ->  | AW148: =IFERROR(INDEX(Database_Prop!$B$2:$B$1498,SMALL(IF(Database_Prop!$A$2:$A$1498=AW$129,ROW(Database_Prop!$B$2:$B$1498)-ROW(Database_Prop!$B$2)+1),ROWS(Database_Prop!T$2:'Database_Prop'!T18))),"") ->  | AX148: =IFERROR(INDEX(Database_Prop!$B$2:$B$1498,SMALL(IF(Database_Prop!$A$2:$A$1498=AX$129,ROW(Database_Prop!$B$2:$B$1498)-ROW(Database_Prop!$B$2)+1),ROWS(Database_Prop!U$2:'Database_Prop'!U18))),"") ->  | AY148: =IFERROR(INDEX(Database_Prop!$B$2:$B$1498,SMALL(IF(Database_Prop!$A$2:$A$1498=AY$129,ROW(Database_Prop!$B$2:$B$1498)-ROW(Database_Prop!$B$2)+1),ROWS(Database_Prop!V$2:'Database_Prop'!V18))),"") ->  | AZ148: =IFERROR(INDEX(Database_Prop!$B$2:$B$1498,SMALL(IF(Database_Prop!$A$2:$A$1498=AZ$129,ROW(Database_Prop!$B$2:$B$1498)-ROW(Database_Prop!$B$2)+1),ROWS(Database_Prop!W$2:'Database_Prop'!W18))),"") ->  | BA148: =IFERROR(INDEX(Database_Prop!$B$2:$B$1498,SMALL(IF(Database_Prop!$A$2:$A$1498=BA$129,ROW(Database_Prop!$B$2:$B$1498)-ROW(Database_Prop!$B$2)+1),ROWS(Database_Prop!X$2:'Database_Prop'!X18))),"") ->  | BB148: =IFERROR(INDEX(Database_Prop!$B$2:$B$1498,SMALL(IF(Database_Prop!$A$2:$A$1498=BB$129,ROW(Database_Prop!$B$2:$B$1498)-ROW(Database_Prop!$B$2)+1),ROWS(Database_Prop!Y$2:'Database_Prop'!Y18))),"") ->  | BC148: =IFERROR(INDEX(Database_Prop!$B$2:$B$1498,SMALL(IF(Database_Prop!$A$2:$A$1498=BC$129,ROW(Database_Prop!$B$2:$B$1498)-ROW(Database_Prop!$B$2)+1),ROWS(Database_Prop!Z$2:'Database_Prop'!Z18))),"") ->  | BE148: Barbados | BF148: Latin America | BG148: FS4 | BH148: =$D$45 -> Please Select | BI148: =$E$45 -> Please Select | BJ148: =IFERROR(IF($BH148=title192,VLOOKUP($BH148&" "&$BI148,Database_Prop!$C:$G,2,FALSE),TEXT(VLOOKUP($BH148&" "&$BI148,Database_Prop!$C:$G,2,FALSE),"0%")),0) -> 0 | BK148: =IFERROR(VLOOKUP($BH148&" "&$BI148,Database_Prop!$C:$G,5,FALSE),0) -> 0 | BL148: =IFERROR(VLOOKUP($BH148&" "&$BI148,Database_Prop!$C:$G,3,FALSE),0) -> 0 | BM148: =IFERROR(VLOOKUP($BH148&" "&$BI148,Database_Prop!$C:$G,4,FALSE),0) -> 0 | BN148: =IFERROR(INDIRECT("PRICE_"&$BG148&"_"&BI$140&$BN$126),0) -> 0 | BO148: =title74 -> Please Select
AE149: 18 | AF149: =IFERROR(INDEX(Database_Prop!$B$2:$B$1498,SMALL(IF(Database_Prop!$A$2:$A$1498=AF$129,ROW(Database_Prop!$B$2:$B$1498)-ROW(Database_Prop!$B$2)+1),ROWS(Database_Prop!C$2:'Database_Prop'!C19))),"") ->  | AG149: =IFERROR(INDEX(Database_Prop!$B$2:$B$1498,SMALL(IF(Database_Prop!$A$2:$A$1498=AG$129,ROW(Database_Prop!$B$2:$B$1498)-ROW(Database_Prop!$B$2)+1),ROWS(Database_Prop!D$2:'Database_Prop'!D19))),"") ->  | AH149: =IFERROR(INDEX(Database_Prop!$B$2:$B$1498,SMALL(IF(Database_Prop!$A$2:$A$1498=AH$129,ROW(Database_Prop!$B$2:$B$1498)-ROW(Database_Prop!$B$2)+1),ROWS(Database_Prop!E$2:'Database_Prop'!E19))),"") ->  | AI149: =IFERROR(INDEX(Database_Prop!$B$2:$B$1498,SMALL(IF(Database_Prop!$A$2:$A$1498=AI$129,ROW(Database_Prop!$B$2:$B$1498)-ROW(Database_Prop!$B$2)+1),ROWS(Database_Prop!F$2:'Database_Prop'!F19))),"") ->  | AJ149: =IFERROR(INDEX(Database_Prop!$B$2:$B$1498,SMALL(IF(Database_Prop!$A$2:$A$1498=AJ$129,ROW(Database_Prop!$B$2:$B$1498)-ROW(Database_Prop!$B$2)+1),ROWS(Database_Prop!G$2:'Database_Prop'!G19))),"") ->  | AK149: =IFERROR(INDEX(Database_Prop!$B$2:$B$1498,SMALL(IF(Database_Prop!$A$2:$A$1498=AK$129,ROW(Database_Prop!$B$2:$B$1498)-ROW(Database_Prop!$B$2)+1),ROWS(Database_Prop!H$2:'Database_Prop'!H19))),"") ->  | AL149: =IFERROR(INDEX(Database_Prop!$B$2:$B$1498,SMALL(IF(Database_Prop!$A$2:$A$1498=AL$129,ROW(Database_Prop!$B$2:$B$1498)-ROW(Database_Prop!$B$2)+1),ROWS(Database_Prop!I$2:'Database_Prop'!I19))),"") ->  | AM149: =IFERROR(INDEX(Database_Prop!$B$2:$B$1498,SMALL(IF(Database_Prop!$A$2:$A$1498=AM$129,ROW(Database_Prop!$B$2:$B$1498)-ROW(Database_Prop!$B$2)+1),ROWS(Database_Prop!J$2:'Database_Prop'!J19))),"") ->  | AN149: =IFERROR(INDEX(Database_Prop!$B$2:$B$1498,SMALL(IF(Database_Prop!$A$2:$A$1498=AN$129,ROW(Database_Prop!$B$2:$B$1498)-ROW(Database_Prop!$B$2)+1),ROWS(Database_Prop!K$2:'Database_Prop'!K19))),"") ->  | AO149: =IFERROR(INDEX(Database_Prop!$B$2:$B$1498,SMALL(IF(Database_Prop!$A$2:$A$1498=AO$129,ROW(Database_Prop!$B$2:$B$1498)-ROW(Database_Prop!$B$2)+1),ROWS(Database_Prop!L$2:'Database_Prop'!L19))),"") ->  | AP149: =IFERROR(INDEX(Database_Prop!$B$2:$B$1498,SMALL(IF(Database_Prop!$A$2:$A$1498=AP$129,ROW(Database_Prop!$B$2:$B$1498)-ROW(Database_Prop!$B$2)+1),ROWS(Database_Prop!M$2:'Database_Prop'!M19))),"") ->  | AQ149: =IFERROR(INDEX(Database_Prop!$B$2:$B$1498,SMALL(IF(Database_Prop!$A$2:$A$1498=AQ$129,ROW(Database_Prop!$B$2:$B$1498)-ROW(Database_Prop!$B$2)+1),ROWS(Database_Prop!N$2:'Database_Prop'!N19))),"") ->  | AR149: =IFERROR(INDEX(Database_Prop!$B$2:$B$1498,SMALL(IF(Database_Prop!$A$2:$A$1498=AR$129,ROW(Database_Prop!$B$2:$B$1498)-ROW(Database_Prop!$B$2)+1),ROWS(Database_Prop!O$2:'Database_Prop'!O19))),"") ->  | AS149: =IFERROR(INDEX(Database_Prop!$B$2:$B$1498,SMALL(IF(Database_Prop!$A$2:$A$1498=AS$129,ROW(Database_Prop!$B$2:$B$1498)-ROW(Database_Prop!$B$2)+1),ROWS(Database_Prop!P$2:'Database_Prop'!P19))),"") ->  | AT149: =IFERROR(INDEX(Database_Prop!$B$2:$B$1498,SMALL(IF(Database_Prop!$A$2:$A$1498=AT$129,ROW(Database_Prop!$B$2:$B$1498)-ROW(Database_Prop!$B$2)+1),ROWS(Database_Prop!Q$2:'Database_Prop'!Q19))),"") ->  | AU149: =IFERROR(INDEX(Database_Prop!$B$2:$B$1498,SMALL(IF(Database_Prop!$A$2:$A$1498=AU$129,ROW(Database_Prop!$B$2:$B$1498)-ROW(Database_Prop!$B$2)+1),ROWS(Database_Prop!R$2:'Database_Prop'!R19))),"") ->  | AV149: =IFERROR(INDEX(Database_Prop!$B$2:$B$1498,SMALL(IF(Database_Prop!$A$2:$A$1498=AV$129,ROW(Database_Prop!$B$2:$B$1498)-ROW(Database_Prop!$B$2)+1),ROWS(Database_Prop!S$2:'Database_Prop'!S19))),"") ->  | AW149: =IFERROR(INDEX(Database_Prop!$B$2:$B$1498,SMALL(IF(Database_Prop!$A$2:$A$1498=AW$129,ROW(Database_Prop!$B$2:$B$1498)-ROW(Database_Prop!$B$2)+1),ROWS(Database_Prop!T$2:'Database_Prop'!T19))),"") ->  | AX149: =IFERROR(INDEX(Database_Prop!$B$2:$B$1498,SMALL(IF(Database_Prop!$A$2:$A$1498=AX$129,ROW(Database_Prop!$B$2:$B$1498)-ROW(Database_Prop!$B$2)+1),ROWS(Database_Prop!U$2:'Database_Prop'!U19))),"") ->  | AY149: =IFERROR(INDEX(Database_Prop!$B$2:$B$1498,SMALL(IF(Database_Prop!$A$2:$A$1498=AY$129,ROW(Database_Prop!$B$2:$B$1498)-ROW(Database_Prop!$B$2)+1),ROWS(Database_Prop!V$2:'Database_Prop'!V19))),"") ->  | AZ149: =IFERROR(INDEX(Database_Prop!$B$2:$B$1498,SMALL(IF(Database_Prop!$A$2:$A$1498=AZ$129,ROW(Database_Prop!$B$2:$B$1498)-ROW(Database_Prop!$B$2)+1),ROWS(Database_Prop!W$2:'Database_Prop'!W19))),"") ->  | BA149: =IFERROR(INDEX(Database_Prop!$B$2:$B$1498,SMALL(IF(Database_Prop!$A$2:$A$1498=BA$129,ROW(Database_Prop!$B$2:$B$1498)-ROW(Database_Prop!$B$2)+1),ROWS(Database_Prop!X$2:'Database_Prop'!X19))),"") ->  | BB149: =IFERROR(INDEX(Database_Prop!$B$2:$B$1498,SMALL(IF(Database_Prop!$A$2:$A$1498=BB$129,ROW(Database_Prop!$B$2:$B$1498)-ROW(Database_Prop!$B$2)+1),ROWS(Database_Prop!Y$2:'Database_Prop'!Y19))),"") ->  | BC149: =IFERROR(INDEX(Database_Prop!$B$2:$B$1498,SMALL(IF(Database_Prop!$A$2:$A$1498=BC$129,ROW(Database_Prop!$B$2:$B$1498)-ROW(Database_Prop!$B$2)+1),ROWS(Database_Prop!Z$2:'Database_Prop'!Z19))),"") ->  | BE149: Belarus | BF149: Eastern Europe | BH149: =title108 -> Main Category | BI149: =title109 -> Feedstock | BJ149: =G$28 -> VS (%) | BK149: =H$28 -> TS (%) | BL149: =I$28 -> BMP (m3/t VS) | BM149: CH4 (%) | BN149: Collection Price | BO149: =title177 -> Sedimentator | BP149: 0.19
AE150: 19 | AF150: =IFERROR(INDEX(Database_Prop!$B$2:$B$1498,SMALL(IF(Database_Prop!$A$2:$A$1498=AF$129,ROW(Database_Prop!$B$2:$B$1498)-ROW(Database_Prop!$B$2)+1),ROWS(Database_Prop!C$2:'Database_Prop'!C20))),"") ->  | AG150: =IFERROR(INDEX(Database_Prop!$B$2:$B$1498,SMALL(IF(Database_Prop!$A$2:$A$1498=AG$129,ROW(Database_Prop!$B$2:$B$1498)-ROW(Database_Prop!$B$2)+1),ROWS(Database_Prop!D$2:'Database_Prop'!D20))),"") ->  | AH150: =IFERROR(INDEX(Database_Prop!$B$2:$B$1498,SMALL(IF(Database_Prop!$A$2:$A$1498=AH$129,ROW(Database_Prop!$B$2:$B$1498)-ROW(Database_Prop!$B$2)+1),ROWS(Database_Prop!E$2:'Database_Prop'!E20))),"") ->  | AI150: =IFERROR(INDEX(Database_Prop!$B$2:$B$1498,SMALL(IF(Database_Prop!$A$2:$A$1498=AI$129,ROW(Database_Prop!$B$2:$B$1498)-ROW(Database_Prop!$B$2)+1),ROWS(Database_Prop!F$2:'Database_Prop'!F20))),"") ->  | AJ150: =IFERROR(INDEX(Database_Prop!$B$2:$B$1498,SMALL(IF(Database_Prop!$A$2:$A$1498=AJ$129,ROW(Database_Prop!$B$2:$B$1498)-ROW(Database_Prop!$B$2)+1),ROWS(Database_Prop!G$2:'Database_Prop'!G20))),"") ->  | AK150: =IFERROR(INDEX(Database_Prop!$B$2:$B$1498,SMALL(IF(Database_Prop!$A$2:$A$1498=AK$129,ROW(Database_Prop!$B$2:$B$1498)-ROW(Database_Prop!$B$2)+1),ROWS(Database_Prop!H$2:'Database_Prop'!H20))),"") ->  | AL150: =IFERROR(INDEX(Database_Prop!$B$2:$B$1498,SMALL(IF(Database_Prop!$A$2:$A$1498=AL$129,ROW(Database_Prop!$B$2:$B$1498)-ROW(Database_Prop!$B$2)+1),ROWS(Database_Prop!I$2:'Database_Prop'!I20))),"") ->  | AM150: =IFERROR(INDEX(Database_Prop!$B$2:$B$1498,SMALL(IF(Database_Prop!$A$2:$A$1498=AM$129,ROW(Database_Prop!$B$2:$B$1498)-ROW(Database_Prop!$B$2)+1),ROWS(Database_Prop!J$2:'Database_Prop'!J20))),"") ->  | AN150: =IFERROR(INDEX(Database_Prop!$B$2:$B$1498,SMALL(IF(Database_Prop!$A$2:$A$1498=AN$129,ROW(Database_Prop!$B$2:$B$1498)-ROW(Database_Prop!$B$2)+1),ROWS(Database_Prop!K$2:'Database_Prop'!K20))),"") ->  | AO150: =IFERROR(INDEX(Database_Prop!$B$2:$B$1498,SMALL(IF(Database_Prop!$A$2:$A$1498=AO$129,ROW(Database_Prop!$B$2:$B$1498)-ROW(Database_Prop!$B$2)+1),ROWS(Database_Prop!L$2:'Database_Prop'!L20))),"") ->  | AP150: =IFERROR(INDEX(Database_Prop!$B$2:$B$1498,SMALL(IF(Database_Prop!$A$2:$A$1498=AP$129,ROW(Database_Prop!$B$2:$B$1498)-ROW(Database_Prop!$B$2)+1),ROWS(Database_Prop!M$2:'Database_Prop'!M20))),"") ->  | AQ150: =IFERROR(INDEX(Database_Prop!$B$2:$B$1498,SMALL(IF(Database_Prop!$A$2:$A$1498=AQ$129,ROW(Database_Prop!$B$2:$B$1498)-ROW(Database_Prop!$B$2)+1),ROWS(Database_Prop!N$2:'Database_Prop'!N20))),"") ->  | AR150: =IFERROR(INDEX(Database_Prop!$B$2:$B$1498,SMALL(IF(Database_Prop!$A$2:$A$1498=AR$129,ROW(Database_Prop!$B$2:$B$1498)-ROW(Database_Prop!$B$2)+1),ROWS(Database_Prop!O$2:'Database_Prop'!O20))),"") ->  | AS150: =IFERROR(INDEX(Database_Prop!$B$2:$B$1498,SMALL(IF(Database_Prop!$A$2:$A$1498=AS$129,ROW(Database_Prop!$B$2:$B$1498)-ROW(Database_Prop!$B$2)+1),ROWS(Database_Prop!P$2:'Database_Prop'!P20))),"") ->  | AT150: =IFERROR(INDEX(Database_Prop!$B$2:$B$1498,SMALL(IF(Database_Prop!$A$2:$A$1498=AT$129,ROW(Database_Prop!$B$2:$B$1498)-ROW(Database_Prop!$B$2)+1),ROWS(Database_Prop!Q$2:'Database_Prop'!Q20))),"") ->  | AU150: =IFERROR(INDEX(Database_Prop!$B$2:$B$1498,SMALL(IF(Database_Prop!$A$2:$A$1498=AU$129,ROW(Database_Prop!$B$2:$B$1498)-ROW(Database_Prop!$B$2)+1),ROWS(Database_Prop!R$2:'Database_Prop'!R20))),"") ->  | AV150: =IFERROR(INDEX(Database_Prop!$B$2:$B$1498,SMALL(IF(Database_Prop!$A$2:$A$1498=AV$129,ROW(Database_Prop!$B$2:$B$1498)-ROW(Database_Prop!$B$2)+1),ROWS(Database_Prop!S$2:'Database_Prop'!S20))),"") ->  | AW150: =IFERROR(INDEX(Database_Prop!$B$2:$B$1498,SMALL(IF(Database_Prop!$A$2:$A$1498=AW$129,ROW(Database_Prop!$B$2:$B$1498)-ROW(Database_Prop!$B$2)+1),ROWS(Database_Prop!T$2:'Database_Prop'!T20))),"") ->  | AX150: =IFERROR(INDEX(Database_Prop!$B$2:$B$1498,SMALL(IF(Database_Prop!$A$2:$A$1498=AX$129,ROW(Database_Prop!$B$2:$B$1498)-ROW(Database_Prop!$B$2)+1),ROWS(Database_Prop!U$2:'Database_Prop'!U20))),"") ->  | AY150: =IFERROR(INDEX(Database_Prop!$B$2:$B$1498,SMALL(IF(Database_Prop!$A$2:$A$1498=AY$129,ROW(Database_Prop!$B$2:$B$1498)-ROW(Database_Prop!$B$2)+1),ROWS(Database_Prop!V$2:'Database_Prop'!V20))),"") ->  | AZ150: =IFERROR(INDEX(Database_Prop!$B$2:$B$1498,SMALL(IF(Database_Prop!$A$2:$A$1498=AZ$129,ROW(Database_Prop!$B$2:$B$1498)-ROW(Database_Prop!$B$2)+1),ROWS(Database_Prop!W$2:'Database_Prop'!W20))),"") ->  | BA150: =IFERROR(INDEX(Database_Prop!$B$2:$B$1498,SMALL(IF(Database_Prop!$A$2:$A$1498=BA$129,ROW(Database_Prop!$B$2:$B$1498)-ROW(Database_Prop!$B$2)+1),ROWS(Database_Prop!X$2:'Database_Prop'!X20))),"") ->  | BB150: =IFERROR(INDEX(Database_Prop!$B$2:$B$1498,SMALL(IF(Database_Prop!$A$2:$A$1498=BB$129,ROW(Database_Prop!$B$2:$B$1498)-ROW(Database_Prop!$B$2)+1),ROWS(Database_Prop!Y$2:'Database_Prop'!Y20))),"") ->  | BC150: =IFERROR(INDEX(Database_Prop!$B$2:$B$1498,SMALL(IF(Database_Prop!$A$2:$A$1498=BC$129,ROW(Database_Prop!$B$2:$B$1498)-ROW(Database_Prop!$B$2)+1),ROWS(Database_Prop!Z$2:'Database_Prop'!Z20))),"") ->  | BE150: Belgium | BF150: Western Europe | BG150: FS5 | BH150: =$D$47 -> Please Select | BI150: =$E$47 -> Please Select | BJ150: =IFERROR(IF($BH150=title192,VLOOKUP($BH150&" "&$BI150,Database_Prop!$C:$G,2,FALSE),TEXT(VLOOKUP($BH150&" "&$BI150,Database_Prop!$C:$G,2,FALSE),"0%")),0) -> 0 | BK150: =IFERROR(VLOOKUP($BH150&" "&$BI150,Database_Prop!$C:$G,5,FALSE),0) -> 0 | BL150: =IFERROR(VLOOKUP($BH150&" "&$BI150,Database_Prop!$C:$G,3,FALSE),0) -> 0 | BM150: =IFERROR(VLOOKUP($BH150&" "&$BI150,Database_Prop!$C:$G,4,FALSE),0) -> 0 | BN150: =IFERROR(INDIRECT("PRICE_"&$BG150&"_"&BI$140&$BN$126),0) -> 0 | BO150: =title178 -> Floater | BP150: 0.2
AE151: 20 | AF151: =IFERROR(INDEX(Database_Prop!$B$2:$B$1498,SMALL(IF(Database_Prop!$A$2:$A$1498=AF$129,ROW(Database_Prop!$B$2:$B$1498)-ROW(Database_Prop!$B$2)+1),ROWS(Database_Prop!C$2:'Database_Prop'!C21))),"") ->  | AG151: =IFERROR(INDEX(Database_Prop!$B$2:$B$1498,SMALL(IF(Database_Prop!$A$2:$A$1498=AG$129,ROW(Database_Prop!$B$2:$B$1498)-ROW(Database_Prop!$B$2)+1),ROWS(Database_Prop!D$2:'Database_Prop'!D21))),"") ->  | AH151: =IFERROR(INDEX(Database_Prop!$B$2:$B$1498,SMALL(IF(Database_Prop!$A$2:$A$1498=AH$129,ROW(Database_Prop!$B$2:$B$1498)-ROW(Database_Prop!$B$2)+1),ROWS(Database_Prop!E$2:'Database_Prop'!E21))),"") ->  | AI151: =IFERROR(INDEX(Database_Prop!$B$2:$B$1498,SMALL(IF(Database_Prop!$A$2:$A$1498=AI$129,ROW(Database_Prop!$B$2:$B$1498)-ROW(Database_Prop!$B$2)+1),ROWS(Database_Prop!F$2:'Database_Prop'!F21))),"") ->  | AJ151: =IFERROR(INDEX(Database_Prop!$B$2:$B$1498,SMALL(IF(Database_Prop!$A$2:$A$1498=AJ$129,ROW(Database_Prop!$B$2:$B$1498)-ROW(Database_Prop!$B$2)+1),ROWS(Database_Prop!G$2:'Database_Prop'!G21))),"") ->  | AK151: =IFERROR(INDEX(Database_Prop!$B$2:$B$1498,SMALL(IF(Database_Prop!$A$2:$A$1498=AK$129,ROW(Database_Prop!$B$2:$B$1498)-ROW(Database_Prop!$B$2)+1),ROWS(Database_Prop!H$2:'Database_Prop'!H21))),"") ->  | AL151: =IFERROR(INDEX(Database_Prop!$B$2:$B$1498,SMALL(IF(Database_Prop!$A$2:$A$1498=AL$129,ROW(Database_Prop!$B$2:$B$1498)-ROW(Database_Prop!$B$2)+1),ROWS(Database_Prop!I$2:'Database_Prop'!I21))),"") ->  | AM151: =IFERROR(INDEX(Database_Prop!$B$2:$B$1498,SMALL(IF(Database_Prop!$A$2:$A$1498=AM$129,ROW(Database_Prop!$B$2:$B$1498)-ROW(Database_Prop!$B$2)+1),ROWS(Database_Prop!J$2:'Database_Prop'!J21))),"") ->  | AN151: =IFERROR(INDEX(Database_Prop!$B$2:$B$1498,SMALL(IF(Database_Prop!$A$2:$A$1498=AN$129,ROW(Database_Prop!$B$2:$B$1498)-ROW(Database_Prop!$B$2)+1),ROWS(Database_Prop!K$2:'Database_Prop'!K21))),"") ->  | AO151: =IFERROR(INDEX(Database_Prop!$B$2:$B$1498,SMALL(IF(Database_Prop!$A$2:$A$1498=AO$129,ROW(Database_Prop!$B$2:$B$1498)-ROW(Database_Prop!$B$2)+1),ROWS(Database_Prop!L$2:'Database_Prop'!L21))),"") ->  | AP151: =IFERROR(INDEX(Database_Prop!$B$2:$B$1498,SMALL(IF(Database_Prop!$A$2:$A$1498=AP$129,ROW(Database_Prop!$B$2:$B$1498)-ROW(Database_Prop!$B$2)+1),ROWS(Database_Prop!M$2:'Database_Prop'!M21))),"") ->  | AQ151: =IFERROR(INDEX(Database_Prop!$B$2:$B$1498,SMALL(IF(Database_Prop!$A$2:$A$1498=AQ$129,ROW(Database_Prop!$B$2:$B$1498)-ROW(Database_Prop!$B$2)+1),ROWS(Database_Prop!N$2:'Database_Prop'!N21))),"") ->  | AR151: =IFERROR(INDEX(Database_Prop!$B$2:$B$1498,SMALL(IF(Database_Prop!$A$2:$A$1498=AR$129,ROW(Database_Prop!$B$2:$B$1498)-ROW(Database_Prop!$B$2)+1),ROWS(Database_Prop!O$2:'Database_Prop'!O21))),"") ->  | AS151: =IFERROR(INDEX(Database_Prop!$B$2:$B$1498,SMALL(IF(Database_Prop!$A$2:$A$1498=AS$129,ROW(Database_Prop!$B$2:$B$1498)-ROW(Database_Prop!$B$2)+1),ROWS(Database_Prop!P$2:'Database_Prop'!P21))),"") ->  | AT151: =IFERROR(INDEX(Database_Prop!$B$2:$B$1498,SMALL(IF(Database_Prop!$A$2:$A$1498=AT$129,ROW(Database_Prop!$B$2:$B$1498)-ROW(Database_Prop!$B$2)+1),ROWS(Database_Prop!Q$2:'Database_Prop'!Q21))),"") ->  | AU151: =IFERROR(INDEX(Database_Prop!$B$2:$B$1498,SMALL(IF(Database_Prop!$A$2:$A$1498=AU$129,ROW(Database_Prop!$B$2:$B$1498)-ROW(Database_Prop!$B$2)+1),ROWS(Database_Prop!R$2:'Database_Prop'!R21))),"") ->  | AV151: =IFERROR(INDEX(Database_Prop!$B$2:$B$1498,SMALL(IF(Database_Prop!$A$2:$A$1498=AV$129,ROW(Database_Prop!$B$2:$B$1498)-ROW(Database_Prop!$B$2)+1),ROWS(Database_Prop!S$2:'Database_Prop'!S21))),"") ->  | AW151: =IFERROR(INDEX(Database_Prop!$B$2:$B$1498,SMALL(IF(Database_Prop!$A$2:$A$1498=AW$129,ROW(Database_Prop!$B$2:$B$1498)-ROW(Database_Prop!$B$2)+1),ROWS(Database_Prop!T$2:'Database_Prop'!T21))),"") ->  | AX151: =IFERROR(INDEX(Database_Prop!$B$2:$B$1498,SMALL(IF(Database_Prop!$A$2:$A$1498=AX$129,ROW(Database_Prop!$B$2:$B$1498)-ROW(Database_Prop!$B$2)+1),ROWS(Database_Prop!U$2:'Database_Prop'!U21))),"") ->  | AY151: =IFERROR(INDEX(Database_Prop!$B$2:$B$1498,SMALL(IF(Database_Prop!$A$2:$A$1498=AY$129,ROW(Database_Prop!$B$2:$B$1498)-ROW(Database_Prop!$B$2)+1),ROWS(Database_Prop!V$2:'Database_Prop'!V21))),"") ->  | AZ151: =IFERROR(INDEX(Database_Prop!$B$2:$B$1498,SMALL(IF(Database_Prop!$A$2:$A$1498=AZ$129,ROW(Database_Prop!$B$2:$B$1498)-ROW(Database_Prop!$B$2)+1),ROWS(Database_Prop!W$2:'Database_Prop'!W21))),"") ->  | BA151: =IFERROR(INDEX(Database_Prop!$B$2:$B$1498,SMALL(IF(Database_Prop!$A$2:$A$1498=BA$129,ROW(Database_Prop!$B$2:$B$1498)-ROW(Database_Prop!$B$2)+1),ROWS(Database_Prop!X$2:'Database_Prop'!X21))),"") ->  | BB151: =IFERROR(INDEX(Database_Prop!$B$2:$B$1498,SMALL(IF(Database_Prop!$A$2:$A$1498=BB$129,ROW(Database_Prop!$B$2:$B$1498)-ROW(Database_Prop!$B$2)+1),ROWS(Database_Prop!Y$2:'Database_Prop'!Y21))),"") ->  | BC151: =IFERROR(INDEX(Database_Prop!$B$2:$B$1498,SMALL(IF(Database_Prop!$A$2:$A$1498=BC$129,ROW(Database_Prop!$B$2:$B$1498)-ROW(Database_Prop!$B$2)+1),ROWS(Database_Prop!Z$2:'Database_Prop'!Z21))),"") ->  | BE151: Belize | BF151: Latin America | BH151: =title108 -> Main Category | BI151: =title109 -> Feedstock | BJ151: =G$28 -> VS (%) | BK151: =H$28 -> TS (%) | BL151: =I$28 -> BMP (m3/t VS) | BM151: CH4 (%) | BN151: Collection Price | BO151: =title179 -> Centrifuge | BP151: 0.68
AE152: 21 | AF152: =IFERROR(INDEX(Database_Prop!$B$2:$B$1498,SMALL(IF(Database_Prop!$A$2:$A$1498=AF$129,ROW(Database_Prop!$B$2:$B$1498)-ROW(Database_Prop!$B$2)+1),ROWS(Database_Prop!C$2:'Database_Prop'!C22))),"") ->  | AG152: =IFERROR(INDEX(Database_Prop!$B$2:$B$1498,SMALL(IF(Database_Prop!$A$2:$A$1498=AG$129,ROW(Database_Prop!$B$2:$B$1498)-ROW(Database_Prop!$B$2)+1),ROWS(Database_Prop!D$2:'Database_Prop'!D22))),"") ->  | AH152: =IFERROR(INDEX(Database_Prop!$B$2:$B$1498,SMALL(IF(Database_Prop!$A$2:$A$1498=AH$129,ROW(Database_Prop!$B$2:$B$1498)-ROW(Database_Prop!$B$2)+1),ROWS(Database_Prop!E$2:'Database_Prop'!E22))),"") ->  | AI152: =IFERROR(INDEX(Database_Prop!$B$2:$B$1498,SMALL(IF(Database_Prop!$A$2:$A$1498=AI$129,ROW(Database_Prop!$B$2:$B$1498)-ROW(Database_Prop!$B$2)+1),ROWS(Database_Prop!F$2:'Database_Prop'!F22))),"") ->  | AJ152: =IFERROR(INDEX(Database_Prop!$B$2:$B$1498,SMALL(IF(Database_Prop!$A$2:$A$1498=AJ$129,ROW(Database_Prop!$B$2:$B$1498)-ROW(Database_Prop!$B$2)+1),ROWS(Database_Prop!G$2:'Database_Prop'!G22))),"") ->  | AK152: =IFERROR(INDEX(Database_Prop!$B$2:$B$1498,SMALL(IF(Database_Prop!$A$2:$A$1498=AK$129,ROW(Database_Prop!$B$2:$B$1498)-ROW(Database_Prop!$B$2)+1),ROWS(Database_Prop!H$2:'Database_Prop'!H22))),"") ->  | AL152: =IFERROR(INDEX(Database_Prop!$B$2:$B$1498,SMALL(IF(Database_Prop!$A$2:$A$1498=AL$129,ROW(Database_Prop!$B$2:$B$1498)-ROW(Database_Prop!$B$2)+1),ROWS(Database_Prop!I$2:'Database_Prop'!I22))),"") ->  | AM152: =IFERROR(INDEX(Database_Prop!$B$2:$B$1498,SMALL(IF(Database_Prop!$A$2:$A$1498=AM$129,ROW(Database_Prop!$B$2:$B$1498)-ROW(Database_Prop!$B$2)+1),ROWS(Database_Prop!J$2:'Database_Prop'!J22))),"") ->  | AN152: =IFERROR(INDEX(Database_Prop!$B$2:$B$1498,SMALL(IF(Database_Prop!$A$2:$A$1498=AN$129,ROW(Database_Prop!$B$2:$B$1498)-ROW(Database_Prop!$B$2)+1),ROWS(Database_Prop!K$2:'Database_Prop'!K22))),"") ->  | AO152: =IFERROR(INDEX(Database_Prop!$B$2:$B$1498,SMALL(IF(Database_Prop!$A$2:$A$1498=AO$129,ROW(Database_Prop!$B$2:$B$1498)-ROW(Database_Prop!$B$2)+1),ROWS(Database_Prop!L$2:'Database_Prop'!L22))),"") ->  | AP152: =IFERROR(INDEX(Database_Prop!$B$2:$B$1498,SMALL(IF(Database_Prop!$A$2:$A$1498=AP$129,ROW(Database_Prop!$B$2:$B$1498)-ROW(Database_Prop!$B$2)+1),ROWS(Database_Prop!M$2:'Database_Prop'!M22))),"") ->  | AQ152: =IFERROR(INDEX(Database_Prop!$B$2:$B$1498,SMALL(IF(Database_Prop!$A$2:$A$1498=AQ$129,ROW(Database_Prop!$B$2:$B$1498)-ROW(Database_Prop!$B$2)+1),ROWS(Database_Prop!N$2:'Database_Prop'!N22))),"") ->  | AR152: =IFERROR(INDEX(Database_Prop!$B$2:$B$1498,SMALL(IF(Database_Prop!$A$2:$A$1498=AR$129,ROW(Database_Prop!$B$2:$B$1498)-ROW(Database_Prop!$B$2)+1),ROWS(Database_Prop!O$2:'Database_Prop'!O22))),"") ->  | AS152: =IFERROR(INDEX(Database_Prop!$B$2:$B$1498,SMALL(IF(Database_Prop!$A$2:$A$1498=AS$129,ROW(Database_Prop!$B$2:$B$1498)-ROW(Database_Prop!$B$2)+1),ROWS(Database_Prop!P$2:'Database_Prop'!P22))),"") ->  | AT152: =IFERROR(INDEX(Database_Prop!$B$2:$B$1498,SMALL(IF(Database_Prop!$A$2:$A$1498=AT$129,ROW(Database_Prop!$B$2:$B$1498)-ROW(Database_Prop!$B$2)+1),ROWS(Database_Prop!Q$2:'Database_Prop'!Q22))),"") ->  | AU152: =IFERROR(INDEX(Database_Prop!$B$2:$B$1498,SMALL(IF(Database_Prop!$A$2:$A$1498=AU$129,ROW(Database_Prop!$B$2:$B$1498)-ROW(Database_Prop!$B$2)+1),ROWS(Database_Prop!R$2:'Database_Prop'!R22))),"") ->  | AV152: =IFERROR(INDEX(Database_Prop!$B$2:$B$1498,SMALL(IF(Database_Prop!$A$2:$A$1498=AV$129,ROW(Database_Prop!$B$2:$B$1498)-ROW(Database_Prop!$B$2)+1),ROWS(Database_Prop!S$2:'Database_Prop'!S22))),"") ->  | AW152: =IFERROR(INDEX(Database_Prop!$B$2:$B$1498,SMALL(IF(Database_Prop!$A$2:$A$1498=AW$129,ROW(Database_Prop!$B$2:$B$1498)-ROW(Database_Prop!$B$2)+1),ROWS(Database_Prop!T$2:'Database_Prop'!T22))),"") ->  | AX152: =IFERROR(INDEX(Database_Prop!$B$2:$B$1498,SMALL(IF(Database_Prop!$A$2:$A$1498=AX$129,ROW(Database_Prop!$B$2:$B$1498)-ROW(Database_Prop!$B$2)+1),ROWS(Database_Prop!U$2:'Database_Prop'!U22))),"") ->  | AY152: =IFERROR(INDEX(Database_Prop!$B$2:$B$1498,SMALL(IF(Database_Prop!$A$2:$A$1498=AY$129,ROW(Database_Prop!$B$2:$B$1498)-ROW(Database_Prop!$B$2)+1),ROWS(Database_Prop!V$2:'Database_Prop'!V22))),"") ->  | AZ152: =IFERROR(INDEX(Database_Prop!$B$2:$B$1498,SMALL(IF(Database_Prop!$A$2:$A$1498=AZ$129,ROW(Database_Prop!$B$2:$B$1498)-ROW(Database_Prop!$B$2)+1),ROWS(Database_Prop!W$2:'Database_Prop'!W22))),"") ->  | BA152: =IFERROR(INDEX(Database_Prop!$B$2:$B$1498,SMALL(IF(Database_Prop!$A$2:$A$1498=BA$129,ROW(Database_Prop!$B$2:$B$1498)-ROW(Database_Prop!$B$2)+1),ROWS(Database_Prop!X$2:'Database_Prop'!X22))),"") ->  | BB152: =IFERROR(INDEX(Database_Prop!$B$2:$B$1498,SMALL(IF(Database_Prop!$A$2:$A$1498=BB$129,ROW(Database_Prop!$B$2:$B$1498)-ROW(Database_Prop!$B$2)+1),ROWS(Database_Prop!Y$2:'Database_Prop'!Y22))),"") ->  | BC152: =IFERROR(INDEX(Database_Prop!$B$2:$B$1498,SMALL(IF(Database_Prop!$A$2:$A$1498=BC$129,ROW(Database_Prop!$B$2:$B$1498)-ROW(Database_Prop!$B$2)+1),ROWS(Database_Prop!Z$2:'Database_Prop'!Z22))),"") ->  | BE152: Benin | BF152: Africa | BG152: FS6 | BH152: =$D$51 -> Please Select | BI152: =$E$51 -> Please Select | BJ152: =IFERROR(IF($BH152=title192,VLOOKUP($BH152&" "&$BI152,Database_Prop!$C:$G,2,FALSE),TEXT(VLOOKUP($BH152&" "&$BI152,Database_Prop!$C:$G,2,FALSE),"0%")),0) -> 0 | BK152: =IFERROR(VLOOKUP($BH152&" "&$BI152,Database_Prop!$C:$G,5,FALSE),0) -> 0 | BL152: =IFERROR(VLOOKUP($BH152&" "&$BI152,Database_Prop!$C:$G,3,FALSE),0) -> 0 | BM152: =IFERROR(VLOOKUP($BH152&" "&$BI152,Database_Prop!$C:$G,4,FALSE),0) -> 0 | BN152: =IFERROR(INDIRECT("PRICE_"&$BG152&"_"&BI$140&$BN$126),0) -> 0 | BO152: =title180 -> Belt Press | BP152: 0.56
AE153: 22 | AF153: =IFERROR(INDEX(Database_Prop!$B$2:$B$1498,SMALL(IF(Database_Prop!$A$2:$A$1498=AF$129,ROW(Database_Prop!$B$2:$B$1498)-ROW(Database_Prop!$B$2)+1),ROWS(Database_Prop!C$2:'Database_Prop'!C23))),"") ->  | AG153: =IFERROR(INDEX(Database_Prop!$B$2:$B$1498,SMALL(IF(Database_Prop!$A$2:$A$1498=AG$129,ROW(Database_Prop!$B$2:$B$1498)-ROW(Database_Prop!$B$2)+1),ROWS(Database_Prop!D$2:'Database_Prop'!D23))),"") ->  | AH153: =IFERROR(INDEX(Database_Prop!$B$2:$B$1498,SMALL(IF(Database_Prop!$A$2:$A$1498=AH$129,ROW(Database_Prop!$B$2:$B$1498)-ROW(Database_Prop!$B$2)+1),ROWS(Database_Prop!E$2:'Database_Prop'!E23))),"") ->  | AI153: =IFERROR(INDEX(Database_Prop!$B$2:$B$1498,SMALL(IF(Database_Prop!$A$2:$A$1498=AI$129,ROW(Database_Prop!$B$2:$B$1498)-ROW(Database_Prop!$B$2)+1),ROWS(Database_Prop!F$2:'Database_Prop'!F23))),"") ->  | AJ153: =IFERROR(INDEX(Database_Prop!$B$2:$B$1498,SMALL(IF(Database_Prop!$A$2:$A$1498=AJ$129,ROW(Database_Prop!$B$2:$B$1498)-ROW(Database_Prop!$B$2)+1),ROWS(Database_Prop!G$2:'Database_Prop'!G23))),"") ->  | AK153: =IFERROR(INDEX(Database_Prop!$B$2:$B$1498,SMALL(IF(Database_Prop!$A$2:$A$1498=AK$129,ROW(Database_Prop!$B$2:$B$1498)-ROW(Database_Prop!$B$2)+1),ROWS(Database_Prop!H$2:'Database_Prop'!H23))),"") ->  | AL153: =IFERROR(INDEX(Database_Prop!$B$2:$B$1498,SMALL(IF(Database_Prop!$A$2:$A$1498=AL$129,ROW(Database_Prop!$B$2:$B$1498)-ROW(Database_Prop!$B$2)+1),ROWS(Database_Prop!I$2:'Database_Prop'!I23))),"") ->  | AM153: =IFERROR(INDEX(Database_Prop!$B$2:$B$1498,SMALL(IF(Database_Prop!$A$2:$A$1498=AM$129,ROW(Database_Prop!$B$2:$B$1498)-ROW(Database_Prop!$B$2)+1),ROWS(Database_Prop!J$2:'Database_Prop'!J23))),"") ->  | AN153: =IFERROR(INDEX(Database_Prop!$B$2:$B$1498,SMALL(IF(Database_Prop!$A$2:$A$1498=AN$129,ROW(Database_Prop!$B$2:$B$1498)-ROW(Database_Prop!$B$2)+1),ROWS(Database_Prop!K$2:'Database_Prop'!K23))),"") ->  | AO153: =IFERROR(INDEX(Database_Prop!$B$2:$B$1498,SMALL(IF(Database_Prop!$A$2:$A$1498=AO$129,ROW(Database_Prop!$B$2:$B$1498)-ROW(Database_Prop!$B$2)+1),ROWS(Database_Prop!L$2:'Database_Prop'!L23))),"") ->  | AP153: =IFERROR(INDEX(Database_Prop!$B$2:$B$1498,SMALL(IF(Database_Prop!$A$2:$A$1498=AP$129,ROW(Database_Prop!$B$2:$B$1498)-ROW(Database_Prop!$B$2)+1),ROWS(Database_Prop!M$2:'Database_Prop'!M23))),"") ->  | AQ153: =IFERROR(INDEX(Database_Prop!$B$2:$B$1498,SMALL(IF(Database_Prop!$A$2:$A$1498=AQ$129,ROW(Database_Prop!$B$2:$B$1498)-ROW(Database_Prop!$B$2)+1),ROWS(Database_Prop!N$2:'Database_Prop'!N23))),"") ->  | AR153: =IFERROR(INDEX(Database_Prop!$B$2:$B$1498,SMALL(IF(Database_Prop!$A$2:$A$1498=AR$129,ROW(Database_Prop!$B$2:$B$1498)-ROW(Database_Prop!$B$2)+1),ROWS(Database_Prop!O$2:'Database_Prop'!O23))),"") ->  | AS153: =IFERROR(INDEX(Database_Prop!$B$2:$B$1498,SMALL(IF(Database_Prop!$A$2:$A$1498=AS$129,ROW(Database_Prop!$B$2:$B$1498)-ROW(Database_Prop!$B$2)+1),ROWS(Database_Prop!P$2:'Database_Prop'!P23))),"") ->  | AT153: =IFERROR(INDEX(Database_Prop!$B$2:$B$1498,SMALL(IF(Database_Prop!$A$2:$A$1498=AT$129,ROW(Database_Prop!$B$2:$B$1498)-ROW(Database_Prop!$B$2)+1),ROWS(Database_Prop!Q$2:'Database_Prop'!Q23))),"") ->  | AU153: =IFERROR(INDEX(Database_Prop!$B$2:$B$1498,SMALL(IF(Database_Prop!$A$2:$A$1498=AU$129,ROW(Database_Prop!$B$2:$B$1498)-ROW(Database_Prop!$B$2)+1),ROWS(Database_Prop!R$2:'Database_Prop'!R23))),"") ->  | AV153: =IFERROR(INDEX(Database_Prop!$B$2:$B$1498,SMALL(IF(Database_Prop!$A$2:$A$1498=AV$129,ROW(Database_Prop!$B$2:$B$1498)-ROW(Database_Prop!$B$2)+1),ROWS(Database_Prop!S$2:'Database_Prop'!S23))),"") ->  | AW153: =IFERROR(INDEX(Database_Prop!$B$2:$B$1498,SMALL(IF(Database_Prop!$A$2:$A$1498=AW$129,ROW(Database_Prop!$B$2:$B$1498)-ROW(Database_Prop!$B$2)+1),ROWS(Database_Prop!T$2:'Database_Prop'!T23))),"") ->  | AX153: =IFERROR(INDEX(Database_Prop!$B$2:$B$1498,SMALL(IF(Database_Prop!$A$2:$A$1498=AX$129,ROW(Database_Prop!$B$2:$B$1498)-ROW(Database_Prop!$B$2)+1),ROWS(Database_Prop!U$2:'Database_Prop'!U23))),"") ->  | AY153: =IFERROR(INDEX(Database_Prop!$B$2:$B$1498,SMALL(IF(Database_Prop!$A$2:$A$1498=AY$129,ROW(Database_Prop!$B$2:$B$1498)-ROW(Database_Prop!$B$2)+1),ROWS(Database_Prop!V$2:'Database_Prop'!V23))),"") ->  | AZ153: =IFERROR(INDEX(Database_Prop!$B$2:$B$1498,SMALL(IF(Database_Prop!$A$2:$A$1498=AZ$129,ROW(Database_Prop!$B$2:$B$1498)-ROW(Database_Prop!$B$2)+1),ROWS(Database_Prop!W$2:'Database_Prop'!W23))),"") ->  | BA153: =IFERROR(INDEX(Database_Prop!$B$2:$B$1498,SMALL(IF(Database_Prop!$A$2:$A$1498=BA$129,ROW(Database_Prop!$B$2:$B$1498)-ROW(Database_Prop!$B$2)+1),ROWS(Database_Prop!X$2:'Database_Prop'!X23))),"") ->  | BB153: =IFERROR(INDEX(Database_Prop!$B$2:$B$1498,SMALL(IF(Database_Prop!$A$2:$A$1498=BB$129,ROW(Database_Prop!$B$2:$B$1498)-ROW(Database_Prop!$B$2)+1),ROWS(Database_Prop!Y$2:'Database_Prop'!Y23))),"") ->  | BC153: =IFERROR(INDEX(Database_Prop!$B$2:$B$1498,SMALL(IF(Database_Prop!$A$2:$A$1498=BC$129,ROW(Database_Prop!$B$2:$B$1498)-ROW(Database_Prop!$B$2)+1),ROWS(Database_Prop!Z$2:'Database_Prop'!Z23))),"") ->  | BE153: Bermuda | BF153: North America | BH153: =title98&" 3" -> Process 3 | BI153: PS3 | BO153: =title181 -> Screen Sieves | BP153: 0.2
AE154: 23 | AF154: =IFERROR(INDEX(Database_Prop!$B$2:$B$1498,SMALL(IF(Database_Prop!$A$2:$A$1498=AF$129,ROW(Database_Prop!$B$2:$B$1498)-ROW(Database_Prop!$B$2)+1),ROWS(Database_Prop!C$2:'Database_Prop'!C24))),"") ->  | AG154: =IFERROR(INDEX(Database_Prop!$B$2:$B$1498,SMALL(IF(Database_Prop!$A$2:$A$1498=AG$129,ROW(Database_Prop!$B$2:$B$1498)-ROW(Database_Prop!$B$2)+1),ROWS(Database_Prop!D$2:'Database_Prop'!D24))),"") ->  | AH154: =IFERROR(INDEX(Database_Prop!$B$2:$B$1498,SMALL(IF(Database_Prop!$A$2:$A$1498=AH$129,ROW(Database_Prop!$B$2:$B$1498)-ROW(Database_Prop!$B$2)+1),ROWS(Database_Prop!E$2:'Database_Prop'!E24))),"") ->  | AI154: =IFERROR(INDEX(Database_Prop!$B$2:$B$1498,SMALL(IF(Database_Prop!$A$2:$A$1498=AI$129,ROW(Database_Prop!$B$2:$B$1498)-ROW(Database_Prop!$B$2)+1),ROWS(Database_Prop!F$2:'Database_Prop'!F24))),"") ->  | AJ154: =IFERROR(INDEX(Database_Prop!$B$2:$B$1498,SMALL(IF(Database_Prop!$A$2:$A$1498=AJ$129,ROW(Database_Prop!$B$2:$B$1498)-ROW(Database_Prop!$B$2)+1),ROWS(Database_Prop!G$2:'Database_Prop'!G24))),"") ->  | AK154: =IFERROR(INDEX(Database_Prop!$B$2:$B$1498,SMALL(IF(Database_Prop!$A$2:$A$1498=AK$129,ROW(Database_Prop!$B$2:$B$1498)-ROW(Database_Prop!$B$2)+1),ROWS(Database_Prop!H$2:'Database_Prop'!H24))),"") ->  | AL154: =IFERROR(INDEX(Database_Prop!$B$2:$B$1498,SMALL(IF(Database_Prop!$A$2:$A$1498=AL$129,ROW(Database_Prop!$B$2:$B$1498)-ROW(Database_Prop!$B$2)+1),ROWS(Database_Prop!I$2:'Database_Prop'!I24))),"") ->  | AM154: =IFERROR(INDEX(Database_Prop!$B$2:$B$1498,SMALL(IF(Database_Prop!$A$2:$A$1498=AM$129,ROW(Database_Prop!$B$2:$B$1498)-ROW(Database_Prop!$B$2)+1),ROWS(Database_Prop!J$2:'Database_Prop'!J24))),"") ->  | AN154: =IFERROR(INDEX(Database_Prop!$B$2:$B$1498,SMALL(IF(Database_Prop!$A$2:$A$1498=AN$129,ROW(Database_Prop!$B$2:$B$1498)-ROW(Database_Prop!$B$2)+1),ROWS(Database_Prop!K$2:'Database_Prop'!K24))),"") ->  | AO154: =IFERROR(INDEX(Database_Prop!$B$2:$B$1498,SMALL(IF(Database_Prop!$A$2:$A$1498=AO$129,ROW(Database_Prop!$B$2:$B$1498)-ROW(Database_Prop!$B$2)+1),ROWS(Database_Prop!L$2:'Database_Prop'!L24))),"") ->  | AP154: =IFERROR(INDEX(Database_Prop!$B$2:$B$1498,SMALL(IF(Database_Prop!$A$2:$A$1498=AP$129,ROW(Database_Prop!$B$2:$B$1498)-ROW(Database_Prop!$B$2)+1),ROWS(Database_Prop!M$2:'Database_Prop'!M24))),"") ->  | AQ154: =IFERROR(INDEX(Database_Prop!$B$2:$B$1498,SMALL(IF(Database_Prop!$A$2:$A$1498=AQ$129,ROW(Database_Prop!$B$2:$B$1498)-ROW(Database_Prop!$B$2)+1),ROWS(Database_Prop!N$2:'Database_Prop'!N24))),"") ->  | AR154: =IFERROR(INDEX(Database_Prop!$B$2:$B$1498,SMALL(IF(Database_Prop!$A$2:$A$1498=AR$129,ROW(Database_Prop!$B$2:$B$1498)-ROW(Database_Prop!$B$2)+1),ROWS(Database_Prop!O$2:'Database_Prop'!O24))),"") ->  | AS154: =IFERROR(INDEX(Database_Prop!$B$2:$B$1498,SMALL(IF(Database_Prop!$A$2:$A$1498=AS$129,ROW(Database_Prop!$B$2:$B$1498)-ROW(Database_Prop!$B$2)+1),ROWS(Database_Prop!P$2:'Database_Prop'!P24))),"") ->  | AT154: =IFERROR(INDEX(Database_Prop!$B$2:$B$1498,SMALL(IF(Database_Prop!$A$2:$A$1498=AT$129,ROW(Database_Prop!$B$2:$B$1498)-ROW(Database_Prop!$B$2)+1),ROWS(Database_Prop!Q$2:'Database_Prop'!Q24))),"") ->  | AU154: =IFERROR(INDEX(Database_Prop!$B$2:$B$1498,SMALL(IF(Database_Prop!$A$2:$A$1498=AU$129,ROW(Database_Prop!$B$2:$B$1498)-ROW(Database_Prop!$B$2)+1),ROWS(Database_Prop!R$2:'Database_Prop'!R24))),"") ->  | AV154: =IFERROR(INDEX(Database_Prop!$B$2:$B$1498,SMALL(IF(Database_Prop!$A$2:$A$1498=AV$129,ROW(Database_Prop!$B$2:$B$1498)-ROW(Database_Prop!$B$2)+1),ROWS(Database_Prop!S$2:'Database_Prop'!S24))),"") ->  | AW154: =IFERROR(INDEX(Database_Prop!$B$2:$B$1498,SMALL(IF(Database_Prop!$A$2:$A$1498=AW$129,ROW(Database_Prop!$B$2:$B$1498)-ROW(Database_Prop!$B$2)+1),ROWS(Database_Prop!T$2:'Database_Prop'!T24))),"") ->  | AX154: =IFERROR(INDEX(Database_Prop!$B$2:$B$1498,SMALL(IF(Database_Prop!$A$2:$A$1498=AX$129,ROW(Database_Prop!$B$2:$B$1498)-ROW(Database_Prop!$B$2)+1),ROWS(Database_Prop!U$2:'Database_Prop'!U24))),"") ->  | AY154: =IFERROR(INDEX(Database_Prop!$B$2:$B$1498,SMALL(IF(Database_Prop!$A$2:$A$1498=AY$129,ROW(Database_Prop!$B$2:$B$1498)-ROW(Database_Prop!$B$2)+1),ROWS(Database_Prop!V$2:'Database_Prop'!V24))),"") ->  | AZ154: =IFERROR(INDEX(Database_Prop!$B$2:$B$1498,SMALL(IF(Database_Prop!$A$2:$A$1498=AZ$129,ROW(Database_Prop!$B$2:$B$1498)-ROW(Database_Prop!$B$2)+1),ROWS(Database_Prop!W$2:'Database_Prop'!W24))),"") ->  | BA154: =IFERROR(INDEX(Database_Prop!$B$2:$B$1498,SMALL(IF(Database_Prop!$A$2:$A$1498=BA$129,ROW(Database_Prop!$B$2:$B$1498)-ROW(Database_Prop!$B$2)+1),ROWS(Database_Prop!X$2:'Database_Prop'!X24))),"") ->  | BB154: =IFERROR(INDEX(Database_Prop!$B$2:$B$1498,SMALL(IF(Database_Prop!$A$2:$A$1498=BB$129,ROW(Database_Prop!$B$2:$B$1498)-ROW(Database_Prop!$B$2)+1),ROWS(Database_Prop!Y$2:'Database_Prop'!Y24))),"") ->  | BC154: =IFERROR(INDEX(Database_Prop!$B$2:$B$1498,SMALL(IF(Database_Prop!$A$2:$A$1498=BC$129,ROW(Database_Prop!$B$2:$B$1498)-ROW(Database_Prop!$B$2)+1),ROWS(Database_Prop!Z$2:'Database_Prop'!Z24))),"") ->  | BE154: Bhutan | BF154: Indian Subcontinent | BH154: =title108 -> Main Category | BI154: =title109 -> Feedstock | BJ154: =G$22 -> VS (%) | BK154: =H$22 -> TS (%) | BL154: =I$22 -> BMP (m3/t VS) | BM154: CH4 (%) | BN154: Collection Price | BO154: =title182 -> Screw Press | BP154: 0.65
